Workbook

Sheet Simpli_PreAngulo_Rge (hidden)
A1: =Simpli_Pre_Rge!Y41 -> -696.1783432 | C1: =A1*A1 -> 484664.2855
A2: =Simpli_Pre_Rge!AA41 -> 736.1676019 | C2: =A2*A2 -> 541942.7381
A3: =Simpli_Pre_Rge!Z41 -> 239.329172 | C3: =A3*A3 -> 57278.45256
C5: =C1+C2-C3 -> 969328.571
C6: =(2*A1*A2) -> -1025007.883
C7: =C5/C6 -> -0.945679138
C8: =-(C7) -> 0.945679138
C9: =COSH(C7)*360/PI() -> 169.7660747
C10: =ACOS(C7)*180/PI() -> 161.0282772 | D10: =360+C11 -> 198.9717228
C11: =ACOS(C7)*-180/PI() -> -161.0282772 | D11: =180-C11 -> 341.0282772

Sheet Simpli_PreAngulo_Paulista (hidden)
A1: =Simpli_Pre_Pta_Pir_Sta_Jag!Y41 -> -723.0255752 | C1: =A1*A1 -> 522765.9824
A2: =Simpli_Pre_Pta_Pir_Sta_Jag!AA41 -> 771.6970453 | C2: =A2*A2 -> 595516.3297
A3: =Simpli_Pre_Pta_Pir_Sta_Jag!Z41 -> 269.7227229 | C3: =A3*A3 -> 72750.34724
C5: =C1+C2-C3 -> 1045531.965
C6: =(2*A1*A2) -> -1115913.4
C7: =C5/C6 -> -0.9369293036
C8: =-(C7) -> 0.9369293036
C9: =COSH(C7)*360/PI() -> 168.6765821
C10: =ACOS(C7)*180/PI() -> 159.5421067 | D10: =360+C11 -> 200.4578933
C11: =ACOS(C7)*-180/PI() -> -159.5421067 | D11: =180-C11 -> 339.5421067

Sheet PreAngulo_Rge (hidden)
A1: =Pre_Rge!Y41 -> -696.1783432 | C1: =A1*A1 -> 484664.2855
A2: =Pre_Rge!AA41 -> 736.1676019 | C2: =A2*A2 -> 541942.7381
A3: =Pre_Rge!Z41 -> 239.329172 | C3: =A3*A3 -> 57278.45256
C5: =C1+C2-C3 -> 969328.571
C6: =(2*A1*A2) -> -1025007.883
C7: =C5/C6 -> -0.945679138
C8: =-(C7) -> 0.945679138
C9: =COSH(C7)*360/PI() -> 169.7660747
C10: =ACOS(C7)*180/PI() -> 161.0282772 | D10: =360+C11 -> 198.9717228
C11: =ACOS(C7)*-180/PI() -> -161.0282772 | D11: =180-C11 -> 341.0282772

Sheet PreAngulo_Paulista (hidden)
A1: =Pre_Pta_Pir_Sta_Jag!Y41 -> -723.0255752 | C1: =A1*A1 -> 522765.9824
A2: =Pre_Pta_Pir_Sta_Jag!AA41 -> 771.6970453 | C2: =A2*A2 -> 595516.3297
A3: =Pre_Pta_Pir_Sta_Jag!Z41 -> 269.7227229 | C3: =A3*A3 -> 72750.34724
C5: =C1+C2-C3 -> 1045531.965
C6: =(2*A1*A2) -> -1115913.4
C7: =C5/C6 -> -0.9369293036
C8: =-(C7) -> 0.9369293036
C9: =COSH(C7)*360/PI() -> 168.6765821
C10: =ACOS(C7)*180/PI() -> 159.5421067 | D10: =360+C11 -> 200.4578933
C11: =ACOS(C7)*-180/PI() -> -159.5421067 | D11: =180-C11 -> 339.5421067

Sheet Plan3 (hidden)
A1: =Completo_Esforço_CPFL_Paulista!D28 -> 12 | C1: =A1*A1 -> 144 | D1: 3790 | E1: 3790 | F1: =D1*D1 -> 14364100
A2: =Completo_Esforço_CPFL_Paulista!D29 -> 15 | C2: =A2*A2 -> 225 | D2: 3790 | E2: 3790 | F2: =D2*D2 -> 14364100
A3: =Completo_Esforço_CPFL_Paulista!D30 -> 10 | C3: =A3*A3 -> 100 | D3: 924 | E3: 924 | F3: =D3*D3 -> 853776
C5: =C1+C2-C3 -> 269 | F5: =F1+F2-F3 -> 27874424
C6: =(2*A1*A2) -> 360 | F6: =(2*D1*D2) -> 28728200
C7: =C5/C6 -> 0.7472222222 | F7: =F5/F6 -> 0.9702809087
C8: =-(C7) -> -0.7472222222 | F8: =-(F7) -> -0.9702809087
C9: =COSH(C7)*360/PI() -> 148.0985965 | F9: =ACOS(F7) -> 0.2444073374
C10: =ACOS(C7)*180/PI() -> 41.64967227 | F10: =ACOS(F7)*180/PI() -> 14.00350891
C11: =ACOS(C7)*-180/PI() -> -41.64967227 | F11: =ACOS(F7)*-180/PI() -> -14.00350891
C12: =RADIANS(C5) -> 4.694935688 | F12: =RADIANS(F5) -> 486500.4759
C13: =RADIANS(C6) -> 6.283185307 | F13: =RADIANS(F6) -> 501401.6782
C14: =RADIANS(C7) -> 0.01304148802 | F14: =RADIANS(F7) -> 0.01693459653
D20: Coord. X | E20: =Completo_Esforço_CPFL_Paulista!C35 -> 29829000 | G20: Coord. Y | H20: =Completo_Esforço_CPFL_Paulista!D35 -> 745407001
D21: Coord. X | E21: =Completo_Esforço_CPFL_Paulista!C36 -> 29229000 | G21: Coord. Y | H21: =Completo_Esforço_CPFL_Paulista!D36 -> 745406001
D22: Resultante X | E22: =E20-E21 -> 600000 | G22: Resultante Y | H22: =H20-H21 -> 1000
E23: =E22*E22 -> 360000000000 | H23: =H22*H22 -> 1000000
F24: =E23+H23 -> 360001000000
D26: Distância | E26: =SQRT(F24) -> 600000.8333
E28: =ATAN(E22/H22) -> 1.569129662
D29: Ângulo | E29: =DEGREES(E28) -> 89.90450712
D35: Coord. X | E35: =Completo_Esforço_CPFL_Paulista!C42 -> 29229000 | G35: Coord. Y | H35: =Completo_Esforço_CPFL_Paulista!D42 -> 745406001
D36: Coord. X | E36: =Completo_Esforço_CPFL_Paulista!C43 -> 29279000 | G36: Coord. Y | H36: =Completo_Esforço_CPFL_Paulista!D43 -> 748406001
D37: Resultante X | E37: =E35-E36 -> -50000 | G37: Resultante Y | H37: =H35-H36 -> -3000000
E38: =E37*E37 -> 2500000000 | H38: =H37*H37 -> 9000000000000
F39: =E38+H38 -> 9002500000000
D41: Distância | E41: =SQRT(F39) -> 3000416.638
E43: =ATAN(E37/H37) -> 0.01666512371
D44: Ângulo | E44: =DEGREES(E43) -> 0.9548412539

Sheet Geral (hidden)
A1: =IF( [1]GeralMinuta!A1 <>"", [1]GeralMinuta!A1,"") ->  | B1: =IF(Completo_Esforço_CPFL_Paulista!$L$31=1,IF( [1]GeralMinuta!B1 <>"", [1]GeralMinuta!B1,0),0) -> 0 | F1: =[1]NeutroMinutaCpfl!A1 -> 
A2: =IF( [1]GeralMinuta!A2 <>"", [1]GeralMinuta!A2,"") -> 3 E 70 mm² Vão 35m | B2: =IF(Completo_Esforço_CPFL_Paulista!$L$31=1,IF( [1]GeralMinuta!B2 <>"", [1]GeralMinuta!B2,0),0) -> 373
A3: =IF( [1]GeralMinuta!A3 <>"", [1]GeralMinuta!A3,"") -> 3 E 185 mm² Vão 35m | B3: =IF(Completo_Esforço_CPFL_Paulista!$L$31=1,IF( [1]GeralMinuta!B3 <>"", [1]GeralMinuta!B3,0),0) -> 648
A4: =IF( [1]GeralMinuta!A4 <>"", [1]GeralMinuta!A4,"") ->  | B4: =IF(Completo_Esforço_CPFL_Paulista!$L$31=1,IF( [1]GeralMinuta!B4 <>"", [1]GeralMinuta!B4,0),0) -> 0
A5: =IF( [1]GeralMinuta!A5 <>"", [1]GeralMinuta!A5,"") -> 3 E 70 mm² Vão 35m RGE | B5: =IF(Completo_Esforço_CPFL_Paulista!$L$31=1,IF( [1]GeralMinuta!B5 <>"", [1]GeralMinuta!B5,0),0) -> 373
A6: =IF( [1]GeralMinuta!A6 <>"", [1]GeralMinuta!A6,"") -> 3 E 185 mm² Vão 35m RGE | B6: =IF(Completo_Esforço_CPFL_Paulista!$L$31=1,IF( [1]GeralMinuta!B6 <>"", [1]GeralMinuta!B6,0),0) -> 632
A7: =IF( [1]GeralMinuta!A7 <>"", [1]GeralMinuta!A7,"") ->  | B7: =IF(Completo_Esforço_CPFL_Paulista!$L$31=1,IF( [1]GeralMinuta!B7 <>"", [1]GeralMinuta!B7,0),0) -> 0
A8: =IF( [1]GeralMinuta!A8 <>"", [1]GeralMinuta!A8,"") -> 3 E 70 mm² Vão 80m | B8: =IF(Completo_Esforço_CPFL_Paulista!$L$31=1,IF( [1]GeralMinuta!B8 <>"", [1]GeralMinuta!B8,0),0) -> 549
A9: =IF( [1]GeralMinuta!A9 <>"", [1]GeralMinuta!A9,"") -> 3 E 185 mm² Vão 80m | B9: =IF(Completo_Esforço_CPFL_Paulista!$L$31=1,IF( [1]GeralMinuta!B9 <>"", [1]GeralMinuta!B9,0),0) -> 837
A10: =IF( [1]GeralMinuta!A10 <>"", [1]GeralMinuta!A10,"") ->  | B10: =IF(Completo_Esforço_CPFL_Paulista!$L$31=1,IF( [1]GeralMinuta!B10 <>"", [1]GeralMinuta!B10,0),0) -> 0
A11: =IF( [1]GeralMinuta!A11 <>"", [1]GeralMinuta!A11,"") -> 3 E 70 mm² Vão 80m RGE | B11: =IF(Completo_Esforço_CPFL_Paulista!$L$31=1,IF( [1]GeralMinuta!B11 <>"", [1]GeralMinuta!B11,0),0) -> 549
A12: =IF( [1]GeralMinuta!A12 <>"", [1]GeralMinuta!A12,"") -> 3 E 185 mm² Vão 80m RGE | B12: =IF(Completo_Esforço_CPFL_Paulista!$L$31=1,IF( [1]GeralMinuta!B12 <>"", [1]GeralMinuta!B12,0),0) -> 837
A13: =IF( [1]GeralMinuta!A13 <>"", [1]GeralMinuta!A13,"") ->  | B13: =IF(Completo_Esforço_CPFL_Paulista!$L$31=1,IF( [1]GeralMinuta!B13 <>"", [1]GeralMinuta!B13,0),0) -> 0
A14: =IF( [1]GeralMinuta!A14 <>"", [1]GeralMinuta!A14,"") -> 3 P 16 mm² Vão 35m | B14: =IF(Completo_Esforço_CPFL_Paulista!$L$31=1,IF( [1]GeralMinuta!B14 <>"", [1]GeralMinuta!B14,0),0) -> 70
A15: =IF( [1]GeralMinuta!A15 <>"", [1]GeralMinuta!A15,"") -> 3 P 25 mm² Vão 35m | B15: =IF(Completo_Esforço_CPFL_Paulista!$L$31=1,IF( [1]GeralMinuta!B15 <>"", [1]GeralMinuta!B15,0),0) -> 96
A16: =IF( [1]GeralMinuta!A16 <>"", [1]GeralMinuta!A16,"") -> 3 P 35 mm² Vão 35m | B16: =IF(Completo_Esforço_CPFL_Paulista!$L$31=1,IF( [1]GeralMinuta!B16 <>"", [1]GeralMinuta!B16,0),0) -> 126
A17: =IF( [1]GeralMinuta!A17 <>"", [1]GeralMinuta!A17,"") -> 3 P 50 mm² Vão 35m | B17: =IF(Completo_Esforço_CPFL_Paulista!$L$31=1,IF( [1]GeralMinuta!B17 <>"", [1]GeralMinuta!B17,0),0) -> 156
A18: =IF( [1]GeralMinuta!A18 <>"", [1]GeralMinuta!A18,"") -> 3 P 70 mm² Vão 35m | B18: =IF(Completo_Esforço_CPFL_Paulista!$L$31=1,IF( [1]GeralMinuta!B18 <>"", [1]GeralMinuta!B18,0),0) -> 216
A19: =IF( [1]GeralMinuta!A19 <>"", [1]GeralMinuta!A19,"") -> 3 P 120 mm² Vão 35m | B19: =IF(Completo_Esforço_CPFL_Paulista!$L$31=1,IF( [1]GeralMinuta!B19 <>"", [1]GeralMinuta!B19,0),0) -> 336
A20: =IF( [1]GeralMinuta!A20 <>"", [1]GeralMinuta!A20,"") ->  | B20: =IF(Completo_Esforço_CPFL_Paulista!$L$31=1,IF( [1]GeralMinuta!B20 <>"", [1]GeralMinuta!B20,0),0) -> 0
A21: =IF( [1]GeralMinuta!A21 <>"", [1]GeralMinuta!A21,"") -> 3 P 16 mm² Vão 35m RGE | B21: =IF(Completo_Esforço_CPFL_Paulista!$L$31=1,IF( [1]GeralMinuta!B21 <>"", [1]GeralMinuta!B21,0),0) -> 70
A22: =IF( [1]GeralMinuta!A22 <>"", [1]GeralMinuta!A22,"") -> 3 P 25 mm² Vão 35m RGE | B22: =IF(Completo_Esforço_CPFL_Paulista!$L$31=1,IF( [1]GeralMinuta!B22 <>"", [1]GeralMinuta!B22,0),0) -> 96
A23: =IF( [1]GeralMinuta!A23 <>"", [1]GeralMinuta!A23,"") -> 3 P 35 mm² Vão 35m RGE | B23: =IF(Completo_Esforço_CPFL_Paulista!$L$31=1,IF( [1]GeralMinuta!B23 <>"", [1]GeralMinuta!B23,0),0) -> 126
A24: =IF( [1]GeralMinuta!A24 <>"", [1]GeralMinuta!A24,"") -> 3 P 50 mm² Vão 35m RGE | B24: =IF(Completo_Esforço_CPFL_Paulista!$L$31=1,IF( [1]GeralMinuta!B24 <>"", [1]GeralMinuta!B24,0),0) -> 162
A25: =IF( [1]GeralMinuta!A25 <>"", [1]GeralMinuta!A25,"") -> 3 P 70 mm² Vão 35m RGE | B25: =IF(Completo_Esforço_CPFL_Paulista!$L$31=1,IF( [1]GeralMinuta!B25 <>"", [1]GeralMinuta!B25,0),0) -> 226
A26: =IF( [1]GeralMinuta!A26 <>"", [1]GeralMinuta!A26,"") -> 3 P 120 mm² Vão 35m RGE | B26: =IF(Completo_Esforço_CPFL_Paulista!$L$31=1,IF( [1]GeralMinuta!B26 <>"", [1]GeralMinuta!B26,0),0) -> 352
A27: =IF( [1]GeralMinuta!A27 <>"", [1]GeralMinuta!A27,"") ->  | B27: =IF(Completo_Esforço_CPFL_Paulista!$L$31=1,IF( [1]GeralMinuta!B27 <>"", [1]GeralMinuta!B27,0),0) -> 0
A28: =IF( [1]GeralMinuta!A28 <>"", [1]GeralMinuta!A28,"") -> 3 CA 02 AWG Vão 35m | B28: =IF(Completo_Esforço_CPFL_Paulista!$L$31=1,IF( [1]GeralMinuta!B28 <>"", [1]GeralMinuta!B28,0),0) -> 180
A29: =IF( [1]GeralMinuta!A29 <>"", [1]GeralMinuta!A29,"") -> 3 CA 1/0 AWG Vão 35m | B29: =IF(Completo_Esforço_CPFL_Paulista!$L$31=1,IF( [1]GeralMinuta!B29 <>"", [1]GeralMinuta!B29,0),0) -> 288
A30: =IF( [1]GeralMinuta!A30 <>"", [1]GeralMinuta!A30,"") -> 3 CA 2/0 AWG Vão 35m | B30: =IF(Completo_Esforço_CPFL_Paulista!$L$31=1,IF( [1]GeralMinuta!B30 <>"", [1]GeralMinuta!B30,0),0) -> 363
A31: =IF( [1]GeralMinuta!A31 <>"", [1]GeralMinuta!A31,"") -> 3 CA 4/0 AWG Vão 35m | B31: =IF(Completo_Esforço_CPFL_Paulista!$L$31=1,IF( [1]GeralMinuta!B31 <>"", [1]GeralMinuta!B31,0),0) -> 582
A32: =IF( [1]GeralMinuta!A32 <>"", [1]GeralMinuta!A32,"") -> 3 CA 336,4 MCM Vão 35m | B32: =IF(Completo_Esforço_CPFL_Paulista!$L$31=1,IF( [1]GeralMinuta!B32 <>"", [1]GeralMinuta!B32,0),0) -> 924
A33: =IF( [1]GeralMinuta!A33 <>"", [1]GeralMinuta!A33,"") -> 3 CA 477 MCM Vão 35m | B33: =IF(Completo_Esforço_CPFL_Paulista!$L$31=1,IF( [1]GeralMinuta!B33 <>"", [1]GeralMinuta!B33,0),0) -> 1305
A34: =IF( [1]GeralMinuta!A34 <>"", [1]GeralMinuta!A34,"") ->  | B34: =IF(Completo_Esforço_CPFL_Paulista!$L$31=1,IF( [1]GeralMinuta!B34 <>"", [1]GeralMinuta!B34,0),0) -> 0
A35: =IF( [1]GeralMinuta!A35 <>"", [1]GeralMinuta!A35,"") -> 3 CA 02 AWG Vão 35m RGE | B35: =IF(Completo_Esforço_CPFL_Paulista!$L$31=1,IF( [1]GeralMinuta!B35 <>"", [1]GeralMinuta!B35,0),0) -> 225
A36: =IF( [1]GeralMinuta!A36 <>"", [1]GeralMinuta!A36,"") -> 3 CA 1/0 AWG Vão 35m RGE | B36: =IF(Completo_Esforço_CPFL_Paulista!$L$31=1,IF( [1]GeralMinuta!B36 <>"", [1]GeralMinuta!B36,0),0) -> 2319
A37: =IF( [1]GeralMinuta!A37 <>"", [1]GeralMinuta!A37,"") -> 3 CA 2/0 AWG Vão 35m RGE | B37: =IF(Completo_Esforço_CPFL_Paulista!$L$31=1,IF( [1]GeralMinuta!B37 <>"", [1]GeralMinuta!B37,0),0) -> 450
A38: =IF( [1]GeralMinuta!A38 <>"", [1]GeralMinuta!A38,"") -> 3 CA 4/0 AWG Vão 35m RGE | B38: =IF(Completo_Esforço_CPFL_Paulista!$L$31=1,IF( [1]GeralMinuta!B38 <>"", [1]GeralMinuta!B38,0),0) -> 720
A39: =IF( [1]GeralMinuta!A39 <>"", [1]GeralMinuta!A39,"") -> 3 CA 336,4 MCM Vão 35m RGE | B39: =IF(Completo_Esforço_CPFL_Paulista!$L$31=1,IF( [1]GeralMinuta!B39 <>"", [1]GeralMinuta!B39,0),0) -> 1143
A40: =IF( [1]GeralMinuta!A40 <>"", [1]GeralMinuta!A40,"") -> 3 CA 477 MCM Vão 35m RGE | B40: =IF(Completo_Esforço_CPFL_Paulista!$L$31=1,IF( [1]GeralMinuta!B40 <>"", [1]GeralMinuta!B40,0),0) -> 1617
A41: =IF( [1]GeralMinuta!A41 <>"", [1]GeralMinuta!A41,"") ->  | B41: =IF(Completo_Esforço_CPFL_Paulista!$L$31=1,IF( [1]GeralMinuta!B41 <>"", [1]GeralMinuta!B41,0),0) -> 0
A42: =IF( [1]GeralMinuta!A42 <>"", [1]GeralMinuta!A42,"") -> 3 CA 02 AWG Vão 80m | B42: =IF(Completo_Esforço_CPFL_Paulista!$L$31=1,IF( [1]GeralMinuta!B42 <>"", [1]GeralMinuta!B42,0),0) -> 399
A43: =IF( [1]GeralMinuta!A43 <>"", [1]GeralMinuta!A43,"") -> 3 CA 1/0 AWG Vão 80m | B43: =IF(Completo_Esforço_CPFL_Paulista!$L$31=1,IF( [1]GeralMinuta!B43 <>"", [1]GeralMinuta!B43,0),0) -> 558
A44: =IF( [1]GeralMinuta!A44 <>"", [1]GeralMinuta!A44,"") -> 3 CA 2/0 AWG Vão 80m | B44: =IF(Completo_Esforço_CPFL_Paulista!$L$31=1,IF( [1]GeralMinuta!B44 <>"", [1]GeralMinuta!B44,0),0) -> 660
A45: =IF( [1]GeralMinuta!A45 <>"", [1]GeralMinuta!A45,"") -> 3 CA 4/0 AWG Vão 80m | B45: =IF(Completo_Esforço_CPFL_Paulista!$L$31=1,IF( [1]GeralMinuta!B45 <>"", [1]GeralMinuta!B45,0),0) -> 945
A46: =IF( [1]GeralMinuta!A46 <>"", [1]GeralMinuta!A46,"") -> 3 CA 336,4 MCM Vão 80m | B46: =IF(Completo_Esforço_CPFL_Paulista!$L$31=1,IF( [1]GeralMinuta!B46 <>"", [1]GeralMinuta!B46,0),0) -> 1449
A47: =IF( [1]GeralMinuta!A47 <>"", [1]GeralMinuta!A47,"") -> 3 CA 477 MCM Vão 80m | B47: =IF(Completo_Esforço_CPFL_Paulista!$L$31=1,IF( [1]GeralMinuta!B47 <>"", [1]GeralMinuta!B47,0),0) -> 2049
A48: =IF( [1]GeralMinuta!A48 <>"", [1]GeralMinuta!A48,"") ->  | B48: =IF(Completo_Esforço_CPFL_Paulista!$L$31=1,IF( [1]GeralMinuta!B48 <>"", [1]GeralMinuta!B48,0),0) -> 0
A49: =IF( [1]GeralMinuta!A49 <>"", [1]GeralMinuta!A49,"") -> 3 CA 02 AWG Vão 80m RGE | B49: =IF(Completo_Esforço_CPFL_Paulista!$L$31=1,IF( [1]GeralMinuta!B49 <>"", [1]GeralMinuta!B49,0),0) -> 399
A50: =IF( [1]GeralMinuta!A50 <>"", [1]GeralMinuta!A50,"") -> 3 CA 1/0 AWG Vão 80m RGE | B50: =IF(Completo_Esforço_CPFL_Paulista!$L$31=1,IF( [1]GeralMinuta!B50 <>"", [1]GeralMinuta!B50,0),0) -> 558
A51: =IF( [1]GeralMinuta!A51 <>"", [1]GeralMinuta!A51,"") -> 3 CA 2/0 AWG Vão 80m RGE | B51: =IF(Completo_Esforço_CPFL_Paulista!$L$31=1,IF( [1]GeralMinuta!B51 <>"", [1]GeralMinuta!B51,0),0) -> 660
A52: =IF( [1]GeralMinuta!A52 <>"", [1]GeralMinuta!A52,"") -> 3 CA 4/0 AWG Vão 80m RGE | B52: =IF(Completo_Esforço_CPFL_Paulista!$L$31=1,IF( [1]GeralMinuta!B52 <>"", [1]GeralMinuta!B52,0),0) -> 1029
A53: =IF( [1]GeralMinuta!A53 <>"", [1]GeralMinuta!A53,"") -> 3 CA 336,4 MCM Vão 80m RGE | B53: =IF(Completo_Esforço_CPFL_Paulista!$L$31=1,IF( [1]GeralMinuta!B53 <>"", [1]GeralMinuta!B53,0),0) -> 1632
A54: =IF( [1]GeralMinuta!A54 <>"", [1]GeralMinuta!A54,"") -> 3 CA 477 MCM Vão 80m RGE | B54: =IF(Completo_Esforço_CPFL_Paulista!$L$31=1,IF( [1]GeralMinuta!B54 <>"", [1]GeralMinuta!B54,0),0) -> 2310
A55: =IF( [1]GeralMinuta!A55 <>"", [1]GeralMinuta!A55,"") ->  | B55: =IF(Completo_Esforço_CPFL_Paulista!$L$31=1,IF( [1]GeralMinuta!B55 <>"", [1]GeralMinuta!B55,0),0) -> 0
A56: =IF( [1]GeralMinuta!A56 <>"", [1]GeralMinuta!A56,"") -> 3 CAA 04 AWG Vão 40m | B56: =IF(Completo_Esforço_CPFL_Paulista!$L$31=1,IF( [1]GeralMinuta!B56 <>"", [1]GeralMinuta!B56,0),0) -> 189
A57: =IF( [1]GeralMinuta!A57 <>"", [1]GeralMinuta!A57,"") -> 3 CAA 02 AWG Vão 40m | B57: =IF(Completo_Esforço_CPFL_Paulista!$L$31=1,IF( [1]GeralMinuta!B57 <>"", [1]GeralMinuta!B57,0),0) -> 300
A58: =IF( [1]GeralMinuta!A58 <>"", [1]GeralMinuta!A58,"") -> 3 CAA 1/0 AWG Vão 40m | B58: =IF(Completo_Esforço_CPFL_Paulista!$L$31=1,IF( [1]GeralMinuta!B58 <>"", [1]GeralMinuta!B58,0),0) -> 480
A59: =IF( [1]GeralMinuta!A59 <>"", [1]GeralMinuta!A59,"") -> 3 CAA 2/0 AWG Vão 40m | B59: =IF(Completo_Esforço_CPFL_Paulista!$L$31=1,IF( [1]GeralMinuta!B59 <>"", [1]GeralMinuta!B59,0),0) -> 603
A60: =IF( [1]GeralMinuta!A60 <>"", [1]GeralMinuta!A60,"") -> 3 CAA 4/0 AWG Vão 40m | B60: =IF(Completo_Esforço_CPFL_Paulista!$L$31=1,IF( [1]GeralMinuta!B60 <>"", [1]GeralMinuta!B60,0),0) -> 960
A61: =IF( [1]GeralMinuta!A61 <>"", [1]GeralMinuta!A61,"") ->  | B61: =IF(Completo_Esforço_CPFL_Paulista!$L$31=1,IF( [1]GeralMinuta!B61 <>"", [1]GeralMinuta!B61,0),0) -> 0
A62: =IF( [1]GeralMinuta!A62 <>"", [1]GeralMinuta!A62,"") -> 3 CAA 04 AWG Vão 40m RGE | B62: =IF(Completo_Esforço_CPFL_Paulista!$L$31=1,IF( [1]GeralMinuta!B62 <>"", [1]GeralMinuta!B62,0),0) -> 225
A63: =IF( [1]GeralMinuta!A63 <>"", [1]GeralMinuta!A63,"") -> 3 CAA 02 AWG Vão 40m RGE | B63: =IF(Completo_Esforço_CPFL_Paulista!$L$31=1,IF( [1]GeralMinuta!B63 <>"", [1]GeralMinuta!B63,0),0) -> 357
A64: =IF( [1]GeralMinuta!A64 <>"", [1]GeralMinuta!A64,"") -> 3 CAA 1/0 AWG Vão 40m RGE | B64: =IF(Completo_Esforço_CPFL_Paulista!$L$31=1,IF( [1]GeralMinuta!B64 <>"", [1]GeralMinuta!B64,0),0) -> 570
A65: =IF( [1]GeralMinuta!A65 <>"", [1]GeralMinuta!A65,"") -> 3 CAA 2/0 AWG Vão 40m RGE | B65: =IF(Completo_Esforço_CPFL_Paulista!$L$31=1,IF( [1]GeralMinuta!B65 <>"", [1]GeralMinuta!B65,0),0) -> 720
A66: =IF( [1]GeralMinuta!A66 <>"", [1]GeralMinuta!A66,"") -> 3 CAA 4/0 AWG Vão 40m RGE | B66: =IF(Completo_Esforço_CPFL_Paulista!$L$31=1,IF( [1]GeralMinuta!B66 <>"", [1]GeralMinuta!B66,0),0) -> 1143
A67: =IF( [1]GeralMinuta!A67 <>"", [1]GeralMinuta!A67,"") ->  | B67: =IF(Completo_Esforço_CPFL_Paulista!$L$31=1,IF( [1]GeralMinuta!B67 <>"", [1]GeralMinuta!B67,0),0) -> 0
A68: =IF( [1]GeralMinuta!A68 <>"", [1]GeralMinuta!A68,"") -> 3 CAA 04 AWG Vão 80m | B68: =IF(Completo_Esforço_CPFL_Paulista!$L$31=1,IF( [1]GeralMinuta!B68 <>"", [1]GeralMinuta!B68,0),0) -> 405
A69: =IF( [1]GeralMinuta!A69 <>"", [1]GeralMinuta!A69,"") -> 3 CAA 02 AWG Vão 80m | B69: =IF(Completo_Esforço_CPFL_Paulista!$L$31=1,IF( [1]GeralMinuta!B69 <>"", [1]GeralMinuta!B69,0),0) -> 573
A70: =IF( [1]GeralMinuta!A70 <>"", [1]GeralMinuta!A70,"") -> 3 CAA 1/0 AWG Vão 80m | B70: =IF(Completo_Esforço_CPFL_Paulista!$L$31=1,IF( [1]GeralMinuta!B70 <>"", [1]GeralMinuta!B70,0),0) -> 825
A71: =IF( [1]GeralMinuta!A71 <>"", [1]GeralMinuta!A71,"") -> 3 CAA 2/0 AWG Vão 80m | B71: =IF(Completo_Esforço_CPFL_Paulista!$L$31=1,IF( [1]GeralMinuta!B71 <>"", [1]GeralMinuta!B71,0),0) -> 1038
A72: =IF( [1]GeralMinuta!A72 <>"", [1]GeralMinuta!A72,"") -> 3 CAA 4/0 AWG Vão 80m | B72: =IF(Completo_Esforço_CPFL_Paulista!$L$31=1,IF( [1]GeralMinuta!B72 <>"", [1]GeralMinuta!B72,0),0) -> 1653
A73: =IF( [1]GeralMinuta!A73 <>"", [1]GeralMinuta!A73,"") -> 3 CAA 336,4 MCM Vão 80m | B73: =IF(Completo_Esforço_CPFL_Paulista!$L$31=1,IF( [1]GeralMinuta!B73 <>"", [1]GeralMinuta!B73,0),0) -> 2628
A74: =IF( [1]GeralMinuta!A74 <>"", [1]GeralMinuta!A74,"") ->  | B74: =IF(Completo_Esforço_CPFL_Paulista!$L$31=1,IF( [1]GeralMinuta!B74 <>"", [1]GeralMinuta!B74,0),0) -> 0
A75: =IF( [1]GeralMinuta!A75 <>"", [1]GeralMinuta!A75,"") -> 3 CAA 04 AWG Vão 80m RGE | B75: =IF(Completo_Esforço_CPFL_Paulista!$L$31=1,IF( [1]GeralMinuta!B75 <>"", [1]GeralMinuta!B75,0),0) -> 405
A76: =IF( [1]GeralMinuta!A76 <>"", [1]GeralMinuta!A76,"") -> 3 CAA 02 AWG Vão 80m RGE | B76: =IF(Completo_Esforço_CPFL_Paulista!$L$31=1,IF( [1]GeralMinuta!B76 <>"", [1]GeralMinuta!B76,0),0) -> 576
A77: =IF( [1]GeralMinuta!A77 <>"", [1]GeralMinuta!A77,"") -> 3 CAA 1/0 AWG Vão 80m RGE | B77: =IF(Completo_Esforço_CPFL_Paulista!$L$31=1,IF( [1]GeralMinuta!B77 <>"", [1]GeralMinuta!B77,0),0) -> 915
A78: =IF( [1]GeralMinuta!A78 <>"", [1]GeralMinuta!A78,"") -> 3 CAA 2/0 AWG Vão 80m RGE | B78: =IF(Completo_Esforço_CPFL_Paulista!$L$31=1,IF( [1]GeralMinuta!B78 <>"", [1]GeralMinuta!B78,0),0) -> 1152
A79: =IF( [1]GeralMinuta!A79 <>"", [1]GeralMinuta!A79,"") -> 3 CAA 4/0 AWG Vão 80m RGE | B79: =IF(Completo_Esforço_CPFL_Paulista!$L$31=1,IF( [1]GeralMinuta!B79 <>"", [1]GeralMinuta!B79,0),0) -> 1833
A80: =IF( [1]GeralMinuta!A80 <>"", [1]GeralMinuta!A80,"") -> 3 CAA 336,4 MCM Vão 80m RGE | B80: =IF(Completo_Esforço_CPFL_Paulista!$L$31=1,IF( [1]GeralMinuta!B80 <>"", [1]GeralMinuta!B80,0),0) -> 2916
A81: =IF( [1]GeralMinuta!A81 <>"", [1]GeralMinuta!A81,"") ->  | B81: =IF(Completo_Esforço_CPFL_Paulista!$L$31=1,IF( [1]GeralMinuta!B81 <>"", [1]GeralMinuta!B81,0),0) -> 0
A82: =IF( [1]GeralMinuta!A82 <>"", [1]GeralMinuta!A82,"") -> 3 CAA 04 AWG Vão 120m | B82: =IF(Completo_Esforço_CPFL_Paulista!$L$31=1,IF( [1]GeralMinuta!B82 <>"", [1]GeralMinuta!B82,0),0) -> 525
A83: =IF( [1]GeralMinuta!A83 <>"", [1]GeralMinuta!A83,"") -> 3 CAA 02 AWG Vão 120m | B83: =IF(Completo_Esforço_CPFL_Paulista!$L$31=1,IF( [1]GeralMinuta!B83 <>"", [1]GeralMinuta!B83,0),0) -> 741
A84: =IF( [1]GeralMinuta!A84 <>"", [1]GeralMinuta!A84,"") -> 3 CAA 1/0 AWG Vão 120m | B84: =IF(Completo_Esforço_CPFL_Paulista!$L$31=1,IF( [1]GeralMinuta!B84 <>"", [1]GeralMinuta!B84,0),0) -> 1065
A85: =IF( [1]GeralMinuta!A85 <>"", [1]GeralMinuta!A85,"") -> 3 CAA 2/0 AWG Vão 120m | B85: =IF(Completo_Esforço_CPFL_Paulista!$L$31=1,IF( [1]GeralMinuta!B85 <>"", [1]GeralMinuta!B85,0),0) -> 1284
A86: =IF( [1]GeralMinuta!A86 <>"", [1]GeralMinuta!A86,"") -> 3 CAA 4/0 AWG Vão 120m | B86: =IF(Completo_Esforço_CPFL_Paulista!$L$31=1,IF( [1]GeralMinuta!B86 <>"", [1]GeralMinuta!B86,0),0) -> 1956
A87: =IF( [1]GeralMinuta!A87 <>"", [1]GeralMinuta!A87,"") -> 3 CAA 336,4 MCM Vão 120m | B87: =IF(Completo_Esforço_CPFL_Paulista!$L$31=1,IF( [1]GeralMinuta!B87 <>"", [1]GeralMinuta!B87,0),0) -> 3105
A88: =IF( [1]GeralMinuta!A88 <>"", [1]GeralMinuta!A88,"") ->  | B88: =IF(Completo_Esforço_CPFL_Paulista!$L$31=1,IF( [1]GeralMinuta!B88 <>"", [1]GeralMinuta!B88,0),0) -> 0
A89: =IF( [1]GeralMinuta!A89 <>"", [1]GeralMinuta!A89,"") -> 3 CAA 04 AWG Vão 120m RGE | B89: =IF(Completo_Esforço_CPFL_Paulista!$L$31=1,IF( [1]GeralMinuta!B89 <>"", [1]GeralMinuta!B89,0),0) -> 525
A90: =IF( [1]GeralMinuta!A90 <>"", [1]GeralMinuta!A90,"") -> 3 CAA 02 AWG Vão 120m RGE | B90: =IF(Completo_Esforço_CPFL_Paulista!$L$31=1,IF( [1]GeralMinuta!B90 <>"", [1]GeralMinuta!B90,0),0) -> 741
A91: =IF( [1]GeralMinuta!A91 <>"", [1]GeralMinuta!A91,"") -> 3 CAA 1/0 AWG Vão 120m RGE | B91: =IF(Completo_Esforço_CPFL_Paulista!$L$31=1,IF( [1]GeralMinuta!B91 <>"", [1]GeralMinuta!B91,0),0) -> 1065
A92: =IF( [1]GeralMinuta!A92 <>"", [1]GeralMinuta!A92,"") -> 3 CAA 2/0 AWG Vão 120m RGE | B92: =IF(Completo_Esforço_CPFL_Paulista!$L$31=1,IF( [1]GeralMinuta!B92 <>"", [1]GeralMinuta!B92,0),0) -> 1329
A93: =IF( [1]GeralMinuta!A93 <>"", [1]GeralMinuta!A93,"") -> 3 CAA 4/0 AWG Vão 120m RGE | B93: =IF(Completo_Esforço_CPFL_Paulista!$L$31=1,IF( [1]GeralMinuta!B93 <>"", [1]GeralMinuta!B93,0),0) -> 2115
A94: =IF( [1]GeralMinuta!A94 <>"", [1]GeralMinuta!A94,"") -> 3 CAA 336,4 MCM Vão 120m RGE | B94: =IF(Completo_Esforço_CPFL_Paulista!$L$31=1,IF( [1]GeralMinuta!B94 <>"", [1]GeralMinuta!B94,0),0) -> 3360
A95: =IF( [1]GeralMinuta!A95 <>"", [1]GeralMinuta!A95,"") ->  | B95: =IF(Completo_Esforço_CPFL_Paulista!$L$31=1,IF( [1]GeralMinuta!B95 <>"", [1]GeralMinuta!B95,0),0) -> 0
A96: =IF( [1]GeralMinuta!A96 <>"", [1]GeralMinuta!A96,"") -> 3 15kv 240 mm² Vão 35m | B96: =IF(Completo_Esforço_CPFL_Paulista!$L$31=1,IF( [1]GeralMinuta!B96 <>"", [1]GeralMinuta!B96,0),0) -> 723
A97: =IF( [1]GeralMinuta!A97 <>"", [1]GeralMinuta!A97,"") -> 3 25kv 240 mm² Vão 35m | B97: =IF(Completo_Esforço_CPFL_Paulista!$L$31=1,IF( [1]GeralMinuta!B97 <>"", [1]GeralMinuta!B97,0),0) -> 825
A98: =IF( [1]GeralMinuta!A98 <>"", [1]GeralMinuta!A98,"") -> 3 35kv 240 mm² Vão 35m | B98: =IF(Completo_Esforço_CPFL_Paulista!$L$31=1,IF( [1]GeralMinuta!B98 <>"", [1]GeralMinuta!B98,0),0) -> 966
A99: =IF( [1]GeralMinuta!A99 <>"", [1]GeralMinuta!A99,"") ->  | B99: =IF(Completo_Esforço_CPFL_Paulista!$L$31=1,IF( [1]GeralMinuta!B99 <>"", [1]GeralMinuta!B99,0),0) -> 0
A100: =IF( [1]GeralMinuta!A100 <>"", [1]GeralMinuta!A100,"") -> 3 15kv 240 mm² Vão 35m RGE | B100: =IF(Completo_Esforço_CPFL_Paulista!$L$31=1,IF( [1]GeralMinuta!B100 <>"", [1]GeralMinuta!B100,0),0) -> 743
A101: =IF( [1]GeralMinuta!A101 <>"", [1]GeralMinuta!A101,"") -> 3 25kv 240 mm² Vão 35m RGE | B101: =IF(Completo_Esforço_CPFL_Paulista!$L$31=1,IF( [1]GeralMinuta!B101 <>"", [1]GeralMinuta!B101,0),0) -> 849
A102: =IF( [1]GeralMinuta!A102 <>"", [1]GeralMinuta!A102,"") -> 3 35kv 240 mm² Vão 35m RGE | B102: =IF(Completo_Esforço_CPFL_Paulista!$L$31=1,IF( [1]GeralMinuta!B102 <>"", [1]GeralMinuta!B102,0),0) -> 993
A103: =IF( [1]GeralMinuta!A103 <>"", [1]GeralMinuta!A103,"") ->  | B103: =IF(Completo_Esforço_CPFL_Paulista!$L$31=1,IF( [1]GeralMinuta!B103 <>"", [1]GeralMinuta!B103,0),0) -> 0
A104: =IF( [1]GeralMinuta!A104 <>"", [1]GeralMinuta!A104,"") -> 3 CU 06 AWG Vão 35m | B104: =IF(Completo_Esforço_CPFL_Paulista!$L$31=1,IF( [1]GeralMinuta!B104 <>"", [1]GeralMinuta!B104,0),0) -> 168
A105: =IF( [1]GeralMinuta!A105 <>"", [1]GeralMinuta!A105,"") -> 3 CU 02 AWG Vão 35m | B105: =IF(Completo_Esforço_CPFL_Paulista!$L$31=1,IF( [1]GeralMinuta!B105 <>"", [1]GeralMinuta!B105,0),0) -> 423
A106: =IF( [1]GeralMinuta!A106 <>"", [1]GeralMinuta!A106,"") -> 3 CU 1/0 AWG Vão 35m | B106: =IF(Completo_Esforço_CPFL_Paulista!$L$31=1,IF( [1]GeralMinuta!B106 <>"", [1]GeralMinuta!B106,0),0) -> 624
A107: =IF( [1]GeralMinuta!A107 <>"", [1]GeralMinuta!A107,"") -> 3 CU 2/0 AWG Vão 35m | B107: =IF(Completo_Esforço_CPFL_Paulista!$L$31=1,IF( [1]GeralMinuta!B107 <>"", [1]GeralMinuta!B107,0),0) -> 771
A108: =IF( [1]GeralMinuta!A108 <>"", [1]GeralMinuta!A108,"") -> 3 CU 4/0 AWG Vão 35m | B108: =IF(Completo_Esforço_CPFL_Paulista!$L$31=1,IF( [1]GeralMinuta!B108 <>"", [1]GeralMinuta!B108,0),0) -> 1188
A109: =IF( [1]GeralMinuta!A109 <>"", [1]GeralMinuta!A109,"") ->  | B109: =IF(Completo_Esforço_CPFL_Paulista!$L$31=1,IF( [1]GeralMinuta!B109 <>"", [1]GeralMinuta!B109,0),0) -> 0
A110: =IF( [1]GeralMinuta!A110 <>"", [1]GeralMinuta!A110,"") -> 3 CU 06 AWG Vão 35m RGE | B110: =IF(Completo_Esforço_CPFL_Paulista!$L$31=1,IF( [1]GeralMinuta!B110 <>"", [1]GeralMinuta!B110,0),0) -> 168
A111: =IF( [1]GeralMinuta!A111 <>"", [1]GeralMinuta!A111,"") -> 3 CU 02 AWG Vão 35m RGE | B111: =IF(Completo_Esforço_CPFL_Paulista!$L$31=1,IF( [1]GeralMinuta!B111 <>"", [1]GeralMinuta!B111,0),0) -> 423
A112: =IF( [1]GeralMinuta!A112 <>"", [1]GeralMinuta!A112,"") -> 3 CU 1/0 AWG Vão 35m RGE | B112: =IF(Completo_Esforço_CPFL_Paulista!$L$31=1,IF( [1]GeralMinuta!B112 <>"", [1]GeralMinuta!B112,0),0) -> 624
A113: =IF( [1]GeralMinuta!A113 <>"", [1]GeralMinuta!A113,"") -> 3 CU 2/0 AWG Vão 35m RGE | B113: =IF(Completo_Esforço_CPFL_Paulista!$L$31=1,IF( [1]GeralMinuta!B113 <>"", [1]GeralMinuta!B113,0),0) -> 771
A114: =IF( [1]GeralMinuta!A114 <>"", [1]GeralMinuta!A114,"") -> 3 CU 4/0 AWG Vão 35m RGE | B114: =IF(Completo_Esforço_CPFL_Paulista!$L$31=1,IF( [1]GeralMinuta!B114 <>"", [1]GeralMinuta!B114,0),0) -> 1188
A115: =IF( [1]GeralMinuta!A115 <>"", [1]GeralMinuta!A115,"") ->  | B115: =IF(Completo_Esforço_CPFL_Paulista!$L$31=1,IF( [1]GeralMinuta!B115 <>"", [1]GeralMinuta!B115,0),0) -> 0
A116: =IF( [1]GeralMinuta!A116 <>"", [1]GeralMinuta!A116,"") -> 2 CA 02 AWG Vão 35m | B116: =IF(Completo_Esforço_CPFL_Paulista!$L$31=1,IF( [1]GeralMinuta!B116 <>"", [1]GeralMinuta!B116,0),0) -> 120
A117: =IF( [1]GeralMinuta!A117 <>"", [1]GeralMinuta!A117,"") -> 2 CA 1/0 AWG Vão 35m | B117: =IF(Completo_Esforço_CPFL_Paulista!$L$31=1,IF( [1]GeralMinuta!B117 <>"", [1]GeralMinuta!B117,0),0) -> 192
A118: =IF( [1]GeralMinuta!A118 <>"", [1]GeralMinuta!A118,"") -> 2 CA 2/0 AWG Vão 35m | B118: =IF(Completo_Esforço_CPFL_Paulista!$L$31=1,IF( [1]GeralMinuta!B118 <>"", [1]GeralMinuta!B118,0),0) -> 242
A119: =IF( [1]GeralMinuta!A119 <>"", [1]GeralMinuta!A119,"") -> 2 CA 4/0 AWG Vão 35m | B119: =IF(Completo_Esforço_CPFL_Paulista!$L$31=1,IF( [1]GeralMinuta!B119 <>"", [1]GeralMinuta!B119,0),0) -> 388
A120: =IF( [1]GeralMinuta!A120 <>"", [1]GeralMinuta!A120,"") -> 2 CA 336,4 MCM Vão 35m | B120: =IF(Completo_Esforço_CPFL_Paulista!$L$31=1,IF( [1]GeralMinuta!B120 <>"", [1]GeralMinuta!B120,0),0) -> 616
A121: =IF( [1]GeralMinuta!A121 <>"", [1]GeralMinuta!A121,"") -> 2 CA 477 MCM Vão 35m | B121: =IF(Completo_Esforço_CPFL_Paulista!$L$31=1,IF( [1]GeralMinuta!B121 <>"", [1]GeralMinuta!B121,0),0) -> 870
A122: =IF( [1]GeralMinuta!A122 <>"", [1]GeralMinuta!A122,"") ->  | B122: =IF(Completo_Esforço_CPFL_Paulista!$L$31=1,IF( [1]GeralMinuta!B122 <>"", [1]GeralMinuta!B122,0),0) -> 0
A123: =IF( [1]GeralMinuta!A123 <>"", [1]GeralMinuta!A123,"") -> 2 CA 02 AWG Vão 35m RGE | B123: =IF(Completo_Esforço_CPFL_Paulista!$L$31=1,IF( [1]GeralMinuta!B123 <>"", [1]GeralMinuta!B123,0),0) -> 150
A124: =IF( [1]GeralMinuta!A124 <>"", [1]GeralMinuta!A124,"") -> 2 CA 1/0 AWG Vão 35m RGE | B124: =IF(Completo_Esforço_CPFL_Paulista!$L$31=1,IF( [1]GeralMinuta!B124 <>"", [1]GeralMinuta!B124,0),0) -> 1546
A125: =IF( [1]GeralMinuta!A125 <>"", [1]GeralMinuta!A125,"") -> 2 CA 2/0 AWG Vão 35m RGE | B125: =IF(Completo_Esforço_CPFL_Paulista!$L$31=1,IF( [1]GeralMinuta!B125 <>"", [1]GeralMinuta!B125,0),0) -> 300
A126: =IF( [1]GeralMinuta!A126 <>"", [1]GeralMinuta!A126,"") -> 2 CA 4/0 AWG Vão 35m RGE | B126: =IF(Completo_Esforço_CPFL_Paulista!$L$31=1,IF( [1]GeralMinuta!B126 <>"", [1]GeralMinuta!B126,0),0) -> 480
A127: =IF( [1]GeralMinuta!A127 <>"", [1]GeralMinuta!A127,"") -> 2 CA 336,4 MCM Vão 35m RGE | B127: =IF(Completo_Esforço_CPFL_Paulista!$L$31=1,IF( [1]GeralMinuta!B127 <>"", [1]GeralMinuta!B127,0),0) -> 762
A128: =IF( [1]GeralMinuta!A128 <>"", [1]GeralMinuta!A128,"") -> 2 CA 477 MCM Vão 35m RGE | B128: =IF(Completo_Esforço_CPFL_Paulista!$L$31=1,IF( [1]GeralMinuta!B128 <>"", [1]GeralMinuta!B128,0),0) -> 1078
A129: =IF( [1]GeralMinuta!A129 <>"", [1]GeralMinuta!A129,"") ->  | B129: =IF(Completo_Esforço_CPFL_Paulista!$L$31=1,IF( [1]GeralMinuta!B129 <>"", [1]GeralMinuta!B129,0),0) -> 0
A130: =IF( [1]GeralMinuta!A130 <>"", [1]GeralMinuta!A130,"") -> 2 CA 02 AWG Vão 80m | B130: =IF(Completo_Esforço_CPFL_Paulista!$L$31=1,IF( [1]GeralMinuta!B130 <>"", [1]GeralMinuta!B130,0),0) -> 266
A131: =IF( [1]GeralMinuta!A131 <>"", [1]GeralMinuta!A131,"") -> 2 CA 1/0 AWG Vão 80m | B131: =IF(Completo_Esforço_CPFL_Paulista!$L$31=1,IF( [1]GeralMinuta!B131 <>"", [1]GeralMinuta!B131,0),0) -> 372
A132: =IF( [1]GeralMinuta!A132 <>"", [1]GeralMinuta!A132,"") -> 2 CA 2/0 AWG Vão 80m | B132: =IF(Completo_Esforço_CPFL_Paulista!$L$31=1,IF( [1]GeralMinuta!B132 <>"", [1]GeralMinuta!B132,0),0) -> 440
A133: =IF( [1]GeralMinuta!A133 <>"", [1]GeralMinuta!A133,"") -> 2 CA 4/0 AWG Vão 80m | B133: =IF(Completo_Esforço_CPFL_Paulista!$L$31=1,IF( [1]GeralMinuta!B133 <>"", [1]GeralMinuta!B133,0),0) -> 630
A134: =IF( [1]GeralMinuta!A134 <>"", [1]GeralMinuta!A134,"") -> 2 CA 336,4 MCM Vão 80m | B134: =IF(Completo_Esforço_CPFL_Paulista!$L$31=1,IF( [1]GeralMinuta!B134 <>"", [1]GeralMinuta!B134,0),0) -> 966
A135: =IF( [1]GeralMinuta!A135 <>"", [1]GeralMinuta!A135,"") -> 2 CA 477 MCM Vão 80m | B135: =IF(Completo_Esforço_CPFL_Paulista!$L$31=1,IF( [1]GeralMinuta!B135 <>"", [1]GeralMinuta!B135,0),0) -> 1366
A136: =IF( [1]GeralMinuta!A136 <>"", [1]GeralMinuta!A136,"") ->  | B136: =IF(Completo_Esforço_CPFL_Paulista!$L$31=1,IF( [1]GeralMinuta!B136 <>"", [1]GeralMinuta!B136,0),0) -> 0
A137: =IF( [1]GeralMinuta!A137 <>"", [1]GeralMinuta!A137,"") -> 2 CA 02 AWG Vão 80m RGE | B137: =IF(Completo_Esforço_CPFL_Paulista!$L$31=1,IF( [1]GeralMinuta!B137 <>"", [1]GeralMinuta!B137,0),0) -> 266
A138: =IF( [1]GeralMinuta!A138 <>"", [1]GeralMinuta!A138,"") -> 2 CA 1/0 AWG Vão 80m RGE | B138: =IF(Completo_Esforço_CPFL_Paulista!$L$31=1,IF( [1]GeralMinuta!B138 <>"", [1]GeralMinuta!B138,0),0) -> 372
A139: =IF( [1]GeralMinuta!A139 <>"", [1]GeralMinuta!A139,"") -> 2 CA 2/0 AWG Vão 80m RGE | B139: =IF(Completo_Esforço_CPFL_Paulista!$L$31=1,IF( [1]GeralMinuta!B139 <>"", [1]GeralMinuta!B139,0),0) -> 440
A140: =IF( [1]GeralMinuta!A140 <>"", [1]GeralMinuta!A140,"") -> 2 CA 4/0 AWG Vão 80m RGE | B140: =IF(Completo_Esforço_CPFL_Paulista!$L$31=1,IF( [1]GeralMinuta!B140 <>"", [1]GeralMinuta!B140,0),0) -> 686
A141: =IF( [1]GeralMinuta!A141 <>"", [1]GeralMinuta!A141,"") -> 2 CA 336,4 MCM Vão 80m RGE | B141: =IF(Completo_Esforço_CPFL_Paulista!$L$31=1,IF( [1]GeralMinuta!B141 <>"", [1]GeralMinuta!B141,0),0) -> 1088
A142: =IF( [1]GeralMinuta!A142 <>"", [1]GeralMinuta!A142,"") -> 2 CA 477 MCM Vão 80m RGE | B142: =IF(Completo_Esforço_CPFL_Paulista!$L$31=1,IF( [1]GeralMinuta!B142 <>"", [1]GeralMinuta!B142,0),0) -> 1540
A143: =IF( [1]GeralMinuta!A143 <>"", [1]GeralMinuta!A143,"") ->  | B143: =IF(Completo_Esforço_CPFL_Paulista!$L$31=1,IF( [1]GeralMinuta!B143 <>"", [1]GeralMinuta!B143,0),0) -> 0
A144: =IF( [1]GeralMinuta!A144 <>"", [1]GeralMinuta!A144,"") -> 2 CA 04 AWG Vão 40m | B144: =IF(Completo_Esforço_CPFL_Paulista!$L$31=1,IF( [1]GeralMinuta!B144 <>"", [1]GeralMinuta!B144,0),0) -> 126
A145: =IF( [1]GeralMinuta!A145 <>"", [1]GeralMinuta!A145,"") -> 2 CA 02 AWG Vão 40m | B145: =IF(Completo_Esforço_CPFL_Paulista!$L$31=1,IF( [1]GeralMinuta!B145 <>"", [1]GeralMinuta!B145,0),0) -> 200
A146: =IF( [1]GeralMinuta!A146 <>"", [1]GeralMinuta!A146,"") -> 2 CA 1/0 AWG Vão 40m | B146: =IF(Completo_Esforço_CPFL_Paulista!$L$31=1,IF( [1]GeralMinuta!B146 <>"", [1]GeralMinuta!B146,0),0) -> 320
A147: =IF( [1]GeralMinuta!A147 <>"", [1]GeralMinuta!A147,"") -> 2 CA 2/0 AWG Vão 40m | B147: =IF(Completo_Esforço_CPFL_Paulista!$L$31=1,IF( [1]GeralMinuta!B147 <>"", [1]GeralMinuta!B147,0),0) -> 402
A148: =IF( [1]GeralMinuta!A148 <>"", [1]GeralMinuta!A148,"") -> 2 CA 4/0 AWG Vão 40m | B148: =IF(Completo_Esforço_CPFL_Paulista!$L$31=1,IF( [1]GeralMinuta!B148 <>"", [1]GeralMinuta!B148,0),0) -> 640
A149: =IF( [1]GeralMinuta!A149 <>"", [1]GeralMinuta!A149,"") ->  | B149: =IF(Completo_Esforço_CPFL_Paulista!$L$31=1,IF( [1]GeralMinuta!B149 <>"", [1]GeralMinuta!B149,0),0) -> 0
A150: =IF( [1]GeralMinuta!A150 <>"", [1]GeralMinuta!A150,"") -> 2 CAA 04 AWG Vão 40m RGE | B150: =IF(Completo_Esforço_CPFL_Paulista!$L$31=1,IF( [1]GeralMinuta!B150 <>"", [1]GeralMinuta!B150,0),0) -> 150
A151: =IF( [1]GeralMinuta!A151 <>"", [1]GeralMinuta!A151,"") -> 2 CAA 02 AWG Vão 40m RGE | B151: =IF(Completo_Esforço_CPFL_Paulista!$L$31=1,IF( [1]GeralMinuta!B151 <>"", [1]GeralMinuta!B151,0),0) -> 238
A152: =IF( [1]GeralMinuta!A152 <>"", [1]GeralMinuta!A152,"") -> 2 CAA 1/0 AWG Vão 40m RGE | B152: =IF(Completo_Esforço_CPFL_Paulista!$L$31=1,IF( [1]GeralMinuta!B152 <>"", [1]GeralMinuta!B152,0),0) -> 380
A153: =IF( [1]GeralMinuta!A153 <>"", [1]GeralMinuta!A153,"") -> 2 CAA 2/0 AWG Vão 40m RGE | B153: =IF(Completo_Esforço_CPFL_Paulista!$L$31=1,IF( [1]GeralMinuta!B153 <>"", [1]GeralMinuta!B153,0),0) -> 480
A154: =IF( [1]GeralMinuta!A154 <>"", [1]GeralMinuta!A154,"") -> 2 CAA 4/0 AWG Vão 40m RGE | B154: =IF(Completo_Esforço_CPFL_Paulista!$L$31=1,IF( [1]GeralMinuta!B154 <>"", [1]GeralMinuta!B154,0),0) -> 762
A155: =IF( [1]GeralMinuta!A155 <>"", [1]GeralMinuta!A155,"") ->  | B155: =IF(Completo_Esforço_CPFL_Paulista!$L$31=1,IF( [1]GeralMinuta!B155 <>"", [1]GeralMinuta!B155,0),0) -> 0
A156: =IF( [1]GeralMinuta!A156 <>"", [1]GeralMinuta!A156,"") -> 2 CAA 04 AWG Vão 80m | B156: =IF(Completo_Esforço_CPFL_Paulista!$L$31=1,IF( [1]GeralMinuta!B156 <>"", [1]GeralMinuta!B156,0),0) -> 270
A157: =IF( [1]GeralMinuta!A157 <>"", [1]GeralMinuta!A157,"") -> 2 CAA 02 AWG Vão 80m | B157: =IF(Completo_Esforço_CPFL_Paulista!$L$31=1,IF( [1]GeralMinuta!B157 <>"", [1]GeralMinuta!B157,0),0) -> 382
A158: =IF( [1]GeralMinuta!A158 <>"", [1]GeralMinuta!A158,"") -> 2 CAA 1/0 AWG Vão 80m | B158: =IF(Completo_Esforço_CPFL_Paulista!$L$31=1,IF( [1]GeralMinuta!B158 <>"", [1]GeralMinuta!B158,0),0) -> 550
A159: =IF( [1]GeralMinuta!A159 <>"", [1]GeralMinuta!A159,"") -> 2 CAA 2/0 AWG Vão 80m | B159: =IF(Completo_Esforço_CPFL_Paulista!$L$31=1,IF( [1]GeralMinuta!B159 <>"", [1]GeralMinuta!B159,0),0) -> 692
A160: =IF( [1]GeralMinuta!A160 <>"", [1]GeralMinuta!A160,"") -> 2 CAA 4/0 AWG Vão 80m | B160: =IF(Completo_Esforço_CPFL_Paulista!$L$31=1,IF( [1]GeralMinuta!B160 <>"", [1]GeralMinuta!B160,0),0) -> 1102
A161: =IF( [1]GeralMinuta!A161 <>"", [1]GeralMinuta!A161,"") -> 2 CAA 336,4 MCM Vão 80m | B161: =IF(Completo_Esforço_CPFL_Paulista!$L$31=1,IF( [1]GeralMinuta!B161 <>"", [1]GeralMinuta!B161,0),0) -> 1752
A162: =IF( [1]GeralMinuta!A162 <>"", [1]GeralMinuta!A162,"") ->  | B162: =IF(Completo_Esforço_CPFL_Paulista!$L$31=1,IF( [1]GeralMinuta!B162 <>"", [1]GeralMinuta!B162,0),0) -> 0
A163: =IF( [1]GeralMinuta!A163 <>"", [1]GeralMinuta!A163,"") -> 2 CAA 04 AWG Vão 80m RGE | B163: =IF(Completo_Esforço_CPFL_Paulista!$L$31=1,IF( [1]GeralMinuta!B163 <>"", [1]GeralMinuta!B163,0),0) -> 270
A164: =IF( [1]GeralMinuta!A164 <>"", [1]GeralMinuta!A164,"") -> 2 CAA 02 AWG Vão 80m RGE | B164: =IF(Completo_Esforço_CPFL_Paulista!$L$31=1,IF( [1]GeralMinuta!B164 <>"", [1]GeralMinuta!B164,0),0) -> 384
A165: =IF( [1]GeralMinuta!A165 <>"", [1]GeralMinuta!A165,"") -> 2 CAA 1/0 AWG Vão 80m RGE | B165: =IF(Completo_Esforço_CPFL_Paulista!$L$31=1,IF( [1]GeralMinuta!B165 <>"", [1]GeralMinuta!B165,0),0) -> 610
A166: =IF( [1]GeralMinuta!A166 <>"", [1]GeralMinuta!A166,"") -> 2 CAA 2/0 AWG Vão 80m RGE | B166: =IF(Completo_Esforço_CPFL_Paulista!$L$31=1,IF( [1]GeralMinuta!B166 <>"", [1]GeralMinuta!B166,0),0) -> 768
A167: =IF( [1]GeralMinuta!A167 <>"", [1]GeralMinuta!A167,"") -> 2 CAA 4/0 AWG Vão 80m RGE | B167: =IF(Completo_Esforço_CPFL_Paulista!$L$31=1,IF( [1]GeralMinuta!B167 <>"", [1]GeralMinuta!B167,0),0) -> 1222
A168: =IF( [1]GeralMinuta!A168 <>"", [1]GeralMinuta!A168,"") -> 2 CAA 336,4 MCM Vão 80m RGE | B168: =IF(Completo_Esforço_CPFL_Paulista!$L$31=1,IF( [1]GeralMinuta!B168 <>"", [1]GeralMinuta!B168,0),0) -> 1944
A169: =IF( [1]GeralMinuta!A169 <>"", [1]GeralMinuta!A169,"") ->  | B169: =IF(Completo_Esforço_CPFL_Paulista!$L$31=1,IF( [1]GeralMinuta!B169 <>"", [1]GeralMinuta!B169,0),0) -> 0
A170: =IF( [1]GeralMinuta!A170 <>"", [1]GeralMinuta!A170,"") -> 2 CAA 04 AWG Vão 120m | B170: =IF(Completo_Esforço_CPFL_Paulista!$L$31=1,IF( [1]GeralMinuta!B170 <>"", [1]GeralMinuta!B170,0),0) -> 350
A171: =IF( [1]GeralMinuta!A171 <>"", [1]GeralMinuta!A171,"") -> 2 CAA 02 AWG Vão 120m | B171: =IF(Completo_Esforço_CPFL_Paulista!$L$31=1,IF( [1]GeralMinuta!B171 <>"", [1]GeralMinuta!B171,0),0) -> 494
A172: =IF( [1]GeralMinuta!A172 <>"", [1]GeralMinuta!A172,"") -> 2 CAA 1/0 AWG Vão 120m | B172: =IF(Completo_Esforço_CPFL_Paulista!$L$31=1,IF( [1]GeralMinuta!B172 <>"", [1]GeralMinuta!B172,0),0) -> 710
A173: =IF( [1]GeralMinuta!A173 <>"", [1]GeralMinuta!A173,"") -> 2 CAA 2/0 AWG Vão 120m | B173: =IF(Completo_Esforço_CPFL_Paulista!$L$31=1,IF( [1]GeralMinuta!B173 <>"", [1]GeralMinuta!B173,0),0) -> 856
A174: =IF( [1]GeralMinuta!A174 <>"", [1]GeralMinuta!A174,"") -> 2 CAA 4/0 AWG Vão 120m | B174: =IF(Completo_Esforço_CPFL_Paulista!$L$31=1,IF( [1]GeralMinuta!B174 <>"", [1]GeralMinuta!B174,0),0) -> 1304
A175: =IF( [1]GeralMinuta!A175 <>"", [1]GeralMinuta!A175,"") -> 2 CAA 336,4 MCM Vão 120m | B175: =IF(Completo_Esforço_CPFL_Paulista!$L$31=1,IF( [1]GeralMinuta!B175 <>"", [1]GeralMinuta!B175,0),0) -> 2070
A176: =IF( [1]GeralMinuta!A176 <>"", [1]GeralMinuta!A176,"") ->  | B176: =IF(Completo_Esforço_CPFL_Paulista!$L$31=1,IF( [1]GeralMinuta!B176 <>"", [1]GeralMinuta!B176,0),0) -> 0
A177: =IF( [1]GeralMinuta!A177 <>"", [1]GeralMinuta!A177,"") -> 2 CAA 04 AWG Vão 120m RGE | B177: =IF(Completo_Esforço_CPFL_Paulista!$L$31=1,IF( [1]GeralMinuta!B177 <>"", [1]GeralMinuta!B177,0),0) -> 350
A178: =IF( [1]GeralMinuta!A178 <>"", [1]GeralMinuta!A178,"") -> 2 CAA 02 AWG Vão 120m RGE | B178: =IF(Completo_Esforço_CPFL_Paulista!$L$31=1,IF( [1]GeralMinuta!B178 <>"", [1]GeralMinuta!B178,0),0) -> 494
A179: =IF( [1]GeralMinuta!A179 <>"", [1]GeralMinuta!A179,"") -> 2 CAA 1/0 AWG Vão 120m RGE | B179: =IF(Completo_Esforço_CPFL_Paulista!$L$31=1,IF( [1]GeralMinuta!B179 <>"", [1]GeralMinuta!B179,0),0) -> 710
A180: =IF( [1]GeralMinuta!A180 <>"", [1]GeralMinuta!A180,"") -> 2 CAA 2/0 AWG Vão 120m RGE | B180: =IF(Completo_Esforço_CPFL_Paulista!$L$31=1,IF( [1]GeralMinuta!B180 <>"", [1]GeralMinuta!B180,0),0) -> 886
A181: =IF( [1]GeralMinuta!A181 <>"", [1]GeralMinuta!A181,"") -> 2 CAA 4/0 AWG Vão 120m RGE | B181: =IF(Completo_Esforço_CPFL_Paulista!$L$31=1,IF( [1]GeralMinuta!B181 <>"", [1]GeralMinuta!B181,0),0) -> 1410
A182: =IF( [1]GeralMinuta!A182 <>"", [1]GeralMinuta!A182,"") -> 2 CAA 336,4 MCM Vão 120m RGE | B182: =IF(Completo_Esforço_CPFL_Paulista!$L$31=1,IF( [1]GeralMinuta!B182 <>"", [1]GeralMinuta!B182,0),0) -> 2240
A183: =IF( [1]GeralMinuta!A183 <>"", [1]GeralMinuta!A183,"") ->  | B183: =IF(Completo_Esforço_CPFL_Paulista!$L$31=1,IF( [1]GeralMinuta!B183 <>"", [1]GeralMinuta!B183,0),0) -> 0
A184: =IF( [1]GeralMinuta!A184 <>"", [1]GeralMinuta!A184,"") -> 2 CU 06 AWG Vão 35m | B184: =IF(Completo_Esforço_CPFL_Paulista!$L$31=1,IF( [1]GeralMinuta!B184 <>"", [1]GeralMinuta!B184,0),0) -> 112
A185: =IF( [1]GeralMinuta!A185 <>"", [1]GeralMinuta!A185,"") -> 2 CU 02 AWG Vão 35m | B185: =IF(Completo_Esforço_CPFL_Paulista!$L$31=1,IF( [1]GeralMinuta!B185 <>"", [1]GeralMinuta!B185,0),0) -> 282
A186: =IF( [1]GeralMinuta!A186 <>"", [1]GeralMinuta!A186,"") -> 2 CU 1/0 AWG Vão 35m | B186: =IF(Completo_Esforço_CPFL_Paulista!$L$31=1,IF( [1]GeralMinuta!B186 <>"", [1]GeralMinuta!B186,0),0) -> 416
A187: =IF( [1]GeralMinuta!A187 <>"", [1]GeralMinuta!A187,"") -> 2 CU 2/0 AWG Vão 35m | B187: =IF(Completo_Esforço_CPFL_Paulista!$L$31=1,IF( [1]GeralMinuta!B187 <>"", [1]GeralMinuta!B187,0),0) -> 514
A188: =IF( [1]GeralMinuta!A188 <>"", [1]GeralMinuta!A188,"") -> 2 CU 4/0 AWG Vão 35m | B188: =IF(Completo_Esforço_CPFL_Paulista!$L$31=1,IF( [1]GeralMinuta!B188 <>"", [1]GeralMinuta!B188,0),0) -> 792
A189: =IF( [1]GeralMinuta!A189 <>"", [1]GeralMinuta!A189,"") ->  | B189: =IF(Completo_Esforço_CPFL_Paulista!$L$31=1,IF( [1]GeralMinuta!B189 <>"", [1]GeralMinuta!B189,0),0) -> 0
A190: =IF( [1]GeralMinuta!A190 <>"", [1]GeralMinuta!A190,"") -> 1 CU 06 AWG Vão 35m RGE | B190: =IF(Completo_Esforço_CPFL_Paulista!$L$31=1,IF( [1]GeralMinuta!B190 <>"", [1]GeralMinuta!B190,0),0) -> 56
A191: =IF( [1]GeralMinuta!A191 <>"", [1]GeralMinuta!A191,"") -> 1 CU 02 AWG Vão 35m RGE | B191: =IF(Completo_Esforço_CPFL_Paulista!$L$31=1,IF( [1]GeralMinuta!B191 <>"", [1]GeralMinuta!B191,0),0) -> 141
A192: =IF( [1]GeralMinuta!A192 <>"", [1]GeralMinuta!A192,"") -> 1 CU 1/0 AWG Vão 35m RGE | B192: =IF(Completo_Esforço_CPFL_Paulista!$L$31=1,IF( [1]GeralMinuta!B192 <>"", [1]GeralMinuta!B192,0),0) -> 208
A193: =IF( [1]GeralMinuta!A193 <>"", [1]GeralMinuta!A193,"") -> 1 CU 2/0 AWG Vão 35m RGE | B193: =IF(Completo_Esforço_CPFL_Paulista!$L$31=1,IF( [1]GeralMinuta!B193 <>"", [1]GeralMinuta!B193,0),0) -> 257
A194: =IF( [1]GeralMinuta!A194 <>"", [1]GeralMinuta!A194,"") -> 1 CU 4/0 AWG Vão 35m RGE | B194: =IF(Completo_Esforço_CPFL_Paulista!$L$31=1,IF( [1]GeralMinuta!B194 <>"", [1]GeralMinuta!B194,0),0) -> 396
A195: =IF( [1]GeralMinuta!A195 <>"", [1]GeralMinuta!A195,"") ->  | B195: =IF(Completo_Esforço_CPFL_Paulista!$L$31=1,IF( [1]GeralMinuta!B195 <>"", [1]GeralMinuta!B195,0),0) -> 0
A196: =IF( [1]GeralMinuta!A196 <>"", [1]GeralMinuta!A196,"") -> 1 CA 02 AWG Vão 35m | B196: =IF(Completo_Esforço_CPFL_Paulista!$L$31=1,IF( [1]GeralMinuta!B196 <>"", [1]GeralMinuta!B196,0),0) -> 60
A197: =IF( [1]GeralMinuta!A197 <>"", [1]GeralMinuta!A197,"") -> 1 CA 1/0 AWG Vão 35m | B197: =IF(Completo_Esforço_CPFL_Paulista!$L$31=1,IF( [1]GeralMinuta!B197 <>"", [1]GeralMinuta!B197,0),0) -> 96
A198: =IF( [1]GeralMinuta!A198 <>"", [1]GeralMinuta!A198,"") -> 1 CA 2/0 AWG Vão 35m | B198: =IF(Completo_Esforço_CPFL_Paulista!$L$31=1,IF( [1]GeralMinuta!B198 <>"", [1]GeralMinuta!B198,0),0) -> 121
A199: =IF( [1]GeralMinuta!A199 <>"", [1]GeralMinuta!A199,"") -> 1 CA 4/0 AWG Vão 35m | B199: =IF(Completo_Esforço_CPFL_Paulista!$L$31=1,IF( [1]GeralMinuta!B199 <>"", [1]GeralMinuta!B199,0),0) -> 194
A200: =IF( [1]GeralMinuta!A200 <>"", [1]GeralMinuta!A200,"") -> 1 CA 336,4 MCM Vão 35m | B200: =IF(Completo_Esforço_CPFL_Paulista!$L$31=1,IF( [1]GeralMinuta!B200 <>"", [1]GeralMinuta!B200,0),0) -> 308
... 300 more rows

Sheet Neutro (hidden)
A1: =IF( [1]GeralMinuta!A1 <>"", [1]GeralMinuta!A1,"") ->  | B1: =IF( [1]GeralMinuta!B1 <>"", [1]GeralMinuta!B1,"") ->  | F1: =[1]NeutroMinutaCpfl!A1 -> 
A2: =IF( [1]GeralMinuta!A2 <>"", [1]GeralMinuta!A2,"") -> 3 E 70 mm² Vão 35m | B2: =IF( [1]GeralMinuta!B2 <>"", [1]GeralMinuta!B2,"") -> 373
A3: =IF( [1]GeralMinuta!A3 <>"", [1]GeralMinuta!A3,"") -> 3 E 185 mm² Vão 35m | B3: =IF( [1]GeralMinuta!B3 <>"", [1]GeralMinuta!B3,"") -> 648
A4: =IF( [1]GeralMinuta!A4 <>"", [1]GeralMinuta!A4,"") ->  | B4: =IF( [1]GeralMinuta!B4 <>"", [1]GeralMinuta!B4,"") -> 
A5: =IF( [1]GeralMinuta!A5 <>"", [1]GeralMinuta!A5,"") -> 3 E 70 mm² Vão 35m RGE | B5: =IF( [1]GeralMinuta!B5 <>"", [1]GeralMinuta!B5,"") -> 373
A6: =IF( [1]GeralMinuta!A6 <>"", [1]GeralMinuta!A6,"") -> 3 E 185 mm² Vão 35m RGE | B6: =IF( [1]GeralMinuta!B6 <>"", [1]GeralMinuta!B6,"") -> 632
A7: =IF( [1]GeralMinuta!A7 <>"", [1]GeralMinuta!A7,"") ->  | B7: =IF( [1]GeralMinuta!B7 <>"", [1]GeralMinuta!B7,"") -> 
A8: =IF( [1]GeralMinuta!A8 <>"", [1]GeralMinuta!A8,"") -> 3 E 70 mm² Vão 80m | B8: =IF( [1]GeralMinuta!B8 <>"", [1]GeralMinuta!B8,"") -> 549
A9: =IF( [1]GeralMinuta!A9 <>"", [1]GeralMinuta!A9,"") -> 3 E 185 mm² Vão 80m | B9: =IF( [1]GeralMinuta!B9 <>"", [1]GeralMinuta!B9,"") -> 837
A10: =IF( [1]GeralMinuta!A10 <>"", [1]GeralMinuta!A10,"") ->  | B10: =IF( [1]GeralMinuta!B10 <>"", [1]GeralMinuta!B10,"") -> 
A11: =IF( [1]GeralMinuta!A11 <>"", [1]GeralMinuta!A11,"") -> 3 E 70 mm² Vão 80m RGE | B11: =IF( [1]GeralMinuta!B11 <>"", [1]GeralMinuta!B11,"") -> 549
A12: =IF( [1]GeralMinuta!A12 <>"", [1]GeralMinuta!A12,"") -> 3 E 185 mm² Vão 80m RGE | B12: =IF( [1]GeralMinuta!B12 <>"", [1]GeralMinuta!B12,"") -> 837
A13: =IF( [1]GeralMinuta!A13 <>"", [1]GeralMinuta!A13,"") ->  | B13: =IF( [1]GeralMinuta!B13 <>"", [1]GeralMinuta!B13,"") -> 
A14: =IF( [1]GeralMinuta!A14 <>"", [1]GeralMinuta!A14,"") -> 3 P 16 mm² Vão 35m | B14: =IF( [1]GeralMinuta!B14 <>"", [1]GeralMinuta!B14,"") -> 70
A15: =IF( [1]GeralMinuta!A15 <>"", [1]GeralMinuta!A15,"") -> 3 P 25 mm² Vão 35m | B15: =IF( [1]GeralMinuta!B15 <>"", [1]GeralMinuta!B15,"") -> 96
A16: =IF( [1]GeralMinuta!A16 <>"", [1]GeralMinuta!A16,"") -> 3 P 35 mm² Vão 35m | B16: =IF( [1]GeralMinuta!B16 <>"", [1]GeralMinuta!B16,"") -> 126
A17: =IF( [1]GeralMinuta!A17 <>"", [1]GeralMinuta!A17,"") -> 3 P 50 mm² Vão 35m | B17: =IF( [1]GeralMinuta!B17 <>"", [1]GeralMinuta!B17,"") -> 156
A18: =IF( [1]GeralMinuta!A18 <>"", [1]GeralMinuta!A18,"") -> 3 P 70 mm² Vão 35m | B18: =IF( [1]GeralMinuta!B18 <>"", [1]GeralMinuta!B18,"") -> 216
A19: =IF( [1]GeralMinuta!A19 <>"", [1]GeralMinuta!A19,"") -> 3 P 120 mm² Vão 35m | B19: =IF( [1]GeralMinuta!B19 <>"", [1]GeralMinuta!B19,"") -> 336
A20: =IF( [1]GeralMinuta!A20 <>"", [1]GeralMinuta!A20,"") ->  | B20: =IF( [1]GeralMinuta!B20 <>"", [1]GeralMinuta!B20,"") -> 
A21: =IF( [1]GeralMinuta!A21 <>"", [1]GeralMinuta!A21,"") -> 3 P 16 mm² Vão 35m RGE | B21: =IF( [1]GeralMinuta!B21 <>"", [1]GeralMinuta!B21,"") -> 70
A22: =IF( [1]GeralMinuta!A22 <>"", [1]GeralMinuta!A22,"") -> 3 P 25 mm² Vão 35m RGE | B22: =IF( [1]GeralMinuta!B22 <>"", [1]GeralMinuta!B22,"") -> 96
A23: =IF( [1]GeralMinuta!A23 <>"", [1]GeralMinuta!A23,"") -> 3 P 35 mm² Vão 35m RGE | B23: =IF( [1]GeralMinuta!B23 <>"", [1]GeralMinuta!B23,"") -> 126
A24: =IF( [1]GeralMinuta!A24 <>"", [1]GeralMinuta!A24,"") -> 3 P 50 mm² Vão 35m RGE | B24: =IF( [1]GeralMinuta!B24 <>"", [1]GeralMinuta!B24,"") -> 162
A25: =IF( [1]GeralMinuta!A25 <>"", [1]GeralMinuta!A25,"") -> 3 P 70 mm² Vão 35m RGE | B25: =IF( [1]GeralMinuta!B25 <>"", [1]GeralMinuta!B25,"") -> 226
A26: =IF( [1]GeralMinuta!A26 <>"", [1]GeralMinuta!A26,"") -> 3 P 120 mm² Vão 35m RGE | B26: =IF( [1]GeralMinuta!B26 <>"", [1]GeralMinuta!B26,"") -> 352
A27: =IF( [1]GeralMinuta!A27 <>"", [1]GeralMinuta!A27,"") ->  | B27: =IF( [1]GeralMinuta!B27 <>"", [1]GeralMinuta!B27,"") -> 
A28: =IF( [1]GeralMinuta!A28 <>"", [1]GeralMinuta!A28,"") -> 3 CA 02 AWG Vão 35m | B28: =IF( [1]GeralMinuta!B28 <>"", [1]GeralMinuta!B28,"") -> 180
A29: =IF( [1]GeralMinuta!A29 <>"", [1]GeralMinuta!A29,"") -> 3 CA 1/0 AWG Vão 35m | B29: =IF( [1]GeralMinuta!B29 <>"", [1]GeralMinuta!B29,"") -> 288
A30: =IF( [1]GeralMinuta!A30 <>"", [1]GeralMinuta!A30,"") -> 3 CA 2/0 AWG Vão 35m | B30: =IF( [1]GeralMinuta!B30 <>"", [1]GeralMinuta!B30,"") -> 363
A31: =IF( [1]GeralMinuta!A31 <>"", [1]GeralMinuta!A31,"") -> 3 CA 4/0 AWG Vão 35m | B31: =IF( [1]GeralMinuta!B31 <>"", [1]GeralMinuta!B31,"") -> 582
A32: =IF( [1]GeralMinuta!A32 <>"", [1]GeralMinuta!A32,"") -> 3 CA 336,4 MCM Vão 35m | B32: =IF( [1]GeralMinuta!B32 <>"", [1]GeralMinuta!B32,"") -> 924
A33: =IF( [1]GeralMinuta!A33 <>"", [1]GeralMinuta!A33,"") -> 3 CA 477 MCM Vão 35m | B33: =IF( [1]GeralMinuta!B33 <>"", [1]GeralMinuta!B33,"") -> 1305
A34: =IF( [1]GeralMinuta!A34 <>"", [1]GeralMinuta!A34,"") ->  | B34: =IF( [1]GeralMinuta!B34 <>"", [1]GeralMinuta!B34,"") -> 
A35: =IF( [1]GeralMinuta!A35 <>"", [1]GeralMinuta!A35,"") -> 3 CA 02 AWG Vão 35m RGE | B35: =IF( [1]GeralMinuta!B35 <>"", [1]GeralMinuta!B35,"") -> 225
A36: =IF( [1]GeralMinuta!A36 <>"", [1]GeralMinuta!A36,"") -> 3 CA 1/0 AWG Vão 35m RGE | B36: =IF( [1]GeralMinuta!B36 <>"", [1]GeralMinuta!B36,"") -> 2319
A37: =IF( [1]GeralMinuta!A37 <>"", [1]GeralMinuta!A37,"") -> 3 CA 2/0 AWG Vão 35m RGE | B37: =IF( [1]GeralMinuta!B37 <>"", [1]GeralMinuta!B37,"") -> 450
A38: =IF( [1]GeralMinuta!A38 <>"", [1]GeralMinuta!A38,"") -> 3 CA 4/0 AWG Vão 35m RGE | B38: =IF( [1]GeralMinuta!B38 <>"", [1]GeralMinuta!B38,"") -> 720
A39: =IF( [1]GeralMinuta!A39 <>"", [1]GeralMinuta!A39,"") -> 3 CA 336,4 MCM Vão 35m RGE | B39: =IF( [1]GeralMinuta!B39 <>"", [1]GeralMinuta!B39,"") -> 1143
A40: =IF( [1]GeralMinuta!A40 <>"", [1]GeralMinuta!A40,"") -> 3 CA 477 MCM Vão 35m RGE | B40: =IF( [1]GeralMinuta!B40 <>"", [1]GeralMinuta!B40,"") -> 1617
A41: =IF( [1]GeralMinuta!A41 <>"", [1]GeralMinuta!A41,"") ->  | B41: =IF( [1]GeralMinuta!B41 <>"", [1]GeralMinuta!B41,"") -> 
A42: =IF( [1]GeralMinuta!A42 <>"", [1]GeralMinuta!A42,"") -> 3 CA 02 AWG Vão 80m | B42: =IF( [1]GeralMinuta!B42 <>"", [1]GeralMinuta!B42,"") -> 399
A43: =IF( [1]GeralMinuta!A43 <>"", [1]GeralMinuta!A43,"") -> 3 CA 1/0 AWG Vão 80m | B43: =IF( [1]GeralMinuta!B43 <>"", [1]GeralMinuta!B43,"") -> 558
A44: =IF( [1]GeralMinuta!A44 <>"", [1]GeralMinuta!A44,"") -> 3 CA 2/0 AWG Vão 80m | B44: =IF( [1]GeralMinuta!B44 <>"", [1]GeralMinuta!B44,"") -> 660
A45: =IF( [1]GeralMinuta!A45 <>"", [1]GeralMinuta!A45,"") -> 3 CA 4/0 AWG Vão 80m | B45: =IF( [1]GeralMinuta!B45 <>"", [1]GeralMinuta!B45,"") -> 945
A46: =IF( [1]GeralMinuta!A46 <>"", [1]GeralMinuta!A46,"") -> 3 CA 336,4 MCM Vão 80m | B46: =IF( [1]GeralMinuta!B46 <>"", [1]GeralMinuta!B46,"") -> 1449
A47: =IF( [1]GeralMinuta!A47 <>"", [1]GeralMinuta!A47,"") -> 3 CA 477 MCM Vão 80m | B47: =IF( [1]GeralMinuta!B47 <>"", [1]GeralMinuta!B47,"") -> 2049
A48: =IF( [1]GeralMinuta!A48 <>"", [1]GeralMinuta!A48,"") ->  | B48: =IF( [1]GeralMinuta!B48 <>"", [1]GeralMinuta!B48,"") -> 
A49: =IF( [1]GeralMinuta!A49 <>"", [1]GeralMinuta!A49,"") -> 3 CA 02 AWG Vão 80m RGE | B49: =IF( [1]GeralMinuta!B49 <>"", [1]GeralMinuta!B49,"") -> 399
A50: =IF( [1]GeralMinuta!A50 <>"", [1]GeralMinuta!A50,"") -> 3 CA 1/0 AWG Vão 80m RGE | B50: =IF( [1]GeralMinuta!B50 <>"", [1]GeralMinuta!B50,"") -> 558
A51: =IF( [1]GeralMinuta!A51 <>"", [1]GeralMinuta!A51,"") -> 3 CA 2/0 AWG Vão 80m RGE | B51: =IF( [1]GeralMinuta!B51 <>"", [1]GeralMinuta!B51,"") -> 660
A52: =IF( [1]GeralMinuta!A52 <>"", [1]GeralMinuta!A52,"") -> 3 CA 4/0 AWG Vão 80m RGE | B52: =IF( [1]GeralMinuta!B52 <>"", [1]GeralMinuta!B52,"") -> 1029
A53: =IF( [1]GeralMinuta!A53 <>"", [1]GeralMinuta!A53,"") -> 3 CA 336,4 MCM Vão 80m RGE | B53: =IF( [1]GeralMinuta!B53 <>"", [1]GeralMinuta!B53,"") -> 1632
A54: =IF( [1]GeralMinuta!A54 <>"", [1]GeralMinuta!A54,"") -> 3 CA 477 MCM Vão 80m RGE | B54: =IF( [1]GeralMinuta!B54 <>"", [1]GeralMinuta!B54,"") -> 2310
A55: =IF( [1]GeralMinuta!A55 <>"", [1]GeralMinuta!A55,"") ->  | B55: =IF( [1]GeralMinuta!B55 <>"", [1]GeralMinuta!B55,"") -> 
A56: =IF( [1]GeralMinuta!A56 <>"", [1]GeralMinuta!A56,"") -> 3 CAA 04 AWG Vão 40m | B56: =IF( [1]GeralMinuta!B56 <>"", [1]GeralMinuta!B56,"") -> 189
A57: =IF( [1]GeralMinuta!A57 <>"", [1]GeralMinuta!A57,"") -> 3 CAA 02 AWG Vão 40m | B57: =IF( [1]GeralMinuta!B57 <>"", [1]GeralMinuta!B57,"") -> 300
A58: =IF( [1]GeralMinuta!A58 <>"", [1]GeralMinuta!A58,"") -> 3 CAA 1/0 AWG Vão 40m | B58: =IF( [1]GeralMinuta!B58 <>"", [1]GeralMinuta!B58,"") -> 480
A59: =IF( [1]GeralMinuta!A59 <>"", [1]GeralMinuta!A59,"") -> 3 CAA 2/0 AWG Vão 40m | B59: =IF( [1]GeralMinuta!B59 <>"", [1]GeralMinuta!B59,"") -> 603
A60: =IF( [1]GeralMinuta!A60 <>"", [1]GeralMinuta!A60,"") -> 3 CAA 4/0 AWG Vão 40m | B60: =IF( [1]GeralMinuta!B60 <>"", [1]GeralMinuta!B60,"") -> 960
A61: =IF( [1]GeralMinuta!A61 <>"", [1]GeralMinuta!A61,"") ->  | B61: =IF( [1]GeralMinuta!B61 <>"", [1]GeralMinuta!B61,"") -> 
A62: =IF( [1]GeralMinuta!A62 <>"", [1]GeralMinuta!A62,"") -> 3 CAA 04 AWG Vão 40m RGE | B62: =IF( [1]GeralMinuta!B62 <>"", [1]GeralMinuta!B62,"") -> 225
A63: =IF( [1]GeralMinuta!A63 <>"", [1]GeralMinuta!A63,"") -> 3 CAA 02 AWG Vão 40m RGE | B63: =IF( [1]GeralMinuta!B63 <>"", [1]GeralMinuta!B63,"") -> 357
A64: =IF( [1]GeralMinuta!A64 <>"", [1]GeralMinuta!A64,"") -> 3 CAA 1/0 AWG Vão 40m RGE | B64: =IF( [1]GeralMinuta!B64 <>"", [1]GeralMinuta!B64,"") -> 570
A65: =IF( [1]GeralMinuta!A65 <>"", [1]GeralMinuta!A65,"") -> 3 CAA 2/0 AWG Vão 40m RGE | B65: =IF( [1]GeralMinuta!B65 <>"", [1]GeralMinuta!B65,"") -> 720
A66: =IF( [1]GeralMinuta!A66 <>"", [1]GeralMinuta!A66,"") -> 3 CAA 4/0 AWG Vão 40m RGE | B66: =IF( [1]GeralMinuta!B66 <>"", [1]GeralMinuta!B66,"") -> 1143
A67: =IF( [1]GeralMinuta!A67 <>"", [1]GeralMinuta!A67,"") ->  | B67: =IF( [1]GeralMinuta!B67 <>"", [1]GeralMinuta!B67,"") -> 
A68: =IF( [1]GeralMinuta!A68 <>"", [1]GeralMinuta!A68,"") -> 3 CAA 04 AWG Vão 80m | B68: =IF( [1]GeralMinuta!B68 <>"", [1]GeralMinuta!B68,"") -> 405
A69: =IF( [1]GeralMinuta!A69 <>"", [1]GeralMinuta!A69,"") -> 3 CAA 02 AWG Vão 80m | B69: =IF( [1]GeralMinuta!B69 <>"", [1]GeralMinuta!B69,"") -> 573
A70: =IF( [1]GeralMinuta!A70 <>"", [1]GeralMinuta!A70,"") -> 3 CAA 1/0 AWG Vão 80m | B70: =IF( [1]GeralMinuta!B70 <>"", [1]GeralMinuta!B70,"") -> 825
A71: =IF( [1]GeralMinuta!A71 <>"", [1]GeralMinuta!A71,"") -> 3 CAA 2/0 AWG Vão 80m | B71: =IF( [1]GeralMinuta!B71 <>"", [1]GeralMinuta!B71,"") -> 1038
A72: =IF( [1]GeralMinuta!A72 <>"", [1]GeralMinuta!A72,"") -> 3 CAA 4/0 AWG Vão 80m | B72: =IF( [1]GeralMinuta!B72 <>"", [1]GeralMinuta!B72,"") -> 1653
A73: =IF( [1]GeralMinuta!A73 <>"", [1]GeralMinuta!A73,"") -> 3 CAA 336,4 MCM Vão 80m | B73: =IF( [1]GeralMinuta!B73 <>"", [1]GeralMinuta!B73,"") -> 2628
A74: =IF( [1]GeralMinuta!A74 <>"", [1]GeralMinuta!A74,"") ->  | B74: =IF( [1]GeralMinuta!B74 <>"", [1]GeralMinuta!B74,"") -> 
A75: =IF( [1]GeralMinuta!A75 <>"", [1]GeralMinuta!A75,"") -> 3 CAA 04 AWG Vão 80m RGE | B75: =IF( [1]GeralMinuta!B75 <>"", [1]GeralMinuta!B75,"") -> 405
A76: =IF( [1]GeralMinuta!A76 <>"", [1]GeralMinuta!A76,"") -> 3 CAA 02 AWG Vão 80m RGE | B76: =IF( [1]GeralMinuta!B76 <>"", [1]GeralMinuta!B76,"") -> 576
A77: =IF( [1]GeralMinuta!A77 <>"", [1]GeralMinuta!A77,"") -> 3 CAA 1/0 AWG Vão 80m RGE | B77: =IF( [1]GeralMinuta!B77 <>"", [1]GeralMinuta!B77,"") -> 915
A78: =IF( [1]GeralMinuta!A78 <>"", [1]GeralMinuta!A78,"") -> 3 CAA 2/0 AWG Vão 80m RGE | B78: =IF( [1]GeralMinuta!B78 <>"", [1]GeralMinuta!B78,"") -> 1152
A79: =IF( [1]GeralMinuta!A79 <>"", [1]GeralMinuta!A79,"") -> 3 CAA 4/0 AWG Vão 80m RGE | B79: =IF( [1]GeralMinuta!B79 <>"", [1]GeralMinuta!B79,"") -> 1833
A80: =IF( [1]GeralMinuta!A80 <>"", [1]GeralMinuta!A80,"") -> 3 CAA 336,4 MCM Vão 80m RGE | B80: =IF( [1]GeralMinuta!B80 <>"", [1]GeralMinuta!B80,"") -> 2916
A81: =IF( [1]GeralMinuta!A81 <>"", [1]GeralMinuta!A81,"") ->  | B81: =IF( [1]GeralMinuta!B81 <>"", [1]GeralMinuta!B81,"") -> 
A82: =IF( [1]GeralMinuta!A82 <>"", [1]GeralMinuta!A82,"") -> 3 CAA 04 AWG Vão 120m | B82: =IF( [1]GeralMinuta!B82 <>"", [1]GeralMinuta!B82,"") -> 525
A83: =IF( [1]GeralMinuta!A83 <>"", [1]GeralMinuta!A83,"") -> 3 CAA 02 AWG Vão 120m | B83: =IF( [1]GeralMinuta!B83 <>"", [1]GeralMinuta!B83,"") -> 741
A84: =IF( [1]GeralMinuta!A84 <>"", [1]GeralMinuta!A84,"") -> 3 CAA 1/0 AWG Vão 120m | B84: =IF( [1]GeralMinuta!B84 <>"", [1]GeralMinuta!B84,"") -> 1065
A85: =IF( [1]GeralMinuta!A85 <>"", [1]GeralMinuta!A85,"") -> 3 CAA 2/0 AWG Vão 120m | B85: =IF( [1]GeralMinuta!B85 <>"", [1]GeralMinuta!B85,"") -> 1284
A86: =IF( [1]GeralMinuta!A86 <>"", [1]GeralMinuta!A86,"") -> 3 CAA 4/0 AWG Vão 120m | B86: =IF( [1]GeralMinuta!B86 <>"", [1]GeralMinuta!B86,"") -> 1956
A87: =IF( [1]GeralMinuta!A87 <>"", [1]GeralMinuta!A87,"") -> 3 CAA 336,4 MCM Vão 120m | B87: =IF( [1]GeralMinuta!B87 <>"", [1]GeralMinuta!B87,"") -> 3105
A88: =IF( [1]GeralMinuta!A88 <>"", [1]GeralMinuta!A88,"") ->  | B88: =IF( [1]GeralMinuta!B88 <>"", [1]GeralMinuta!B88,"") -> 
A89: =IF( [1]GeralMinuta!A89 <>"", [1]GeralMinuta!A89,"") -> 3 CAA 04 AWG Vão 120m RGE | B89: =IF( [1]GeralMinuta!B89 <>"", [1]GeralMinuta!B89,"") -> 525
A90: =IF( [1]GeralMinuta!A90 <>"", [1]GeralMinuta!A90,"") -> 3 CAA 02 AWG Vão 120m RGE | B90: =IF( [1]GeralMinuta!B90 <>"", [1]GeralMinuta!B90,"") -> 741
A91: =IF( [1]GeralMinuta!A91 <>"", [1]GeralMinuta!A91,"") -> 3 CAA 1/0 AWG Vão 120m RGE | B91: =IF( [1]GeralMinuta!B91 <>"", [1]GeralMinuta!B91,"") -> 1065
A92: =IF( [1]GeralMinuta!A92 <>"", [1]GeralMinuta!A92,"") -> 3 CAA 2/0 AWG Vão 120m RGE | B92: =IF( [1]GeralMinuta!B92 <>"", [1]GeralMinuta!B92,"") -> 1329
A93: =IF( [1]GeralMinuta!A93 <>"", [1]GeralMinuta!A93,"") -> 3 CAA 4/0 AWG Vão 120m RGE | B93: =IF( [1]GeralMinuta!B93 <>"", [1]GeralMinuta!B93,"") -> 2115
A94: =IF( [1]GeralMinuta!A94 <>"", [1]GeralMinuta!A94,"") -> 3 CAA 336,4 MCM Vão 120m RGE | B94: =IF( [1]GeralMinuta!B94 <>"", [1]GeralMinuta!B94,"") -> 3360
A95: =IF( [1]GeralMinuta!A95 <>"", [1]GeralMinuta!A95,"") ->  | B95: =IF( [1]GeralMinuta!B95 <>"", [1]GeralMinuta!B95,"") -> 
A96: =IF( [1]GeralMinuta!A96 <>"", [1]GeralMinuta!A96,"") -> 3 15kv 240 mm² Vão 35m | B96: =IF( [1]GeralMinuta!B96 <>"", [1]GeralMinuta!B96,"") -> 723
A97: =IF( [1]GeralMinuta!A97 <>"", [1]GeralMinuta!A97,"") -> 3 25kv 240 mm² Vão 35m | B97: =IF( [1]GeralMinuta!B97 <>"", [1]GeralMinuta!B97,"") -> 825
A98: =IF( [1]GeralMinuta!A98 <>"", [1]GeralMinuta!A98,"") -> 3 35kv 240 mm² Vão 35m | B98: =IF( [1]GeralMinuta!B98 <>"", [1]GeralMinuta!B98,"") -> 966
A99: =IF( [1]GeralMinuta!A99 <>"", [1]GeralMinuta!A99,"") ->  | B99: =IF( [1]GeralMinuta!B99 <>"", [1]GeralMinuta!B99,"") -> 
A100: =IF( [1]GeralMinuta!A100 <>"", [1]GeralMinuta!A100,"") -> 3 15kv 240 mm² Vão 35m RGE | B100: =IF( [1]GeralMinuta!B100 <>"", [1]GeralMinuta!B100,"") -> 743
A101: =IF( [1]GeralMinuta!A101 <>"", [1]GeralMinuta!A101,"") -> 3 25kv 240 mm² Vão 35m RGE | B101: =IF( [1]GeralMinuta!B101 <>"", [1]GeralMinuta!B101,"") -> 849
A102: =IF( [1]GeralMinuta!A102 <>"", [1]GeralMinuta!A102,"") -> 3 35kv 240 mm² Vão 35m RGE | B102: =IF( [1]GeralMinuta!B102 <>"", [1]GeralMinuta!B102,"") -> 993
A103: =IF( [1]GeralMinuta!A103 <>"", [1]GeralMinuta!A103,"") ->  | B103: =IF( [1]GeralMinuta!B103 <>"", [1]GeralMinuta!B103,"") -> 
A104: =IF( [1]GeralMinuta!A104 <>"", [1]GeralMinuta!A104,"") -> 3 CU 06 AWG Vão 35m | B104: =IF( [1]GeralMinuta!B104 <>"", [1]GeralMinuta!B104,"") -> 168
A105: =IF( [1]GeralMinuta!A105 <>"", [1]GeralMinuta!A105,"") -> 3 CU 02 AWG Vão 35m | B105: =IF( [1]GeralMinuta!B105 <>"", [1]GeralMinuta!B105,"") -> 423
A106: =IF( [1]GeralMinuta!A106 <>"", [1]GeralMinuta!A106,"") -> 3 CU 1/0 AWG Vão 35m | B106: =IF( [1]GeralMinuta!B106 <>"", [1]GeralMinuta!B106,"") -> 624
A107: =IF( [1]GeralMinuta!A107 <>"", [1]GeralMinuta!A107,"") -> 3 CU 2/0 AWG Vão 35m | B107: =IF( [1]GeralMinuta!B107 <>"", [1]GeralMinuta!B107,"") -> 771
A108: =IF( [1]GeralMinuta!A108 <>"", [1]GeralMinuta!A108,"") -> 3 CU 4/0 AWG Vão 35m | B108: =IF( [1]GeralMinuta!B108 <>"", [1]GeralMinuta!B108,"") -> 1188
A109: =IF( [1]GeralMinuta!A109 <>"", [1]GeralMinuta!A109,"") ->  | B109: =IF( [1]GeralMinuta!B109 <>"", [1]GeralMinuta!B109,"") -> 
A110: =IF( [1]GeralMinuta!A110 <>"", [1]GeralMinuta!A110,"") -> 3 CU 06 AWG Vão 35m RGE | B110: =IF( [1]GeralMinuta!B110 <>"", [1]GeralMinuta!B110,"") -> 168
A111: =IF( [1]GeralMinuta!A111 <>"", [1]GeralMinuta!A111,"") -> 3 CU 02 AWG Vão 35m RGE | B111: =IF( [1]GeralMinuta!B111 <>"", [1]GeralMinuta!B111,"") -> 423
A112: =IF( [1]GeralMinuta!A112 <>"", [1]GeralMinuta!A112,"") -> 3 CU 1/0 AWG Vão 35m RGE | B112: =IF( [1]GeralMinuta!B112 <>"", [1]GeralMinuta!B112,"") -> 624
A113: =IF( [1]GeralMinuta!A113 <>"", [1]GeralMinuta!A113,"") -> 3 CU 2/0 AWG Vão 35m RGE | B113: =IF( [1]GeralMinuta!B113 <>"", [1]GeralMinuta!B113,"") -> 771
A114: =IF( [1]GeralMinuta!A114 <>"", [1]GeralMinuta!A114,"") -> 3 CU 4/0 AWG Vão 35m RGE | B114: =IF( [1]GeralMinuta!B114 <>"", [1]GeralMinuta!B114,"") -> 1188
A115: =IF( [1]GeralMinuta!A115 <>"", [1]GeralMinuta!A115,"") ->  | B115: =IF( [1]GeralMinuta!B115 <>"", [1]GeralMinuta!B115,"") -> 
A116: =IF( [1]GeralMinuta!A116 <>"", [1]GeralMinuta!A116,"") -> 2 CA 02 AWG Vão 35m | B116: =IF( [1]GeralMinuta!B116 <>"", [1]GeralMinuta!B116,"") -> 120
A117: =IF( [1]GeralMinuta!A117 <>"", [1]GeralMinuta!A117,"") -> 2 CA 1/0 AWG Vão 35m | B117: =IF( [1]GeralMinuta!B117 <>"", [1]GeralMinuta!B117,"") -> 192
A118: =IF( [1]GeralMinuta!A118 <>"", [1]GeralMinuta!A118,"") -> 2 CA 2/0 AWG Vão 35m | B118: =IF( [1]GeralMinuta!B118 <>"", [1]GeralMinuta!B118,"") -> 242
A119: =IF( [1]GeralMinuta!A119 <>"", [1]GeralMinuta!A119,"") -> 2 CA 4/0 AWG Vão 35m | B119: =IF( [1]GeralMinuta!B119 <>"", [1]GeralMinuta!B119,"") -> 388
A120: =IF( [1]GeralMinuta!A120 <>"", [1]GeralMinuta!A120,"") -> 2 CA 336,4 MCM Vão 35m | B120: =IF( [1]GeralMinuta!B120 <>"", [1]GeralMinuta!B120,"") -> 616
A121: =IF( [1]GeralMinuta!A121 <>"", [1]GeralMinuta!A121,"") -> 2 CA 477 MCM Vão 35m | B121: =IF( [1]GeralMinuta!B121 <>"", [1]GeralMinuta!B121,"") -> 870
A122: =IF( [1]GeralMinuta!A122 <>"", [1]GeralMinuta!A122,"") ->  | B122: =IF( [1]GeralMinuta!B122 <>"", [1]GeralMinuta!B122,"") -> 
A123: =IF( [1]GeralMinuta!A123 <>"", [1]GeralMinuta!A123,"") -> 2 CA 02 AWG Vão 35m RGE | B123: =IF( [1]GeralMinuta!B123 <>"", [1]GeralMinuta!B123,"") -> 150
A124: =IF( [1]GeralMinuta!A124 <>"", [1]GeralMinuta!A124,"") -> 2 CA 1/0 AWG Vão 35m RGE | B124: =IF( [1]GeralMinuta!B124 <>"", [1]GeralMinuta!B124,"") -> 1546
A125: =IF( [1]GeralMinuta!A125 <>"", [1]GeralMinuta!A125,"") -> 2 CA 2/0 AWG Vão 35m RGE | B125: =IF( [1]GeralMinuta!B125 <>"", [1]GeralMinuta!B125,"") -> 300
A126: =IF( [1]GeralMinuta!A126 <>"", [1]GeralMinuta!A126,"") -> 2 CA 4/0 AWG Vão 35m RGE | B126: =IF( [1]GeralMinuta!B126 <>"", [1]GeralMinuta!B126,"") -> 480
A127: =IF( [1]GeralMinuta!A127 <>"", [1]GeralMinuta!A127,"") -> 2 CA 336,4 MCM Vão 35m RGE | B127: =IF( [1]GeralMinuta!B127 <>"", [1]GeralMinuta!B127,"") -> 762
A128: =IF( [1]GeralMinuta!A128 <>"", [1]GeralMinuta!A128,"") -> 2 CA 477 MCM Vão 35m RGE | B128: =IF( [1]GeralMinuta!B128 <>"", [1]GeralMinuta!B128,"") -> 1078
A129: =IF( [1]GeralMinuta!A129 <>"", [1]GeralMinuta!A129,"") ->  | B129: =IF( [1]GeralMinuta!B129 <>"", [1]GeralMinuta!B129,"") -> 
A130: =IF( [1]GeralMinuta!A130 <>"", [1]GeralMinuta!A130,"") -> 2 CA 02 AWG Vão 80m | B130: =IF( [1]GeralMinuta!B130 <>"", [1]GeralMinuta!B130,"") -> 266
A131: =IF( [1]GeralMinuta!A131 <>"", [1]GeralMinuta!A131,"") -> 2 CA 1/0 AWG Vão 80m | B131: =IF( [1]GeralMinuta!B131 <>"", [1]GeralMinuta!B131,"") -> 372
A132: =IF( [1]GeralMinuta!A132 <>"", [1]GeralMinuta!A132,"") -> 2 CA 2/0 AWG Vão 80m | B132: =IF( [1]GeralMinuta!B132 <>"", [1]GeralMinuta!B132,"") -> 440
A133: =IF( [1]GeralMinuta!A133 <>"", [1]GeralMinuta!A133,"") -> 2 CA 4/0 AWG Vão 80m | B133: =IF( [1]GeralMinuta!B133 <>"", [1]GeralMinuta!B133,"") -> 630
A134: =IF( [1]GeralMinuta!A134 <>"", [1]GeralMinuta!A134,"") -> 2 CA 336,4 MCM Vão 80m | B134: =IF( [1]GeralMinuta!B134 <>"", [1]GeralMinuta!B134,"") -> 966
A135: =IF( [1]GeralMinuta!A135 <>"", [1]GeralMinuta!A135,"") -> 2 CA 477 MCM Vão 80m | B135: =IF( [1]GeralMinuta!B135 <>"", [1]GeralMinuta!B135,"") -> 1366
A136: =IF( [1]GeralMinuta!A136 <>"", [1]GeralMinuta!A136,"") ->  | B136: =IF( [1]GeralMinuta!B136 <>"", [1]GeralMinuta!B136,"") -> 
A137: =IF( [1]GeralMinuta!A137 <>"", [1]GeralMinuta!A137,"") -> 2 CA 02 AWG Vão 80m RGE | B137: =IF( [1]GeralMinuta!B137 <>"", [1]GeralMinuta!B137,"") -> 266
A138: =IF( [1]GeralMinuta!A138 <>"", [1]GeralMinuta!A138,"") -> 2 CA 1/0 AWG Vão 80m RGE | B138: =IF( [1]GeralMinuta!B138 <>"", [1]GeralMinuta!B138,"") -> 372
A139: =IF( [1]GeralMinuta!A139 <>"", [1]GeralMinuta!A139,"") -> 2 CA 2/0 AWG Vão 80m RGE | B139: =IF( [1]GeralMinuta!B139 <>"", [1]GeralMinuta!B139,"") -> 440
A140: =IF( [1]GeralMinuta!A140 <>"", [1]GeralMinuta!A140,"") -> 2 CA 4/0 AWG Vão 80m RGE | B140: =IF( [1]GeralMinuta!B140 <>"", [1]GeralMinuta!B140,"") -> 686
A141: =IF( [1]GeralMinuta!A141 <>"", [1]GeralMinuta!A141,"") -> 2 CA 336,4 MCM Vão 80m RGE | B141: =IF( [1]GeralMinuta!B141 <>"", [1]GeralMinuta!B141,"") -> 1088
A142: =IF( [1]GeralMinuta!A142 <>"", [1]GeralMinuta!A142,"") -> 2 CA 477 MCM Vão 80m RGE | B142: =IF( [1]GeralMinuta!B142 <>"", [1]GeralMinuta!B142,"") -> 1540
A143: =IF( [1]GeralMinuta!A143 <>"", [1]GeralMinuta!A143,"") ->  | B143: =IF( [1]GeralMinuta!B143 <>"", [1]GeralMinuta!B143,"") -> 
A144: =IF( [1]GeralMinuta!A144 <>"", [1]GeralMinuta!A144,"") -> 2 CA 04 AWG Vão 40m | B144: =IF( [1]GeralMinuta!B144 <>"", [1]GeralMinuta!B144,"") -> 126
A145: =IF( [1]GeralMinuta!A145 <>"", [1]GeralMinuta!A145,"") -> 2 CA 02 AWG Vão 40m | B145: =IF( [1]GeralMinuta!B145 <>"", [1]GeralMinuta!B145,"") -> 200
A146: =IF( [1]GeralMinuta!A146 <>"", [1]GeralMinuta!A146,"") -> 2 CA 1/0 AWG Vão 40m | B146: =IF( [1]GeralMinuta!B146 <>"", [1]GeralMinuta!B146,"") -> 320
A147: =IF( [1]GeralMinuta!A147 <>"", [1]GeralMinuta!A147,"") -> 2 CA 2/0 AWG Vão 40m | B147: =IF( [1]GeralMinuta!B147 <>"", [1]GeralMinuta!B147,"") -> 402
A148: =IF( [1]GeralMinuta!A148 <>"", [1]GeralMinuta!A148,"") -> 2 CA 4/0 AWG Vão 40m | B148: =IF( [1]GeralMinuta!B148 <>"", [1]GeralMinuta!B148,"") -> 640
A149: =IF( [1]GeralMinuta!A149 <>"", [1]GeralMinuta!A149,"") ->  | B149: =IF( [1]GeralMinuta!B149 <>"", [1]GeralMinuta!B149,"") -> 
A150: =IF( [1]GeralMinuta!A150 <>"", [1]GeralMinuta!A150,"") -> 2 CAA 04 AWG Vão 40m RGE | B150: =IF( [1]GeralMinuta!B150 <>"", [1]GeralMinuta!B150,"") -> 150
A151: =IF( [1]GeralMinuta!A151 <>"", [1]GeralMinuta!A151,"") -> 2 CAA 02 AWG Vão 40m RGE | B151: =IF( [1]GeralMinuta!B151 <>"", [1]GeralMinuta!B151,"") -> 238
A152: =IF( [1]GeralMinuta!A152 <>"", [1]GeralMinuta!A152,"") -> 2 CAA 1/0 AWG Vão 40m RGE | B152: =IF( [1]GeralMinuta!B152 <>"", [1]GeralMinuta!B152,"") -> 380
A153: =IF( [1]GeralMinuta!A153 <>"", [1]GeralMinuta!A153,"") -> 2 CAA 2/0 AWG Vão 40m RGE | B153: =IF( [1]GeralMinuta!B153 <>"", [1]GeralMinuta!B153,"") -> 480
A154: =IF( [1]GeralMinuta!A154 <>"", [1]GeralMinuta!A154,"") -> 2 CAA 4/0 AWG Vão 40m RGE | B154: =IF( [1]GeralMinuta!B154 <>"", [1]GeralMinuta!B154,"") -> 762
A155: =IF( [1]GeralMinuta!A155 <>"", [1]GeralMinuta!A155,"") ->  | B155: =IF( [1]GeralMinuta!B155 <>"", [1]GeralMinuta!B155,"") -> 
A156: =IF( [1]GeralMinuta!A156 <>"", [1]GeralMinuta!A156,"") -> 2 CAA 04 AWG Vão 80m | B156: =IF( [1]GeralMinuta!B156 <>"", [1]GeralMinuta!B156,"") -> 270
A157: =IF( [1]GeralMinuta!A157 <>"", [1]GeralMinuta!A157,"") -> 2 CAA 02 AWG Vão 80m | B157: =IF( [1]GeralMinuta!B157 <>"", [1]GeralMinuta!B157,"") -> 382
A158: =IF( [1]GeralMinuta!A158 <>"", [1]GeralMinuta!A158,"") -> 2 CAA 1/0 AWG Vão 80m | B158: =IF( [1]GeralMinuta!B158 <>"", [1]GeralMinuta!B158,"") -> 550
A159: =IF( [1]GeralMinuta!A159 <>"", [1]GeralMinuta!A159,"") -> 2 CAA 2/0 AWG Vão 80m | B159: =IF( [1]GeralMinuta!B159 <>"", [1]GeralMinuta!B159,"") -> 692
A160: =IF( [1]GeralMinuta!A160 <>"", [1]GeralMinuta!A160,"") -> 2 CAA 4/0 AWG Vão 80m | B160: =IF( [1]GeralMinuta!B160 <>"", [1]GeralMinuta!B160,"") -> 1102
A161: =IF( [1]GeralMinuta!A161 <>"", [1]GeralMinuta!A161,"") -> 2 CAA 336,4 MCM Vão 80m | B161: =IF( [1]GeralMinuta!B161 <>"", [1]GeralMinuta!B161,"") -> 1752
A162: =IF( [1]GeralMinuta!A162 <>"", [1]GeralMinuta!A162,"") ->  | B162: =IF( [1]GeralMinuta!B162 <>"", [1]GeralMinuta!B162,"") -> 
A163: =IF( [1]GeralMinuta!A163 <>"", [1]GeralMinuta!A163,"") -> 2 CAA 04 AWG Vão 80m RGE | B163: =IF( [1]GeralMinuta!B163 <>"", [1]GeralMinuta!B163,"") -> 270
A164: =IF( [1]GeralMinuta!A164 <>"", [1]GeralMinuta!A164,"") -> 2 CAA 02 AWG Vão 80m RGE | B164: =IF( [1]GeralMinuta!B164 <>"", [1]GeralMinuta!B164,"") -> 384
A165: =IF( [1]GeralMinuta!A165 <>"", [1]GeralMinuta!A165,"") -> 2 CAA 1/0 AWG Vão 80m RGE | B165: =IF( [1]GeralMinuta!B165 <>"", [1]GeralMinuta!B165,"") -> 610
A166: =IF( [1]GeralMinuta!A166 <>"", [1]GeralMinuta!A166,"") -> 2 CAA 2/0 AWG Vão 80m RGE | B166: =IF( [1]GeralMinuta!B166 <>"", [1]GeralMinuta!B166,"") -> 768
A167: =IF( [1]GeralMinuta!A167 <>"", [1]GeralMinuta!A167,"") -> 2 CAA 4/0 AWG Vão 80m RGE | B167: =IF( [1]GeralMinuta!B167 <>"", [1]GeralMinuta!B167,"") -> 1222
A168: =IF( [1]GeralMinuta!A168 <>"", [1]GeralMinuta!A168,"") -> 2 CAA 336,4 MCM Vão 80m RGE | B168: =IF( [1]GeralMinuta!B168 <>"", [1]GeralMinuta!B168,"") -> 1944
A169: =IF( [1]GeralMinuta!A169 <>"", [1]GeralMinuta!A169,"") ->  | B169: =IF( [1]GeralMinuta!B169 <>"", [1]GeralMinuta!B169,"") -> 
A170: =IF( [1]GeralMinuta!A170 <>"", [1]GeralMinuta!A170,"") -> 2 CAA 04 AWG Vão 120m | B170: =IF( [1]GeralMinuta!B170 <>"", [1]GeralMinuta!B170,"") -> 350
A171: =IF( [1]GeralMinuta!A171 <>"", [1]GeralMinuta!A171,"") -> 2 CAA 02 AWG Vão 120m | B171: =IF( [1]GeralMinuta!B171 <>"", [1]GeralMinuta!B171,"") -> 494
A172: =IF( [1]GeralMinuta!A172 <>"", [1]GeralMinuta!A172,"") -> 2 CAA 1/0 AWG Vão 120m | B172: =IF( [1]GeralMinuta!B172 <>"", [1]GeralMinuta!B172,"") -> 710
A173: =IF( [1]GeralMinuta!A173 <>"", [1]GeralMinuta!A173,"") -> 2 CAA 2/0 AWG Vão 120m | B173: =IF( [1]GeralMinuta!B173 <>"", [1]GeralMinuta!B173,"") -> 856
A174: =IF( [1]GeralMinuta!A174 <>"", [1]GeralMinuta!A174,"") -> 2 CAA 4/0 AWG Vão 120m | B174: =IF( [1]GeralMinuta!B174 <>"", [1]GeralMinuta!B174,"") -> 1304
A175: =IF( [1]GeralMinuta!A175 <>"", [1]GeralMinuta!A175,"") -> 2 CAA 336,4 MCM Vão 120m | B175: =IF( [1]GeralMinuta!B175 <>"", [1]GeralMinuta!B175,"") -> 2070
A176: =IF( [1]GeralMinuta!A176 <>"", [1]GeralMinuta!A176,"") ->  | B176: =IF( [1]GeralMinuta!B176 <>"", [1]GeralMinuta!B176,"") -> 
A177: =IF( [1]GeralMinuta!A177 <>"", [1]GeralMinuta!A177,"") -> 2 CAA 04 AWG Vão 120m RGE | B177: =IF( [1]GeralMinuta!B177 <>"", [1]GeralMinuta!B177,"") -> 350
A178: =IF( [1]GeralMinuta!A178 <>"", [1]GeralMinuta!A178,"") -> 2 CAA 02 AWG Vão 120m RGE | B178: =IF( [1]GeralMinuta!B178 <>"", [1]GeralMinuta!B178,"") -> 494
A179: =IF( [1]GeralMinuta!A179 <>"", [1]GeralMinuta!A179,"") -> 2 CAA 1/0 AWG Vão 120m RGE | B179: =IF( [1]GeralMinuta!B179 <>"", [1]GeralMinuta!B179,"") -> 710
A180: =IF( [1]GeralMinuta!A180 <>"", [1]GeralMinuta!A180,"") -> 2 CAA 2/0 AWG Vão 120m RGE | B180: =IF( [1]GeralMinuta!B180 <>"", [1]GeralMinuta!B180,"") -> 886
A181: =IF( [1]GeralMinuta!A181 <>"", [1]GeralMinuta!A181,"") -> 2 CAA 4/0 AWG Vão 120m RGE | B181: =IF( [1]GeralMinuta!B181 <>"", [1]GeralMinuta!B181,"") -> 1410
A182: =IF( [1]GeralMinuta!A182 <>"", [1]GeralMinuta!A182,"") -> 2 CAA 336,4 MCM Vão 120m RGE | B182: =IF( [1]GeralMinuta!B182 <>"", [1]GeralMinuta!B182,"") -> 2240
A183: =IF( [1]GeralMinuta!A183 <>"", [1]GeralMinuta!A183,"") ->  | B183: =IF( [1]GeralMinuta!B183 <>"", [1]GeralMinuta!B183,"") -> 
A184: =IF( [1]GeralMinuta!A184 <>"", [1]GeralMinuta!A184,"") -> 2 CU 06 AWG Vão 35m | B184: =IF( [1]GeralMinuta!B184 <>"", [1]GeralMinuta!B184,"") -> 112
A185: =IF( [1]GeralMinuta!A185 <>"", [1]GeralMinuta!A185,"") -> 2 CU 02 AWG Vão 35m | B185: =IF( [1]GeralMinuta!B185 <>"", [1]GeralMinuta!B185,"") -> 282
A186: =IF( [1]GeralMinuta!A186 <>"", [1]GeralMinuta!A186,"") -> 2 CU 1/0 AWG Vão 35m | B186: =IF( [1]GeralMinuta!B186 <>"", [1]GeralMinuta!B186,"") -> 416
A187: =IF( [1]GeralMinuta!A187 <>"", [1]GeralMinuta!A187,"") -> 2 CU 2/0 AWG Vão 35m | B187: =IF( [1]GeralMinuta!B187 <>"", [1]GeralMinuta!B187,"") -> 514
A188: =IF( [1]GeralMinuta!A188 <>"", [1]GeralMinuta!A188,"") -> 2 CU 4/0 AWG Vão 35m | B188: =IF( [1]GeralMinuta!B188 <>"", [1]GeralMinuta!B188,"") -> 792
A189: =IF( [1]GeralMinuta!A189 <>"", [1]GeralMinuta!A189,"") ->  | B189: =IF( [1]GeralMinuta!B189 <>"", [1]GeralMinuta!B189,"") -> 
A190: =IF( [1]GeralMinuta!A190 <>"", [1]GeralMinuta!A190,"") -> 1 CU 06 AWG Vão 35m RGE | B190: =IF( [1]GeralMinuta!B190 <>"", [1]GeralMinuta!B190,"") -> 56
A191: =IF( [1]GeralMinuta!A191 <>"", [1]GeralMinuta!A191,"") -> 1 CU 02 AWG Vão 35m RGE | B191: =IF( [1]GeralMinuta!B191 <>"", [1]GeralMinuta!B191,"") -> 141
A192: =IF( [1]GeralMinuta!A192 <>"", [1]GeralMinuta!A192,"") -> 1 CU 1/0 AWG Vão 35m RGE | B192: =IF( [1]GeralMinuta!B192 <>"", [1]GeralMinuta!B192,"") -> 208
A193: =IF( [1]GeralMinuta!A193 <>"", [1]GeralMinuta!A193,"") -> 1 CU 2/0 AWG Vão 35m RGE | B193: =IF( [1]GeralMinuta!B193 <>"", [1]GeralMinuta!B193,"") -> 257
A194: =IF( [1]GeralMinuta!A194 <>"", [1]GeralMinuta!A194,"") -> 1 CU 4/0 AWG Vão 35m RGE | B194: =IF( [1]GeralMinuta!B194 <>"", [1]GeralMinuta!B194,"") -> 396
A195: =IF( [1]GeralMinuta!A195 <>"", [1]GeralMinuta!A195,"") ->  | B195: =IF( [1]GeralMinuta!B195 <>"", [1]GeralMinuta!B195,"") -> 
A196: =IF( [1]GeralMinuta!A196 <>"", [1]GeralMinuta!A196,"") -> 1 CA 02 AWG Vão 35m | B196: =IF( [1]GeralMinuta!B196 <>"", [1]GeralMinuta!B196,"") -> 60
A197: =IF( [1]GeralMinuta!A197 <>"", [1]GeralMinuta!A197,"") -> 1 CA 1/0 AWG Vão 35m | B197: =IF( [1]GeralMinuta!B197 <>"", [1]GeralMinuta!B197,"") -> 96
A198: =IF( [1]GeralMinuta!A198 <>"", [1]GeralMinuta!A198,"") -> 1 CA 2/0 AWG Vão 35m | B198: =IF( [1]GeralMinuta!B198 <>"", [1]GeralMinuta!B198,"") -> 121
A199: =IF( [1]GeralMinuta!A199 <>"", [1]GeralMinuta!A199,"") -> 1 CA 4/0 AWG Vão 35m | B199: =IF( [1]GeralMinuta!B199 <>"", [1]GeralMinuta!B199,"") -> 194
A200: =IF( [1]GeralMinuta!A200 <>"", [1]GeralMinuta!A200,"") -> 1 CA 336,4 MCM Vão 35m | B200: =IF( [1]GeralMinuta!B200 <>"", [1]GeralMinuta!B200,"") -> 308
... 300 more rows

Sheet Secundaria (hidden)
A1: =IF( [1]GeralMinuta!A1 <>"", [1]GeralMinuta!A1,"") ->  | B1: =IF( [1]GeralMinuta!B1 <>"", [1]GeralMinuta!B1,"") ->  | F1: =[1]NeutroMinutaCpfl!A1 -> 
A2: =IF( [1]GeralMinuta!A2 <>"", [1]GeralMinuta!A2,"") -> 3 E 70 mm² Vão 35m | B2: =IF( [1]GeralMinuta!B2 <>"", [1]GeralMinuta!B2,"") -> 373
A3: =IF( [1]GeralMinuta!A3 <>"", [1]GeralMinuta!A3,"") -> 3 E 185 mm² Vão 35m | B3: =IF( [1]GeralMinuta!B3 <>"", [1]GeralMinuta!B3,"") -> 648
A4: =IF( [1]GeralMinuta!A4 <>"", [1]GeralMinuta!A4,"") ->  | B4: =IF( [1]GeralMinuta!B4 <>"", [1]GeralMinuta!B4,"") -> 
A5: =IF( [1]GeralMinuta!A5 <>"", [1]GeralMinuta!A5,"") -> 3 E 70 mm² Vão 35m RGE | B5: =IF( [1]GeralMinuta!B5 <>"", [1]GeralMinuta!B5,"") -> 373
A6: =IF( [1]GeralMinuta!A6 <>"", [1]GeralMinuta!A6,"") -> 3 E 185 mm² Vão 35m RGE | B6: =IF( [1]GeralMinuta!B6 <>"", [1]GeralMinuta!B6,"") -> 632
A7: =IF( [1]GeralMinuta!A7 <>"", [1]GeralMinuta!A7,"") ->  | B7: =IF( [1]GeralMinuta!B7 <>"", [1]GeralMinuta!B7,"") -> 
A8: =IF( [1]GeralMinuta!A8 <>"", [1]GeralMinuta!A8,"") -> 3 E 70 mm² Vão 80m | B8: =IF( [1]GeralMinuta!B8 <>"", [1]GeralMinuta!B8,"") -> 549
A9: =IF( [1]GeralMinuta!A9 <>"", [1]GeralMinuta!A9,"") -> 3 E 185 mm² Vão 80m | B9: =IF( [1]GeralMinuta!B9 <>"", [1]GeralMinuta!B9,"") -> 837
A10: =IF( [1]GeralMinuta!A10 <>"", [1]GeralMinuta!A10,"") ->  | B10: =IF( [1]GeralMinuta!B10 <>"", [1]GeralMinuta!B10,"") -> 
A11: =IF( [1]GeralMinuta!A11 <>"", [1]GeralMinuta!A11,"") -> 3 E 70 mm² Vão 80m RGE | B11: =IF( [1]GeralMinuta!B11 <>"", [1]GeralMinuta!B11,"") -> 549
A12: =IF( [1]GeralMinuta!A12 <>"", [1]GeralMinuta!A12,"") -> 3 E 185 mm² Vão 80m RGE | B12: =IF( [1]GeralMinuta!B12 <>"", [1]GeralMinuta!B12,"") -> 837
A13: =IF( [1]GeralMinuta!A13 <>"", [1]GeralMinuta!A13,"") ->  | B13: =IF( [1]GeralMinuta!B13 <>"", [1]GeralMinuta!B13,"") -> 
A14: =IF( [1]GeralMinuta!A14 <>"", [1]GeralMinuta!A14,"") -> 3 P 16 mm² Vão 35m | B14: =IF( [1]GeralMinuta!B14 <>"", [1]GeralMinuta!B14,"") -> 70
A15: =IF( [1]GeralMinuta!A15 <>"", [1]GeralMinuta!A15,"") -> 3 P 25 mm² Vão 35m | B15: =IF( [1]GeralMinuta!B15 <>"", [1]GeralMinuta!B15,"") -> 96
A16: =IF( [1]GeralMinuta!A16 <>"", [1]GeralMinuta!A16,"") -> 3 P 35 mm² Vão 35m | B16: =IF( [1]GeralMinuta!B16 <>"", [1]GeralMinuta!B16,"") -> 126
A17: =IF( [1]GeralMinuta!A17 <>"", [1]GeralMinuta!A17,"") -> 3 P 50 mm² Vão 35m | B17: =IF( [1]GeralMinuta!B17 <>"", [1]GeralMinuta!B17,"") -> 156
A18: =IF( [1]GeralMinuta!A18 <>"", [1]GeralMinuta!A18,"") -> 3 P 70 mm² Vão 35m | B18: =IF( [1]GeralMinuta!B18 <>"", [1]GeralMinuta!B18,"") -> 216
A19: =IF( [1]GeralMinuta!A19 <>"", [1]GeralMinuta!A19,"") -> 3 P 120 mm² Vão 35m | B19: =IF( [1]GeralMinuta!B19 <>"", [1]GeralMinuta!B19,"") -> 336
A20: =IF( [1]GeralMinuta!A20 <>"", [1]GeralMinuta!A20,"") ->  | B20: =IF( [1]GeralMinuta!B20 <>"", [1]GeralMinuta!B20,"") -> 
A21: =IF( [1]GeralMinuta!A21 <>"", [1]GeralMinuta!A21,"") -> 3 P 16 mm² Vão 35m RGE | B21: =IF( [1]GeralMinuta!B21 <>"", [1]GeralMinuta!B21,"") -> 70
A22: =IF( [1]GeralMinuta!A22 <>"", [1]GeralMinuta!A22,"") -> 3 P 25 mm² Vão 35m RGE | B22: =IF( [1]GeralMinuta!B22 <>"", [1]GeralMinuta!B22,"") -> 96
A23: =IF( [1]GeralMinuta!A23 <>"", [1]GeralMinuta!A23,"") -> 3 P 35 mm² Vão 35m RGE | B23: =IF( [1]GeralMinuta!B23 <>"", [1]GeralMinuta!B23,"") -> 126
A24: =IF( [1]GeralMinuta!A24 <>"", [1]GeralMinuta!A24,"") -> 3 P 50 mm² Vão 35m RGE | B24: =IF( [1]GeralMinuta!B24 <>"", [1]GeralMinuta!B24,"") -> 162
A25: =IF( [1]GeralMinuta!A25 <>"", [1]GeralMinuta!A25,"") -> 3 P 70 mm² Vão 35m RGE | B25: =IF( [1]GeralMinuta!B25 <>"", [1]GeralMinuta!B25,"") -> 226
A26: =IF( [1]GeralMinuta!A26 <>"", [1]GeralMinuta!A26,"") -> 3 P 120 mm² Vão 35m RGE | B26: =IF( [1]GeralMinuta!B26 <>"", [1]GeralMinuta!B26,"") -> 352
A27: =IF( [1]GeralMinuta!A27 <>"", [1]GeralMinuta!A27,"") ->  | B27: =IF( [1]GeralMinuta!B27 <>"", [1]GeralMinuta!B27,"") -> 
A28: =IF( [1]GeralMinuta!A28 <>"", [1]GeralMinuta!A28,"") -> 3 CA 02 AWG Vão 35m | B28: =IF( [1]GeralMinuta!B28 <>"", [1]GeralMinuta!B28,"") -> 180
A29: =IF( [1]GeralMinuta!A29 <>"", [1]GeralMinuta!A29,"") -> 3 CA 1/0 AWG Vão 35m | B29: =IF( [1]GeralMinuta!B29 <>"", [1]GeralMinuta!B29,"") -> 288
A30: =IF( [1]GeralMinuta!A30 <>"", [1]GeralMinuta!A30,"") -> 3 CA 2/0 AWG Vão 35m | B30: =IF( [1]GeralMinuta!B30 <>"", [1]GeralMinuta!B30,"") -> 363
A31: =IF( [1]GeralMinuta!A31 <>"", [1]GeralMinuta!A31,"") -> 3 CA 4/0 AWG Vão 35m | B31: =IF( [1]GeralMinuta!B31 <>"", [1]GeralMinuta!B31,"") -> 582
A32: =IF( [1]GeralMinuta!A32 <>"", [1]GeralMinuta!A32,"") -> 3 CA 336,4 MCM Vão 35m | B32: =IF( [1]GeralMinuta!B32 <>"", [1]GeralMinuta!B32,"") -> 924
A33: =IF( [1]GeralMinuta!A33 <>"", [1]GeralMinuta!A33,"") -> 3 CA 477 MCM Vão 35m | B33: =IF( [1]GeralMinuta!B33 <>"", [1]GeralMinuta!B33,"") -> 1305
A34: =IF( [1]GeralMinuta!A34 <>"", [1]GeralMinuta!A34,"") ->  | B34: =IF( [1]GeralMinuta!B34 <>"", [1]GeralMinuta!B34,"") -> 
A35: =IF( [1]GeralMinuta!A35 <>"", [1]GeralMinuta!A35,"") -> 3 CA 02 AWG Vão 35m RGE | B35: =IF( [1]GeralMinuta!B35 <>"", [1]GeralMinuta!B35,"") -> 225
A36: =IF( [1]GeralMinuta!A36 <>"", [1]GeralMinuta!A36,"") -> 3 CA 1/0 AWG Vão 35m RGE | B36: =IF( [1]GeralMinuta!B36 <>"", [1]GeralMinuta!B36,"") -> 2319
A37: =IF( [1]GeralMinuta!A37 <>"", [1]GeralMinuta!A37,"") -> 3 CA 2/0 AWG Vão 35m RGE | B37: =IF( [1]GeralMinuta!B37 <>"", [1]GeralMinuta!B37,"") -> 450
A38: =IF( [1]GeralMinuta!A38 <>"", [1]GeralMinuta!A38,"") -> 3 CA 4/0 AWG Vão 35m RGE | B38: =IF( [1]GeralMinuta!B38 <>"", [1]GeralMinuta!B38,"") -> 720
A39: =IF( [1]GeralMinuta!A39 <>"", [1]GeralMinuta!A39,"") -> 3 CA 336,4 MCM Vão 35m RGE | B39: =IF( [1]GeralMinuta!B39 <>"", [1]GeralMinuta!B39,"") -> 1143
A40: =IF( [1]GeralMinuta!A40 <>"", [1]GeralMinuta!A40,"") -> 3 CA 477 MCM Vão 35m RGE | B40: =IF( [1]GeralMinuta!B40 <>"", [1]GeralMinuta!B40,"") -> 1617
A41: =IF( [1]GeralMinuta!A41 <>"", [1]GeralMinuta!A41,"") ->  | B41: =IF( [1]GeralMinuta!B41 <>"", [1]GeralMinuta!B41,"") -> 
A42: =IF( [1]GeralMinuta!A42 <>"", [1]GeralMinuta!A42,"") -> 3 CA 02 AWG Vão 80m | B42: =IF( [1]GeralMinuta!B42 <>"", [1]GeralMinuta!B42,"") -> 399
A43: =IF( [1]GeralMinuta!A43 <>"", [1]GeralMinuta!A43,"") -> 3 CA 1/0 AWG Vão 80m | B43: =IF( [1]GeralMinuta!B43 <>"", [1]GeralMinuta!B43,"") -> 558
A44: =IF( [1]GeralMinuta!A44 <>"", [1]GeralMinuta!A44,"") -> 3 CA 2/0 AWG Vão 80m | B44: =IF( [1]GeralMinuta!B44 <>"", [1]GeralMinuta!B44,"") -> 660
A45: =IF( [1]GeralMinuta!A45 <>"", [1]GeralMinuta!A45,"") -> 3 CA 4/0 AWG Vão 80m | B45: =IF( [1]GeralMinuta!B45 <>"", [1]GeralMinuta!B45,"") -> 945
A46: =IF( [1]GeralMinuta!A46 <>"", [1]GeralMinuta!A46,"") -> 3 CA 336,4 MCM Vão 80m | B46: =IF( [1]GeralMinuta!B46 <>"", [1]GeralMinuta!B46,"") -> 1449
A47: =IF( [1]GeralMinuta!A47 <>"", [1]GeralMinuta!A47,"") -> 3 CA 477 MCM Vão 80m | B47: =IF( [1]GeralMinuta!B47 <>"", [1]GeralMinuta!B47,"") -> 2049
A48: =IF( [1]GeralMinuta!A48 <>"", [1]GeralMinuta!A48,"") ->  | B48: =IF( [1]GeralMinuta!B48 <>"", [1]GeralMinuta!B48,"") -> 
A49: =IF( [1]GeralMinuta!A49 <>"", [1]GeralMinuta!A49,"") -> 3 CA 02 AWG Vão 80m RGE | B49: =IF( [1]GeralMinuta!B49 <>"", [1]GeralMinuta!B49,"") -> 399
A50: =IF( [1]GeralMinuta!A50 <>"", [1]GeralMinuta!A50,"") -> 3 CA 1/0 AWG Vão 80m RGE | B50: =IF( [1]GeralMinuta!B50 <>"", [1]GeralMinuta!B50,"") -> 558
A51: =IF( [1]GeralMinuta!A51 <>"", [1]GeralMinuta!A51,"") -> 3 CA 2/0 AWG Vão 80m RGE | B51: =IF( [1]GeralMinuta!B51 <>"", [1]GeralMinuta!B51,"") -> 660
A52: =IF( [1]GeralMinuta!A52 <>"", [1]GeralMinuta!A52,"") -> 3 CA 4/0 AWG Vão 80m RGE | B52: =IF( [1]GeralMinuta!B52 <>"", [1]GeralMinuta!B52,"") -> 1029
A53: =IF( [1]GeralMinuta!A53 <>"", [1]GeralMinuta!A53,"") -> 3 CA 336,4 MCM Vão 80m RGE | B53: =IF( [1]GeralMinuta!B53 <>"", [1]GeralMinuta!B53,"") -> 1632
A54: =IF( [1]GeralMinuta!A54 <>"", [1]GeralMinuta!A54,"") -> 3 CA 477 MCM Vão 80m RGE | B54: =IF( [1]GeralMinuta!B54 <>"", [1]GeralMinuta!B54,"") -> 2310
A55: =IF( [1]GeralMinuta!A55 <>"", [1]GeralMinuta!A55,"") ->  | B55: =IF( [1]GeralMinuta!B55 <>"", [1]GeralMinuta!B55,"") -> 
A56: =IF( [1]GeralMinuta!A56 <>"", [1]GeralMinuta!A56,"") -> 3 CAA 04 AWG Vão 40m | B56: =IF( [1]GeralMinuta!B56 <>"", [1]GeralMinuta!B56,"") -> 189
A57: =IF( [1]GeralMinuta!A57 <>"", [1]GeralMinuta!A57,"") -> 3 CAA 02 AWG Vão 40m | B57: =IF( [1]GeralMinuta!B57 <>"", [1]GeralMinuta!B57,"") -> 300
A58: =IF( [1]GeralMinuta!A58 <>"", [1]GeralMinuta!A58,"") -> 3 CAA 1/0 AWG Vão 40m | B58: =IF( [1]GeralMinuta!B58 <>"", [1]GeralMinuta!B58,"") -> 480
A59: =IF( [1]GeralMinuta!A59 <>"", [1]GeralMinuta!A59,"") -> 3 CAA 2/0 AWG Vão 40m | B59: =IF( [1]GeralMinuta!B59 <>"", [1]GeralMinuta!B59,"") -> 603
A60: =IF( [1]GeralMinuta!A60 <>"", [1]GeralMinuta!A60,"") -> 3 CAA 4/0 AWG Vão 40m | B60: =IF( [1]GeralMinuta!B60 <>"", [1]GeralMinuta!B60,"") -> 960
A61: =IF( [1]GeralMinuta!A61 <>"", [1]GeralMinuta!A61,"") ->  | B61: =IF( [1]GeralMinuta!B61 <>"", [1]GeralMinuta!B61,"") -> 
A62: =IF( [1]GeralMinuta!A62 <>"", [1]GeralMinuta!A62,"") -> 3 CAA 04 AWG Vão 40m RGE | B62: =IF( [1]GeralMinuta!B62 <>"", [1]GeralMinuta!B62,"") -> 225
A63: =IF( [1]GeralMinuta!A63 <>"", [1]GeralMinuta!A63,"") -> 3 CAA 02 AWG Vão 40m RGE | B63: =IF( [1]GeralMinuta!B63 <>"", [1]GeralMinuta!B63,"") -> 357
A64: =IF( [1]GeralMinuta!A64 <>"", [1]GeralMinuta!A64,"") -> 3 CAA 1/0 AWG Vão 40m RGE | B64: =IF( [1]GeralMinuta!B64 <>"", [1]GeralMinuta!B64,"") -> 570
A65: =IF( [1]GeralMinuta!A65 <>"", [1]GeralMinuta!A65,"") -> 3 CAA 2/0 AWG Vão 40m RGE | B65: =IF( [1]GeralMinuta!B65 <>"", [1]GeralMinuta!B65,"") -> 720
A66: =IF( [1]GeralMinuta!A66 <>"", [1]GeralMinuta!A66,"") -> 3 CAA 4/0 AWG Vão 40m RGE | B66: =IF( [1]GeralMinuta!B66 <>"", [1]GeralMinuta!B66,"") -> 1143
A67: =IF( [1]GeralMinuta!A67 <>"", [1]GeralMinuta!A67,"") ->  | B67: =IF( [1]GeralMinuta!B67 <>"", [1]GeralMinuta!B67,"") -> 
A68: =IF( [1]GeralMinuta!A68 <>"", [1]GeralMinuta!A68,"") -> 3 CAA 04 AWG Vão 80m | B68: =IF( [1]GeralMinuta!B68 <>"", [1]GeralMinuta!B68,"") -> 405
A69: =IF( [1]GeralMinuta!A69 <>"", [1]GeralMinuta!A69,"") -> 3 CAA 02 AWG Vão 80m | B69: =IF( [1]GeralMinuta!B69 <>"", [1]GeralMinuta!B69,"") -> 573
A70: =IF( [1]GeralMinuta!A70 <>"", [1]GeralMinuta!A70,"") -> 3 CAA 1/0 AWG Vão 80m | B70: =IF( [1]GeralMinuta!B70 <>"", [1]GeralMinuta!B70,"") -> 825
A71: =IF( [1]GeralMinuta!A71 <>"", [1]GeralMinuta!A71,"") -> 3 CAA 2/0 AWG Vão 80m | B71: =IF( [1]GeralMinuta!B71 <>"", [1]GeralMinuta!B71,"") -> 1038
A72: =IF( [1]GeralMinuta!A72 <>"", [1]GeralMinuta!A72,"") -> 3 CAA 4/0 AWG Vão 80m | B72: =IF( [1]GeralMinuta!B72 <>"", [1]GeralMinuta!B72,"") -> 1653
A73: =IF( [1]GeralMinuta!A73 <>"", [1]GeralMinuta!A73,"") -> 3 CAA 336,4 MCM Vão 80m | B73: =IF( [1]GeralMinuta!B73 <>"", [1]GeralMinuta!B73,"") -> 2628
A74: =IF( [1]GeralMinuta!A74 <>"", [1]GeralMinuta!A74,"") ->  | B74: =IF( [1]GeralMinuta!B74 <>"", [1]GeralMinuta!B74,"") -> 
A75: =IF( [1]GeralMinuta!A75 <>"", [1]GeralMinuta!A75,"") -> 3 CAA 04 AWG Vão 80m RGE | B75: =IF( [1]GeralMinuta!B75 <>"", [1]GeralMinuta!B75,"") -> 405
A76: =IF( [1]GeralMinuta!A76 <>"", [1]GeralMinuta!A76,"") -> 3 CAA 02 AWG Vão 80m RGE | B76: =IF( [1]GeralMinuta!B76 <>"", [1]GeralMinuta!B76,"") -> 576
A77: =IF( [1]GeralMinuta!A77 <>"", [1]GeralMinuta!A77,"") -> 3 CAA 1/0 AWG Vão 80m RGE | B77: =IF( [1]GeralMinuta!B77 <>"", [1]GeralMinuta!B77,"") -> 915
A78: =IF( [1]GeralMinuta!A78 <>"", [1]GeralMinuta!A78,"") -> 3 CAA 2/0 AWG Vão 80m RGE | B78: =IF( [1]GeralMinuta!B78 <>"", [1]GeralMinuta!B78,"") -> 1152
A79: =IF( [1]GeralMinuta!A79 <>"", [1]GeralMinuta!A79,"") -> 3 CAA 4/0 AWG Vão 80m RGE | B79: =IF( [1]GeralMinuta!B79 <>"", [1]GeralMinuta!B79,"") -> 1833
A80: =IF( [1]GeralMinuta!A80 <>"", [1]GeralMinuta!A80,"") -> 3 CAA 336,4 MCM Vão 80m RGE | B80: =IF( [1]GeralMinuta!B80 <>"", [1]GeralMinuta!B80,"") -> 2916
A81: =IF( [1]GeralMinuta!A81 <>"", [1]GeralMinuta!A81,"") ->  | B81: =IF( [1]GeralMinuta!B81 <>"", [1]GeralMinuta!B81,"") -> 
A82: =IF( [1]GeralMinuta!A82 <>"", [1]GeralMinuta!A82,"") -> 3 CAA 04 AWG Vão 120m | B82: =IF( [1]GeralMinuta!B82 <>"", [1]GeralMinuta!B82,"") -> 525
A83: =IF( [1]GeralMinuta!A83 <>"", [1]GeralMinuta!A83,"") -> 3 CAA 02 AWG Vão 120m | B83: =IF( [1]GeralMinuta!B83 <>"", [1]GeralMinuta!B83,"") -> 741
A84: =IF( [1]GeralMinuta!A84 <>"", [1]GeralMinuta!A84,"") -> 3 CAA 1/0 AWG Vão 120m | B84: =IF( [1]GeralMinuta!B84 <>"", [1]GeralMinuta!B84,"") -> 1065
A85: =IF( [1]GeralMinuta!A85 <>"", [1]GeralMinuta!A85,"") -> 3 CAA 2/0 AWG Vão 120m | B85: =IF( [1]GeralMinuta!B85 <>"", [1]GeralMinuta!B85,"") -> 1284
A86: =IF( [1]GeralMinuta!A86 <>"", [1]GeralMinuta!A86,"") -> 3 CAA 4/0 AWG Vão 120m | B86: =IF( [1]GeralMinuta!B86 <>"", [1]GeralMinuta!B86,"") -> 1956
A87: =IF( [1]GeralMinuta!A87 <>"", [1]GeralMinuta!A87,"") -> 3 CAA 336,4 MCM Vão 120m | B87: =IF( [1]GeralMinuta!B87 <>"", [1]GeralMinuta!B87,"") -> 3105
A88: =IF( [1]GeralMinuta!A88 <>"", [1]GeralMinuta!A88,"") ->  | B88: =IF( [1]GeralMinuta!B88 <>"", [1]GeralMinuta!B88,"") -> 
A89: =IF( [1]GeralMinuta!A89 <>"", [1]GeralMinuta!A89,"") -> 3 CAA 04 AWG Vão 120m RGE | B89: =IF( [1]GeralMinuta!B89 <>"", [1]GeralMinuta!B89,"") -> 525
A90: =IF( [1]GeralMinuta!A90 <>"", [1]GeralMinuta!A90,"") -> 3 CAA 02 AWG Vão 120m RGE | B90: =IF( [1]GeralMinuta!B90 <>"", [1]GeralMinuta!B90,"") -> 741
A91: =IF( [1]GeralMinuta!A91 <>"", [1]GeralMinuta!A91,"") -> 3 CAA 1/0 AWG Vão 120m RGE | B91: =IF( [1]GeralMinuta!B91 <>"", [1]GeralMinuta!B91,"") -> 1065
A92: =IF( [1]GeralMinuta!A92 <>"", [1]GeralMinuta!A92,"") -> 3 CAA 2/0 AWG Vão 120m RGE | B92: =IF( [1]GeralMinuta!B92 <>"", [1]GeralMinuta!B92,"") -> 1329
A93: =IF( [1]GeralMinuta!A93 <>"", [1]GeralMinuta!A93,"") -> 3 CAA 4/0 AWG Vão 120m RGE | B93: =IF( [1]GeralMinuta!B93 <>"", [1]GeralMinuta!B93,"") -> 2115
A94: =IF( [1]GeralMinuta!A94 <>"", [1]GeralMinuta!A94,"") -> 3 CAA 336,4 MCM Vão 120m RGE | B94: =IF( [1]GeralMinuta!B94 <>"", [1]GeralMinuta!B94,"") -> 3360
A95: =IF( [1]GeralMinuta!A95 <>"", [1]GeralMinuta!A95,"") ->  | B95: =IF( [1]GeralMinuta!B95 <>"", [1]GeralMinuta!B95,"") -> 
A96: =IF( [1]GeralMinuta!A96 <>"", [1]GeralMinuta!A96,"") -> 3 15kv 240 mm² Vão 35m | B96: =IF( [1]GeralMinuta!B96 <>"", [1]GeralMinuta!B96,"") -> 723
A97: =IF( [1]GeralMinuta!A97 <>"", [1]GeralMinuta!A97,"") -> 3 25kv 240 mm² Vão 35m | B97: =IF( [1]GeralMinuta!B97 <>"", [1]GeralMinuta!B97,"") -> 825
A98: =IF( [1]GeralMinuta!A98 <>"", [1]GeralMinuta!A98,"") -> 3 35kv 240 mm² Vão 35m | B98: =IF( [1]GeralMinuta!B98 <>"", [1]GeralMinuta!B98,"") -> 966
A99: =IF( [1]GeralMinuta!A99 <>"", [1]GeralMinuta!A99,"") ->  | B99: =IF( [1]GeralMinuta!B99 <>"", [1]GeralMinuta!B99,"") -> 
A100: =IF( [1]GeralMinuta!A100 <>"", [1]GeralMinuta!A100,"") -> 3 15kv 240 mm² Vão 35m RGE | B100: =IF( [1]GeralMinuta!B100 <>"", [1]GeralMinuta!B100,"") -> 743
A101: =IF( [1]GeralMinuta!A101 <>"", [1]GeralMinuta!A101,"") -> 3 25kv 240 mm² Vão 35m RGE | B101: =IF( [1]GeralMinuta!B101 <>"", [1]GeralMinuta!B101,"") -> 849
A102: =IF( [1]GeralMinuta!A102 <>"", [1]GeralMinuta!A102,"") -> 3 35kv 240 mm² Vão 35m RGE | B102: =IF( [1]GeralMinuta!B102 <>"", [1]GeralMinuta!B102,"") -> 993
A103: =IF( [1]GeralMinuta!A103 <>"", [1]GeralMinuta!A103,"") ->  | B103: =IF( [1]GeralMinuta!B103 <>"", [1]GeralMinuta!B103,"") -> 
A104: =IF( [1]GeralMinuta!A104 <>"", [1]GeralMinuta!A104,"") -> 3 CU 06 AWG Vão 35m | B104: =IF( [1]GeralMinuta!B104 <>"", [1]GeralMinuta!B104,"") -> 168
A105: =IF( [1]GeralMinuta!A105 <>"", [1]GeralMinuta!A105,"") -> 3 CU 02 AWG Vão 35m | B105: =IF( [1]GeralMinuta!B105 <>"", [1]GeralMinuta!B105,"") -> 423
A106: =IF( [1]GeralMinuta!A106 <>"", [1]GeralMinuta!A106,"") -> 3 CU 1/0 AWG Vão 35m | B106: =IF( [1]GeralMinuta!B106 <>"", [1]GeralMinuta!B106,"") -> 624
A107: =IF( [1]GeralMinuta!A107 <>"", [1]GeralMinuta!A107,"") -> 3 CU 2/0 AWG Vão 35m | B107: =IF( [1]GeralMinuta!B107 <>"", [1]GeralMinuta!B107,"") -> 771
A108: =IF( [1]GeralMinuta!A108 <>"", [1]GeralMinuta!A108,"") -> 3 CU 4/0 AWG Vão 35m | B108: =IF( [1]GeralMinuta!B108 <>"", [1]GeralMinuta!B108,"") -> 1188
A109: =IF( [1]GeralMinuta!A109 <>"", [1]GeralMinuta!A109,"") ->  | B109: =IF( [1]GeralMinuta!B109 <>"", [1]GeralMinuta!B109,"") -> 
A110: =IF( [1]GeralMinuta!A110 <>"", [1]GeralMinuta!A110,"") -> 3 CU 06 AWG Vão 35m RGE | B110: =IF( [1]GeralMinuta!B110 <>"", [1]GeralMinuta!B110,"") -> 168
A111: =IF( [1]GeralMinuta!A111 <>"", [1]GeralMinuta!A111,"") -> 3 CU 02 AWG Vão 35m RGE | B111: =IF( [1]GeralMinuta!B111 <>"", [1]GeralMinuta!B111,"") -> 423
A112: =IF( [1]GeralMinuta!A112 <>"", [1]GeralMinuta!A112,"") -> 3 CU 1/0 AWG Vão 35m RGE | B112: =IF( [1]GeralMinuta!B112 <>"", [1]GeralMinuta!B112,"") -> 624
A113: =IF( [1]GeralMinuta!A113 <>"", [1]GeralMinuta!A113,"") -> 3 CU 2/0 AWG Vão 35m RGE | B113: =IF( [1]GeralMinuta!B113 <>"", [1]GeralMinuta!B113,"") -> 771
A114: =IF( [1]GeralMinuta!A114 <>"", [1]GeralMinuta!A114,"") -> 3 CU 4/0 AWG Vão 35m RGE | B114: =IF( [1]GeralMinuta!B114 <>"", [1]GeralMinuta!B114,"") -> 1188
A115: =IF( [1]GeralMinuta!A115 <>"", [1]GeralMinuta!A115,"") ->  | B115: =IF( [1]GeralMinuta!B115 <>"", [1]GeralMinuta!B115,"") -> 
A116: =IF( [1]GeralMinuta!A116 <>"", [1]GeralMinuta!A116,"") -> 2 CA 02 AWG Vão 35m | B116: =IF( [1]GeralMinuta!B116 <>"", [1]GeralMinuta!B116,"") -> 120
A117: =IF( [1]GeralMinuta!A117 <>"", [1]GeralMinuta!A117,"") -> 2 CA 1/0 AWG Vão 35m | B117: =IF( [1]GeralMinuta!B117 <>"", [1]GeralMinuta!B117,"") -> 192
A118: =IF( [1]GeralMinuta!A118 <>"", [1]GeralMinuta!A118,"") -> 2 CA 2/0 AWG Vão 35m | B118: =IF( [1]GeralMinuta!B118 <>"", [1]GeralMinuta!B118,"") -> 242
A119: =IF( [1]GeralMinuta!A119 <>"", [1]GeralMinuta!A119,"") -> 2 CA 4/0 AWG Vão 35m | B119: =IF( [1]GeralMinuta!B119 <>"", [1]GeralMinuta!B119,"") -> 388
A120: =IF( [1]GeralMinuta!A120 <>"", [1]GeralMinuta!A120,"") -> 2 CA 336,4 MCM Vão 35m | B120: =IF( [1]GeralMinuta!B120 <>"", [1]GeralMinuta!B120,"") -> 616
A121: =IF( [1]GeralMinuta!A121 <>"", [1]GeralMinuta!A121,"") -> 2 CA 477 MCM Vão 35m | B121: =IF( [1]GeralMinuta!B121 <>"", [1]GeralMinuta!B121,"") -> 870
A122: =IF( [1]GeralMinuta!A122 <>"", [1]GeralMinuta!A122,"") ->  | B122: =IF( [1]GeralMinuta!B122 <>"", [1]GeralMinuta!B122,"") -> 
A123: =IF( [1]GeralMinuta!A123 <>"", [1]GeralMinuta!A123,"") -> 2 CA 02 AWG Vão 35m RGE | B123: =IF( [1]GeralMinuta!B123 <>"", [1]GeralMinuta!B123,"") -> 150
A124: =IF( [1]GeralMinuta!A124 <>"", [1]GeralMinuta!A124,"") -> 2 CA 1/0 AWG Vão 35m RGE | B124: =IF( [1]GeralMinuta!B124 <>"", [1]GeralMinuta!B124,"") -> 1546
A125: =IF( [1]GeralMinuta!A125 <>"", [1]GeralMinuta!A125,"") -> 2 CA 2/0 AWG Vão 35m RGE | B125: =IF( [1]GeralMinuta!B125 <>"", [1]GeralMinuta!B125,"") -> 300
A126: =IF( [1]GeralMinuta!A126 <>"", [1]GeralMinuta!A126,"") -> 2 CA 4/0 AWG Vão 35m RGE | B126: =IF( [1]GeralMinuta!B126 <>"", [1]GeralMinuta!B126,"") -> 480
A127: =IF( [1]GeralMinuta!A127 <>"", [1]GeralMinuta!A127,"") -> 2 CA 336,4 MCM Vão 35m RGE | B127: =IF( [1]GeralMinuta!B127 <>"", [1]GeralMinuta!B127,"") -> 762
A128: =IF( [1]GeralMinuta!A128 <>"", [1]GeralMinuta!A128,"") -> 2 CA 477 MCM Vão 35m RGE | B128: =IF( [1]GeralMinuta!B128 <>"", [1]GeralMinuta!B128,"") -> 1078
A129: =IF( [1]GeralMinuta!A129 <>"", [1]GeralMinuta!A129,"") ->  | B129: =IF( [1]GeralMinuta!B129 <>"", [1]GeralMinuta!B129,"") -> 
A130: =IF( [1]GeralMinuta!A130 <>"", [1]GeralMinuta!A130,"") -> 2 CA 02 AWG Vão 80m | B130: =IF( [1]GeralMinuta!B130 <>"", [1]GeralMinuta!B130,"") -> 266
A131: =IF( [1]GeralMinuta!A131 <>"", [1]GeralMinuta!A131,"") -> 2 CA 1/0 AWG Vão 80m | B131: =IF( [1]GeralMinuta!B131 <>"", [1]GeralMinuta!B131,"") -> 372
A132: =IF( [1]GeralMinuta!A132 <>"", [1]GeralMinuta!A132,"") -> 2 CA 2/0 AWG Vão 80m | B132: =IF( [1]GeralMinuta!B132 <>"", [1]GeralMinuta!B132,"") -> 440
A133: =IF( [1]GeralMinuta!A133 <>"", [1]GeralMinuta!A133,"") -> 2 CA 4/0 AWG Vão 80m | B133: =IF( [1]GeralMinuta!B133 <>"", [1]GeralMinuta!B133,"") -> 630
A134: =IF( [1]GeralMinuta!A134 <>"", [1]GeralMinuta!A134,"") -> 2 CA 336,4 MCM Vão 80m | B134: =IF( [1]GeralMinuta!B134 <>"", [1]GeralMinuta!B134,"") -> 966
A135: =IF( [1]GeralMinuta!A135 <>"", [1]GeralMinuta!A135,"") -> 2 CA 477 MCM Vão 80m | B135: =IF( [1]GeralMinuta!B135 <>"", [1]GeralMinuta!B135,"") -> 1366
A136: =IF( [1]GeralMinuta!A136 <>"", [1]GeralMinuta!A136,"") ->  | B136: =IF( [1]GeralMinuta!B136 <>"", [1]GeralMinuta!B136,"") -> 
A137: =IF( [1]GeralMinuta!A137 <>"", [1]GeralMinuta!A137,"") -> 2 CA 02 AWG Vão 80m RGE | B137: =IF( [1]GeralMinuta!B137 <>"", [1]GeralMinuta!B137,"") -> 266
A138: =IF( [1]GeralMinuta!A138 <>"", [1]GeralMinuta!A138,"") -> 2 CA 1/0 AWG Vão 80m RGE | B138: =IF( [1]GeralMinuta!B138 <>"", [1]GeralMinuta!B138,"") -> 372
A139: =IF( [1]GeralMinuta!A139 <>"", [1]GeralMinuta!A139,"") -> 2 CA 2/0 AWG Vão 80m RGE | B139: =IF( [1]GeralMinuta!B139 <>"", [1]GeralMinuta!B139,"") -> 440
A140: =IF( [1]GeralMinuta!A140 <>"", [1]GeralMinuta!A140,"") -> 2 CA 4/0 AWG Vão 80m RGE | B140: =IF( [1]GeralMinuta!B140 <>"", [1]GeralMinuta!B140,"") -> 686
A141: =IF( [1]GeralMinuta!A141 <>"", [1]GeralMinuta!A141,"") -> 2 CA 336,4 MCM Vão 80m RGE | B141: =IF( [1]GeralMinuta!B141 <>"", [1]GeralMinuta!B141,"") -> 1088
A142: =IF( [1]GeralMinuta!A142 <>"", [1]GeralMinuta!A142,"") -> 2 CA 477 MCM Vão 80m RGE | B142: =IF( [1]GeralMinuta!B142 <>"", [1]GeralMinuta!B142,"") -> 1540
A143: =IF( [1]GeralMinuta!A143 <>"", [1]GeralMinuta!A143,"") ->  | B143: =IF( [1]GeralMinuta!B143 <>"", [1]GeralMinuta!B143,"") -> 
A144: =IF( [1]GeralMinuta!A144 <>"", [1]GeralMinuta!A144,"") -> 2 CA 04 AWG Vão 40m | B144: =IF( [1]GeralMinuta!B144 <>"", [1]GeralMinuta!B144,"") -> 126
A145: =IF( [1]GeralMinuta!A145 <>"", [1]GeralMinuta!A145,"") -> 2 CA 02 AWG Vão 40m | B145: =IF( [1]GeralMinuta!B145 <>"", [1]GeralMinuta!B145,"") -> 200
A146: =IF( [1]GeralMinuta!A146 <>"", [1]GeralMinuta!A146,"") -> 2 CA 1/0 AWG Vão 40m | B146: =IF( [1]GeralMinuta!B146 <>"", [1]GeralMinuta!B146,"") -> 320
A147: =IF( [1]GeralMinuta!A147 <>"", [1]GeralMinuta!A147,"") -> 2 CA 2/0 AWG Vão 40m | B147: =IF( [1]GeralMinuta!B147 <>"", [1]GeralMinuta!B147,"") -> 402
A148: =IF( [1]GeralMinuta!A148 <>"", [1]GeralMinuta!A148,"") -> 2 CA 4/0 AWG Vão 40m | B148: =IF( [1]GeralMinuta!B148 <>"", [1]GeralMinuta!B148,"") -> 640
A149: =IF( [1]GeralMinuta!A149 <>"", [1]GeralMinuta!A149,"") ->  | B149: =IF( [1]GeralMinuta!B149 <>"", [1]GeralMinuta!B149,"") -> 
A150: =IF( [1]GeralMinuta!A150 <>"", [1]GeralMinuta!A150,"") -> 2 CAA 04 AWG Vão 40m RGE | B150: =IF( [1]GeralMinuta!B150 <>"", [1]GeralMinuta!B150,"") -> 150
A151: =IF( [1]GeralMinuta!A151 <>"", [1]GeralMinuta!A151,"") -> 2 CAA 02 AWG Vão 40m RGE | B151: =IF( [1]GeralMinuta!B151 <>"", [1]GeralMinuta!B151,"") -> 238
A152: =IF( [1]GeralMinuta!A152 <>"", [1]GeralMinuta!A152,"") -> 2 CAA 1/0 AWG Vão 40m RGE | B152: =IF( [1]GeralMinuta!B152 <>"", [1]GeralMinuta!B152,"") -> 380
A153: =IF( [1]GeralMinuta!A153 <>"", [1]GeralMinuta!A153,"") -> 2 CAA 2/0 AWG Vão 40m RGE | B153: =IF( [1]GeralMinuta!B153 <>"", [1]GeralMinuta!B153,"") -> 480
A154: =IF( [1]GeralMinuta!A154 <>"", [1]GeralMinuta!A154,"") -> 2 CAA 4/0 AWG Vão 40m RGE | B154: =IF( [1]GeralMinuta!B154 <>"", [1]GeralMinuta!B154,"") -> 762
A155: =IF( [1]GeralMinuta!A155 <>"", [1]GeralMinuta!A155,"") ->  | B155: =IF( [1]GeralMinuta!B155 <>"", [1]GeralMinuta!B155,"") -> 
A156: =IF( [1]GeralMinuta!A156 <>"", [1]GeralMinuta!A156,"") -> 2 CAA 04 AWG Vão 80m | B156: =IF( [1]GeralMinuta!B156 <>"", [1]GeralMinuta!B156,"") -> 270
A157: =IF( [1]GeralMinuta!A157 <>"", [1]GeralMinuta!A157,"") -> 2 CAA 02 AWG Vão 80m | B157: =IF( [1]GeralMinuta!B157 <>"", [1]GeralMinuta!B157,"") -> 382
A158: =IF( [1]GeralMinuta!A158 <>"", [1]GeralMinuta!A158,"") -> 2 CAA 1/0 AWG Vão 80m | B158: =IF( [1]GeralMinuta!B158 <>"", [1]GeralMinuta!B158,"") -> 550
A159: =IF( [1]GeralMinuta!A159 <>"", [1]GeralMinuta!A159,"") -> 2 CAA 2/0 AWG Vão 80m | B159: =IF( [1]GeralMinuta!B159 <>"", [1]GeralMinuta!B159,"") -> 692
A160: =IF( [1]GeralMinuta!A160 <>"", [1]GeralMinuta!A160,"") -> 2 CAA 4/0 AWG Vão 80m | B160: =IF( [1]GeralMinuta!B160 <>"", [1]GeralMinuta!B160,"") -> 1102
A161: =IF( [1]GeralMinuta!A161 <>"", [1]GeralMinuta!A161,"") -> 2 CAA 336,4 MCM Vão 80m | B161: =IF( [1]GeralMinuta!B161 <>"", [1]GeralMinuta!B161,"") -> 1752
A162: =IF( [1]GeralMinuta!A162 <>"", [1]GeralMinuta!A162,"") ->  | B162: =IF( [1]GeralMinuta!B162 <>"", [1]GeralMinuta!B162,"") -> 
A163: =IF( [1]GeralMinuta!A163 <>"", [1]GeralMinuta!A163,"") -> 2 CAA 04 AWG Vão 80m RGE | B163: =IF( [1]GeralMinuta!B163 <>"", [1]GeralMinuta!B163,"") -> 270
A164: =IF( [1]GeralMinuta!A164 <>"", [1]GeralMinuta!A164,"") -> 2 CAA 02 AWG Vão 80m RGE | B164: =IF( [1]GeralMinuta!B164 <>"", [1]GeralMinuta!B164,"") -> 384
A165: =IF( [1]GeralMinuta!A165 <>"", [1]GeralMinuta!A165,"") -> 2 CAA 1/0 AWG Vão 80m RGE | B165: =IF( [1]GeralMinuta!B165 <>"", [1]GeralMinuta!B165,"") -> 610
A166: =IF( [1]GeralMinuta!A166 <>"", [1]GeralMinuta!A166,"") -> 2 CAA 2/0 AWG Vão 80m RGE | B166: =IF( [1]GeralMinuta!B166 <>"", [1]GeralMinuta!B166,"") -> 768
A167: =IF( [1]GeralMinuta!A167 <>"", [1]GeralMinuta!A167,"") -> 2 CAA 4/0 AWG Vão 80m RGE | B167: =IF( [1]GeralMinuta!B167 <>"", [1]GeralMinuta!B167,"") -> 1222
A168: =IF( [1]GeralMinuta!A168 <>"", [1]GeralMinuta!A168,"") -> 2 CAA 336,4 MCM Vão 80m RGE | B168: =IF( [1]GeralMinuta!B168 <>"", [1]GeralMinuta!B168,"") -> 1944
A169: =IF( [1]GeralMinuta!A169 <>"", [1]GeralMinuta!A169,"") ->  | B169: =IF( [1]GeralMinuta!B169 <>"", [1]GeralMinuta!B169,"") -> 
A170: =IF( [1]GeralMinuta!A170 <>"", [1]GeralMinuta!A170,"") -> 2 CAA 04 AWG Vão 120m | B170: =IF( [1]GeralMinuta!B170 <>"", [1]GeralMinuta!B170,"") -> 350
A171: =IF( [1]GeralMinuta!A171 <>"", [1]GeralMinuta!A171,"") -> 2 CAA 02 AWG Vão 120m | B171: =IF( [1]GeralMinuta!B171 <>"", [1]GeralMinuta!B171,"") -> 494
A172: =IF( [1]GeralMinuta!A172 <>"", [1]GeralMinuta!A172,"") -> 2 CAA 1/0 AWG Vão 120m | B172: =IF( [1]GeralMinuta!B172 <>"", [1]GeralMinuta!B172,"") -> 710
A173: =IF( [1]GeralMinuta!A173 <>"", [1]GeralMinuta!A173,"") -> 2 CAA 2/0 AWG Vão 120m | B173: =IF( [1]GeralMinuta!B173 <>"", [1]GeralMinuta!B173,"") -> 856
A174: =IF( [1]GeralMinuta!A174 <>"", [1]GeralMinuta!A174,"") -> 2 CAA 4/0 AWG Vão 120m | B174: =IF( [1]GeralMinuta!B174 <>"", [1]GeralMinuta!B174,"") -> 1304
A175: =IF( [1]GeralMinuta!A175 <>"", [1]GeralMinuta!A175,"") -> 2 CAA 336,4 MCM Vão 120m | B175: =IF( [1]GeralMinuta!B175 <>"", [1]GeralMinuta!B175,"") -> 2070
A176: =IF( [1]GeralMinuta!A176 <>"", [1]GeralMinuta!A176,"") ->  | B176: =IF( [1]GeralMinuta!B176 <>"", [1]GeralMinuta!B176,"") -> 
A177: =IF( [1]GeralMinuta!A177 <>"", [1]GeralMinuta!A177,"") -> 2 CAA 04 AWG Vão 120m RGE | B177: =IF( [1]GeralMinuta!B177 <>"", [1]GeralMinuta!B177,"") -> 350
A178: =IF( [1]GeralMinuta!A178 <>"", [1]GeralMinuta!A178,"") -> 2 CAA 02 AWG Vão 120m RGE | B178: =IF( [1]GeralMinuta!B178 <>"", [1]GeralMinuta!B178,"") -> 494
A179: =IF( [1]GeralMinuta!A179 <>"", [1]GeralMinuta!A179,"") -> 2 CAA 1/0 AWG Vão 120m RGE | B179: =IF( [1]GeralMinuta!B179 <>"", [1]GeralMinuta!B179,"") -> 710
A180: =IF( [1]GeralMinuta!A180 <>"", [1]GeralMinuta!A180,"") -> 2 CAA 2/0 AWG Vão 120m RGE | B180: =IF( [1]GeralMinuta!B180 <>"", [1]GeralMinuta!B180,"") -> 886
A181: =IF( [1]GeralMinuta!A181 <>"", [1]GeralMinuta!A181,"") -> 2 CAA 4/0 AWG Vão 120m RGE | B181: =IF( [1]GeralMinuta!B181 <>"", [1]GeralMinuta!B181,"") -> 1410
A182: =IF( [1]GeralMinuta!A182 <>"", [1]GeralMinuta!A182,"") -> 2 CAA 336,4 MCM Vão 120m RGE | B182: =IF( [1]GeralMinuta!B182 <>"", [1]GeralMinuta!B182,"") -> 2240
A183: =IF( [1]GeralMinuta!A183 <>"", [1]GeralMinuta!A183,"") ->  | B183: =IF( [1]GeralMinuta!B183 <>"", [1]GeralMinuta!B183,"") -> 
A184: =IF( [1]GeralMinuta!A184 <>"", [1]GeralMinuta!A184,"") -> 2 CU 06 AWG Vão 35m | B184: =IF( [1]GeralMinuta!B184 <>"", [1]GeralMinuta!B184,"") -> 112
A185: =IF( [1]GeralMinuta!A185 <>"", [1]GeralMinuta!A185,"") -> 2 CU 02 AWG Vão 35m | B185: =IF( [1]GeralMinuta!B185 <>"", [1]GeralMinuta!B185,"") -> 282
A186: =IF( [1]GeralMinuta!A186 <>"", [1]GeralMinuta!A186,"") -> 2 CU 1/0 AWG Vão 35m | B186: =IF( [1]GeralMinuta!B186 <>"", [1]GeralMinuta!B186,"") -> 416
A187: =IF( [1]GeralMinuta!A187 <>"", [1]GeralMinuta!A187,"") -> 2 CU 2/0 AWG Vão 35m | B187: =IF( [1]GeralMinuta!B187 <>"", [1]GeralMinuta!B187,"") -> 514
A188: =IF( [1]GeralMinuta!A188 <>"", [1]GeralMinuta!A188,"") -> 2 CU 4/0 AWG Vão 35m | B188: =IF( [1]GeralMinuta!B188 <>"", [1]GeralMinuta!B188,"") -> 792
A189: =IF( [1]GeralMinuta!A189 <>"", [1]GeralMinuta!A189,"") ->  | B189: =IF( [1]GeralMinuta!B189 <>"", [1]GeralMinuta!B189,"") -> 
A190: =IF( [1]GeralMinuta!A190 <>"", [1]GeralMinuta!A190,"") -> 1 CU 06 AWG Vão 35m RGE | B190: =IF( [1]GeralMinuta!B190 <>"", [1]GeralMinuta!B190,"") -> 56
A191: =IF( [1]GeralMinuta!A191 <>"", [1]GeralMinuta!A191,"") -> 1 CU 02 AWG Vão 35m RGE | B191: =IF( [1]GeralMinuta!B191 <>"", [1]GeralMinuta!B191,"") -> 141
A192: =IF( [1]GeralMinuta!A192 <>"", [1]GeralMinuta!A192,"") -> 1 CU 1/0 AWG Vão 35m RGE | B192: =IF( [1]GeralMinuta!B192 <>"", [1]GeralMinuta!B192,"") -> 208
A193: =IF( [1]GeralMinuta!A193 <>"", [1]GeralMinuta!A193,"") -> 1 CU 2/0 AWG Vão 35m RGE | B193: =IF( [1]GeralMinuta!B193 <>"", [1]GeralMinuta!B193,"") -> 257
A194: =IF( [1]GeralMinuta!A194 <>"", [1]GeralMinuta!A194,"") -> 1 CU 4/0 AWG Vão 35m RGE | B194: =IF( [1]GeralMinuta!B194 <>"", [1]GeralMinuta!B194,"") -> 396
A195: =IF( [1]GeralMinuta!A195 <>"", [1]GeralMinuta!A195,"") ->  | B195: =IF( [1]GeralMinuta!B195 <>"", [1]GeralMinuta!B195,"") -> 
A196: =IF( [1]GeralMinuta!A196 <>"", [1]GeralMinuta!A196,"") -> 1 CA 02 AWG Vão 35m | B196: =IF( [1]GeralMinuta!B196 <>"", [1]GeralMinuta!B196,"") -> 60
A197: =IF( [1]GeralMinuta!A197 <>"", [1]GeralMinuta!A197,"") -> 1 CA 1/0 AWG Vão 35m | B197: =IF( [1]GeralMinuta!B197 <>"", [1]GeralMinuta!B197,"") -> 96
A198: =IF( [1]GeralMinuta!A198 <>"", [1]GeralMinuta!A198,"") -> 1 CA 2/0 AWG Vão 35m | B198: =IF( [1]GeralMinuta!B198 <>"", [1]GeralMinuta!B198,"") -> 121
A199: =IF( [1]GeralMinuta!A199 <>"", [1]GeralMinuta!A199,"") -> 1 CA 4/0 AWG Vão 35m | B199: =IF( [1]GeralMinuta!B199 <>"", [1]GeralMinuta!B199,"") -> 194
A200: =IF( [1]GeralMinuta!A200 <>"", [1]GeralMinuta!A200,"") -> 1 CA 336,4 MCM Vão 35m | B200: =IF( [1]GeralMinuta!B200 <>"", [1]GeralMinuta!B200,"") -> 308
... 300 more rows

Sheet Primaria (hidden)
A1: =IF( [1]GeralMinuta!A1 <>"", [1]GeralMinuta!A1,"") ->  | B1: =IF( [1]GeralMinuta!B1 <>"", [1]GeralMinuta!B1,"") ->  | F1: =[1]NeutroMinutaCpfl!A1 -> 
A2: =IF( [1]GeralMinuta!A2 <>"", [1]GeralMinuta!A2,"") -> 3 E 70 mm² Vão 35m | B2: =IF( [1]GeralMinuta!B2 <>"", [1]GeralMinuta!B2,"") -> 373
A3: =IF( [1]GeralMinuta!A3 <>"", [1]GeralMinuta!A3,"") -> 3 E 185 mm² Vão 35m | B3: =IF( [1]GeralMinuta!B3 <>"", [1]GeralMinuta!B3,"") -> 648
A4: =IF( [1]GeralMinuta!A4 <>"", [1]GeralMinuta!A4,"") ->  | B4: =IF( [1]GeralMinuta!B4 <>"", [1]GeralMinuta!B4,"") -> 
A5: =IF( [1]GeralMinuta!A5 <>"", [1]GeralMinuta!A5,"") -> 3 E 70 mm² Vão 35m RGE | B5: =IF( [1]GeralMinuta!B5 <>"", [1]GeralMinuta!B5,"") -> 373
A6: =IF( [1]GeralMinuta!A6 <>"", [1]GeralMinuta!A6,"") -> 3 E 185 mm² Vão 35m RGE | B6: =IF( [1]GeralMinuta!B6 <>"", [1]GeralMinuta!B6,"") -> 632
A7: =IF( [1]GeralMinuta!A7 <>"", [1]GeralMinuta!A7,"") ->  | B7: =IF( [1]GeralMinuta!B7 <>"", [1]GeralMinuta!B7,"") -> 
A8: =IF( [1]GeralMinuta!A8 <>"", [1]GeralMinuta!A8,"") -> 3 E 70 mm² Vão 80m | B8: =IF( [1]GeralMinuta!B8 <>"", [1]GeralMinuta!B8,"") -> 549
A9: =IF( [1]GeralMinuta!A9 <>"", [1]GeralMinuta!A9,"") -> 3 E 185 mm² Vão 80m | B9: =IF( [1]GeralMinuta!B9 <>"", [1]GeralMinuta!B9,"") -> 837
A10: =IF( [1]GeralMinuta!A10 <>"", [1]GeralMinuta!A10,"") ->  | B10: =IF( [1]GeralMinuta!B10 <>"", [1]GeralMinuta!B10,"") -> 
A11: =IF( [1]GeralMinuta!A11 <>"", [1]GeralMinuta!A11,"") -> 3 E 70 mm² Vão 80m RGE | B11: =IF( [1]GeralMinuta!B11 <>"", [1]GeralMinuta!B11,"") -> 549
A12: =IF( [1]GeralMinuta!A12 <>"", [1]GeralMinuta!A12,"") -> 3 E 185 mm² Vão 80m RGE | B12: =IF( [1]GeralMinuta!B12 <>"", [1]GeralMinuta!B12,"") -> 837
A13: =IF( [1]GeralMinuta!A13 <>"", [1]GeralMinuta!A13,"") ->  | B13: =IF( [1]GeralMinuta!B13 <>"", [1]GeralMinuta!B13,"") -> 
A14: =IF( [1]GeralMinuta!A14 <>"", [1]GeralMinuta!A14,"") -> 3 P 16 mm² Vão 35m | B14: =IF( [1]GeralMinuta!B14 <>"", [1]GeralMinuta!B14,"") -> 70
A15: =IF( [1]GeralMinuta!A15 <>"", [1]GeralMinuta!A15,"") -> 3 P 25 mm² Vão 35m | B15: =IF( [1]GeralMinuta!B15 <>"", [1]GeralMinuta!B15,"") -> 96
A16: =IF( [1]GeralMinuta!A16 <>"", [1]GeralMinuta!A16,"") -> 3 P 35 mm² Vão 35m | B16: =IF( [1]GeralMinuta!B16 <>"", [1]GeralMinuta!B16,"") -> 126
A17: =IF( [1]GeralMinuta!A17 <>"", [1]GeralMinuta!A17,"") -> 3 P 50 mm² Vão 35m | B17: =IF( [1]GeralMinuta!B17 <>"", [1]GeralMinuta!B17,"") -> 156
A18: =IF( [1]GeralMinuta!A18 <>"", [1]GeralMinuta!A18,"") -> 3 P 70 mm² Vão 35m | B18: =IF( [1]GeralMinuta!B18 <>"", [1]GeralMinuta!B18,"") -> 216
A19: =IF( [1]GeralMinuta!A19 <>"", [1]GeralMinuta!A19,"") -> 3 P 120 mm² Vão 35m | B19: =IF( [1]GeralMinuta!B19 <>"", [1]GeralMinuta!B19,"") -> 336
A20: =IF( [1]GeralMinuta!A20 <>"", [1]GeralMinuta!A20,"") ->  | B20: =IF( [1]GeralMinuta!B20 <>"", [1]GeralMinuta!B20,"") -> 
A21: =IF( [1]GeralMinuta!A21 <>"", [1]GeralMinuta!A21,"") -> 3 P 16 mm² Vão 35m RGE | B21: =IF( [1]GeralMinuta!B21 <>"", [1]GeralMinuta!B21,"") -> 70
A22: =IF( [1]GeralMinuta!A22 <>"", [1]GeralMinuta!A22,"") -> 3 P 25 mm² Vão 35m RGE | B22: =IF( [1]GeralMinuta!B22 <>"", [1]GeralMinuta!B22,"") -> 96
A23: =IF( [1]GeralMinuta!A23 <>"", [1]GeralMinuta!A23,"") -> 3 P 35 mm² Vão 35m RGE | B23: =IF( [1]GeralMinuta!B23 <>"", [1]GeralMinuta!B23,"") -> 126
A24: =IF( [1]GeralMinuta!A24 <>"", [1]GeralMinuta!A24,"") -> 3 P 50 mm² Vão 35m RGE | B24: =IF( [1]GeralMinuta!B24 <>"", [1]GeralMinuta!B24,"") -> 162
A25: =IF( [1]GeralMinuta!A25 <>"", [1]GeralMinuta!A25,"") -> 3 P 70 mm² Vão 35m RGE | B25: =IF( [1]GeralMinuta!B25 <>"", [1]GeralMinuta!B25,"") -> 226
A26: =IF( [1]GeralMinuta!A26 <>"", [1]GeralMinuta!A26,"") -> 3 P 120 mm² Vão 35m RGE | B26: =IF( [1]GeralMinuta!B26 <>"", [1]GeralMinuta!B26,"") -> 352
A27: =IF( [1]GeralMinuta!A27 <>"", [1]GeralMinuta!A27,"") ->  | B27: =IF( [1]GeralMinuta!B27 <>"", [1]GeralMinuta!B27,"") -> 
A28: =IF( [1]GeralMinuta!A28 <>"", [1]GeralMinuta!A28,"") -> 3 CA 02 AWG Vão 35m | B28: =IF( [1]GeralMinuta!B28 <>"", [1]GeralMinuta!B28,"") -> 180
A29: =IF( [1]GeralMinuta!A29 <>"", [1]GeralMinuta!A29,"") -> 3 CA 1/0 AWG Vão 35m | B29: =IF( [1]GeralMinuta!B29 <>"", [1]GeralMinuta!B29,"") -> 288
A30: =IF( [1]GeralMinuta!A30 <>"", [1]GeralMinuta!A30,"") -> 3 CA 2/0 AWG Vão 35m | B30: =IF( [1]GeralMinuta!B30 <>"", [1]GeralMinuta!B30,"") -> 363
A31: =IF( [1]GeralMinuta!A31 <>"", [1]GeralMinuta!A31,"") -> 3 CA 4/0 AWG Vão 35m | B31: =IF( [1]GeralMinuta!B31 <>"", [1]GeralMinuta!B31,"") -> 582
A32: =IF( [1]GeralMinuta!A32 <>"", [1]GeralMinuta!A32,"") -> 3 CA 336,4 MCM Vão 35m | B32: =IF( [1]GeralMinuta!B32 <>"", [1]GeralMinuta!B32,"") -> 924
A33: =IF( [1]GeralMinuta!A33 <>"", [1]GeralMinuta!A33,"") -> 3 CA 477 MCM Vão 35m | B33: =IF( [1]GeralMinuta!B33 <>"", [1]GeralMinuta!B33,"") -> 1305
A34: =IF( [1]GeralMinuta!A34 <>"", [1]GeralMinuta!A34,"") ->  | B34: =IF( [1]GeralMinuta!B34 <>"", [1]GeralMinuta!B34,"") -> 
A35: =IF( [1]GeralMinuta!A35 <>"", [1]GeralMinuta!A35,"") -> 3 CA 02 AWG Vão 35m RGE | B35: =IF( [1]GeralMinuta!B35 <>"", [1]GeralMinuta!B35,"") -> 225
A36: =IF( [1]GeralMinuta!A36 <>"", [1]GeralMinuta!A36,"") -> 3 CA 1/0 AWG Vão 35m RGE | B36: =IF( [1]GeralMinuta!B36 <>"", [1]GeralMinuta!B36,"") -> 2319
A37: =IF( [1]GeralMinuta!A37 <>"", [1]GeralMinuta!A37,"") -> 3 CA 2/0 AWG Vão 35m RGE | B37: =IF( [1]GeralMinuta!B37 <>"", [1]GeralMinuta!B37,"") -> 450
A38: =IF( [1]GeralMinuta!A38 <>"", [1]GeralMinuta!A38,"") -> 3 CA 4/0 AWG Vão 35m RGE | B38: =IF( [1]GeralMinuta!B38 <>"", [1]GeralMinuta!B38,"") -> 720
A39: =IF( [1]GeralMinuta!A39 <>"", [1]GeralMinuta!A39,"") -> 3 CA 336,4 MCM Vão 35m RGE | B39: =IF( [1]GeralMinuta!B39 <>"", [1]GeralMinuta!B39,"") -> 1143
A40: =IF( [1]GeralMinuta!A40 <>"", [1]GeralMinuta!A40,"") -> 3 CA 477 MCM Vão 35m RGE | B40: =IF( [1]GeralMinuta!B40 <>"", [1]GeralMinuta!B40,"") -> 1617
A41: =IF( [1]GeralMinuta!A41 <>"", [1]GeralMinuta!A41,"") ->  | B41: =IF( [1]GeralMinuta!B41 <>"", [1]GeralMinuta!B41,"") -> 
A42: =IF( [1]GeralMinuta!A42 <>"", [1]GeralMinuta!A42,"") -> 3 CA 02 AWG Vão 80m | B42: =IF( [1]GeralMinuta!B42 <>"", [1]GeralMinuta!B42,"") -> 399
A43: =IF( [1]GeralMinuta!A43 <>"", [1]GeralMinuta!A43,"") -> 3 CA 1/0 AWG Vão 80m | B43: =IF( [1]GeralMinuta!B43 <>"", [1]GeralMinuta!B43,"") -> 558
A44: =IF( [1]GeralMinuta!A44 <>"", [1]GeralMinuta!A44,"") -> 3 CA 2/0 AWG Vão 80m | B44: =IF( [1]GeralMinuta!B44 <>"", [1]GeralMinuta!B44,"") -> 660
A45: =IF( [1]GeralMinuta!A45 <>"", [1]GeralMinuta!A45,"") -> 3 CA 4/0 AWG Vão 80m | B45: =IF( [1]GeralMinuta!B45 <>"", [1]GeralMinuta!B45,"") -> 945
A46: =IF( [1]GeralMinuta!A46 <>"", [1]GeralMinuta!A46,"") -> 3 CA 336,4 MCM Vão 80m | B46: =IF( [1]GeralMinuta!B46 <>"", [1]GeralMinuta!B46,"") -> 1449
A47: =IF( [1]GeralMinuta!A47 <>"", [1]GeralMinuta!A47,"") -> 3 CA 477 MCM Vão 80m | B47: =IF( [1]GeralMinuta!B47 <>"", [1]GeralMinuta!B47,"") -> 2049
A48: =IF( [1]GeralMinuta!A48 <>"", [1]GeralMinuta!A48,"") ->  | B48: =IF( [1]GeralMinuta!B48 <>"", [1]GeralMinuta!B48,"") -> 
A49: =IF( [1]GeralMinuta!A49 <>"", [1]GeralMinuta!A49,"") -> 3 CA 02 AWG Vão 80m RGE | B49: =IF( [1]GeralMinuta!B49 <>"", [1]GeralMinuta!B49,"") -> 399
A50: =IF( [1]GeralMinuta!A50 <>"", [1]GeralMinuta!A50,"") -> 3 CA 1/0 AWG Vão 80m RGE | B50: =IF( [1]GeralMinuta!B50 <>"", [1]GeralMinuta!B50,"") -> 558
A51: =IF( [1]GeralMinuta!A51 <>"", [1]GeralMinuta!A51,"") -> 3 CA 2/0 AWG Vão 80m RGE | B51: =IF( [1]GeralMinuta!B51 <>"", [1]GeralMinuta!B51,"") -> 660
A52: =IF( [1]GeralMinuta!A52 <>"", [1]GeralMinuta!A52,"") -> 3 CA 4/0 AWG Vão 80m RGE | B52: =IF( [1]GeralMinuta!B52 <>"", [1]GeralMinuta!B52,"") -> 1029
A53: =IF( [1]GeralMinuta!A53 <>"", [1]GeralMinuta!A53,"") -> 3 CA 336,4 MCM Vão 80m RGE | B53: =IF( [1]GeralMinuta!B53 <>"", [1]GeralMinuta!B53,"") -> 1632
A54: =IF( [1]GeralMinuta!A54 <>"", [1]GeralMinuta!A54,"") -> 3 CA 477 MCM Vão 80m RGE | B54: =IF( [1]GeralMinuta!B54 <>"", [1]GeralMinuta!B54,"") -> 2310
A55: =IF( [1]GeralMinuta!A55 <>"", [1]GeralMinuta!A55,"") ->  | B55: =IF( [1]GeralMinuta!B55 <>"", [1]GeralMinuta!B55,"") -> 
A56: =IF( [1]GeralMinuta!A56 <>"", [1]GeralMinuta!A56,"") -> 3 CAA 04 AWG Vão 40m | B56: =IF( [1]GeralMinuta!B56 <>"", [1]GeralMinuta!B56,"") -> 189
A57: =IF( [1]GeralMinuta!A57 <>"", [1]GeralMinuta!A57,"") -> 3 CAA 02 AWG Vão 40m | B57: =IF( [1]GeralMinuta!B57 <>"", [1]GeralMinuta!B57,"") -> 300
A58: =IF( [1]GeralMinuta!A58 <>"", [1]GeralMinuta!A58,"") -> 3 CAA 1/0 AWG Vão 40m | B58: =IF( [1]GeralMinuta!B58 <>"", [1]GeralMinuta!B58,"") -> 480
A59: =IF( [1]GeralMinuta!A59 <>"", [1]GeralMinuta!A59,"") -> 3 CAA 2/0 AWG Vão 40m | B59: =IF( [1]GeralMinuta!B59 <>"", [1]GeralMinuta!B59,"") -> 603
A60: =IF( [1]GeralMinuta!A60 <>"", [1]GeralMinuta!A60,"") -> 3 CAA 4/0 AWG Vão 40m | B60: =IF( [1]GeralMinuta!B60 <>"", [1]GeralMinuta!B60,"") -> 960
A61: =IF( [1]GeralMinuta!A61 <>"", [1]GeralMinuta!A61,"") ->  | B61: =IF( [1]GeralMinuta!B61 <>"", [1]GeralMinuta!B61,"") -> 
A62: =IF( [1]GeralMinuta!A62 <>"", [1]GeralMinuta!A62,"") -> 3 CAA 04 AWG Vão 40m RGE | B62: =IF( [1]GeralMinuta!B62 <>"", [1]GeralMinuta!B62,"") -> 225
A63: =IF( [1]GeralMinuta!A63 <>"", [1]GeralMinuta!A63,"") -> 3 CAA 02 AWG Vão 40m RGE | B63: =IF( [1]GeralMinuta!B63 <>"", [1]GeralMinuta!B63,"") -> 357
A64: =IF( [1]GeralMinuta!A64 <>"", [1]GeralMinuta!A64,"") -> 3 CAA 1/0 AWG Vão 40m RGE | B64: =IF( [1]GeralMinuta!B64 <>"", [1]GeralMinuta!B64,"") -> 570
A65: =IF( [1]GeralMinuta!A65 <>"", [1]GeralMinuta!A65,"") -> 3 CAA 2/0 AWG Vão 40m RGE | B65: =IF( [1]GeralMinuta!B65 <>"", [1]GeralMinuta!B65,"") -> 720
A66: =IF( [1]GeralMinuta!A66 <>"", [1]GeralMinuta!A66,"") -> 3 CAA 4/0 AWG Vão 40m RGE | B66: =IF( [1]GeralMinuta!B66 <>"", [1]GeralMinuta!B66,"") -> 1143
A67: =IF( [1]GeralMinuta!A67 <>"", [1]GeralMinuta!A67,"") ->  | B67: =IF( [1]GeralMinuta!B67 <>"", [1]GeralMinuta!B67,"") -> 
A68: =IF( [1]GeralMinuta!A68 <>"", [1]GeralMinuta!A68,"") -> 3 CAA 04 AWG Vão 80m | B68: =IF( [1]GeralMinuta!B68 <>"", [1]GeralMinuta!B68,"") -> 405
A69: =IF( [1]GeralMinuta!A69 <>"", [1]GeralMinuta!A69,"") -> 3 CAA 02 AWG Vão 80m | B69: =IF( [1]GeralMinuta!B69 <>"", [1]GeralMinuta!B69,"") -> 573
A70: =IF( [1]GeralMinuta!A70 <>"", [1]GeralMinuta!A70,"") -> 3 CAA 1/0 AWG Vão 80m | B70: =IF( [1]GeralMinuta!B70 <>"", [1]GeralMinuta!B70,"") -> 825
A71: =IF( [1]GeralMinuta!A71 <>"", [1]GeralMinuta!A71,"") -> 3 CAA 2/0 AWG Vão 80m | B71: =IF( [1]GeralMinuta!B71 <>"", [1]GeralMinuta!B71,"") -> 1038
A72: =IF( [1]GeralMinuta!A72 <>"", [1]GeralMinuta!A72,"") -> 3 CAA 4/0 AWG Vão 80m | B72: =IF( [1]GeralMinuta!B72 <>"", [1]GeralMinuta!B72,"") -> 1653
A73: =IF( [1]GeralMinuta!A73 <>"", [1]GeralMinuta!A73,"") -> 3 CAA 336,4 MCM Vão 80m | B73: =IF( [1]GeralMinuta!B73 <>"", [1]GeralMinuta!B73,"") -> 2628
A74: =IF( [1]GeralMinuta!A74 <>"", [1]GeralMinuta!A74,"") ->  | B74: =IF( [1]GeralMinuta!B74 <>"", [1]GeralMinuta!B74,"") -> 
A75: =IF( [1]GeralMinuta!A75 <>"", [1]GeralMinuta!A75,"") -> 3 CAA 04 AWG Vão 80m RGE | B75: =IF( [1]GeralMinuta!B75 <>"", [1]GeralMinuta!B75,"") -> 405
A76: =IF( [1]GeralMinuta!A76 <>"", [1]GeralMinuta!A76,"") -> 3 CAA 02 AWG Vão 80m RGE | B76: =IF( [1]GeralMinuta!B76 <>"", [1]GeralMinuta!B76,"") -> 576
A77: =IF( [1]GeralMinuta!A77 <>"", [1]GeralMinuta!A77,"") -> 3 CAA 1/0 AWG Vão 80m RGE | B77: =IF( [1]GeralMinuta!B77 <>"", [1]GeralMinuta!B77,"") -> 915
A78: =IF( [1]GeralMinuta!A78 <>"", [1]GeralMinuta!A78,"") -> 3 CAA 2/0 AWG Vão 80m RGE | B78: =IF( [1]GeralMinuta!B78 <>"", [1]GeralMinuta!B78,"") -> 1152
A79: =IF( [1]GeralMinuta!A79 <>"", [1]GeralMinuta!A79,"") -> 3 CAA 4/0 AWG Vão 80m RGE | B79: =IF( [1]GeralMinuta!B79 <>"", [1]GeralMinuta!B79,"") -> 1833
A80: =IF( [1]GeralMinuta!A80 <>"", [1]GeralMinuta!A80,"") -> 3 CAA 336,4 MCM Vão 80m RGE | B80: =IF( [1]GeralMinuta!B80 <>"", [1]GeralMinuta!B80,"") -> 2916
A81: =IF( [1]GeralMinuta!A81 <>"", [1]GeralMinuta!A81,"") ->  | B81: =IF( [1]GeralMinuta!B81 <>"", [1]GeralMinuta!B81,"") -> 
A82: =IF( [1]GeralMinuta!A82 <>"", [1]GeralMinuta!A82,"") -> 3 CAA 04 AWG Vão 120m | B82: =IF( [1]GeralMinuta!B82 <>"", [1]GeralMinuta!B82,"") -> 525
A83: =IF( [1]GeralMinuta!A83 <>"", [1]GeralMinuta!A83,"") -> 3 CAA 02 AWG Vão 120m | B83: =IF( [1]GeralMinuta!B83 <>"", [1]GeralMinuta!B83,"") -> 741
A84: =IF( [1]GeralMinuta!A84 <>"", [1]GeralMinuta!A84,"") -> 3 CAA 1/0 AWG Vão 120m | B84: =IF( [1]GeralMinuta!B84 <>"", [1]GeralMinuta!B84,"") -> 1065
A85: =IF( [1]GeralMinuta!A85 <>"", [1]GeralMinuta!A85,"") -> 3 CAA 2/0 AWG Vão 120m | B85: =IF( [1]GeralMinuta!B85 <>"", [1]GeralMinuta!B85,"") -> 1284
A86: =IF( [1]GeralMinuta!A86 <>"", [1]GeralMinuta!A86,"") -> 3 CAA 4/0 AWG Vão 120m | B86: =IF( [1]GeralMinuta!B86 <>"", [1]GeralMinuta!B86,"") -> 1956
A87: =IF( [1]GeralMinuta!A87 <>"", [1]GeralMinuta!A87,"") -> 3 CAA 336,4 MCM Vão 120m | B87: =IF( [1]GeralMinuta!B87 <>"", [1]GeralMinuta!B87,"") -> 3105
A88: =IF( [1]GeralMinuta!A88 <>"", [1]GeralMinuta!A88,"") ->  | B88: =IF( [1]GeralMinuta!B88 <>"", [1]GeralMinuta!B88,"") -> 
A89: =IF( [1]GeralMinuta!A89 <>"", [1]GeralMinuta!A89,"") -> 3 CAA 04 AWG Vão 120m RGE | B89: =IF( [1]GeralMinuta!B89 <>"", [1]GeralMinuta!B89,"") -> 525
A90: =IF( [1]GeralMinuta!A90 <>"", [1]GeralMinuta!A90,"") -> 3 CAA 02 AWG Vão 120m RGE | B90: =IF( [1]GeralMinuta!B90 <>"", [1]GeralMinuta!B90,"") -> 741
A91: =IF( [1]GeralMinuta!A91 <>"", [1]GeralMinuta!A91,"") -> 3 CAA 1/0 AWG Vão 120m RGE | B91: =IF( [1]GeralMinuta!B91 <>"", [1]GeralMinuta!B91,"") -> 1065
A92: =IF( [1]GeralMinuta!A92 <>"", [1]GeralMinuta!A92,"") -> 3 CAA 2/0 AWG Vão 120m RGE | B92: =IF( [1]GeralMinuta!B92 <>"", [1]GeralMinuta!B92,"") -> 1329
A93: =IF( [1]GeralMinuta!A93 <>"", [1]GeralMinuta!A93,"") -> 3 CAA 4/0 AWG Vão 120m RGE | B93: =IF( [1]GeralMinuta!B93 <>"", [1]GeralMinuta!B93,"") -> 2115
A94: =IF( [1]GeralMinuta!A94 <>"", [1]GeralMinuta!A94,"") -> 3 CAA 336,4 MCM Vão 120m RGE | B94: =IF( [1]GeralMinuta!B94 <>"", [1]GeralMinuta!B94,"") -> 3360
A95: =IF( [1]GeralMinuta!A95 <>"", [1]GeralMinuta!A95,"") ->  | B95: =IF( [1]GeralMinuta!B95 <>"", [1]GeralMinuta!B95,"") -> 
A96: =IF( [1]GeralMinuta!A96 <>"", [1]GeralMinuta!A96,"") -> 3 15kv 240 mm² Vão 35m | B96: =IF( [1]GeralMinuta!B96 <>"", [1]GeralMinuta!B96,"") -> 723
A97: =IF( [1]GeralMinuta!A97 <>"", [1]GeralMinuta!A97,"") -> 3 25kv 240 mm² Vão 35m | B97: =IF( [1]GeralMinuta!B97 <>"", [1]GeralMinuta!B97,"") -> 825
A98: =IF( [1]GeralMinuta!A98 <>"", [1]GeralMinuta!A98,"") -> 3 35kv 240 mm² Vão 35m | B98: =IF( [1]GeralMinuta!B98 <>"", [1]GeralMinuta!B98,"") -> 966
A99: =IF( [1]GeralMinuta!A99 <>"", [1]GeralMinuta!A99,"") ->  | B99: =IF( [1]GeralMinuta!B99 <>"", [1]GeralMinuta!B99,"") -> 
A100: =IF( [1]GeralMinuta!A100 <>"", [1]GeralMinuta!A100,"") -> 3 15kv 240 mm² Vão 35m RGE | B100: =IF( [1]GeralMinuta!B100 <>"", [1]GeralMinuta!B100,"") -> 743
A101: =IF( [1]GeralMinuta!A101 <>"", [1]GeralMinuta!A101,"") -> 3 25kv 240 mm² Vão 35m RGE | B101: =IF( [1]GeralMinuta!B101 <>"", [1]GeralMinuta!B101,"") -> 849
A102: =IF( [1]GeralMinuta!A102 <>"", [1]GeralMinuta!A102,"") -> 3 35kv 240 mm² Vão 35m RGE | B102: =IF( [1]GeralMinuta!B102 <>"", [1]GeralMinuta!B102,"") -> 993
A103: =IF( [1]GeralMinuta!A103 <>"", [1]GeralMinuta!A103,"") ->  | B103: =IF( [1]GeralMinuta!B103 <>"", [1]GeralMinuta!B103,"") -> 
A104: =IF( [1]GeralMinuta!A104 <>"", [1]GeralMinuta!A104,"") -> 3 CU 06 AWG Vão 35m | B104: =IF( [1]GeralMinuta!B104 <>"", [1]GeralMinuta!B104,"") -> 168
A105: =IF( [1]GeralMinuta!A105 <>"", [1]GeralMinuta!A105,"") -> 3 CU 02 AWG Vão 35m | B105: =IF( [1]GeralMinuta!B105 <>"", [1]GeralMinuta!B105,"") -> 423
A106: =IF( [1]GeralMinuta!A106 <>"", [1]GeralMinuta!A106,"") -> 3 CU 1/0 AWG Vão 35m | B106: =IF( [1]GeralMinuta!B106 <>"", [1]GeralMinuta!B106,"") -> 624
A107: =IF( [1]GeralMinuta!A107 <>"", [1]GeralMinuta!A107,"") -> 3 CU 2/0 AWG Vão 35m | B107: =IF( [1]GeralMinuta!B107 <>"", [1]GeralMinuta!B107,"") -> 771
A108: =IF( [1]GeralMinuta!A108 <>"", [1]GeralMinuta!A108,"") -> 3 CU 4/0 AWG Vão 35m | B108: =IF( [1]GeralMinuta!B108 <>"", [1]GeralMinuta!B108,"") -> 1188
A109: =IF( [1]GeralMinuta!A109 <>"", [1]GeralMinuta!A109,"") ->  | B109: =IF( [1]GeralMinuta!B109 <>"", [1]GeralMinuta!B109,"") -> 
A110: =IF( [1]GeralMinuta!A110 <>"", [1]GeralMinuta!A110,"") -> 3 CU 06 AWG Vão 35m RGE | B110: =IF( [1]GeralMinuta!B110 <>"", [1]GeralMinuta!B110,"") -> 168
A111: =IF( [1]GeralMinuta!A111 <>"", [1]GeralMinuta!A111,"") -> 3 CU 02 AWG Vão 35m RGE | B111: =IF( [1]GeralMinuta!B111 <>"", [1]GeralMinuta!B111,"") -> 423
A112: =IF( [1]GeralMinuta!A112 <>"", [1]GeralMinuta!A112,"") -> 3 CU 1/0 AWG Vão 35m RGE | B112: =IF( [1]GeralMinuta!B112 <>"", [1]GeralMinuta!B112,"") -> 624
A113: =IF( [1]GeralMinuta!A113 <>"", [1]GeralMinuta!A113,"") -> 3 CU 2/0 AWG Vão 35m RGE | B113: =IF( [1]GeralMinuta!B113 <>"", [1]GeralMinuta!B113,"") -> 771
A114: =IF( [1]GeralMinuta!A114 <>"", [1]GeralMinuta!A114,"") -> 3 CU 4/0 AWG Vão 35m RGE | B114: =IF( [1]GeralMinuta!B114 <>"", [1]GeralMinuta!B114,"") -> 1188
A115: =IF( [1]GeralMinuta!A115 <>"", [1]GeralMinuta!A115,"") ->  | B115: =IF( [1]GeralMinuta!B115 <>"", [1]GeralMinuta!B115,"") -> 
A116: =IF( [1]GeralMinuta!A116 <>"", [1]GeralMinuta!A116,"") -> 2 CA 02 AWG Vão 35m | B116: =IF( [1]GeralMinuta!B116 <>"", [1]GeralMinuta!B116,"") -> 120
A117: =IF( [1]GeralMinuta!A117 <>"", [1]GeralMinuta!A117,"") -> 2 CA 1/0 AWG Vão 35m | B117: =IF( [1]GeralMinuta!B117 <>"", [1]GeralMinuta!B117,"") -> 192
A118: =IF( [1]GeralMinuta!A118 <>"", [1]GeralMinuta!A118,"") -> 2 CA 2/0 AWG Vão 35m | B118: =IF( [1]GeralMinuta!B118 <>"", [1]GeralMinuta!B118,"") -> 242
A119: =IF( [1]GeralMinuta!A119 <>"", [1]GeralMinuta!A119,"") -> 2 CA 4/0 AWG Vão 35m | B119: =IF( [1]GeralMinuta!B119 <>"", [1]GeralMinuta!B119,"") -> 388
A120: =IF( [1]GeralMinuta!A120 <>"", [1]GeralMinuta!A120,"") -> 2 CA 336,4 MCM Vão 35m | B120: =IF( [1]GeralMinuta!B120 <>"", [1]GeralMinuta!B120,"") -> 616
A121: =IF( [1]GeralMinuta!A121 <>"", [1]GeralMinuta!A121,"") -> 2 CA 477 MCM Vão 35m | B121: =IF( [1]GeralMinuta!B121 <>"", [1]GeralMinuta!B121,"") -> 870
A122: =IF( [1]GeralMinuta!A122 <>"", [1]GeralMinuta!A122,"") ->  | B122: =IF( [1]GeralMinuta!B122 <>"", [1]GeralMinuta!B122,"") -> 
A123: =IF( [1]GeralMinuta!A123 <>"", [1]GeralMinuta!A123,"") -> 2 CA 02 AWG Vão 35m RGE | B123: =IF( [1]GeralMinuta!B123 <>"", [1]GeralMinuta!B123,"") -> 150
A124: =IF( [1]GeralMinuta!A124 <>"", [1]GeralMinuta!A124,"") -> 2 CA 1/0 AWG Vão 35m RGE | B124: =IF( [1]GeralMinuta!B124 <>"", [1]GeralMinuta!B124,"") -> 1546
A125: =IF( [1]GeralMinuta!A125 <>"", [1]GeralMinuta!A125,"") -> 2 CA 2/0 AWG Vão 35m RGE | B125: =IF( [1]GeralMinuta!B125 <>"", [1]GeralMinuta!B125,"") -> 300
A126: =IF( [1]GeralMinuta!A126 <>"", [1]GeralMinuta!A126,"") -> 2 CA 4/0 AWG Vão 35m RGE | B126: =IF( [1]GeralMinuta!B126 <>"", [1]GeralMinuta!B126,"") -> 480
A127: =IF( [1]GeralMinuta!A127 <>"", [1]GeralMinuta!A127,"") -> 2 CA 336,4 MCM Vão 35m RGE | B127: =IF( [1]GeralMinuta!B127 <>"", [1]GeralMinuta!B127,"") -> 762
A128: =IF( [1]GeralMinuta!A128 <>"", [1]GeralMinuta!A128,"") -> 2 CA 477 MCM Vão 35m RGE | B128: =IF( [1]GeralMinuta!B128 <>"", [1]GeralMinuta!B128,"") -> 1078
A129: =IF( [1]GeralMinuta!A129 <>"", [1]GeralMinuta!A129,"") ->  | B129: =IF( [1]GeralMinuta!B129 <>"", [1]GeralMinuta!B129,"") -> 
A130: =IF( [1]GeralMinuta!A130 <>"", [1]GeralMinuta!A130,"") -> 2 CA 02 AWG Vão 80m | B130: =IF( [1]GeralMinuta!B130 <>"", [1]GeralMinuta!B130,"") -> 266
A131: =IF( [1]GeralMinuta!A131 <>"", [1]GeralMinuta!A131,"") -> 2 CA 1/0 AWG Vão 80m | B131: =IF( [1]GeralMinuta!B131 <>"", [1]GeralMinuta!B131,"") -> 372
A132: =IF( [1]GeralMinuta!A132 <>"", [1]GeralMinuta!A132,"") -> 2 CA 2/0 AWG Vão 80m | B132: =IF( [1]GeralMinuta!B132 <>"", [1]GeralMinuta!B132,"") -> 440
A133: =IF( [1]GeralMinuta!A133 <>"", [1]GeralMinuta!A133,"") -> 2 CA 4/0 AWG Vão 80m | B133: =IF( [1]GeralMinuta!B133 <>"", [1]GeralMinuta!B133,"") -> 630
A134: =IF( [1]GeralMinuta!A134 <>"", [1]GeralMinuta!A134,"") -> 2 CA 336,4 MCM Vão 80m | B134: =IF( [1]GeralMinuta!B134 <>"", [1]GeralMinuta!B134,"") -> 966
A135: =IF( [1]GeralMinuta!A135 <>"", [1]GeralMinuta!A135,"") -> 2 CA 477 MCM Vão 80m | B135: =IF( [1]GeralMinuta!B135 <>"", [1]GeralMinuta!B135,"") -> 1366
A136: =IF( [1]GeralMinuta!A136 <>"", [1]GeralMinuta!A136,"") ->  | B136: =IF( [1]GeralMinuta!B136 <>"", [1]GeralMinuta!B136,"") -> 
A137: =IF( [1]GeralMinuta!A137 <>"", [1]GeralMinuta!A137,"") -> 2 CA 02 AWG Vão 80m RGE | B137: =IF( [1]GeralMinuta!B137 <>"", [1]GeralMinuta!B137,"") -> 266
A138: =IF( [1]GeralMinuta!A138 <>"", [1]GeralMinuta!A138,"") -> 2 CA 1/0 AWG Vão 80m RGE | B138: =IF( [1]GeralMinuta!B138 <>"", [1]GeralMinuta!B138,"") -> 372
A139: =IF( [1]GeralMinuta!A139 <>"", [1]GeralMinuta!A139,"") -> 2 CA 2/0 AWG Vão 80m RGE | B139: =IF( [1]GeralMinuta!B139 <>"", [1]GeralMinuta!B139,"") -> 440
A140: =IF( [1]GeralMinuta!A140 <>"", [1]GeralMinuta!A140,"") -> 2 CA 4/0 AWG Vão 80m RGE | B140: =IF( [1]GeralMinuta!B140 <>"", [1]GeralMinuta!B140,"") -> 686
A141: =IF( [1]GeralMinuta!A141 <>"", [1]GeralMinuta!A141,"") -> 2 CA 336,4 MCM Vão 80m RGE | B141: =IF( [1]GeralMinuta!B141 <>"", [1]GeralMinuta!B141,"") -> 1088
A142: =IF( [1]GeralMinuta!A142 <>"", [1]GeralMinuta!A142,"") -> 2 CA 477 MCM Vão 80m RGE | B142: =IF( [1]GeralMinuta!B142 <>"", [1]GeralMinuta!B142,"") -> 1540
A143: =IF( [1]GeralMinuta!A143 <>"", [1]GeralMinuta!A143,"") ->  | B143: =IF( [1]GeralMinuta!B143 <>"", [1]GeralMinuta!B143,"") -> 
A144: =IF( [1]GeralMinuta!A144 <>"", [1]GeralMinuta!A144,"") -> 2 CA 04 AWG Vão 40m | B144: =IF( [1]GeralMinuta!B144 <>"", [1]GeralMinuta!B144,"") -> 126
A145: =IF( [1]GeralMinuta!A145 <>"", [1]GeralMinuta!A145,"") -> 2 CA 02 AWG Vão 40m | B145: =IF( [1]GeralMinuta!B145 <>"", [1]GeralMinuta!B145,"") -> 200
A146: =IF( [1]GeralMinuta!A146 <>"", [1]GeralMinuta!A146,"") -> 2 CA 1/0 AWG Vão 40m | B146: =IF( [1]GeralMinuta!B146 <>"", [1]GeralMinuta!B146,"") -> 320
A147: =IF( [1]GeralMinuta!A147 <>"", [1]GeralMinuta!A147,"") -> 2 CA 2/0 AWG Vão 40m | B147: =IF( [1]GeralMinuta!B147 <>"", [1]GeralMinuta!B147,"") -> 402
A148: =IF( [1]GeralMinuta!A148 <>"", [1]GeralMinuta!A148,"") -> 2 CA 4/0 AWG Vão 40m | B148: =IF( [1]GeralMinuta!B148 <>"", [1]GeralMinuta!B148,"") -> 640
A149: =IF( [1]GeralMinuta!A149 <>"", [1]GeralMinuta!A149,"") ->  | B149: =IF( [1]GeralMinuta!B149 <>"", [1]GeralMinuta!B149,"") -> 
A150: =IF( [1]GeralMinuta!A150 <>"", [1]GeralMinuta!A150,"") -> 2 CAA 04 AWG Vão 40m RGE | B150: =IF( [1]GeralMinuta!B150 <>"", [1]GeralMinuta!B150,"") -> 150
A151: =IF( [1]GeralMinuta!A151 <>"", [1]GeralMinuta!A151,"") -> 2 CAA 02 AWG Vão 40m RGE | B151: =IF( [1]GeralMinuta!B151 <>"", [1]GeralMinuta!B151,"") -> 238
A152: =IF( [1]GeralMinuta!A152 <>"", [1]GeralMinuta!A152,"") -> 2 CAA 1/0 AWG Vão 40m RGE | B152: =IF( [1]GeralMinuta!B152 <>"", [1]GeralMinuta!B152,"") -> 380
A153: =IF( [1]GeralMinuta!A153 <>"", [1]GeralMinuta!A153,"") -> 2 CAA 2/0 AWG Vão 40m RGE | B153: =IF( [1]GeralMinuta!B153 <>"", [1]GeralMinuta!B153,"") -> 480
A154: =IF( [1]GeralMinuta!A154 <>"", [1]GeralMinuta!A154,"") -> 2 CAA 4/0 AWG Vão 40m RGE | B154: =IF( [1]GeralMinuta!B154 <>"", [1]GeralMinuta!B154,"") -> 762
A155: =IF( [1]GeralMinuta!A155 <>"", [1]GeralMinuta!A155,"") ->  | B155: =IF( [1]GeralMinuta!B155 <>"", [1]GeralMinuta!B155,"") -> 
A156: =IF( [1]GeralMinuta!A156 <>"", [1]GeralMinuta!A156,"") -> 2 CAA 04 AWG Vão 80m | B156: =IF( [1]GeralMinuta!B156 <>"", [1]GeralMinuta!B156,"") -> 270
A157: =IF( [1]GeralMinuta!A157 <>"", [1]GeralMinuta!A157,"") -> 2 CAA 02 AWG Vão 80m | B157: =IF( [1]GeralMinuta!B157 <>"", [1]GeralMinuta!B157,"") -> 382
A158: =IF( [1]GeralMinuta!A158 <>"", [1]GeralMinuta!A158,"") -> 2 CAA 1/0 AWG Vão 80m | B158: =IF( [1]GeralMinuta!B158 <>"", [1]GeralMinuta!B158,"") -> 550
A159: =IF( [1]GeralMinuta!A159 <>"", [1]GeralMinuta!A159,"") -> 2 CAA 2/0 AWG Vão 80m | B159: =IF( [1]GeralMinuta!B159 <>"", [1]GeralMinuta!B159,"") -> 692
A160: =IF( [1]GeralMinuta!A160 <>"", [1]GeralMinuta!A160,"") -> 2 CAA 4/0 AWG Vão 80m | B160: =IF( [1]GeralMinuta!B160 <>"", [1]GeralMinuta!B160,"") -> 1102
A161: =IF( [1]GeralMinuta!A161 <>"", [1]GeralMinuta!A161,"") -> 2 CAA 336,4 MCM Vão 80m | B161: =IF( [1]GeralMinuta!B161 <>"", [1]GeralMinuta!B161,"") -> 1752
A162: =IF( [1]GeralMinuta!A162 <>"", [1]GeralMinuta!A162,"") ->  | B162: =IF( [1]GeralMinuta!B162 <>"", [1]GeralMinuta!B162,"") -> 
A163: =IF( [1]GeralMinuta!A163 <>"", [1]GeralMinuta!A163,"") -> 2 CAA 04 AWG Vão 80m RGE | B163: =IF( [1]GeralMinuta!B163 <>"", [1]GeralMinuta!B163,"") -> 270
A164: =IF( [1]GeralMinuta!A164 <>"", [1]GeralMinuta!A164,"") -> 2 CAA 02 AWG Vão 80m RGE | B164: =IF( [1]GeralMinuta!B164 <>"", [1]GeralMinuta!B164,"") -> 384
A165: =IF( [1]GeralMinuta!A165 <>"", [1]GeralMinuta!A165,"") -> 2 CAA 1/0 AWG Vão 80m RGE | B165: =IF( [1]GeralMinuta!B165 <>"", [1]GeralMinuta!B165,"") -> 610
A166: =IF( [1]GeralMinuta!A166 <>"", [1]GeralMinuta!A166,"") -> 2 CAA 2/0 AWG Vão 80m RGE | B166: =IF( [1]GeralMinuta!B166 <>"", [1]GeralMinuta!B166,"") -> 768
A167: =IF( [1]GeralMinuta!A167 <>"", [1]GeralMinuta!A167,"") -> 2 CAA 4/0 AWG Vão 80m RGE | B167: =IF( [1]GeralMinuta!B167 <>"", [1]GeralMinuta!B167,"") -> 1222
A168: =IF( [1]GeralMinuta!A168 <>"", [1]GeralMinuta!A168,"") -> 2 CAA 336,4 MCM Vão 80m RGE | B168: =IF( [1]GeralMinuta!B168 <>"", [1]GeralMinuta!B168,"") -> 1944
A169: =IF( [1]GeralMinuta!A169 <>"", [1]GeralMinuta!A169,"") ->  | B169: =IF( [1]GeralMinuta!B169 <>"", [1]GeralMinuta!B169,"") -> 
A170: =IF( [1]GeralMinuta!A170 <>"", [1]GeralMinuta!A170,"") -> 2 CAA 04 AWG Vão 120m | B170: =IF( [1]GeralMinuta!B170 <>"", [1]GeralMinuta!B170,"") -> 350
A171: =IF( [1]GeralMinuta!A171 <>"", [1]GeralMinuta!A171,"") -> 2 CAA 02 AWG Vão 120m | B171: =IF( [1]GeralMinuta!B171 <>"", [1]GeralMinuta!B171,"") -> 494
A172: =IF( [1]GeralMinuta!A172 <>"", [1]GeralMinuta!A172,"") -> 2 CAA 1/0 AWG Vão 120m | B172: =IF( [1]GeralMinuta!B172 <>"", [1]GeralMinuta!B172,"") -> 710
A173: =IF( [1]GeralMinuta!A173 <>"", [1]GeralMinuta!A173,"") -> 2 CAA 2/0 AWG Vão 120m | B173: =IF( [1]GeralMinuta!B173 <>"", [1]GeralMinuta!B173,"") -> 856
A174: =IF( [1]GeralMinuta!A174 <>"", [1]GeralMinuta!A174,"") -> 2 CAA 4/0 AWG Vão 120m | B174: =IF( [1]GeralMinuta!B174 <>"", [1]GeralMinuta!B174,"") -> 1304
A175: =IF( [1]GeralMinuta!A175 <>"", [1]GeralMinuta!A175,"") -> 2 CAA 336,4 MCM Vão 120m | B175: =IF( [1]GeralMinuta!B175 <>"", [1]GeralMinuta!B175,"") -> 2070
A176: =IF( [1]GeralMinuta!A176 <>"", [1]GeralMinuta!A176,"") ->  | B176: =IF( [1]GeralMinuta!B176 <>"", [1]GeralMinuta!B176,"") -> 
A177: =IF( [1]GeralMinuta!A177 <>"", [1]GeralMinuta!A177,"") -> 2 CAA 04 AWG Vão 120m RGE | B177: =IF( [1]GeralMinuta!B177 <>"", [1]GeralMinuta!B177,"") -> 350
A178: =IF( [1]GeralMinuta!A178 <>"", [1]GeralMinuta!A178,"") -> 2 CAA 02 AWG Vão 120m RGE | B178: =IF( [1]GeralMinuta!B178 <>"", [1]GeralMinuta!B178,"") -> 494
A179: =IF( [1]GeralMinuta!A179 <>"", [1]GeralMinuta!A179,"") -> 2 CAA 1/0 AWG Vão 120m RGE | B179: =IF( [1]GeralMinuta!B179 <>"", [1]GeralMinuta!B179,"") -> 710
A180: =IF( [1]GeralMinuta!A180 <>"", [1]GeralMinuta!A180,"") -> 2 CAA 2/0 AWG Vão 120m RGE | B180: =IF( [1]GeralMinuta!B180 <>"", [1]GeralMinuta!B180,"") -> 886
A181: =IF( [1]GeralMinuta!A181 <>"", [1]GeralMinuta!A181,"") -> 2 CAA 4/0 AWG Vão 120m RGE | B181: =IF( [1]GeralMinuta!B181 <>"", [1]GeralMinuta!B181,"") -> 1410
A182: =IF( [1]GeralMinuta!A182 <>"", [1]GeralMinuta!A182,"") -> 2 CAA 336,4 MCM Vão 120m RGE | B182: =IF( [1]GeralMinuta!B182 <>"", [1]GeralMinuta!B182,"") -> 2240
A183: =IF( [1]GeralMinuta!A183 <>"", [1]GeralMinuta!A183,"") ->  | B183: =IF( [1]GeralMinuta!B183 <>"", [1]GeralMinuta!B183,"") -> 
A184: =IF( [1]GeralMinuta!A184 <>"", [1]GeralMinuta!A184,"") -> 2 CU 06 AWG Vão 35m | B184: =IF( [1]GeralMinuta!B184 <>"", [1]GeralMinuta!B184,"") -> 112
A185: =IF( [1]GeralMinuta!A185 <>"", [1]GeralMinuta!A185,"") -> 2 CU 02 AWG Vão 35m | B185: =IF( [1]GeralMinuta!B185 <>"", [1]GeralMinuta!B185,"") -> 282
A186: =IF( [1]GeralMinuta!A186 <>"", [1]GeralMinuta!A186,"") -> 2 CU 1/0 AWG Vão 35m | B186: =IF( [1]GeralMinuta!B186 <>"", [1]GeralMinuta!B186,"") -> 416
A187: =IF( [1]GeralMinuta!A187 <>"", [1]GeralMinuta!A187,"") -> 2 CU 2/0 AWG Vão 35m | B187: =IF( [1]GeralMinuta!B187 <>"", [1]GeralMinuta!B187,"") -> 514
A188: =IF( [1]GeralMinuta!A188 <>"", [1]GeralMinuta!A188,"") -> 2 CU 4/0 AWG Vão 35m | B188: =IF( [1]GeralMinuta!B188 <>"", [1]GeralMinuta!B188,"") -> 792
A189: =IF( [1]GeralMinuta!A189 <>"", [1]GeralMinuta!A189,"") ->  | B189: =IF( [1]GeralMinuta!B189 <>"", [1]GeralMinuta!B189,"") -> 
A190: =IF( [1]GeralMinuta!A190 <>"", [1]GeralMinuta!A190,"") -> 1 CU 06 AWG Vão 35m RGE | B190: =IF( [1]GeralMinuta!B190 <>"", [1]GeralMinuta!B190,"") -> 56
A191: =IF( [1]GeralMinuta!A191 <>"", [1]GeralMinuta!A191,"") -> 1 CU 02 AWG Vão 35m RGE | B191: =IF( [1]GeralMinuta!B191 <>"", [1]GeralMinuta!B191,"") -> 141
A192: =IF( [1]GeralMinuta!A192 <>"", [1]GeralMinuta!A192,"") -> 1 CU 1/0 AWG Vão 35m RGE | B192: =IF( [1]GeralMinuta!B192 <>"", [1]GeralMinuta!B192,"") -> 208
A193: =IF( [1]GeralMinuta!A193 <>"", [1]GeralMinuta!A193,"") -> 1 CU 2/0 AWG Vão 35m RGE | B193: =IF( [1]GeralMinuta!B193 <>"", [1]GeralMinuta!B193,"") -> 257
A194: =IF( [1]GeralMinuta!A194 <>"", [1]GeralMinuta!A194,"") -> 1 CU 4/0 AWG Vão 35m RGE | B194: =IF( [1]GeralMinuta!B194 <>"", [1]GeralMinuta!B194,"") -> 396
A195: =IF( [1]GeralMinuta!A195 <>"", [1]GeralMinuta!A195,"") ->  | B195: =IF( [1]GeralMinuta!B195 <>"", [1]GeralMinuta!B195,"") -> 
A196: =IF( [1]GeralMinuta!A196 <>"", [1]GeralMinuta!A196,"") -> 1 CA 02 AWG Vão 35m | B196: =IF( [1]GeralMinuta!B196 <>"", [1]GeralMinuta!B196,"") -> 60
A197: =IF( [1]GeralMinuta!A197 <>"", [1]GeralMinuta!A197,"") -> 1 CA 1/0 AWG Vão 35m | B197: =IF( [1]GeralMinuta!B197 <>"", [1]GeralMinuta!B197,"") -> 96
A198: =IF( [1]GeralMinuta!A198 <>"", [1]GeralMinuta!A198,"") -> 1 CA 2/0 AWG Vão 35m | B198: =IF( [1]GeralMinuta!B198 <>"", [1]GeralMinuta!B198,"") -> 121
A199: =IF( [1]GeralMinuta!A199 <>"", [1]GeralMinuta!A199,"") -> 1 CA 4/0 AWG Vão 35m | B199: =IF( [1]GeralMinuta!B199 <>"", [1]GeralMinuta!B199,"") -> 194
A200: =IF( [1]GeralMinuta!A200 <>"", [1]GeralMinuta!A200,"") -> 1 CA 336,4 MCM Vão 35m | B200: =IF( [1]GeralMinuta!B200 <>"", [1]GeralMinuta!B200,"") -> 308
... 300 more rows

Sheet Pre_Geral (hidden)
B1: ESFORÇO 1 | E1: ESFORÇO 2 | H1: ESFORÇO 3 | K1: ESFORÇO 4 | N1: ESFORÇO 5 | Q1: TOTAL
A2: LOCAL | B2: =Calculo_Esforco_Poste_Geral!J3 -> 0 | D2: 1 | E2: =D2 -> 1 | G2: =D2 -> 1 | H2: =D2 -> 1 | J2: 1 | K2: =G2 -> 1 | M2: 1 | N2: =J2 -> 1 | P2: 1 | Q2: =SQRT((B18*B18)+(B19*B19)) -> 100.6541146 | R2: 02A | S2: URBANO
A3: POSTE | B3: =Calculo_Esforco_Poste_Geral!D3 -> 11 | C3: =B3-(B3*0.1+0.6) -> 9.3 | D3: =IF(B5>0,C5-(C5*B8/100),0) -> 110 | E3: =B3 -> 11 | F3: =E3-(E3*0.1+0.6) -> 9.3 | G3: =IF(E5>0,F5-(F5*E8/100),0) -> 0 | H3: =B3 -> 11 | I3: =H3-(H3*0.1+0.6) -> 9.3 | J3: =IF(H5>0,I5-(I5*H8/100),0) -> 110 | K3: =E3 -> 11 | L3: =K3-(K3*0.1+0.6) -> 9.3 | M3: =IF(K5>0,L5-(L5*K8/100),0) -> 0 | N3: =H3 -> 11 | O3: =N3-(N3*0.1+0.6) -> 9.3 | P3: =IF(N5>0,O5-(O5*N8/100),0) -> 0 | R3: 10A | S3: RURAL
A4: ÂNGULO | B4: =Calculo_Esforco_Poste_Geral!Y6 -> 180 | C4: =RADIANS(B4) -> 3.141592654 | D4: =IF(B6>0,C6-(C6*B8/100),0) -> 0 | E4: =Calculo_Esforco_Poste_Geral!AA6 -> 290 | F4: =RADIANS(E4) -> 5.061454831 | G4: =IF(E6>0,F6-(F6*E8/100),0) -> 0 | H4: =Calculo_Esforco_Poste_Geral!AC6 -> 500 | I4: =RADIANS(H4) -> 8.72664626 | J4: =IF(H6>0,I6-(I6*H8/100),0) -> 0 | K4: =Calculo_Esforco_Poste_Geral!AE6 -> 410 | L4: =RADIANS(K4) -> 7.155849933 | M4: =IF(K6>0,L6-(L6*K8/100),0) -> 0 | N4: =Calculo_Esforco_Poste_Geral!AG6 -> 370 | O4: =RADIANS(N4) -> 6.457718232 | P4: =IF(N6>0,O6-(O6*N8/100),0) -> 0 | R4: 20A
A5: PRIMÁRIA | B5: =Calculo_Esforco_Poste_Geral!D7 -> 110 | C5: =B5 -> 110 | D5: =D3*(C3-(B9/100))/C3 -> 110 | E5: =Calculo_Esforco_Poste_Geral!F7 -> 0 | F5: =E5 -> 0 | G5: =G3*(F3-(E9/100))/F3 -> 0 | H5: =Calculo_Esforco_Poste_Geral!H7 -> 110 | I5: =H5 -> 110 | J5: =J3*(I3-(H9/100))/I3 -> 110 | K5: =Calculo_Esforco_Poste_Geral!J7 -> 0 | L5: =K5 -> 0 | M5: =M3*(L3-(K9/100))/L3 -> 0 | N5: =Calculo_Esforco_Poste_Geral!L7 -> 0 | O5: =N5 -> 0 | P5: =P3*(O3-(N9/100))/O3 -> 0 | R5: 40A
A6: Geral PRIMÁRIA | B6: =Calculo_Esforco_Poste_Geral!D8 -> 0 | C6: =VLOOKUP(B6,Geral,2,0) ->  | D6: =D4*(C3-(B9/100))/C3 -> 0 | E6: =Calculo_Esforco_Poste_Geral!F8 -> 0 | F6: =E6 -> 0 | G6: =G4*(F3-(E9/100))/F3 -> 0 | H6: =Calculo_Esforco_Poste_Geral!H8 -> 0 | I6: =H6 -> 0 | J6: =J4*(I3-(H9/100))/I3 -> 0 | K6: =Calculo_Esforco_Poste_Geral!J8 -> 0 | L6: =K6 -> 0 | M6: =M4*(L3-(K9/100))/L3 -> 0 | N6: =Calculo_Esforco_Poste_Geral!L8 -> 0 | O6: =N6 -> 0 | P6: =P4*(O3-(N9/100))/O3 -> 0
A8: REDUZIR T PRI | B8: =Calculo_Esforco_Poste_Geral!D9 -> 0 | E8: =Calculo_Esforco_Poste_Geral!F9 -> 0 | H8: =Calculo_Esforco_Poste_Geral!H9 -> 0 | K8: =Calculo_Esforco_Poste_Geral!J9 -> 0 | N8: =Calculo_Esforco_Poste_Geral!L9 -> 0
A9: DISTÂNCIA TOPO CM | B9: =IF(Calculo_Esforco_Poste_Geral!D10>0,Calculo_Esforco_Poste_Geral!D10,0) -> 0 | E9: =IF(Calculo_Esforco_Poste_Geral!F10>0,Calculo_Esforco_Poste_Geral!F10,0) -> 0 | H9: =IF(Calculo_Esforco_Poste_Geral!H10>0,Calculo_Esforco_Poste_Geral!H10,0) -> 0 | K9: =IF(Calculo_Esforco_Poste_Geral!J10>0,Calculo_Esforco_Poste_Geral!J10,0) -> 0 | N9: =IF(Calculo_Esforco_Poste_Geral!L10>0,Calculo_Esforco_Poste_Geral!L10,0) -> 0
A10: Geral | B10: =Calculo_Esforco_Poste_Geral!D12 -> 110 | C10: =B10 -> 110 | D10: =IF(B10>0,((C10)-(C10*B13/100))*(B12/100)/C3,0) -> 85.16129032 | E10: =Calculo_Esforco_Poste_Geral!F12 -> 110 | F10: =E10 -> 110 | G10: =IF(E10>0,((F10)-(F10*E13/100))*(E12/100)/F3,0) -> 85.16129032 | H10: =Calculo_Esforco_Poste_Geral!H12 -> 0 | I10: =H10 -> 0 | J10: =IF(H10>0,((I10)-(I10*H13/100))*(H12/100)/I3,0) -> 0 | K10: =Calculo_Esforco_Poste_Geral!J12 -> 0 | L10: =K10 -> 0 | M10: =IF(K10>0,((L10)-(L10*K13/100))*(K12/100)/L3,0) -> 0 | N10: =Calculo_Esforco_Poste_Geral!L12 -> 110 | O10: =N10 -> 110 | P10: =IF(N10>0,((O10)-(O10*N13/100))*(N12/100)/O3,0) -> 85.16129032 | R10: 33A
A11: FASE | B11: =Calculo_Esforco_Poste_Geral!D11 -> 110 | C11: =B11 -> 110 | D11: =IF(B11>0,((C11)-(C11*B13/100))*(B12/100)/C3,0) -> 85.16129032 | E11: =Calculo_Esforco_Poste_Geral!F11 -> 110 | F11: =E11 -> 110 | G11: =IF(E11>0,((F11)-(F11*E13/100))*(E12/100)/F3,0) -> 85.16129032 | H11: =Calculo_Esforco_Poste_Geral!H11 -> 0 | I11: =H11 -> 0 | J11: =IF(H11>0,((I11)-(I11*H13/100))*(H12/100)/I3,0) -> 0 | K11: =Calculo_Esforco_Poste_Geral!J11 -> 0 | L11: =K11 -> 0 | M11: =IF(K11>0,((L11)-(L11*K13/100))*(K12/100)/L3,0) -> 0 | N11: =Calculo_Esforco_Poste_Geral!L11 -> 110 | O11: =N11 -> 110 | P11: =IF(N11>0,((O11)-(O11*N13/100))*(N12/100)/O3,0) -> 85.16129032 | R11: 47A
A12: DISTÂNCIA SOLO CM | B12: =IF(Calculo_Esforco_Poste_Geral!D14>0,Calculo_Esforco_Poste_Geral!D14,720) -> 720 | E12: =IF(Calculo_Esforco_Poste_Geral!F14>0,Calculo_Esforco_Poste_Geral!F14,720) -> 720 | H12: =IF(Calculo_Esforco_Poste_Geral!H14>0,Calculo_Esforco_Poste_Geral!H14,720) -> 720 | K12: =IF(Calculo_Esforco_Poste_Geral!J14>0,Calculo_Esforco_Poste_Geral!J14,720) -> 720 | N12: =IF(Calculo_Esforco_Poste_Geral!L14>0,Calculo_Esforco_Poste_Geral!L14,720) -> 720
A13: RED TENSAO SEC | B13: =Calculo_Esforco_Poste_Geral!D13 -> 0 | E13: =Calculo_Esforco_Poste_Geral!F13 -> 0 | H13: =Calculo_Esforco_Poste_Geral!H13 -> 0 | K13: =Calculo_Esforco_Poste_Geral!J13 -> 0 | N13: =Calculo_Esforco_Poste_Geral!L13 -> 0
A14: TELESP | B14: =Calculo_Esforco_Poste_Geral!D15 -> 0 | C14: =IF(D2>0,B14,0) -> 0 | D14: =C14*(B16/100)/(C3-0.2) -> 0 | E14: =Calculo_Esforco_Poste_Geral!F15 -> 0 | F14: =IF(G2>0,E14,0) -> 0 | G14: =F14*(E16/100)/(F3-0.2) -> 0 | H14: =Calculo_Esforco_Poste_Geral!H15 -> 0 | I14: =IF(J2>0,H14,0) -> 0 | J14: =I14*(H16/100)/(I3-0.2) -> 0 | K14: =Calculo_Esforco_Poste_Geral!J15 -> 100 | L14: =IF(M2>0,K14,0) -> 100 | M14: =L14*(K16/100)/(L3-0.2) -> 60.43956044 | N14: =Calculo_Esforco_Poste_Geral!L15 -> 0 | O14: =IF(P2>0,N14,0) -> 0 | P14: =O14*(N16/100)/(O3-0.2) -> 0 | R14: 06CU
A15: CABO | B15: =Calculo_Esforco_Poste_Geral!D16 -> 0 | C15: =IF(D2>0,B15,0) -> 0 | D15: =C15*(B16/100)/(C3-0.2) -> 0 | E15: =Calculo_Esforco_Poste_Geral!F16 -> 0 | F15: =IF(G2>0,E15,0) -> 0 | G15: =F15*(E16/100)/(F3-0.2) -> 0 | H15: =Calculo_Esforco_Poste_Geral!H16 -> 0 | I15: =IF(J2>0,H15,0) -> 0 | J15: =I15*(H16/100)/(I3-0.2) -> 0 | K15: =Calculo_Esforco_Poste_Geral!J16 -> 0 | L15: =IF(M2>0,K15,0) -> 0 | M15: =L15*(K16/100)/(L3-0.2) -> 0 | N15: =Calculo_Esforco_Poste_Geral!L16 -> 0 | O15: =IF(P2>0,N15,0) -> 0 | P15: =O15*(N16/100)/(O3-0.2) -> 0 | R15: 02CU
A16: DISTÂNCIA SOLO CM | B16: =IF(Calculo_Esforco_Poste_Geral!D17>0,Calculo_Esforco_Poste_Geral!D17,550) -> 550 | E16: =IF(Calculo_Esforco_Poste_Geral!F17>0,Calculo_Esforco_Poste_Geral!F17,550) -> 550 | F16: =IF(Calculo_Esforco_Poste_Geral!F17>0,Calculo_Esforco_Poste_Geral!F17,550) -> 550 | H16: =IF(Calculo_Esforco_Poste_Geral!H17>0,Calculo_Esforco_Poste_Geral!H17,550) -> 550 | I16: =IF(Calculo_Esforco_Poste_Geral!H17>0,Calculo_Esforco_Poste_Geral!H17,550) -> 550 | K16: =IF(Calculo_Esforco_Poste_Geral!J17>0,Calculo_Esforco_Poste_Geral!J17,550) -> 550 | L16: =IF(Calculo_Esforco_Poste_Geral!J17>0,Calculo_Esforco_Poste_Geral!J17,550) -> 550 | N16: =IF(Calculo_Esforco_Poste_Geral!L17>0,Calculo_Esforco_Poste_Geral!L17,550) -> 550 | O16: =IF(Calculo_Esforco_Poste_Geral!L17>0,Calculo_Esforco_Poste_Geral!L17,550) -> 550
A17: SEMI TOTAL | C17: =D17 -> 280.3225806 | D17: =IF(D2>0,SUM(D5:D15),0) -> 280.3225806 | F17: =G17 -> 170.3225806 | G17: =IF(G2>0,SUM(G5:G15),0) -> 170.3225806 | I17: =J17 -> 110 | J17: =IF(J2>0,SUM(J5:J15),0) -> 110 | L17: =M17 -> 60.43956044 | M17: =IF(M2>0,SUM(M5:M15),0) -> 60.43956044 | O17: =P17 -> 170.3225806 | P17: =IF(P2>0,SUM(P5:P15),0) -> 170.3225806 | R17: 10CU
A18: COSENO | B18: =SUM(D18:P18) -> -99.74891743 | D18: =COS(C4)*D17 -> -280.3225806 | G18: =COS(F4)*G17 -> 58.25375344 | J18: =COS(I4)*J17 -> -84.26488874 | M18: =COS(L4)*M17 -> 38.84980059 | P18: =COS(O4)*P17 -> 167.7349979 | R18: 20CU
A19: SENO | B19: =SUM(D19:P19) -> -13.46863996 | D19: =SIN(C4)*D17 -> 3.434367766e-14 | G19: =SIN(F4)*G17 -> -160.0508722 | J19: =SIN(I4)*J17 -> 70.70663707 | M19: =SIN(L4)*M17 -> 46.29938942 | P19: =SIN(O4)*P17 -> 29.57620574 | R19: 40CU
A20: TOTAL | B20: =SQRT((B18*B18)+(B19*B19)) -> 100.6541146 | R20: 04S | W20: ESFORÇO
A21: ÂNGULO | R21: 02S
R22: 10S | V22: =V31 -> ESFORÇO 1 | W22: =AA31 -> 280.3225806
A23: OBSERVAÇÃO: ENTRAR COM DADOS SOMENTE NO CAMPO AMARELO | R23: 40S | V23: =V33 -> ESFORÇO 2 | W23: =AA33 -> 170.3225806
A24: MAB | B24: =NOW() -> 2022-07-21T04:50:22.360 | R24: 33S | V24: =V35 -> ESFORÇO 3 | W24: =AA35 -> 110
R25: 47S | V25: =V37 -> ESFORÇO 4 | W25: =AA37 -> 60.43956044
Q26: ESFORÇO 1 | R26: 70A | V26: =V39 -> ESFORÇO 5 | W26: =AA39 -> 170.3225806
D27: =IF(B11>0,C11-(C11*B13/100),0) -> 110 | Q27: ESFORÇO 2 | R27: 120A | V27: =V41 -> TOTAL | W27: =AA41 -> 100.6541146
D28: =D27*7.2/C3 -> 85.16129032 | Q28: ESFORÇO 3 | R28: 185A
Q29: ESFORÇO 4 | R29: 0
Q30: ESFORÇO 5 | Y30: X | Z30: Y
Q31: TOTAL | V31: ESFORÇO 1 | Y31: =D18 -> -280.3225806 | Z31: =D19 -> 3.434367766e-14 | AA31: =SQRT((Y31*Y31)+(Z31*Z31)) -> 280.3225806 | AB31: 0
D32: 125 | E32: 100 | Q32: ZERO | Y32: 0 | Z32: 0
D33: =D32*E33/E32 -> 12.5 | E33: 10 | V33: ESFORÇO 2 | Y33: =G18 -> 58.25375344 | Z33: =G19 -> -160.0508722 | AA33: =SQRT((Y33*Y33)+(Z33*Z33)) -> 170.3225806 | AB33: 0
D34: =D32-D33 -> 112.5 | Y34: 0 | Z34: 0
D35: =D34*B12/100*C3 -> 7533 | V35: ESFORÇO 3 | Y35: =J18 -> -84.26488874 | Z35: =J19 -> 70.70663707 | AA35: =SQRT((Y35*Y35)+(Z35*Z35)) -> 110 | AB35: 0
Y36: 0 | Z36: 0
V37: ESFORÇO 4 | Y37: =M18 -> 38.84980059 | Z37: =M19 -> 46.29938942 | AA37: =SQRT((Y37*Y37)+(Z37*Z37)) -> 60.43956044 | AB37: 0
O38: 40 | Y38: 0 | Z38: 0
N39: 50 | O39: 50 | V39: ESFORÇO 5 | Y39: =P18 -> 167.7349979 | Z39: =P19 -> 29.57620574 | AA39: =SQRT((Y39*Y39)+(Z39*Z39)) -> 170.3225806 | AB39: 0
N40: 0 | O40: 0 | Y40: 0 | Z40: 0
V41: TOTAL | Y41: =B18 -> -99.74891743 | Z41: =B19 -> -13.46863996 | AA41: =SQRT((Y41*Y41)+(Z41*Z41)) -> 100.6541146 | AB41: 0
Y42: 0 | Z42: 0
V44: ZERO | Y44: 0 | Z44: 0 | AA44: =SQRT((Y44*Y44)+(Z44*Z44)) -> 0
C55: =P20 -> 0 | D55: =P21 -> 0

Sheet PreAngulo_Geral (hidden)
A1: =Pre_Geral!Y41 -> -99.74891743 | C1: =A1*A1 -> 9949.846528
A2: =Pre_Geral!AA41 -> 100.6541146 | C2: =A2*A2 -> 10131.25079
A3: =Pre_Geral!Z41 -> -13.46863996 | C3: =A3*A3 -> 181.4042623
C5: =C1+C2-C3 -> 19899.69306
C6: =(2*A1*A2) -> -20080.27794
C7: =C5/C6 -> -0.9910068535
C8: =-(C7) -> 0.9910068535
C9: =COSH(C7)*360/PI() -> 175.6200596
C10: =ACOS(C7)*180/PI() -> 172.3101216 | D10: =360+C11 -> 187.6898784
C11: =ACOS(C7)*-180/PI() -> -172.3101216 | D11: =180-C11 -> 352.3101216

Sheet Calculo_Esforco_Poste_Geral (hidden)
P1: Secundária | Q1: PrimariaMinutaCpfl | R1: NeutroMinutaCpfl | T1: Altura Poste
C2: 70 | P2: =[1]SecundariaMinutaCpfl!A1 ->  | Q2: =[1]PrimariaMinutaCpfl!A1 ->  | R2: =[1]NeutroMinutaCpfl!A1 ->  | T2: 7
C3: ALTURA POSTE | D3: 11 | P3: =[1]SecundariaMinutaCpfl!A2 -> 3 P 16 mm² Vão 35m | Q3: =[1]PrimariaMinutaCpfl!A2 -> 3 E 70 mm² Vão 35m | R3: =[1]NeutroMinutaCpfl!A2 -> 1 CA 02 AWG Vão 35m | T3: 8 | U3: ÂNGULO
C4: ESFORÇO | D4: 1 | F4: 2 | H4: 3 | J4: 4 | L4: 5 | P4: =[1]SecundariaMinutaCpfl!A3 -> 3 P 25 mm² Vão 35m | Q4: =[1]PrimariaMinutaCpfl!A3 -> 3 E 185 mm² Vão 35m | R4: =[1]NeutroMinutaCpfl!A3 -> 1 CA 1/0 AWG Vão 35m | T4: 9
C5: 0 | E5: 90 | G5: 230 | P5: =[1]SecundariaMinutaCpfl!A4 -> 3 P 35 mm² Vão 35m | Q5: =[1]PrimariaMinutaCpfl!A4 ->  | R5: =[1]NeutroMinutaCpfl!A4 -> 1 CA 2/0 AWG Vão 35m | T5: 10
C6: ÂNGULO | D6: 0 | F6: 110 | H6: 320 | J6: 230 | L6: 190 | P6: =[1]SecundariaMinutaCpfl!A5 -> 3 P 50 mm² Vão 35m | Q6: =[1]PrimariaMinutaCpfl!A5 -> 3 E 70 mm² Vão 80m | R6: =[1]NeutroMinutaCpfl!A5 -> 1 CA 4/0 AWG Vão 35m | T6: 11 | Y6: =D6+180 -> 180 | AA6: =F6+180 -> 290 | AC6: =H6+180 -> 500 | AE6: =J6+180 -> 410 | AG6: =L6+180 -> 370 | AK6: =[1]Folha4!A2 -> A02
C7: PRIMÁRIA | D7: 110 | H7: 110 | P7: =[1]SecundariaMinutaCpfl!A6 -> 3 P 70 mm² Vão 35m | Q7: =[1]PrimariaMinutaCpfl!A6 -> 3 E 185 mm² Vão 80m | R7: =[1]NeutroMinutaCpfl!A6 -> 1 CA 336,4 MCM Vão 35m | T7: 12 | AK7: =[1]Folha4!A3 -> A10
C8: NEUTRO PRIM. | P8: =[1]SecundariaMinutaCpfl!A7 -> 3 P 120 mm² Vão 35m | Q8: =[1]PrimariaMinutaCpfl!A7 -> 3 CA 02 AWG Vão 35m | R8: =[1]NeutroMinutaCpfl!A7 -> 1 CA 477 MCM Vão 35m | T8: 13 | AK8: =[1]Folha4!A4 -> A20
C9: RED. TENSÃO | D9: 0 | F9: 0 | H9: 0 | J9: 0 | L9: 0 | P9: =[1]SecundariaMinutaCpfl!A8 ->  | Q9: =[1]PrimariaMinutaCpfl!A8 -> 3 CA 1/0 AWG Vão 35m | R9: =[1]NeutroMinutaCpfl!A8 ->  | T9: 14 | AK9: =[1]Folha4!A5 -> A40
C10: DISTÂNCIA PRIMÁRIA TOPO CM | D10: 0 | F10: 0 | H10: 0 | J10: 0 | L10: 0 | P10: =[1]SecundariaMinutaCpfl!A9 -> 3 CA 02 AWG Vão 35m | Q10: =[1]PrimariaMinutaCpfl!A9 -> 3 CA 2/0 AWG Vão 35m | R10: =[1]NeutroMinutaCpfl!A9 -> 1 CA 02 AWG Vão 80m | T10: 15 | AK10: =[1]Folha4!A6 -> A33
C11: SEC. FASE | D11: 110 | F11: 110 | L11: 110 | P11: =[1]SecundariaMinutaCpfl!A10 -> 3 CA 1/0 AWG Vão 35m | Q11: =[1]PrimariaMinutaCpfl!A10 -> 3 CA 4/0 AWG Vão 35m | R11: =[1]NeutroMinutaCpfl!A10 -> 1 CA 1/0 AWG Vão 80m | T11: 16 | X11: =IF(X12>180,X12-180,X12+180) -> 7.689878429 | AK11: =[1]Folha4!A7 -> A47
C12: SEC. NEUTRO | D12: 110 | F12: 110 | L12: 110 | P12: =[1]SecundariaMinutaCpfl!A11 -> 3 CA 2/0 AWG Vão 35m | Q12: =[1]PrimariaMinutaCpfl!A11 -> 3 CA 336,4 MCM Vão 35m | R12: =[1]NeutroMinutaCpfl!A11 -> 1 CA 2/0 AWG Vão 80m | T12: 17 | X12: =IF(PreAngulo_Geral!A3>0,PreAngulo_Geral!C10,PreAngulo_Geral!D10) -> 187.6898784 | AK12: =[1]Folha4!A8 -> CU06
C13: RED. TENSÃO | D13: 0 | F13: 0 | H13: 0 | J13: 0 | L13: 0 | P13: =[1]SecundariaMinutaCpfl!A12 -> 3 CA 4/0 AWG Vão 35m | Q13: =[1]PrimariaMinutaCpfl!A12 -> 3 CA 477 MCM Vão 35m | R13: =[1]NeutroMinutaCpfl!A12 -> 1 CA 4/0 AWG Vão 80m | T13: 18 | AK13: =[1]Folha4!A9 -> CU02
C14: DISTÂNCIA SECUNDÁRIA SOLO CM | D14: 720 | F14: 720 | H14: 720 | J14: 720 | L14: 720 | P14: =[1]SecundariaMinutaCpfl!A13 -> 3 CA 336,4 MCM Vão 35m | Q14: =[1]PrimariaMinutaCpfl!A13 ->  | R14: =[1]NeutroMinutaCpfl!A13 -> 1 CA 336,4 MCM Vão 80m | T14: 19 | AK14: =[1]Folha4!A10 -> CU10
C15: TELEFONE | J15: 100 | P15: =[1]SecundariaMinutaCpfl!A14 -> 3 CA 477 MCM Vão 35m | Q15: =[1]PrimariaMinutaCpfl!A14 -> 3 CA 02 AWG Vão 80m | R15: =[1]NeutroMinutaCpfl!A14 -> 1 CA 477 MCM Vão 80m | T15: 20 | AK15: =[1]Folha4!A11 -> CU20
C16: TV CABO | P16: =[1]SecundariaMinutaCpfl!A15 ->  | Q16: =[1]PrimariaMinutaCpfl!A15 -> 3 CA 1/0 AWG Vão 80m | R16: =[1]NeutroMinutaCpfl!A15 ->  | AK16: =[1]Folha4!A12 -> CU40
C17: DISTÂNCIA TELEFONE/CABO SOLO CM | D17: 550 | F17: 550 | H17: 550 | J17: 550 | L17: 550 | P17: =[1]SecundariaMinutaCpfl!A16 -> 3 CA 02 AWG Vão 80m | Q17: =[1]PrimariaMinutaCpfl!A16 -> 3 CA 2/0 AWG Vão 80m | R17: =[1]NeutroMinutaCpfl!A16 -> 1 CAA 04 AWG Vão 40m | AK17: =[1]Folha4!A13 -> S04
C18: SUB TOTAL | D18: =IF(L31=1,Pre_Geral!W22,"Atualize: http;//www.mabjo.com.br") -> Atualize: http;//www.mabjo.com.br | F18: =IF(L31=1,Pre_Geral!W23,"Atualize: http;//www.mabjo.com.br") -> Atualize: http;//www.mabjo.com.br | H18: =IF(L31=1,Pre_Geral!W24,"Atualize: http;//www.mabjo.com.br") -> Atualize: http;//www.mabjo.com.br | J18: =IF(L31=1,Pre_Geral!W25,"Atualize: http;//www.mabjo.com.br") -> Atualize: http;//www.mabjo.com.br | L18: =IF(L31=1,Pre_Geral!W26,"Atualize: http;//www.mabjo.com.br") -> Atualize: http;//www.mabjo.com.br | P18: =[1]SecundariaMinutaCpfl!A17 -> 3 CA 1/0 AWG Vão 80m | Q18: =[1]PrimariaMinutaCpfl!A17 -> 3 CA 4/0 AWG Vão 80m | R18: =[1]NeutroMinutaCpfl!A17 -> 1 CAA 02 AWG Vão 40m | AK18: =[1]Folha4!A14 -> S02
C19: ESFORÇO RESULTANTE | D19: =IF(L31=1,Pre_Geral!W27,"Atualize: http;//www.mabjo.com.br") -> Atualize: http;//www.mabjo.com.br | H19: ÂNGULO RESULTANTE | L19: =IF(D19>0.001,X11,0) -> 7.689878429 | P19: =[1]SecundariaMinutaCpfl!A18 -> 3 CA 2/0 AWG Vão 80m | Q19: =[1]PrimariaMinutaCpfl!A18 -> 3 CA 336,4 MCM Vão 80m | R19: =[1]NeutroMinutaCpfl!A18 -> 1 CAA 1/0 AWG Vão 40m | AK19: =[1]Folha4!A15 -> S10
P20: =[1]SecundariaMinutaCpfl!A19 -> 3 CA 4/0 AWG Vão 80m | Q20: =[1]PrimariaMinutaCpfl!A19 -> 3 CA 477 MCM Vão 80m | R20: =[1]NeutroMinutaCpfl!A19 -> 1 CAA 2/0 AWG Vão 40m | AK20: =[1]Folha4!A16 -> S40
C21: On Line http://www.mabjo.com.br/ | L21: =NOW() -> 2022-07-21T04:50:22.360 | O21: http://www.mabjo.com.br | P21: =[1]SecundariaMinutaCpfl!A20 -> 3 CA 336,4 MCM Vão 80m | Q21: =[1]PrimariaMinutaCpfl!A20 ->  | R21: =[1]NeutroMinutaCpfl!A20 -> 1 CAA 4/0 AWG Vão 40m | AK21: =[1]Folha4!A17 -> S33
C22: PROJETOS E CONSTRUÇÕES ELÉTRICAS LOTEAMENTOS | D22: LOTEAMENTOS EXECUTADOS | F22: Fone (19) 997352841 | H22: projetos@mabjo.com.br | N22: Download Cálculo Mecânico Esforço Poste Atualizado | O22: http://www.mabjo.com.br/ | P22: =[1]SecundariaMinutaCpfl!A21 -> 3 CA 477 MCM Vão 80m | Q22: =[1]PrimariaMinutaCpfl!A21 -> 3 CAA 04 AWG Vão 40m | R22: =[1]NeutroMinutaCpfl!A21 ->  | AK22: =[1]Folha4!A18 -> S47
C23: =CONCATENATE("Cálculo Esforço Poste : Plt, Pira, SC e Jg - Versão") -> Cálculo Esforço Poste : Plt, Pira, SC e Jg - Versão | N23: =O28 -> 2014-12-11 | P23: =[1]SecundariaMinutaCpfl!A22 ->  | Q23: =[1]PrimariaMinutaCpfl!A22 -> 3 CAA 02 AWG Vão 40m | R23: =[1]NeutroMinutaCpfl!A22 -> 1 CAA 04 AWG Vão 80m | AK23: =[1]Folha4!A19 -> E70
C24: =N30 ->  | F24: =O30 -> 2018-06-05 | P24: =[1]SecundariaMinutaCpfl!A23 -> 3 CAA 04 AWG Vão 40m | Q24: =[1]PrimariaMinutaCpfl!A23 -> 3 CAA 1/0 AWG Vão 40m | R24: =[1]NeutroMinutaCpfl!A23 -> 1 CAA 02 AWG Vão 80m
P25: =[1]SecundariaMinutaCpfl!A24 -> 3 CAA 02 AWG Vão 40m | Q25: =[1]PrimariaMinutaCpfl!A24 -> 3 CAA 2/0 AWG Vão 40m | R25: =[1]NeutroMinutaCpfl!A24 -> 1 CAA 1/0 AWG Vão 80m
P26: =[1]SecundariaMinutaCpfl!A25 -> 3 CAA 1/0 AWG Vão 40m | Q26: =[1]PrimariaMinutaCpfl!A25 -> 3 CAA 4/0 AWG Vão 40m | R26: =[1]NeutroMinutaCpfl!A25 -> 1 CAA 2/0 AWG Vão 80m
C27: =X12 -> 187.6898784 | P27: =[1]SecundariaMinutaCpfl!A26 -> 3 CAA 2/0 AWG Vão 40m | Q27: =[1]PrimariaMinutaCpfl!A26 ->  | R27: =[1]NeutroMinutaCpfl!A26 -> 1 CAA 4/0 AWG Vão 80m | AK27: =[1]Folha4!A20 -> E185
C28: MEDIDA 1 | D28: 12 | H28: =PreAngulo_Geral!C10 -> 172.3101216 | N28: Esta Versão | O28: 2014-12-11 | P28: =[1]SecundariaMinutaCpfl!A27 -> 3 CAA 4/0 AWG Vão 40m | Q28: =[1]PrimariaMinutaCpfl!A27 -> 3 CAA 04 AWG Vão 80m | R28: =[1]NeutroMinutaCpfl!A27 -> 1 CAA 336,4 MCM Vão 80m | AK28: =[1]Folha4!A21 -> 0
C29: MEDIDA 2 | D29: 15 | H29: =PreAngulo_Geral!D10 -> 187.6898784 | J29: Dias Versão | L29: =O30-O28 -> 1272 | P29: =[1]SecundariaMinutaCpfl!A28 ->  | Q29: =[1]PrimariaMinutaCpfl!A28 -> 3 CAA 02 AWG Vão 80m | R29: =[1]NeutroMinutaCpfl!A28 ->  | AK29: =[1]Folha4!A22 -> 0
C30: MEDIDA 3 | D30: 10 | J30: PreDiasAtualização | L30: =L21-O30 -> 1507.201648 | N30: =IF([1]Mensagem!B3 <> "",[1]Mensagem!B3,"") ->  | O30: =IF([1]Mensagem!C3 <> "",[1]Mensagem!C3,"") -> 2018-06-05 | P30: =[1]SecundariaMinutaCpfl!A29 -> 3 CAA 04 AWG Vão 80m | Q30: =[1]PrimariaMinutaCpfl!A29 -> 3 CAA 1/0 AWG Vão 80m | R30: =[1]NeutroMinutaCpfl!A29 -> 1 CAA 04 AWG Vão 120m | AK30: =[1]Folha4!A23 -> 0
C31: ÂNGULO | D31: =IF(D30>0,Plan3!C10,"") -> 41.64967227 | J31: Dias Atualização | L31: =IF(AND(L29<360,L30<180),1,0) -> 0 | N31: =IF([1]Mensagem!B4 <> "",[1]Mensagem!B4,"") ->  | O31: =IF([1]Mensagem!C4 <> "",[1]Mensagem!C4,"") -> 2018-06-05 | P31: =[1]SecundariaMinutaCpfl!A30 -> 3 CAA 02 AWG Vão 80m | Q31: =[1]PrimariaMinutaCpfl!A30 -> 3 CAA 2/0 AWG Vão 80m | R31: =[1]NeutroMinutaCpfl!A30 -> 1 CAA 02 AWG Vão 120m | AK31: =[1]Folha4!A24 -> 0
N32: =IF([1]Mensagem!B5 <> "",[1]Mensagem!B5,"") ->  | O32: =IF([1]Mensagem!C5 <> "",[1]Mensagem!C5,"") ->  | P32: =[1]SecundariaMinutaCpfl!A31 -> 3 CAA 1/0 AWG Vão 80m | Q32: =[1]PrimariaMinutaCpfl!A31 -> 3 CAA 4/0 AWG Vão 80m | R32: =[1]NeutroMinutaCpfl!A31 -> 1 CAA 1/0 AWG Vão 120m | AK32: =[1]Folha4!A25 -> 0
N33: =IF([1]Mensagem!B6 <> "",[1]Mensagem!B6,"") ->  | O33: =IF([1]Mensagem!C6 <> "",[1]Mensagem!C6,"") ->  | P33: =[1]SecundariaMinutaCpfl!A32 -> 3 CAA 2/0 AWG Vão 80m | Q33: =[1]PrimariaMinutaCpfl!A32 -> 3 CAA 336,4 MCM Vão 80m | R33: =[1]NeutroMinutaCpfl!A32 -> 1 CAA 2/0 AWG Vão 120m | U33: 0 | AK33: =[1]Folha4!A26 -> 0
C34: Coordenada X | D34: Coordenada Y | N34: =IF([1]Mensagem!B7 <> "",[1]Mensagem!B7,"") ->  | O34: =IF([1]Mensagem!C7 <> "",[1]Mensagem!C7,"") ->  | P34: =[1]SecundariaMinutaCpfl!A33 -> 3 CAA 4/0 AWG Vão 80m | Q34: =[1]PrimariaMinutaCpfl!A33 ->  | R34: =[1]NeutroMinutaCpfl!A33 -> 1 CAA 4/0 AWG Vão 120m | U34: 1 | AK34: =[1]Folha4!A27 -> 0
C35: 29829000 | D35: 745407001 | J35: Poste 1 | N35: =IF([1]Mensagem!B8 <> "",[1]Mensagem!B8,"") ->  | O35: =IF([1]Mensagem!C8 <> "",[1]Mensagem!C8,"") ->  | P35: =[1]SecundariaMinutaCpfl!A34 -> 3 CAA 336,4 MCM Vão 80m | Q35: =[1]PrimariaMinutaCpfl!A34 -> 3 CAA 04 AWG Vão 120m | R35: =[1]NeutroMinutaCpfl!A34 -> 1 CAA 336,4 MCM Vão 120m | U35: 2 | AK35: =[1]Folha4!A28 -> 0
C36: 29229000 | D36: 745406001 | J36: Poste Meio | N36: =IF([1]Mensagem!B9 <> "",[1]Mensagem!B9,"") ->  | O36: =IF([1]Mensagem!C9 <> "",[1]Mensagem!C9,"") ->  | P36: =[1]SecundariaMinutaCpfl!A35 ->  | Q36: =[1]PrimariaMinutaCpfl!A35 -> 3 CAA 02 AWG Vão 120m | R36: =[1]NeutroMinutaCpfl!A35 ->  | U36: 3 | AK36: =[1]Folha4!A29 -> 0
C37: Distância Metros | D37: =Plan3!E26/100 -> 6000.008333 | N37: =IF([1]Mensagem!B10 <> "",[1]Mensagem!B10,"") ->  | O37: =IF([1]Mensagem!C10 <> "",[1]Mensagem!C10,"") ->  | P37: =[1]SecundariaMinutaCpfl!A36 -> 3 CAA 04 AWG Vão 120m | Q37: =[1]PrimariaMinutaCpfl!A36 -> 3 CAA 1/0 AWG Vão 120m | R37: =[1]NeutroMinutaCpfl!A36 -> 1 CU 06 AWG Vão 35m | U37: 4 | AK37: =[1]Folha4!A30 -> 0
C38: Ângulo | D38: =Plan3!E29 -> 89.90450712 | N38: =IF([1]Mensagem!B11 <> "",[1]Mensagem!B11,"") ->  | O38: =IF([1]Mensagem!C11 <> "",[1]Mensagem!C11,"") ->  | P38: =[1]SecundariaMinutaCpfl!A37 -> 3 CAA 02 AWG Vão 120m | Q38: =[1]PrimariaMinutaCpfl!A37 -> 3 CAA 2/0 AWG Vão 120m | R38: =[1]NeutroMinutaCpfl!A37 -> 1 CU 02 AWG Vão 35m | U38: 5 | AK38: =[1]Folha4!A31 -> 0
N39: =IF([1]Mensagem!B12 <> "",[1]Mensagem!B12,"") ->  | O39: =IF([1]Mensagem!C12 <> "",[1]Mensagem!C12,"") ->  | P39: =[1]SecundariaMinutaCpfl!A38 -> 3 CAA 1/0 AWG Vão 120m | Q39: =[1]PrimariaMinutaCpfl!A38 -> 3 CAA 4/0 AWG Vão 120m | R39: =[1]NeutroMinutaCpfl!A38 -> 1 CU 1/0 AWG Vão 35m | U39: 6 | AK39: =[1]Folha4!A32 -> 0
N40: =IF([1]Mensagem!B13 <> "",[1]Mensagem!B13,"") ->  | O40: =IF([1]Mensagem!C13 <> "",[1]Mensagem!C13,"") ->  | P40: =[1]SecundariaMinutaCpfl!A39 -> 3 CAA 2/0 AWG Vão 120m | Q40: =[1]PrimariaMinutaCpfl!A39 -> 3 CAA 336,4 MCM Vão 120m | R40: =[1]NeutroMinutaCpfl!A39 -> 1 CU 2/0 AWG Vão 35m | U40: 7 | AK40: =[1]Folha4!A33 -> 0
C41: Coordenada X | D41: Coordenada Y | N41: =IF([1]Mensagem!B14 <> "",[1]Mensagem!B14,"") ->  | O41: =IF([1]Mensagem!C14 <> "",[1]Mensagem!C14,"") -> Cálculo Esforço | P41: =[1]SecundariaMinutaCpfl!A40 -> 3 CAA 4/0 AWG Vão 120m | Q41: =[1]PrimariaMinutaCpfl!A40 ->  | R41: =[1]NeutroMinutaCpfl!A40 -> 1 CU 4/0 AWG Vão 35m | U41: 8 | AK41: =[1]Folha4!A34 -> 0
C42: =C36 -> 29229000 | D42: =D36 -> 745406001 | J42: Poste Meio | N42: =IF([1]Mensagem!B15 <> "",[1]Mensagem!B15,"") ->  | O42: =IF([1]Mensagem!C15 <> "",[1]Mensagem!C15,"") -> Customizado | P42: =[1]SecundariaMinutaCpfl!A41 -> 3 CAA 336,4 MCM Vão 120m | Q42: =[1]PrimariaMinutaCpfl!A41 -> 3 15kv 240 mm² Vão 35m | R42: =[1]NeutroMinutaCpfl!A41 -> 0 | U42: 9 | AK42: =[1]Folha4!A35 -> 0
C43: 29279000 | D43: 748406001 | J43: Poste 3 | N43: =IF([1]Mensagem!B16 <> "",[1]Mensagem!B16,"") ->  | O43: =IF([1]Mensagem!C16 <> "",[1]Mensagem!C16,"") -> para cabos de | P43: =[1]SecundariaMinutaCpfl!A42 ->  | Q43: =[1]PrimariaMinutaCpfl!A42 -> 3 25kv 240 mm² Vão 35m | R43: =[1]NeutroMinutaCpfl!A42 -> 0 | U43: 10 | AK43: =[1]Folha4!A36 -> 0
C44: Distância Metros | D44: =Plan3!E41/100 -> 30004.16638 | N44: =IF([1]Mensagem!B17 <> "",[1]Mensagem!B17,"") ->  | O44: =IF([1]Mensagem!C17 <> "",[1]Mensagem!C17,"") -> Telefonia e | P44: =[1]SecundariaMinutaCpfl!A43 -> 3 15kv 240 mm² Vão 35m | Q44: =[1]PrimariaMinutaCpfl!A43 -> 3 35kv 240 mm² Vão 35m | R44: =[1]NeutroMinutaCpfl!A43 -> 0 | U44: 11 | AK44: =[1]Folha4!A37 -> 0
C45: Ângulo | D45: =Plan3!E44 -> 0.9548412539 | N45: =IF([1]Mensagem!B18 <> "",[1]Mensagem!B18,"") ->  | O45: =IF([1]Mensagem!C18 <> "",[1]Mensagem!C18,"") -> Comunicação | P45: =[1]SecundariaMinutaCpfl!A44 -> 3 25kv 240 mm² Vão 35m | Q45: =[1]PrimariaMinutaCpfl!A44 ->  | R45: =[1]NeutroMinutaCpfl!A44 -> 0 | U45: 12 | AK45: =[1]Folha4!A38 -> 0
N46: =IF([1]Mensagem!B19 <> "",[1]Mensagem!B19,"") ->  | O46: =IF([1]Mensagem!C19 <> "",[1]Mensagem!C19,"") -> http://www.mabjo.com.br/Default.aspx | P46: =[1]SecundariaMinutaCpfl!A45 -> 3 35kv 240 mm² Vão 35m | Q46: =[1]PrimariaMinutaCpfl!A45 -> 3 CU 06 AWG Vão 35m | R46: =[1]NeutroMinutaCpfl!A45 -> 0 | U46: 13 | AK46: =[1]Folha4!A39 -> 0
C47: Ângulo Resultante | D47: =D45-D38 -> -88.94966587 | N47: =IF([1]Mensagem!B20 <> "",[1]Mensagem!B20,"") ->  | O47: =IF([1]Mensagem!C20 <> "",[1]Mensagem!C20,"") ->  | P47: =[1]SecundariaMinutaCpfl!A46 ->  | Q47: =[1]PrimariaMinutaCpfl!A46 -> 3 CU 02 AWG Vão 35m | R47: =[1]NeutroMinutaCpfl!A46 -> 0 | U47: 14 | AK47: =[1]Folha4!A40 -> 0
P48: =[1]SecundariaMinutaCpfl!A47 -> 3 CU 06 AWG Vão 35m | Q48: =[1]PrimariaMinutaCpfl!A47 -> 3 CU 1/0 AWG Vão 35m | R48: =[1]NeutroMinutaCpfl!A47 -> 0 | U48: 15 | AK48: =[1]Folha4!A41 -> 0
P49: =[1]SecundariaMinutaCpfl!A48 -> 3 CU 02 AWG Vão 35m | Q49: =[1]PrimariaMinutaCpfl!A48 -> 3 CU 2/0 AWG Vão 35m | R49: =[1]NeutroMinutaCpfl!A48 -> 0 | U49: 16 | AK49: =[1]Folha4!A42 -> 0
C50: Cálculo Flecha | D50: Primário por Fase | P50: =[1]SecundariaMinutaCpfl!A49 -> 3 CU 1/0 AWG Vão 35m | Q50: =[1]PrimariaMinutaCpfl!A49 -> 3 CU 4/0 AWG Vão 35m | R50: =[1]NeutroMinutaCpfl!A49 -> 0 | U50: 17 | AK50: =[1]Folha4!A43 -> 0
C51: Cabo | D51: A02 | P51: =[1]SecundariaMinutaCpfl!A50 -> 3 CU 2/0 AWG Vão 35m | Q51: =[1]PrimariaMinutaCpfl!A50 ->  | R51: =[1]NeutroMinutaCpfl!A50 -> 0 | U51: 18 | AK51: =[1]Folha4!A44 -> 0
C52: Distância | D52: 100 | P52: =[1]SecundariaMinutaCpfl!A51 -> 3 CU 4/0 AWG Vão 35m | Q52: =[1]PrimariaMinutaCpfl!A51 -> 2 CA 02 AWG Vão 35m | R52: =[1]NeutroMinutaCpfl!A51 -> 0 | U52: 18 | AK52: =[1]Folha4!A45 -> 0
C53: Redução Tensão % | D53: 20 | P53: =[1]SecundariaMinutaCpfl!A52 ->  | Q53: =[1]PrimariaMinutaCpfl!A52 -> 2 CA 1/0 AWG Vão 35m | R53: =[1]NeutroMinutaCpfl!A52 -> 0 | AK53: =[1]Folha4!A46 -> 0
C54: Amperes | D54: =VLOOKUP(D51,[1]Folha4!A2:G27,7,0) -> 138 | J54: Esforço Trifásico | P54: =[1]SecundariaMinutaCpfl!A53 -> 2 CA 02 AWG Vão 35m | Q54: =[1]PrimariaMinutaCpfl!A53 -> 2 CA 2/0 AWG Vão 35m | R54: =[1]NeutroMinutaCpfl!A53 -> 0 | AK54: =[1]Folha4!A47 -> 0
C55: Esforço Urbano | D55: =N55-N57 -> 76 | J55: =D55*3 -> 228 | N55: =VLOOKUP(D51,[1]Folha4!A2:E27,2,0) -> 95 | P55: =[1]SecundariaMinutaCpfl!A54 -> 2 CA 1/0 AWG Vão 35m | Q55: =[1]PrimariaMinutaCpfl!A54 -> 2 CA 4/0 AWG Vão 35m | R55: =[1]NeutroMinutaCpfl!A54 -> 0 | AK55: =[1]Folha4!A48 -> 0
C56: Esforço Rural | D56: =N56-N58 -> 163.2 | J56: =D56*3 -> 489.6 | N56: =VLOOKUP(D51,[1]Folha4!A2:E27,3,0) -> 204 | P56: =[1]SecundariaMinutaCpfl!A55 -> 2 CA 2/0 AWG Vão 35m | Q56: =[1]PrimariaMinutaCpfl!A55 -> 2 CA 336,4 MCM Vão 35m | R56: =[1]NeutroMinutaCpfl!A55 -> 0 | AK56: =[1]Folha4!A49 -> 0
C57: Kg/m | D57: =VLOOKUP(D51,[1]Folha4!A1:F27,6,0) -> 0.092 | N57: =D53*N55/100 -> 19 | P57: =[1]SecundariaMinutaCpfl!A56 -> 2 CA 4/0 AWG Vão 35m | Q57: =[1]PrimariaMinutaCpfl!A56 -> 2 CA 477 MCM Vão 35m | R57: =[1]NeutroMinutaCpfl!A56 -> 0 | AK57: =[1]Folha4!A50 -> 0
C58: Flecha Ubano | D58: =IF(D55>0,(D57*(D52*D52))/(8*D55),"") -> 1.513157895 | N58: =D53*N56/100 -> 40.8 | P58: =[1]SecundariaMinutaCpfl!A57 -> 2 CA 336,4 MCM Vão 35m | Q58: =[1]PrimariaMinutaCpfl!A57 ->  | R58: =[1]NeutroMinutaCpfl!A57 -> 0 | U58: 18 | AK58: =[1]Folha4!A51 -> 0
C59: Flecha Rural | D59: =IF(D56>0,(D57*(D52*D52))/(8*D56),"") -> 0.7046568627 | P59: =[1]SecundariaMinutaCpfl!A58 -> 2 CA 477 MCM Vão 35m | Q59: =[1]PrimariaMinutaCpfl!A58 -> 2 CA 02 AWG Vão 80m | R59: =[1]NeutroMinutaCpfl!A58 -> 0 | U59: 18 | AK59: =[1]Folha4!A52 -> 0
P60: =[1]SecundariaMinutaCpfl!A59 ->  | Q60: =[1]PrimariaMinutaCpfl!A59 -> 2 CA 1/0 AWG Vão 80m | R60: =[1]NeutroMinutaCpfl!A59 -> 0 | U60: 18 | AK60: =[1]Folha4!A53 -> 0
P61: =[1]SecundariaMinutaCpfl!A60 -> 2 CA 02 AWG Vão 80m | Q61: =[1]PrimariaMinutaCpfl!A60 -> 2 CA 2/0 AWG Vão 80m | R61: =[1]NeutroMinutaCpfl!A60 -> 0 | U61: 18 | AK61: =[1]Folha4!A54 -> 0
C62: =VLOOKUP(D51,[1]Folha4!A2:E27,2,0) -> 95 | P62: =[1]SecundariaMinutaCpfl!A61 -> 2 CA 1/0 AWG Vão 80m | Q62: =[1]PrimariaMinutaCpfl!A61 -> 2 CA 4/0 AWG Vão 80m | R62: =[1]NeutroMinutaCpfl!A61 -> 0 | U62: 18 | AK62: =[1]Folha4!A55 -> 0
P63: =[1]SecundariaMinutaCpfl!A62 -> 2 CA 2/0 AWG Vão 80m | Q63: =[1]PrimariaMinutaCpfl!A62 -> 2 CA 336,4 MCM Vão 80m | R63: =[1]NeutroMinutaCpfl!A62 -> 0 | U63: 18 | AK63: =[1]Folha4!A56 -> 0
P64: =[1]SecundariaMinutaCpfl!A63 -> 2 CA 4/0 AWG Vão 80m | Q64: =[1]PrimariaMinutaCpfl!A63 -> 2 CA 477 MCM Vão 80m | R64: =[1]NeutroMinutaCpfl!A63 -> 0 | U64: 18 | AK64: =[1]Folha4!A57 -> 0
P65: =[1]SecundariaMinutaCpfl!A64 -> 2 CA 336,4 MCM Vão 80m | Q65: =[1]PrimariaMinutaCpfl!A64 ->  | R65: =[1]NeutroMinutaCpfl!A64 -> 0 | U65: 18 | AK65: =[1]Folha4!A58 -> 0
P66: =[1]SecundariaMinutaCpfl!A65 -> 2 CA 477 MCM Vão 80m | Q66: =[1]PrimariaMinutaCpfl!A65 -> 2 CA 04 AWG Vão 40m | R66: =[1]NeutroMinutaCpfl!A65 -> 0 | U66: 18 | AK66: =[1]Folha4!A59 -> 0
P67: =[1]SecundariaMinutaCpfl!A66 ->  | Q67: =[1]PrimariaMinutaCpfl!A66 -> 2 CA 02 AWG Vão 40m | R67: =[1]NeutroMinutaCpfl!A66 -> 0 | U67: 18 | AK67: =[1]Folha4!A60 -> 0
P68: =[1]SecundariaMinutaCpfl!A67 -> 2 CA 04 AWG Vão 40m | Q68: =[1]PrimariaMinutaCpfl!A67 -> 2 CA 1/0 AWG Vão 40m | R68: =[1]NeutroMinutaCpfl!A67 -> 0 | U68: 18 | AK68: =[1]Folha4!A61 -> 0
P69: =[1]SecundariaMinutaCpfl!A68 -> 2 CA 02 AWG Vão 40m | Q69: =[1]PrimariaMinutaCpfl!A68 -> 2 CA 2/0 AWG Vão 40m | R69: =[1]NeutroMinutaCpfl!A68 -> 0 | U69: 18 | AK69: =[1]Folha4!A62 -> 0
P70: =[1]SecundariaMinutaCpfl!A69 -> 2 CA 1/0 AWG Vão 40m | Q70: =[1]PrimariaMinutaCpfl!A69 -> 2 CA 4/0 AWG Vão 40m | R70: =[1]NeutroMinutaCpfl!A69 -> 0 | U70: 18 | AK70: =[1]Folha4!A63 -> 0
P71: =[1]SecundariaMinutaCpfl!A70 -> 2 CA 2/0 AWG Vão 40m | Q71: =[1]PrimariaMinutaCpfl!A70 ->  | R71: =[1]NeutroMinutaCpfl!A70 -> 0 | U71: 18 | AK71: =[1]Folha4!A64 -> 0
P72: =[1]SecundariaMinutaCpfl!A71 -> 2 CA 4/0 AWG Vão 40m | Q72: =[1]PrimariaMinutaCpfl!A71 -> 2 CAA 04 AWG Vão 80m | R72: =[1]NeutroMinutaCpfl!A71 -> 0 | U72: 18 | AK72: =[1]Folha4!A65 -> 0
P73: =[1]SecundariaMinutaCpfl!A72 ->  | Q73: =[1]PrimariaMinutaCpfl!A72 -> 2 CAA 02 AWG Vão 80m | R73: =[1]NeutroMinutaCpfl!A72 -> 0 | U73: 35 | AK73: =[1]Folha4!A66 -> 0
P74: =[1]SecundariaMinutaCpfl!A73 -> 2 CAA 04 AWG Vão 80m | Q74: =[1]PrimariaMinutaCpfl!A73 -> 2 CAA 1/0 AWG Vão 80m | R74: =[1]NeutroMinutaCpfl!A73 -> 0 | U74: 36 | AK74: =[1]Folha4!A67 -> 0
P75: =[1]SecundariaMinutaCpfl!A74 -> 2 CAA 02 AWG Vão 80m | Q75: =[1]PrimariaMinutaCpfl!A74 -> 2 CAA 2/0 AWG Vão 80m | R75: =[1]NeutroMinutaCpfl!A74 -> 0 | U75: 37 | AK75: =[1]Folha4!A68 -> 0
P76: =[1]SecundariaMinutaCpfl!A75 -> 2 CAA 1/0 AWG Vão 80m | Q76: =[1]PrimariaMinutaCpfl!A75 -> 2 CAA 4/0 AWG Vão 80m | R76: =[1]NeutroMinutaCpfl!A75 -> 0 | U76: 38 | AK76: =[1]Folha4!A69 -> 0
P77: =[1]SecundariaMinutaCpfl!A76 -> 2 CAA 2/0 AWG Vão 80m | Q77: =[1]PrimariaMinutaCpfl!A76 -> 2 CAA 336,4 MCM Vão 80m | R77: =[1]NeutroMinutaCpfl!A76 -> 0 | U77: 39 | AK77: =[1]Folha4!A70 -> 0
P78: =[1]SecundariaMinutaCpfl!A77 -> 2 CAA 4/0 AWG Vão 80m | Q78: =[1]PrimariaMinutaCpfl!A77 ->  | R78: =[1]NeutroMinutaCpfl!A77 -> 0 | U78: 40 | AK78: =[1]Folha4!A71 -> 0
P79: =[1]SecundariaMinutaCpfl!A78 -> 2 CAA 336,4 MCM Vão 80m | Q79: =[1]PrimariaMinutaCpfl!A78 -> 2 CAA 04 AWG Vão 120m | R79: =[1]NeutroMinutaCpfl!A78 -> 0 | U79: 41 | AK79: =[1]Folha4!A72 -> 0
P80: =[1]SecundariaMinutaCpfl!A79 ->  | Q80: =[1]PrimariaMinutaCpfl!A79 -> 2 CAA 02 AWG Vão 120m | R80: =[1]NeutroMinutaCpfl!A79 -> 0 | U80: 42 | AK80: =[1]Folha4!A73 -> 0
P81: =[1]SecundariaMinutaCpfl!A80 -> 2 CAA 04 AWG Vão 120m | Q81: =[1]PrimariaMinutaCpfl!A80 -> 2 CAA 1/0 AWG Vão 120m | R81: =[1]NeutroMinutaCpfl!A80 -> 0 | U81: 43 | AK81: =[1]Folha4!A74 -> 0
P82: =[1]SecundariaMinutaCpfl!A81 -> 2 CAA 02 AWG Vão 120m | Q82: =[1]PrimariaMinutaCpfl!A81 -> 2 CAA 2/0 AWG Vão 120m | R82: =[1]NeutroMinutaCpfl!A81 -> 0 | U82: 44 | AK82: =[1]Folha4!A75 -> 0
P83: =[1]SecundariaMinutaCpfl!A82 -> 2 CAA 1/0 AWG Vão 120m | Q83: =[1]PrimariaMinutaCpfl!A82 -> 2 CAA 4/0 AWG Vão 120m | R83: =[1]NeutroMinutaCpfl!A82 -> 0 | U83: 45 | AK83: =[1]Folha4!A76 -> 0
P84: =[1]SecundariaMinutaCpfl!A83 -> 2 CAA 2/0 AWG Vão 120m | Q84: =[1]PrimariaMinutaCpfl!A83 -> 2 CAA 336,4 MCM Vão 120m | R84: =[1]NeutroMinutaCpfl!A83 -> 0 | U84: 46 | AK84: =[1]Folha4!A77 -> 0
P85: =[1]SecundariaMinutaCpfl!A84 -> 2 CAA 4/0 AWG Vão 120m | Q85: =[1]PrimariaMinutaCpfl!A84 ->  | R85: =[1]NeutroMinutaCpfl!A84 -> 0 | U85: 47 | AK85: =[1]Folha4!A78 -> 0
P86: =[1]SecundariaMinutaCpfl!A85 -> 2 CAA 336,4 MCM Vão 120m | Q86: =[1]PrimariaMinutaCpfl!A85 -> 2 CU 06 AWG Vão 35m | R86: =[1]NeutroMinutaCpfl!A85 -> 0 | U86: 48 | AK86: =[1]Folha4!A79 -> 0
P87: =[1]SecundariaMinutaCpfl!A86 ->  | Q87: =[1]PrimariaMinutaCpfl!A86 -> 2 CU 02 AWG Vão 35m | R87: =[1]NeutroMinutaCpfl!A86 -> 0 | U87: 49 | AK87: =[1]Folha4!A80 -> 0
P88: =[1]SecundariaMinutaCpfl!A87 -> 2 CU 06 AWG Vão 35m | Q88: =[1]PrimariaMinutaCpfl!A87 -> 2 CU 1/0 AWG Vão 35m | R88: =[1]NeutroMinutaCpfl!A87 -> 0 | U88: 50 | AK88: =[1]Folha4!A81 -> 0
P89: =[1]SecundariaMinutaCpfl!A88 -> 2 CU 02 AWG Vão 35m | Q89: =[1]PrimariaMinutaCpfl!A88 -> 2 CU 2/0 AWG Vão 35m | R89: =[1]NeutroMinutaCpfl!A88 -> 0 | U89: 51 | AK89: =[1]Folha4!A82 -> 0
P90: =[1]SecundariaMinutaCpfl!A89 -> 2 CU 1/0 AWG Vão 35m | Q90: =[1]PrimariaMinutaCpfl!A89 -> 2 CU 4/0 AWG Vão 35m | R90: =[1]NeutroMinutaCpfl!A89 -> 0 | U90: 52 | AK90: =[1]Folha4!A83 -> 0
P91: =[1]SecundariaMinutaCpfl!A90 -> 2 CU 2/0 AWG Vão 35m | Q91: =[1]PrimariaMinutaCpfl!A90 ->  | R91: =[1]NeutroMinutaCpfl!A90 -> 0 | U91: 53 | AK91: =[1]Folha4!A84 -> 0
P92: =[1]SecundariaMinutaCpfl!A91 -> 2 CU 4/0 AWG Vão 35m | Q92: =[1]PrimariaMinutaCpfl!A91 -> 1 CA 02 AWG Vão 35m | R92: =[1]NeutroMinutaCpfl!A91 -> 0 | U92: 54 | AK92: =[1]Folha4!A85 -> 0
P93: =[1]SecundariaMinutaCpfl!A92 ->  | Q93: =[1]PrimariaMinutaCpfl!A92 -> 1 CA 1/0 AWG Vão 35m | R93: =[1]NeutroMinutaCpfl!A92 -> 0 | U93: 55 | AK93: =[1]Folha4!A86 -> 0
P94: =[1]SecundariaMinutaCpfl!A93 -> 1 CA 02 AWG Vão 35m | Q94: =[1]PrimariaMinutaCpfl!A93 -> 1 CA 2/0 AWG Vão 35m | R94: =[1]NeutroMinutaCpfl!A93 -> 0 | U94: 56 | AK94: =[1]Folha4!A87 -> 0
P95: =[1]SecundariaMinutaCpfl!A94 -> 1 CA 1/0 AWG Vão 35m | Q95: =[1]PrimariaMinutaCpfl!A94 -> 1 CA 4/0 AWG Vão 35m | R95: =[1]NeutroMinutaCpfl!A94 -> 0 | U95: 57 | AK95: =[1]Folha4!A88 -> 0
P96: =[1]SecundariaMinutaCpfl!A95 -> 1 CA 2/0 AWG Vão 35m | Q96: =[1]PrimariaMinutaCpfl!A95 -> 1 CA 336,4 MCM Vão 35m | R96: =[1]NeutroMinutaCpfl!A95 -> 0 | U96: 58 | AK96: =[1]Folha4!A89 -> 0
P97: =[1]SecundariaMinutaCpfl!A96 -> 1 CA 4/0 AWG Vão 35m | Q97: =[1]PrimariaMinutaCpfl!A96 -> 1 CA 477 MCM Vão 35m | R97: =[1]NeutroMinutaCpfl!A96 -> 0 | U97: 59 | AK97: =[1]Folha4!A90 -> 0
P98: =[1]SecundariaMinutaCpfl!A97 -> 1 CA 336,4 MCM Vão 35m | Q98: =[1]PrimariaMinutaCpfl!A97 ->  | R98: =[1]NeutroMinutaCpfl!A97 -> 0 | U98: 60 | AK98: =[1]Folha4!A91 -> 0
P99: =[1]SecundariaMinutaCpfl!A98 -> 1 CA 477 MCM Vão 35m | Q99: =[1]PrimariaMinutaCpfl!A98 -> 1 CA 02 AWG Vão 80m | R99: =[1]NeutroMinutaCpfl!A98 -> 0 | U99: 61 | AK99: =[1]Folha4!A92 -> 0
P100: =[1]SecundariaMinutaCpfl!A99 ->  | Q100: =[1]PrimariaMinutaCpfl!A99 -> 1 CA 1/0 AWG Vão 80m | R100: =[1]NeutroMinutaCpfl!A99 -> 0 | U100: 62 | AK100: =[1]Folha4!A93 -> 0
P101: =[1]SecundariaMinutaCpfl!A100 -> 1 CA 02 AWG Vão 80m | Q101: =[1]PrimariaMinutaCpfl!A100 -> 1 CA 2/0 AWG Vão 80m | R101: =[1]NeutroMinutaCpfl!A100 -> 0 | U101: 63 | AK101: =[1]Folha4!A94 -> 0
P102: =[1]SecundariaMinutaCpfl!A101 -> 1 CA 1/0 AWG Vão 80m | Q102: =[1]PrimariaMinutaCpfl!A101 -> 1 CA 4/0 AWG Vão 80m | R102: =[1]NeutroMinutaCpfl!A101 -> 0 | U102: 64 | AK102: =[1]Folha4!A95 -> 0
P103: =[1]SecundariaMinutaCpfl!A102 -> 1 CA 2/0 AWG Vão 80m | Q103: =[1]PrimariaMinutaCpfl!A102 -> 1 CA 336,4 MCM Vão 80m | R103: =[1]NeutroMinutaCpfl!A102 -> 0 | U103: 65 | AK103: =[1]Folha4!A96 -> 0
P104: =[1]SecundariaMinutaCpfl!A103 -> 1 CA 4/0 AWG Vão 80m | Q104: =[1]PrimariaMinutaCpfl!A103 -> 1 CA 477 MCM Vão 80m | R104: =[1]NeutroMinutaCpfl!A103 -> 0 | U104: 66 | AK104: =[1]Folha4!A97 -> 0
P105: =[1]SecundariaMinutaCpfl!A104 -> 1 CA 336,4 MCM Vão 80m | Q105: =[1]PrimariaMinutaCpfl!A104 ->  | R105: =[1]NeutroMinutaCpfl!A104 -> 0 | U105: 67 | AK105: =[1]Folha4!A98 -> 0
P106: =[1]SecundariaMinutaCpfl!A105 -> 1 CA 477 MCM Vão 80m | Q106: =[1]PrimariaMinutaCpfl!A105 -> 1 CAA 04 AWG Vão 40m | R106: =[1]NeutroMinutaCpfl!A105 -> 0 | U106: 68 | AK106: =[1]Folha4!A99 -> 0
P107: =[1]SecundariaMinutaCpfl!A106 ->  | Q107: =[1]PrimariaMinutaCpfl!A106 -> 1 CAA 02 AWG Vão 40m | R107: =[1]NeutroMinutaCpfl!A106 -> 0 | U107: 69 | AK107: =[1]Folha4!A100 -> 0
P108: =[1]SecundariaMinutaCpfl!A107 -> 1 CAA 04 AWG Vão 40m | Q108: =[1]PrimariaMinutaCpfl!A107 -> 1 CAA 1/0 AWG Vão 40m | R108: =[1]NeutroMinutaCpfl!A107 -> 0 | U108: 70 | AK108: =[1]Folha4!A101 -> 0
P109: =[1]SecundariaMinutaCpfl!A108 -> 1 CAA 02 AWG Vão 40m | Q109: =[1]PrimariaMinutaCpfl!A108 -> 1 CAA 2/0 AWG Vão 40m | R109: =[1]NeutroMinutaCpfl!A108 -> 0 | U109: 71 | AK109: =[1]Folha4!A102 -> 0
P110: =[1]SecundariaMinutaCpfl!A109 -> 1 CAA 1/0 AWG Vão 40m | Q110: =[1]PrimariaMinutaCpfl!A109 -> 1 CAA 4/0 AWG Vão 40m | R110: =[1]NeutroMinutaCpfl!A109 -> 0 | U110: 72 | AK110: =[1]Folha4!A103 -> 0
P111: =[1]SecundariaMinutaCpfl!A110 -> 1 CAA 2/0 AWG Vão 40m | Q111: =[1]PrimariaMinutaCpfl!A110 ->  | R111: =[1]NeutroMinutaCpfl!A110 -> 0 | U111: 73 | AK111: =[1]Folha4!A104 -> 0
P112: =[1]SecundariaMinutaCpfl!A111 -> 1 CAA 4/0 AWG Vão 40m | Q112: =[1]PrimariaMinutaCpfl!A111 -> 1 CAA 04 AWG Vão 80m | R112: =[1]NeutroMinutaCpfl!A111 -> 0 | U112: 74 | AK112: =[1]Folha4!A105 -> 0
P113: =[1]SecundariaMinutaCpfl!A112 ->  | Q113: =[1]PrimariaMinutaCpfl!A112 -> 1 CAA 02 AWG Vão 80m | R113: =[1]NeutroMinutaCpfl!A112 -> 0 | U113: 75 | AK113: =[1]Folha4!A106 -> 0
P114: =[1]SecundariaMinutaCpfl!A113 -> 1 CAA 04 AWG Vão 80m | Q114: =[1]PrimariaMinutaCpfl!A113 -> 1 CAA 1/0 AWG Vão 80m | R114: =[1]NeutroMinutaCpfl!A113 -> 0 | U114: 76 | AK114: =[1]Folha4!A107 -> 0
P115: =[1]SecundariaMinutaCpfl!A114 -> 1 CAA 02 AWG Vão 80m | Q115: =[1]PrimariaMinutaCpfl!A114 -> 1 CAA 2/0 AWG Vão 80m | R115: =[1]NeutroMinutaCpfl!A114 -> 0 | U115: 77 | AK115: =[1]Folha4!A108 -> 0
P116: =[1]SecundariaMinutaCpfl!A115 -> 1 CAA 1/0 AWG Vão 80m | Q116: =[1]PrimariaMinutaCpfl!A115 -> 1 CAA 4/0 AWG Vão 80m | R116: =[1]NeutroMinutaCpfl!A115 -> 0 | U116: 78 | AK116: =[1]Folha4!A109 -> 0
P117: =[1]SecundariaMinutaCpfl!A116 -> 1 CAA 2/0 AWG Vão 80m | Q117: =[1]PrimariaMinutaCpfl!A116 -> 1 CAA 336,4 MCM Vão 80m | R117: =[1]NeutroMinutaCpfl!A116 -> 0 | U117: 79 | AK117: =[1]Folha4!A110 -> 0
P118: =[1]SecundariaMinutaCpfl!A117 -> 1 CAA 4/0 AWG Vão 80m | Q118: =[1]PrimariaMinutaCpfl!A117 ->  | R118: =[1]NeutroMinutaCpfl!A117 -> 0 | U118: 80 | AK118: =[1]Folha4!A111 -> 0
P119: =[1]SecundariaMinutaCpfl!A118 -> 1 CAA 336,4 MCM Vão 80m | Q119: =[1]PrimariaMinutaCpfl!A118 -> 1 CAA 04 AWG Vão 120m | R119: =[1]NeutroMinutaCpfl!A118 -> 0 | U119: 81 | AK119: =[1]Folha4!A112 -> 0
P120: =[1]SecundariaMinutaCpfl!A119 ->  | Q120: =[1]PrimariaMinutaCpfl!A119 -> 1 CAA 02 AWG Vão 120m | R120: =[1]NeutroMinutaCpfl!A119 -> 0 | U120: 82 | AK120: =[1]Folha4!A113 -> 0
P121: =[1]SecundariaMinutaCpfl!A120 -> 1 CAA 04 AWG Vão 120m | Q121: =[1]PrimariaMinutaCpfl!A120 -> 1 CAA 1/0 AWG Vão 120m | R121: =[1]NeutroMinutaCpfl!A120 -> 0 | U121: 83 | AK121: =[1]Folha4!A114 -> 0
P122: =[1]SecundariaMinutaCpfl!A121 -> 1 CAA 02 AWG Vão 120m | Q122: =[1]PrimariaMinutaCpfl!A121 -> 1 CAA 2/0 AWG Vão 120m | R122: =[1]NeutroMinutaCpfl!A121 -> 0 | U122: 84 | AK122: =[1]Folha4!A115 -> 0
P123: =[1]SecundariaMinutaCpfl!A122 -> 1 CAA 1/0 AWG Vão 120m | Q123: =[1]PrimariaMinutaCpfl!A122 -> 1 CAA 4/0 AWG Vão 120m | R123: =[1]NeutroMinutaCpfl!A122 -> 0 | U123: 85 | AK123: =[1]Folha4!A116 -> 0
P124: =[1]SecundariaMinutaCpfl!A123 -> 1 CAA 2/0 AWG Vão 120m | Q124: =[1]PrimariaMinutaCpfl!A123 -> 1 CAA 336,4 MCM Vão 120m | R124: =[1]NeutroMinutaCpfl!A123 -> 0 | U124: 86 | AK124: =[1]Folha4!A117 -> 0
P125: =[1]SecundariaMinutaCpfl!A124 -> 1 CAA 4/0 AWG Vão 120m | Q125: =[1]PrimariaMinutaCpfl!A124 ->  | R125: =[1]NeutroMinutaCpfl!A124 -> 0 | U125: 87 | AK125: =[1]Folha4!A118 -> 0
P126: =[1]SecundariaMinutaCpfl!A125 -> 1 CAA 336,4 MCM Vão 120m | Q126: =[1]PrimariaMinutaCpfl!A125 -> 1 CU 06 AWG Vão 35m | R126: =[1]NeutroMinutaCpfl!A125 -> 0 | U126: 88 | AK126: =[1]Folha4!A119 -> 0
P127: =[1]SecundariaMinutaCpfl!A126 ->  | Q127: =[1]PrimariaMinutaCpfl!A126 -> 1 CU 02 AWG Vão 35m | R127: =[1]NeutroMinutaCpfl!A126 -> 0 | U127: 89 | AK127: =[1]Folha4!A120 -> 0
P128: =[1]SecundariaMinutaCpfl!A127 -> 1 CU 06 AWG Vão 35m | Q128: =[1]PrimariaMinutaCpfl!A127 -> 1 CU 1/0 AWG Vão 35m | R128: =[1]NeutroMinutaCpfl!A127 -> 0 | U128: 90 | AK128: =[1]Folha4!A121 -> 0
P129: =[1]SecundariaMinutaCpfl!A128 -> 1 CU 02 AWG Vão 35m | Q129: =[1]PrimariaMinutaCpfl!A128 -> 1 CU 2/0 AWG Vão 35m | R129: =[1]NeutroMinutaCpfl!A128 -> 0 | U129: 91 | AK129: =[1]Folha4!A122 -> 0
P130: =[1]SecundariaMinutaCpfl!A129 -> 1 CU 1/0 AWG Vão 35m | Q130: =[1]PrimariaMinutaCpfl!A129 -> 1 CU 4/0 AWG Vão 35m | R130: =[1]NeutroMinutaCpfl!A129 -> 0 | U130: 92 | AK130: =[1]Folha4!A123 -> 0
P131: =[1]SecundariaMinutaCpfl!A130 -> 1 CU 2/0 AWG Vão 35m | Q131: =[1]PrimariaMinutaCpfl!A130 -> 0 | R131: =[1]NeutroMinutaCpfl!A130 -> 0 | U131: 93 | AK131: =[1]Folha4!A124 -> 0
P132: =[1]SecundariaMinutaCpfl!A131 -> 1 CU 4/0 AWG Vão 35m | Q132: =[1]PrimariaMinutaCpfl!A131 -> 0 | R132: =[1]NeutroMinutaCpfl!A131 -> 0 | U132: 94 | AK132: =[1]Folha4!A125 -> 0
P133: =[1]SecundariaMinutaCpfl!A132 -> 0 | Q133: =[1]PrimariaMinutaCpfl!A132 -> 0 | R133: =[1]NeutroMinutaCpfl!A132 -> 0 | U133: 95 | AK133: =[1]Folha4!A126 -> 0
P134: =[1]SecundariaMinutaCpfl!A133 -> 0 | Q134: =[1]PrimariaMinutaCpfl!A133 -> 0 | R134: =[1]NeutroMinutaCpfl!A133 -> 0 | U134: 96 | AK134: =[1]Folha4!A127 -> 0
P135: =[1]SecundariaMinutaCpfl!A134 -> 0 | Q135: =[1]PrimariaMinutaCpfl!A134 -> 0 | R135: =[1]NeutroMinutaCpfl!A134 -> 0 | U135: 97 | AK135: =[1]Folha4!A128 -> 0
P136: =[1]SecundariaMinutaCpfl!A135 -> 0 | Q136: =[1]PrimariaMinutaCpfl!A135 -> 0 | R136: =[1]NeutroMinutaCpfl!A135 -> 0 | U136: 98 | AK136: =[1]Folha4!A129 -> 0
P137: =[1]SecundariaMinutaCpfl!A136 -> 0 | Q137: =[1]PrimariaMinutaCpfl!A136 -> 0 | R137: =[1]NeutroMinutaCpfl!A136 -> 0 | U137: 99 | AK137: =[1]Folha4!A130 -> 0
P138: =[1]SecundariaMinutaCpfl!A137 -> 0 | Q138: =[1]PrimariaMinutaCpfl!A137 -> 0 | R138: =[1]NeutroMinutaCpfl!A137 -> 0 | U138: 100 | AK138: =[1]Folha4!A131 -> 0
P139: =[1]SecundariaMinutaCpfl!A138 -> 0 | Q139: =[1]PrimariaMinutaCpfl!A138 -> 0 | R139: =[1]NeutroMinutaCpfl!A138 -> 0 | U139: 101 | AK139: =[1]Folha4!A132 -> 0
P140: =[1]SecundariaMinutaCpfl!A139 -> 0 | Q140: =[1]PrimariaMinutaCpfl!A139 -> 0 | R140: =[1]NeutroMinutaCpfl!A139 -> 0 | U140: 102 | AK140: =[1]Folha4!A133 -> 0
P141: =[1]SecundariaMinutaCpfl!A140 -> 0 | Q141: =[1]PrimariaMinutaCpfl!A140 -> 0 | R141: =[1]NeutroMinutaCpfl!A140 -> 0 | U141: 103 | AK141: =[1]Folha4!A134 -> 0
P142: =[1]SecundariaMinutaCpfl!A141 -> 0 | Q142: =[1]PrimariaMinutaCpfl!A141 -> 0 | R142: =[1]NeutroMinutaCpfl!A141 -> 0 | U142: 104 | AK142: =[1]Folha4!A135 -> 0
P143: =[1]SecundariaMinutaCpfl!A142 -> 0 | Q143: =[1]PrimariaMinutaCpfl!A142 -> 0 | R143: =[1]NeutroMinutaCpfl!A142 -> 0 | U143: 105 | AK143: =[1]Folha4!A136 -> 0
P144: =[1]SecundariaMinutaCpfl!A143 -> 0 | Q144: =[1]PrimariaMinutaCpfl!A143 -> 0 | R144: =[1]NeutroMinutaCpfl!A143 -> 0 | U144: 106 | AK144: =[1]Folha4!A137 -> 0
P145: =[1]SecundariaMinutaCpfl!A144 -> 0 | Q145: =[1]PrimariaMinutaCpfl!A144 -> 0 | R145: =[1]NeutroMinutaCpfl!A144 -> 0 | U145: 107 | AK145: =[1]Folha4!A138 -> 0
P146: =[1]SecundariaMinutaCpfl!A145 -> 0 | Q146: =[1]PrimariaMinutaCpfl!A145 -> 0 | R146: =[1]NeutroMinutaCpfl!A145 -> 0 | U146: 108 | AK146: =[1]Folha4!A139 -> 0
P147: =[1]SecundariaMinutaCpfl!A146 -> 0 | Q147: =[1]PrimariaMinutaCpfl!A146 -> 0 | R147: =[1]NeutroMinutaCpfl!A146 -> 0 | U147: 109 | AK147: =[1]Folha4!A140 -> 0
P148: =[1]SecundariaMinutaCpfl!A147 -> 0 | Q148: =[1]PrimariaMinutaCpfl!A147 -> 0 | R148: =[1]NeutroMinutaCpfl!A147 -> 0 | U148: 110 | AK148: =[1]Folha4!A141 -> 0
P149: =[1]SecundariaMinutaCpfl!A148 -> 0 | Q149: =[1]PrimariaMinutaCpfl!A148 -> 0 | R149: =[1]NeutroMinutaCpfl!A148 -> 0 | U149: 111 | AK149: =[1]Folha4!A142 -> 0
P150: =[1]SecundariaMinutaCpfl!A149 -> 0 | Q150: =[1]PrimariaMinutaCpfl!A149 -> 0 | R150: =[1]NeutroMinutaCpfl!A149 -> 0 | U150: 112 | AK150: =[1]Folha4!A143 -> 0
P151: =[1]SecundariaMinutaCpfl!A150 -> 0 | Q151: =[1]PrimariaMinutaCpfl!A150 -> 0 | R151: =[1]NeutroMinutaCpfl!A150 -> 0 | U151: 113 | AK151: =[1]Folha4!A144 -> 0
P152: =[1]SecundariaMinutaCpfl!A151 -> 0 | Q152: =[1]PrimariaMinutaCpfl!A151 -> 0 | R152: =[1]NeutroMinutaCpfl!A151 -> 0 | U152: 114 | AK152: =[1]Folha4!A145 -> 0
P153: =[1]SecundariaMinutaCpfl!A152 -> 0 | Q153: =[1]PrimariaMinutaCpfl!A152 -> 0 | R153: =[1]NeutroMinutaCpfl!A152 -> 0 | U153: 115 | AK153: =[1]Folha4!A146 -> 0
P154: =[1]SecundariaMinutaCpfl!A153 -> 0 | Q154: =[1]PrimariaMinutaCpfl!A153 -> 0 | R154: =[1]NeutroMinutaCpfl!A153 -> 0 | U154: 116 | AK154: =[1]Folha4!A147 -> 0
P155: =[1]SecundariaMinutaCpfl!A154 -> 0 | Q155: =[1]PrimariaMinutaCpfl!A154 -> 0 | R155: =[1]NeutroMinutaCpfl!A154 -> 0 | U155: 117 | AK155: =[1]Folha4!A148 -> 0
P156: =[1]SecundariaMinutaCpfl!A155 -> 0 | Q156: =[1]PrimariaMinutaCpfl!A155 -> 0 | R156: =[1]NeutroMinutaCpfl!A155 -> 0 | U156: 118 | AK156: =[1]Folha4!A149 -> 0
P157: =[1]SecundariaMinutaCpfl!A156 -> 0 | Q157: =[1]PrimariaMinutaCpfl!A156 -> 0 | R157: =[1]NeutroMinutaCpfl!A156 -> 0 | U157: 119 | AK157: =[1]Folha4!A150 -> 0
P158: =[1]SecundariaMinutaCpfl!A157 -> 0 | Q158: =[1]PrimariaMinutaCpfl!A157 -> 0 | R158: =[1]NeutroMinutaCpfl!A157 -> 0 | U158: 120 | AK158: =[1]Folha4!A151 -> 0
P159: =[1]SecundariaMinutaCpfl!A158 -> 0 | Q159: =[1]PrimariaMinutaCpfl!A158 -> 0 | R159: =[1]NeutroMinutaCpfl!A158 -> 0 | U159: 121 | AK159: =[1]Folha4!A152 -> 0
P160: =[1]SecundariaMinutaCpfl!A159 -> 0 | Q160: =[1]PrimariaMinutaCpfl!A159 -> 0 | R160: =[1]NeutroMinutaCpfl!A159 -> 0 | U160: 122 | AK160: =[1]Folha4!A153 -> 0
P161: =[1]SecundariaMinutaCpfl!A160 -> 0 | Q161: =[1]PrimariaMinutaCpfl!A160 -> 0 | R161: =[1]NeutroMinutaCpfl!A160 -> 0 | U161: 123 | AK161: =[1]Folha4!A154 -> 0
P162: =[1]SecundariaMinutaCpfl!A161 -> 0 | Q162: =[1]PrimariaMinutaCpfl!A161 -> 0 | R162: =[1]NeutroMinutaCpfl!A161 -> 0 | U162: 124 | AK162: =[1]Folha4!A155 -> 0
P163: =[1]SecundariaMinutaCpfl!A162 -> 0 | Q163: =[1]PrimariaMinutaCpfl!A162 -> 0 | R163: =[1]NeutroMinutaCpfl!A162 -> 0 | U163: 125 | AK163: =[1]Folha4!A156 -> 0
P164: =[1]SecundariaMinutaCpfl!A163 -> 0 | Q164: =[1]PrimariaMinutaCpfl!A163 -> 0 | R164: =[1]NeutroMinutaCpfl!A163 -> 0 | U164: 126 | AK164: =[1]Folha4!A157 -> 0
P165: =[1]SecundariaMinutaCpfl!A164 -> 0 | Q165: =[1]PrimariaMinutaCpfl!A164 -> 0 | R165: =[1]NeutroMinutaCpfl!A164 -> 0 | U165: 127 | AK165: =[1]Folha4!A158 -> 0
P166: =[1]SecundariaMinutaCpfl!A165 -> 0 | Q166: =[1]PrimariaMinutaCpfl!A165 -> 0 | R166: =[1]NeutroMinutaCpfl!A165 -> 0 | U166: 128 | AK166: =[1]Folha4!A159 -> 0
P167: =[1]SecundariaMinutaCpfl!A166 -> 0 | Q167: =[1]PrimariaMinutaCpfl!A166 -> 0 | R167: =[1]NeutroMinutaCpfl!A166 -> 0 | U167: 129 | AK167: =[1]Folha4!A160 -> 0
P168: =[1]SecundariaMinutaCpfl!A167 -> 0 | Q168: =[1]PrimariaMinutaCpfl!A167 -> 0 | R168: =[1]NeutroMinutaCpfl!A167 -> 0 | U168: 130 | AK168: =[1]Folha4!A161 -> 0
P169: =[1]SecundariaMinutaCpfl!A168 -> 0 | Q169: =[1]PrimariaMinutaCpfl!A168 -> 0 | R169: =[1]NeutroMinutaCpfl!A168 -> 0 | U169: 131 | AK169: =[1]Folha4!A162 -> 0
P170: =[1]SecundariaMinutaCpfl!A169 -> 0 | Q170: =[1]PrimariaMinutaCpfl!A169 -> 0 | R170: =[1]NeutroMinutaCpfl!A169 -> 0 | U170: 132 | AK170: =[1]Folha4!A163 -> 0
P171: =[1]SecundariaMinutaCpfl!A170 -> 0 | Q171: =[1]PrimariaMinutaCpfl!A170 -> 0 | R171: =[1]NeutroMinutaCpfl!A170 -> 0 | U171: 133 | AK171: =[1]Folha4!A164 -> 0
P172: =[1]SecundariaMinutaCpfl!A171 -> 0 | Q172: =[1]PrimariaMinutaCpfl!A171 -> 0 | R172: =[1]NeutroMinutaCpfl!A171 -> 0 | U172: 134 | AK172: =[1]Folha4!A165 -> 0
P173: =[1]SecundariaMinutaCpfl!A172 -> 0 | Q173: =[1]PrimariaMinutaCpfl!A172 -> 0 | R173: =[1]NeutroMinutaCpfl!A172 -> 0 | U173: 135 | AK173: =[1]Folha4!A166 -> 0
P174: =[1]SecundariaMinutaCpfl!A173 -> 0 | Q174: =[1]PrimariaMinutaCpfl!A173 -> 0 | R174: =[1]NeutroMinutaCpfl!A173 -> 0 | U174: 136 | AK174: =[1]Folha4!A167 -> 0
P175: =[1]SecundariaMinutaCpfl!A174 -> 0 | Q175: =[1]PrimariaMinutaCpfl!A174 -> 0 | R175: =[1]NeutroMinutaCpfl!A174 -> 0 | U175: 137 | AK175: =[1]Folha4!A168 -> 0
P176: =[1]SecundariaMinutaCpfl!A175 -> 0 | Q176: =[1]PrimariaMinutaCpfl!A175 -> 0 | R176: =[1]NeutroMinutaCpfl!A175 -> 0 | U176: 138 | AK176: =[1]Folha4!A169 -> 0
P177: =[1]SecundariaMinutaCpfl!A176 -> 0 | Q177: =[1]PrimariaMinutaCpfl!A176 -> 0 | R177: =[1]NeutroMinutaCpfl!A176 -> 0 | U177: 139 | AK177: =[1]Folha4!A170 -> 0
P178: =[1]SecundariaMinutaCpfl!A177 -> 0 | Q178: =[1]PrimariaMinutaCpfl!A177 -> 0 | R178: =[1]NeutroMinutaCpfl!A177 -> 0 | U178: 140 | AK178: =[1]Folha4!A171 -> 0
P179: =[1]SecundariaMinutaCpfl!A178 -> 0 | Q179: =[1]PrimariaMinutaCpfl!A178 -> 0 | R179: =[1]NeutroMinutaCpfl!A178 -> 0 | U179: 141 | AK179: =[1]Folha4!A172 -> 0
P180: =[1]SecundariaMinutaCpfl!A179 -> 0 | Q180: =[1]PrimariaMinutaCpfl!A179 -> 0 | R180: =[1]NeutroMinutaCpfl!A179 -> 0 | U180: 142 | AK180: =[1]Folha4!A173 -> 0
P181: =[1]SecundariaMinutaCpfl!A180 -> 0 | Q181: =[1]PrimariaMinutaCpfl!A180 -> 0 | R181: =[1]NeutroMinutaCpfl!A180 -> 0 | U181: 143 | AK181: =[1]Folha4!A174 -> 0
P182: =[1]SecundariaMinutaCpfl!A181 -> 0 | Q182: =[1]PrimariaMinutaCpfl!A181 -> 0 | R182: =[1]NeutroMinutaCpfl!A181 -> 0 | U182: 144 | AK182: =[1]Folha4!A175 -> 0
P183: =[1]SecundariaMinutaCpfl!A182 -> 0 | Q183: =[1]PrimariaMinutaCpfl!A182 -> 0 | R183: =[1]NeutroMinutaCpfl!A182 -> 0 | U183: 145 | AK183: =[1]Folha4!A176 -> 0
P184: =[1]SecundariaMinutaCpfl!A183 -> 0 | Q184: =[1]PrimariaMinutaCpfl!A183 -> 0 | R184: =[1]NeutroMinutaCpfl!A183 -> 0 | U184: 146 | AK184: =[1]Folha4!A177 -> 0
P185: =[1]SecundariaMinutaCpfl!A184 -> 0 | Q185: =[1]PrimariaMinutaCpfl!A184 -> 0 | R185: =[1]NeutroMinutaCpfl!A184 -> 0 | U185: 147 | AK185: =[1]Folha4!A178 -> 0
P186: =[1]SecundariaMinutaCpfl!A185 -> 0 | Q186: =[1]PrimariaMinutaCpfl!A185 -> 0 | R186: =[1]NeutroMinutaCpfl!A185 -> 0 | U186: 148 | AK186: =[1]Folha4!A179 -> 0
P187: =[1]SecundariaMinutaCpfl!A186 -> 0 | Q187: =[1]PrimariaMinutaCpfl!A186 -> 0 | R187: =[1]NeutroMinutaCpfl!A186 -> 0 | U187: 149 | AK187: =[1]Folha4!A180 -> 0
P188: =[1]SecundariaMinutaCpfl!A187 -> 0 | Q188: =[1]PrimariaMinutaCpfl!A187 -> 0 | R188: =[1]NeutroMinutaCpfl!A187 -> 0 | U188: 150 | AK188: =[1]Folha4!A181 -> 0
P189: =[1]SecundariaMinutaCpfl!A188 -> 0 | Q189: =[1]PrimariaMinutaCpfl!A188 -> 0 | R189: =[1]NeutroMinutaCpfl!A188 -> 0 | U189: 151 | AK189: =[1]Folha4!A182 -> 0
P190: =[1]SecundariaMinutaCpfl!A189 -> 0 | Q190: =[1]PrimariaMinutaCpfl!A189 -> 0 | R190: =[1]NeutroMinutaCpfl!A189 -> 0 | U190: 152 | AK190: =[1]Folha4!A183 -> 0
P191: =[1]SecundariaMinutaCpfl!A190 -> 0 | Q191: =[1]PrimariaMinutaCpfl!A190 -> 0 | R191: =[1]NeutroMinutaCpfl!A190 -> 0 | U191: 153 | AK191: =[1]Folha4!A184 -> 0
P192: =[1]SecundariaMinutaCpfl!A191 -> 0 | Q192: =[1]PrimariaMinutaCpfl!A191 -> 0 | R192: =[1]NeutroMinutaCpfl!A191 -> 0 | U192: 154 | AK192: =[1]Folha4!A185 -> 0
P193: =[1]SecundariaMinutaCpfl!A192 -> 0 | Q193: =[1]PrimariaMinutaCpfl!A192 -> 0 | R193: =[1]NeutroMinutaCpfl!A192 -> 0 | U193: 155 | AK193: =[1]Folha4!A186 -> 0
P194: =[1]SecundariaMinutaCpfl!A193 -> 0 | Q194: =[1]PrimariaMinutaCpfl!A193 -> 0 | R194: =[1]NeutroMinutaCpfl!A193 -> 0 | U194: 156 | AK194: =[1]Folha4!A187 -> 0
P195: =[1]SecundariaMinutaCpfl!A194 -> 0 | Q195: =[1]PrimariaMinutaCpfl!A194 -> 0 | R195: =[1]NeutroMinutaCpfl!A194 -> 0 | U195: 157 | AK195: =[1]Folha4!A188 -> 0
P196: =[1]SecundariaMinutaCpfl!A195 -> 0 | Q196: =[1]PrimariaMinutaCpfl!A195 -> 0 | R196: =[1]NeutroMinutaCpfl!A195 -> 0 | U196: 158 | AK196: =[1]Folha4!A189 -> 0
P197: =[1]SecundariaMinutaCpfl!A196 -> 0 | Q197: =[1]PrimariaMinutaCpfl!A196 -> 0 | R197: =[1]NeutroMinutaCpfl!A196 -> 0 | U197: 159 | AK197: =[1]Folha4!A190 -> 0
P198: =[1]SecundariaMinutaCpfl!A197 -> 0 | Q198: =[1]PrimariaMinutaCpfl!A197 -> 0 | R198: =[1]NeutroMinutaCpfl!A197 -> 0 | U198: 160 | AK198: =[1]Folha4!A191 -> 0
P199: =[1]SecundariaMinutaCpfl!A198 -> 0 | Q199: =[1]PrimariaMinutaCpfl!A198 -> 0 | R199: =[1]NeutroMinutaCpfl!A198 -> 0 | U199: 161 | AK199: =[1]Folha4!A192 -> 0
P200: =[1]SecundariaMinutaCpfl!A199 -> 0 | Q200: =[1]PrimariaMinutaCpfl!A199 -> 0 | R200: =[1]NeutroMinutaCpfl!A199 -> 0 | U200: 162 | AK200: =[1]Folha4!A193 -> 0
... 198 more rows

Sheet Completo_Esforço_CPFL_Paulista
P1: Secundária | Q1: PrimariaMinutaCpfl | R1: NeutroMinutaCpfl | T1: Altura Poste
C2: 70 | P2: =[1]SecundariaMinutaCpfl!A1 ->  | Q2: =[1]PrimariaMinutaCpfl!A1 ->  | R2: =[1]NeutroMinutaCpfl!A1 ->  | T2: 7
C3: ALTURA POSTE | D3: 11 | J3: http://www.mabjo.com.br/ | P3: =[1]SecundariaMinutaCpfl!A2 -> 3 P 16 mm² Vão 35m | Q3: =[1]PrimariaMinutaCpfl!A2 -> 3 E 70 mm² Vão 35m | R3: =[1]NeutroMinutaCpfl!A2 -> 1 CA 02 AWG Vão 35m | T3: 8 | U3: ÂNGULO
C4: ESFORÇO | D4: 1 | F4: 2 | H4: 3 | J4: 4 | L4: 5 | P4: =[1]SecundariaMinutaCpfl!A3 -> 3 P 25 mm² Vão 35m | Q4: =[1]PrimariaMinutaCpfl!A3 -> 3 E 185 mm² Vão 35m | R4: =[1]NeutroMinutaCpfl!A3 -> 1 CA 1/0 AWG Vão 35m | T4: 9
C5: 0 | E5: 90 | G5: 230 | P5: =[1]SecundariaMinutaCpfl!A4 -> 3 P 35 mm² Vão 35m | Q5: =[1]PrimariaMinutaCpfl!A4 ->  | R5: =[1]NeutroMinutaCpfl!A4 -> 1 CA 2/0 AWG Vão 35m | T5: 10
C6: ÂNGULO | D6: 0 | F6: 110 | H6: 320 | J6: 230 | L6: 190 | P6: =[1]SecundariaMinutaCpfl!A5 -> 3 P 50 mm² Vão 35m | Q6: =[1]PrimariaMinutaCpfl!A5 -> 3 E 70 mm² Vão 80m | R6: =[1]NeutroMinutaCpfl!A5 -> 1 CA 4/0 AWG Vão 35m | T6: 11 | Y6: =D6+180 -> 180 | AA6: =F6+180 -> 290 | AC6: =H6+180 -> 500 | AE6: =J6+180 -> 410 | AG6: =L6+180 -> 370 | AK6: =[1]Folha4!A2 -> A02
C7: PRIMÁRIA | D7: 3 E 70 mm² Vão 35m | H7: 3 E 185 mm² Vão 35m | P7: =[1]SecundariaMinutaCpfl!A6 -> 3 P 70 mm² Vão 35m | Q7: =[1]PrimariaMinutaCpfl!A6 -> 3 E 185 mm² Vão 80m | R7: =[1]NeutroMinutaCpfl!A6 -> 1 CA 336,4 MCM Vão 35m | T7: 12 | AK7: =[1]Folha4!A3 -> A10
C8: NEUTRO PRIM. | P8: =[1]SecundariaMinutaCpfl!A7 -> 3 P 120 mm² Vão 35m | Q8: =[1]PrimariaMinutaCpfl!A7 -> 3 CA 02 AWG Vão 35m | R8: =[1]NeutroMinutaCpfl!A7 -> 1 CA 477 MCM Vão 35m | T8: 13 | AK8: =[1]Folha4!A4 -> A20
C9: RED. TENSÃO | D9: 0 | F9: 0 | H9: 0 | J9: 0 | L9: 0 | P9: =[1]SecundariaMinutaCpfl!A8 ->  | Q9: =[1]PrimariaMinutaCpfl!A8 -> 3 CA 1/0 AWG Vão 35m | R9: =[1]NeutroMinutaCpfl!A8 ->  | T9: 14 | AK9: =[1]Folha4!A5 -> A40
C10: DISTÂNCIA PRIMÁRIA TOPO CM | D10: 0 | F10: 0 | H10: 0 | J10: 0 | L10: 0 | P10: =[1]SecundariaMinutaCpfl!A9 -> 3 CA 02 AWG Vão 35m | Q10: =[1]PrimariaMinutaCpfl!A9 -> 3 CA 2/0 AWG Vão 35m | R10: =[1]NeutroMinutaCpfl!A9 -> 1 CA 02 AWG Vão 80m | T10: 15 | AK10: =[1]Folha4!A6 -> A33
C11: SEC. FASE | D11: 3 P 50 mm² Vão 35m | F11: 3 P 70 mm² Vão 35m | L11: 3 P 50 mm² Vão 35m | P11: =[1]SecundariaMinutaCpfl!A10 -> 3 CA 1/0 AWG Vão 35m | Q11: =[1]PrimariaMinutaCpfl!A10 -> 3 CA 4/0 AWG Vão 35m | R11: =[1]NeutroMinutaCpfl!A10 -> 1 CA 1/0 AWG Vão 80m | T11: 16 | X11: =IF(X12>180,X12-180,X12+180) -> 339.5421067 | AK11: =[1]Folha4!A7 -> A47
C12: SEC. NEUTRO | D12: 1 CA 02 AWG Vão 35m | F12: 1 CA 1/0 AWG Vão 35m | L12: 1 CA 1/0 AWG Vão 35m | P12: =[1]SecundariaMinutaCpfl!A11 -> 3 CA 2/0 AWG Vão 35m | Q12: =[1]PrimariaMinutaCpfl!A11 -> 3 CA 336,4 MCM Vão 35m | R12: =[1]NeutroMinutaCpfl!A11 -> 1 CA 2/0 AWG Vão 80m | T12: 17 | X12: =IF(PreAngulo_Paulista!A3>0,PreAngulo_Paulista!C10,PreAngulo_Paulista!D10) -> 159.5421067 | AK12: =[1]Folha4!A8 -> CU06
C13: RED. TENSÃO | D13: 0 | F13: 0 | H13: 0 | J13: 0 | L13: 0 | P13: =[1]SecundariaMinutaCpfl!A12 -> 3 CA 4/0 AWG Vão 35m | Q13: =[1]PrimariaMinutaCpfl!A12 -> 3 CA 477 MCM Vão 35m | R13: =[1]NeutroMinutaCpfl!A12 -> 1 CA 4/0 AWG Vão 80m | T13: 18 | AK13: =[1]Folha4!A9 -> CU02
C14: DISTÂNCIA SECUNDÁRIA SOLO CM | D14: 720 | F14: 720 | H14: 720 | J14: 720 | L14: 720 | P14: =[1]SecundariaMinutaCpfl!A13 -> 3 CA 336,4 MCM Vão 35m | Q14: =[1]PrimariaMinutaCpfl!A13 ->  | R14: =[1]NeutroMinutaCpfl!A13 -> 1 CA 336,4 MCM Vão 80m | T14: 19 | AK14: =[1]Folha4!A10 -> CU10
C15: TELEFONE | J15: 100 | P15: =[1]SecundariaMinutaCpfl!A14 -> 3 CA 477 MCM Vão 35m | Q15: =[1]PrimariaMinutaCpfl!A14 -> 3 CA 02 AWG Vão 80m | R15: =[1]NeutroMinutaCpfl!A14 -> 1 CA 477 MCM Vão 80m | T15: 20 | AK15: =[1]Folha4!A11 -> CU20
C16: TV CABO | P16: =[1]SecundariaMinutaCpfl!A15 ->  | Q16: =[1]PrimariaMinutaCpfl!A15 -> 3 CA 1/0 AWG Vão 80m | R16: =[1]NeutroMinutaCpfl!A15 ->  | AK16: =[1]Folha4!A12 -> CU40
C17: DISTÂNCIA TELEFONE/CABO SOLO CM | D17: 550 | F17: 550 | H17: 550 | J17: 550 | L17: 550 | P17: =[1]SecundariaMinutaCpfl!A16 -> 3 CA 02 AWG Vão 80m | Q17: =[1]PrimariaMinutaCpfl!A16 -> 3 CA 2/0 AWG Vão 80m | R17: =[1]NeutroMinutaCpfl!A16 -> 1 CAA 04 AWG Vão 40m | AK17: =[1]Folha4!A13 -> S04
C18: SUB TOTAL | D18: =IF(L31=1,Pre_Pta_Pir_Sta_Jag!W22,"Atualize: http;//www.mabjo.com.br") -> 540.2258065 | F18: =IF(L31=1,Pre_Pta_Pir_Sta_Jag!W23,"Atualize: http;//www.mabjo.com.br") -> 241.5483871 | H18: =IF(L31=1,Pre_Pta_Pir_Sta_Jag!W24,"Atualize: http;//www.mabjo.com.br") -> 648 | J18: =IF(L31=1,Pre_Pta_Pir_Sta_Jag!W25,"Atualize: http;//www.mabjo.com.br") -> 60.43956044 | L18: =IF(L31=1,Pre_Pta_Pir_Sta_Jag!W26,"Atualize: http;//www.mabjo.com.br") -> 195.0967742 | P18: =[1]SecundariaMinutaCpfl!A17 -> 3 CA 1/0 AWG Vão 80m | Q18: =[1]PrimariaMinutaCpfl!A17 -> 3 CA 4/0 AWG Vão 80m | R18: =[1]NeutroMinutaCpfl!A17 -> 1 CAA 02 AWG Vão 40m | AK18: =[1]Folha4!A14 -> S02
C19: ESFORÇO RESULTANTE | D19: =IF(L31=1,Pre_Pta_Pir_Sta_Jag!W27,"Atualize: http;//www.mabjo.com.br") -> 771.6970453 | H19: ÂNGULO RESULTANTE | L19: =IF(D19>0.001,X11,0) -> 339.5421067 | P19: =[1]SecundariaMinutaCpfl!A18 -> 3 CA 2/0 AWG Vão 80m | Q19: =[1]PrimariaMinutaCpfl!A18 -> 3 CA 336,4 MCM Vão 80m | R19: =[1]NeutroMinutaCpfl!A18 -> 1 CAA 1/0 AWG Vão 40m | AK19: =[1]Folha4!A15 -> S10
P20: =[1]SecundariaMinutaCpfl!A19 -> 3 CA 4/0 AWG Vão 80m | Q20: =[1]PrimariaMinutaCpfl!A19 -> 3 CA 477 MCM Vão 80m | R20: =[1]NeutroMinutaCpfl!A19 -> 1 CAA 2/0 AWG Vão 40m | AK20: =[1]Folha4!A16 -> S40
C21: On Line http://www.mabjo.com.br/ | L21: =NOW() -> 2022-07-21T04:50:22.360 | O21: http://www.mabjo.com.br | P21: =[1]SecundariaMinutaCpfl!A20 -> 3 CA 336,4 MCM Vão 80m | Q21: =[1]PrimariaMinutaCpfl!A20 ->  | R21: =[1]NeutroMinutaCpfl!A20 -> 1 CAA 4/0 AWG Vão 40m | AK21: =[1]Folha4!A17 -> S33
H22: contato@mabjo.com.br | N22: Download Cálculo Mecânico Esforço Poste Atualizado | O22: http://www.mabjo.com.br/ | P22: =[1]SecundariaMinutaCpfl!A21 -> 3 CA 477 MCM Vão 80m | Q22: =[1]PrimariaMinutaCpfl!A21 -> 3 CAA 04 AWG Vão 40m | R22: =[1]NeutroMinutaCpfl!A21 ->  | AK22: =[1]Folha4!A18 -> S47
C23: =CONCATENATE("Cálculo Esforço Poste : Plt, Pira, SC e Jg - Versão") -> Cálculo Esforço Poste : Plt, Pira, SC e Jg - Versão | N23: =O28 -> 2016-11-30 | P23: =[1]SecundariaMinutaCpfl!A22 ->  | Q23: =[1]PrimariaMinutaCpfl!A22 -> 3 CAA 02 AWG Vão 40m | R23: =[1]NeutroMinutaCpfl!A22 -> 1 CAA 04 AWG Vão 80m | AK23: =[1]Folha4!A19 -> E70
C24: =N30 ->  | F24: =O30 -> 2018-06-05 | H24: Cálculo customizado para fibra óptica e telefonia | P24: =[1]SecundariaMinutaCpfl!A23 -> 3 CAA 04 AWG Vão 40m | Q24: =[1]PrimariaMinutaCpfl!A23 -> 3 CAA 1/0 AWG Vão 40m | R24: =[1]NeutroMinutaCpfl!A23 -> 1 CAA 02 AWG Vão 80m
P25: =[1]SecundariaMinutaCpfl!A24 -> 3 CAA 02 AWG Vão 40m | Q25: =[1]PrimariaMinutaCpfl!A24 -> 3 CAA 2/0 AWG Vão 40m | R25: =[1]NeutroMinutaCpfl!A24 -> 1 CAA 1/0 AWG Vão 80m
P26: =[1]SecundariaMinutaCpfl!A25 -> 3 CAA 1/0 AWG Vão 40m | Q26: =[1]PrimariaMinutaCpfl!A25 -> 3 CAA 4/0 AWG Vão 40m | R26: =[1]NeutroMinutaCpfl!A25 -> 1 CAA 2/0 AWG Vão 80m
C27: =X12 -> 159.5421067 | P27: =[1]SecundariaMinutaCpfl!A26 -> 3 CAA 2/0 AWG Vão 40m | Q27: =[1]PrimariaMinutaCpfl!A26 ->  | R27: =[1]NeutroMinutaCpfl!A26 -> 1 CAA 4/0 AWG Vão 80m | AK27: =[1]Folha4!A20 -> E185
C28: MEDIDA 1 | D28: 12 | H28: =PreAngulo_Paulista!C10 -> 159.5421067 | N28: Esta Versão | O28: 2016-11-30 | P28: =[1]SecundariaMinutaCpfl!A27 -> 3 CAA 4/0 AWG Vão 40m | Q28: =[1]PrimariaMinutaCpfl!A27 -> 3 CAA 04 AWG Vão 80m | R28: =[1]NeutroMinutaCpfl!A27 -> 1 CAA 336,4 MCM Vão 80m | AK28: =[1]Folha4!A21 -> 0
C29: MEDIDA 2 | D29: 15 | H29: =PreAngulo_Paulista!D10 -> 200.4578933 | J29: Dias Versão | L29: =O30-O28 -> 552 | P29: =[1]SecundariaMinutaCpfl!A28 ->  | Q29: =[1]PrimariaMinutaCpfl!A28 -> 3 CAA 02 AWG Vão 80m | R29: =[1]NeutroMinutaCpfl!A28 ->  | AK29: =[1]Folha4!A22 -> 0
C30: MEDIDA 3 | D30: 10 | J30: PreDiasAtualização | L30: =L21-O30 -> 1507.201648 | N30: =IF([1]Mensagem!B3 <> "",[1]Mensagem!B3,"") ->  | O30: =IF([1]Mensagem!C3 <> "",[1]Mensagem!C3,"") -> 2018-06-05 | P30: =[1]SecundariaMinutaCpfl!A29 -> 3 CAA 04 AWG Vão 80m | Q30: =[1]PrimariaMinutaCpfl!A29 -> 3 CAA 1/0 AWG Vão 80m | R30: =[1]NeutroMinutaCpfl!A29 -> 1 CAA 04 AWG Vão 120m | AK30: =[1]Folha4!A23 -> 0
C31: ÂNGULO | D31: =IF(D30>0,Plan3!C10,"") -> 41.64967227 | J31: Dias Atualização | L31: =IF(AND(L29<3500,L30<3500),1,0) -> 1 | N31: =IF([1]Mensagem!B4 <> "",[1]Mensagem!B4,"") ->  | O31: =IF([1]Mensagem!C4 <> "",[1]Mensagem!C4,"") -> 2018-06-05 | P31: =[1]SecundariaMinutaCpfl!A30 -> 3 CAA 02 AWG Vão 80m | Q31: =[1]PrimariaMinutaCpfl!A30 -> 3 CAA 2/0 AWG Vão 80m | R31: =[1]NeutroMinutaCpfl!A30 -> 1 CAA 02 AWG Vão 120m | AK31: =[1]Folha4!A24 -> 0
N32: =IF([1]Mensagem!B5 <> "",[1]Mensagem!B5,"") ->  | O32: =IF([1]Mensagem!C5 <> "",[1]Mensagem!C5,"") ->  | P32: =[1]SecundariaMinutaCpfl!A31 -> 3 CAA 1/0 AWG Vão 80m | Q32: =[1]PrimariaMinutaCpfl!A31 -> 3 CAA 4/0 AWG Vão 80m | R32: =[1]NeutroMinutaCpfl!A31 -> 1 CAA 1/0 AWG Vão 120m | AK32: =[1]Folha4!A25 -> 0
N33: =IF([1]Mensagem!B6 <> "",[1]Mensagem!B6,"") ->  | O33: =IF([1]Mensagem!C6 <> "",[1]Mensagem!C6,"") ->  | P33: =[1]SecundariaMinutaCpfl!A32 -> 3 CAA 2/0 AWG Vão 80m | Q33: =[1]PrimariaMinutaCpfl!A32 -> 3 CAA 336,4 MCM Vão 80m | R33: =[1]NeutroMinutaCpfl!A32 -> 1 CAA 2/0 AWG Vão 120m | U33: 0 | AK33: =[1]Folha4!A26 -> 0
C34: Coordenada X | D34: Coordenada Y | N34: =IF([1]Mensagem!B7 <> "",[1]Mensagem!B7,"") ->  | O34: =IF([1]Mensagem!C7 <> "",[1]Mensagem!C7,"") ->  | P34: =[1]SecundariaMinutaCpfl!A33 -> 3 CAA 4/0 AWG Vão 80m | Q34: =[1]PrimariaMinutaCpfl!A33 ->  | R34: =[1]NeutroMinutaCpfl!A33 -> 1 CAA 4/0 AWG Vão 120m | U34: 1 | AK34: =[1]Folha4!A27 -> 0
C35: 29829000 | D35: 745407001 | J35: Poste 1 | N35: =IF([1]Mensagem!B8 <> "",[1]Mensagem!B8,"") ->  | O35: =IF([1]Mensagem!C8 <> "",[1]Mensagem!C8,"") ->  | P35: =[1]SecundariaMinutaCpfl!A34 -> 3 CAA 336,4 MCM Vão 80m | Q35: =[1]PrimariaMinutaCpfl!A34 -> 3 CAA 04 AWG Vão 120m | R35: =[1]NeutroMinutaCpfl!A34 -> 1 CAA 336,4 MCM Vão 120m | U35: 2 | AK35: =[1]Folha4!A28 -> 0
C36: 29229000 | D36: 745406001 | J36: Poste Meio | N36: =IF([1]Mensagem!B9 <> "",[1]Mensagem!B9,"") ->  | O36: =IF([1]Mensagem!C9 <> "",[1]Mensagem!C9,"") ->  | P36: =[1]SecundariaMinutaCpfl!A35 ->  | Q36: =[1]PrimariaMinutaCpfl!A35 -> 3 CAA 02 AWG Vão 120m | R36: =[1]NeutroMinutaCpfl!A35 ->  | U36: 3 | AK36: =[1]Folha4!A29 -> 0
C37: Distância Metros | D37: =Plan3!E26/100 -> 6000.008333 | N37: =IF([1]Mensagem!B10 <> "",[1]Mensagem!B10,"") ->  | O37: =IF([1]Mensagem!C10 <> "",[1]Mensagem!C10,"") ->  | P37: =[1]SecundariaMinutaCpfl!A36 -> 3 CAA 04 AWG Vão 120m | Q37: =[1]PrimariaMinutaCpfl!A36 -> 3 CAA 1/0 AWG Vão 120m | R37: =[1]NeutroMinutaCpfl!A36 -> 1 CU 06 AWG Vão 35m | U37: 4 | AK37: =[1]Folha4!A30 -> 0
C38: Ângulo | D38: =Plan3!E29 -> 89.90450712 | N38: =IF([1]Mensagem!B11 <> "",[1]Mensagem!B11,"") ->  | O38: =IF([1]Mensagem!C11 <> "",[1]Mensagem!C11,"") ->  | P38: =[1]SecundariaMinutaCpfl!A37 -> 3 CAA 02 AWG Vão 120m | Q38: =[1]PrimariaMinutaCpfl!A37 -> 3 CAA 2/0 AWG Vão 120m | R38: =[1]NeutroMinutaCpfl!A37 -> 1 CU 02 AWG Vão 35m | U38: 5 | AK38: =[1]Folha4!A31 -> 0
N39: =IF([1]Mensagem!B12 <> "",[1]Mensagem!B12,"") ->  | O39: =IF([1]Mensagem!C12 <> "",[1]Mensagem!C12,"") ->  | P39: =[1]SecundariaMinutaCpfl!A38 -> 3 CAA 1/0 AWG Vão 120m | Q39: =[1]PrimariaMinutaCpfl!A38 -> 3 CAA 4/0 AWG Vão 120m | R39: =[1]NeutroMinutaCpfl!A38 -> 1 CU 1/0 AWG Vão 35m | U39: 6 | AK39: =[1]Folha4!A32 -> 0
N40: =IF([1]Mensagem!B13 <> "",[1]Mensagem!B13,"") ->  | O40: =IF([1]Mensagem!C13 <> "",[1]Mensagem!C13,"") ->  | P40: =[1]SecundariaMinutaCpfl!A39 -> 3 CAA 2/0 AWG Vão 120m | Q40: =[1]PrimariaMinutaCpfl!A39 -> 3 CAA 336,4 MCM Vão 120m | R40: =[1]NeutroMinutaCpfl!A39 -> 1 CU 2/0 AWG Vão 35m | U40: 7 | AK40: =[1]Folha4!A33 -> 0
C41: Coordenada X | D41: Coordenada Y | N41: =IF([1]Mensagem!B14 <> "",[1]Mensagem!B14,"") ->  | O41: =IF([1]Mensagem!C14 <> "",[1]Mensagem!C14,"") -> Cálculo Esforço | P41: =[1]SecundariaMinutaCpfl!A40 -> 3 CAA 4/0 AWG Vão 120m | Q41: =[1]PrimariaMinutaCpfl!A40 ->  | R41: =[1]NeutroMinutaCpfl!A40 -> 1 CU 4/0 AWG Vão 35m | U41: 8 | AK41: =[1]Folha4!A34 -> 0
C42: =C36 -> 29229000 | D42: =D36 -> 745406001 | J42: Poste Meio | N42: =IF([1]Mensagem!B15 <> "",[1]Mensagem!B15,"") ->  | O42: =IF([1]Mensagem!C15 <> "",[1]Mensagem!C15,"") -> Customizado | P42: =[1]SecundariaMinutaCpfl!A41 -> 3 CAA 336,4 MCM Vão 120m | Q42: =[1]PrimariaMinutaCpfl!A41 -> 3 15kv 240 mm² Vão 35m | R42: =[1]NeutroMinutaCpfl!A41 -> 0 | U42: 9 | AK42: =[1]Folha4!A35 -> 0
C43: 29279000 | D43: 748406001 | J43: Poste 3 | N43: =IF([1]Mensagem!B16 <> "",[1]Mensagem!B16,"") ->  | O43: =IF([1]Mensagem!C16 <> "",[1]Mensagem!C16,"") -> para cabos de | P43: =[1]SecundariaMinutaCpfl!A42 ->  | Q43: =[1]PrimariaMinutaCpfl!A42 -> 3 25kv 240 mm² Vão 35m | R43: =[1]NeutroMinutaCpfl!A42 -> 0 | U43: 10 | AK43: =[1]Folha4!A36 -> 0
C44: Distância Metros | D44: =Plan3!E41/100 -> 30004.16638 | N44: =IF([1]Mensagem!B17 <> "",[1]Mensagem!B17,"") ->  | O44: =IF([1]Mensagem!C17 <> "",[1]Mensagem!C17,"") -> Telefonia e | P44: =[1]SecundariaMinutaCpfl!A43 -> 3 15kv 240 mm² Vão 35m | Q44: =[1]PrimariaMinutaCpfl!A43 -> 3 35kv 240 mm² Vão 35m | R44: =[1]NeutroMinutaCpfl!A43 -> 0 | U44: 11 | AK44: =[1]Folha4!A37 -> 0
C45: Ângulo | D45: =Plan3!E44 -> 0.9548412539 | N45: =IF([1]Mensagem!B18 <> "",[1]Mensagem!B18,"") ->  | O45: =IF([1]Mensagem!C18 <> "",[1]Mensagem!C18,"") -> Comunicação | P45: =[1]SecundariaMinutaCpfl!A44 -> 3 25kv 240 mm² Vão 35m | Q45: =[1]PrimariaMinutaCpfl!A44 ->  | R45: =[1]NeutroMinutaCpfl!A44 -> 0 | U45: 12 | AK45: =[1]Folha4!A38 -> 0
N46: =IF([1]Mensagem!B19 <> "",[1]Mensagem!B19,"") ->  | O46: =IF([1]Mensagem!C19 <> "",[1]Mensagem!C19,"") -> http://www.mabjo.com.br/Default.aspx | P46: =[1]SecundariaMinutaCpfl!A45 -> 3 35kv 240 mm² Vão 35m | Q46: =[1]PrimariaMinutaCpfl!A45 -> 3 CU 06 AWG Vão 35m | R46: =[1]NeutroMinutaCpfl!A45 -> 0 | U46: 13 | AK46: =[1]Folha4!A39 -> 0
C47: Ângulo Resultante | D47: =D45-D38 -> -88.94966587 | N47: =IF([1]Mensagem!B20 <> "",[1]Mensagem!B20,"") ->  | O47: =IF([1]Mensagem!C20 <> "",[1]Mensagem!C20,"") ->  | P47: =[1]SecundariaMinutaCpfl!A46 ->  | Q47: =[1]PrimariaMinutaCpfl!A46 -> 3 CU 02 AWG Vão 35m | R47: =[1]NeutroMinutaCpfl!A46 -> 0 | U47: 14 | AK47: =[1]Folha4!A40 -> 0
P48: =[1]SecundariaMinutaCpfl!A47 -> 3 CU 06 AWG Vão 35m | Q48: =[1]PrimariaMinutaCpfl!A47 -> 3 CU 1/0 AWG Vão 35m | R48: =[1]NeutroMinutaCpfl!A47 -> 0 | U48: 15 | AK48: =[1]Folha4!A41 -> 0
P49: =[1]SecundariaMinutaCpfl!A48 -> 3 CU 02 AWG Vão 35m | Q49: =[1]PrimariaMinutaCpfl!A48 -> 3 CU 2/0 AWG Vão 35m | R49: =[1]NeutroMinutaCpfl!A48 -> 0 | U49: 16 | AK49: =[1]Folha4!A42 -> 0
C50: Cálculo Flecha | D50: Primário por Fase | P50: =[1]SecundariaMinutaCpfl!A49 -> 3 CU 1/0 AWG Vão 35m | Q50: =[1]PrimariaMinutaCpfl!A49 -> 3 CU 4/0 AWG Vão 35m | R50: =[1]NeutroMinutaCpfl!A49 -> 0 | U50: 17 | AK50: =[1]Folha4!A43 -> 0
C51: Cabo | D51: A33 | P51: =[1]SecundariaMinutaCpfl!A50 -> 3 CU 2/0 AWG Vão 35m | Q51: =[1]PrimariaMinutaCpfl!A50 ->  | R51: =[1]NeutroMinutaCpfl!A50 -> 0 | U51: 18 | AK51: =[1]Folha4!A44 -> 0
C52: Distância | D52: 80 | P52: =[1]SecundariaMinutaCpfl!A51 -> 3 CU 4/0 AWG Vão 35m | Q52: =[1]PrimariaMinutaCpfl!A51 -> 2 CA 02 AWG Vão 35m | R52: =[1]NeutroMinutaCpfl!A51 -> 0 | U52: 18 | AK52: =[1]Folha4!A45 -> 0
C53: Redução Tensão % | P53: =[1]SecundariaMinutaCpfl!A52 ->  | Q53: =[1]PrimariaMinutaCpfl!A52 -> 2 CA 1/0 AWG Vão 35m | R53: =[1]NeutroMinutaCpfl!A52 -> 0 | AK53: =[1]Folha4!A46 -> 0
C54: Amperes | D54: =VLOOKUP(D51,[1]Folha4!A2:G27,7,0) -> 395 | J54: Esforço Trifásico | P54: =[1]SecundariaMinutaCpfl!A53 -> 2 CA 02 AWG Vão 35m | Q54: =[1]PrimariaMinutaCpfl!A53 -> 2 CA 2/0 AWG Vão 35m | R54: =[1]NeutroMinutaCpfl!A53 -> 0 | AK54: =[1]Folha4!A47 -> 0
C55: Esforço Urbano | D55: =N55-N57 -> 258 | J55: =D55*3 -> 774 | N55: =VLOOKUP(D51,[1]Folha4!A2:E27,2,0) -> 258 | P55: =[1]SecundariaMinutaCpfl!A54 -> 2 CA 1/0 AWG Vão 35m | Q55: =[1]PrimariaMinutaCpfl!A54 -> 2 CA 4/0 AWG Vão 35m | R55: =[1]NeutroMinutaCpfl!A54 -> 0 | AK55: =[1]Folha4!A48 -> 0
C56: Esforço Rural | D56: =N56-N58 -> 900 | J56: =D56*3 -> 2700 | N56: =VLOOKUP(D51,[1]Folha4!A2:E27,3,0) -> 900 | P56: =[1]SecundariaMinutaCpfl!A55 -> 2 CA 2/0 AWG Vão 35m | Q56: =[1]PrimariaMinutaCpfl!A55 -> 2 CA 336,4 MCM Vão 35m | R56: =[1]NeutroMinutaCpfl!A55 -> 0 | AK56: =[1]Folha4!A49 -> 0
C57: Kg/m | D57: =VLOOKUP(D51,[1]Folha4!A1:F27,6,0) -> 0.468 | N57: =D53*N55/100 -> 0 | P57: =[1]SecundariaMinutaCpfl!A56 -> 2 CA 4/0 AWG Vão 35m | Q57: =[1]PrimariaMinutaCpfl!A56 -> 2 CA 477 MCM Vão 35m | R57: =[1]NeutroMinutaCpfl!A56 -> 0 | AK57: =[1]Folha4!A50 -> 0
C58: Flecha Ubano | D58: =IF(D55>0,(D57*(D52*D52))/(8*D55),"") -> 1.451162791 | N58: =D53*N56/100 -> 0 | P58: =[1]SecundariaMinutaCpfl!A57 -> 2 CA 336,4 MCM Vão 35m | Q58: =[1]PrimariaMinutaCpfl!A57 ->  | R58: =[1]NeutroMinutaCpfl!A57 -> 0 | U58: 18 | AK58: =[1]Folha4!A51 -> 0
C59: Flecha Rural | D59: =IF(D56>0,(D57*(D52*D52))/(8*D56),"") -> 0.416 | P59: =[1]SecundariaMinutaCpfl!A58 -> 2 CA 477 MCM Vão 35m | Q59: =[1]PrimariaMinutaCpfl!A58 -> 2 CA 02 AWG Vão 80m | R59: =[1]NeutroMinutaCpfl!A58 -> 0 | U59: 18 | AK59: =[1]Folha4!A52 -> 0
P60: =[1]SecundariaMinutaCpfl!A59 ->  | Q60: =[1]PrimariaMinutaCpfl!A59 -> 2 CA 1/0 AWG Vão 80m | R60: =[1]NeutroMinutaCpfl!A59 -> 0 | U60: 18 | AK60: =[1]Folha4!A53 -> 0
P61: =[1]SecundariaMinutaCpfl!A60 -> 2 CA 02 AWG Vão 80m | Q61: =[1]PrimariaMinutaCpfl!A60 -> 2 CA 2/0 AWG Vão 80m | R61: =[1]NeutroMinutaCpfl!A60 -> 0 | U61: 18 | AK61: =[1]Folha4!A54 -> 0
C62: =VLOOKUP(D51,[1]Folha4!A2:E27,2,0) -> 258 | P62: =[1]SecundariaMinutaCpfl!A61 -> 2 CA 1/0 AWG Vão 80m | Q62: =[1]PrimariaMinutaCpfl!A61 -> 2 CA 4/0 AWG Vão 80m | R62: =[1]NeutroMinutaCpfl!A61 -> 0 | U62: 18 | AK62: =[1]Folha4!A55 -> 0
P63: =[1]SecundariaMinutaCpfl!A62 -> 2 CA 2/0 AWG Vão 80m | Q63: =[1]PrimariaMinutaCpfl!A62 -> 2 CA 336,4 MCM Vão 80m | R63: =[1]NeutroMinutaCpfl!A62 -> 0 | U63: 18 | AK63: =[1]Folha4!A56 -> 0
P64: =[1]SecundariaMinutaCpfl!A63 -> 2 CA 4/0 AWG Vão 80m | Q64: =[1]PrimariaMinutaCpfl!A63 -> 2 CA 477 MCM Vão 80m | R64: =[1]NeutroMinutaCpfl!A63 -> 0 | U64: 18 | AK64: =[1]Folha4!A57 -> 0
P65: =[1]SecundariaMinutaCpfl!A64 -> 2 CA 336,4 MCM Vão 80m | Q65: =[1]PrimariaMinutaCpfl!A64 ->  | R65: =[1]NeutroMinutaCpfl!A64 -> 0 | U65: 18 | AK65: =[1]Folha4!A58 -> 0
P66: =[1]SecundariaMinutaCpfl!A65 -> 2 CA 477 MCM Vão 80m | Q66: =[1]PrimariaMinutaCpfl!A65 -> 2 CA 04 AWG Vão 40m | R66: =[1]NeutroMinutaCpfl!A65 -> 0 | U66: 18 | AK66: =[1]Folha4!A59 -> 0
P67: =[1]SecundariaMinutaCpfl!A66 ->  | Q67: =[1]PrimariaMinutaCpfl!A66 -> 2 CA 02 AWG Vão 40m | R67: =[1]NeutroMinutaCpfl!A66 -> 0 | U67: 18 | AK67: =[1]Folha4!A60 -> 0
P68: =[1]SecundariaMinutaCpfl!A67 -> 2 CA 04 AWG Vão 40m | Q68: =[1]PrimariaMinutaCpfl!A67 -> 2 CA 1/0 AWG Vão 40m | R68: =[1]NeutroMinutaCpfl!A67 -> 0 | U68: 18 | AK68: =[1]Folha4!A61 -> 0
P69: =[1]SecundariaMinutaCpfl!A68 -> 2 CA 02 AWG Vão 40m | Q69: =[1]PrimariaMinutaCpfl!A68 -> 2 CA 2/0 AWG Vão 40m | R69: =[1]NeutroMinutaCpfl!A68 -> 0 | U69: 18 | AK69: =[1]Folha4!A62 -> 0
P70: =[1]SecundariaMinutaCpfl!A69 -> 2 CA 1/0 AWG Vão 40m | Q70: =[1]PrimariaMinutaCpfl!A69 -> 2 CA 4/0 AWG Vão 40m | R70: =[1]NeutroMinutaCpfl!A69 -> 0 | U70: 18 | AK70: =[1]Folha4!A63 -> 0
P71: =[1]SecundariaMinutaCpfl!A70 -> 2 CA 2/0 AWG Vão 40m | Q71: =[1]PrimariaMinutaCpfl!A70 ->  | R71: =[1]NeutroMinutaCpfl!A70 -> 0 | U71: 18 | AK71: =[1]Folha4!A64 -> 0
P72: =[1]SecundariaMinutaCpfl!A71 -> 2 CA 4/0 AWG Vão 40m | Q72: =[1]PrimariaMinutaCpfl!A71 -> 2 CAA 04 AWG Vão 80m | R72: =[1]NeutroMinutaCpfl!A71 -> 0 | U72: 18 | AK72: =[1]Folha4!A65 -> 0
P73: =[1]SecundariaMinutaCpfl!A72 ->  | Q73: =[1]PrimariaMinutaCpfl!A72 -> 2 CAA 02 AWG Vão 80m | R73: =[1]NeutroMinutaCpfl!A72 -> 0 | U73: 35 | AK73: =[1]Folha4!A66 -> 0
P74: =[1]SecundariaMinutaCpfl!A73 -> 2 CAA 04 AWG Vão 80m | Q74: =[1]PrimariaMinutaCpfl!A73 -> 2 CAA 1/0 AWG Vão 80m | R74: =[1]NeutroMinutaCpfl!A73 -> 0 | U74: 36 | AK74: =[1]Folha4!A67 -> 0
P75: =[1]SecundariaMinutaCpfl!A74 -> 2 CAA 02 AWG Vão 80m | Q75: =[1]PrimariaMinutaCpfl!A74 -> 2 CAA 2/0 AWG Vão 80m | R75: =[1]NeutroMinutaCpfl!A74 -> 0 | U75: 37 | AK75: =[1]Folha4!A68 -> 0
P76: =[1]SecundariaMinutaCpfl!A75 -> 2 CAA 1/0 AWG Vão 80m | Q76: =[1]PrimariaMinutaCpfl!A75 -> 2 CAA 4/0 AWG Vão 80m | R76: =[1]NeutroMinutaCpfl!A75 -> 0 | U76: 38 | AK76: =[1]Folha4!A69 -> 0
P77: =[1]SecundariaMinutaCpfl!A76 -> 2 CAA 2/0 AWG Vão 80m | Q77: =[1]PrimariaMinutaCpfl!A76 -> 2 CAA 336,4 MCM Vão 80m | R77: =[1]NeutroMinutaCpfl!A76 -> 0 | U77: 39 | AK77: =[1]Folha4!A70 -> 0
P78: =[1]SecundariaMinutaCpfl!A77 -> 2 CAA 4/0 AWG Vão 80m | Q78: =[1]PrimariaMinutaCpfl!A77 ->  | R78: =[1]NeutroMinutaCpfl!A77 -> 0 | U78: 40 | AK78: =[1]Folha4!A71 -> 0
P79: =[1]SecundariaMinutaCpfl!A78 -> 2 CAA 336,4 MCM Vão 80m | Q79: =[1]PrimariaMinutaCpfl!A78 -> 2 CAA 04 AWG Vão 120m | R79: =[1]NeutroMinutaCpfl!A78 -> 0 | U79: 41 | AK79: =[1]Folha4!A72 -> 0
P80: =[1]SecundariaMinutaCpfl!A79 ->  | Q80: =[1]PrimariaMinutaCpfl!A79 -> 2 CAA 02 AWG Vão 120m | R80: =[1]NeutroMinutaCpfl!A79 -> 0 | U80: 42 | AK80: =[1]Folha4!A73 -> 0
P81: =[1]SecundariaMinutaCpfl!A80 -> 2 CAA 04 AWG Vão 120m | Q81: =[1]PrimariaMinutaCpfl!A80 -> 2 CAA 1/0 AWG Vão 120m | R81: =[1]NeutroMinutaCpfl!A80 -> 0 | U81: 43 | AK81: =[1]Folha4!A74 -> 0
P82: =[1]SecundariaMinutaCpfl!A81 -> 2 CAA 02 AWG Vão 120m | Q82: =[1]PrimariaMinutaCpfl!A81 -> 2 CAA 2/0 AWG Vão 120m | R82: =[1]NeutroMinutaCpfl!A81 -> 0 | U82: 44 | AK82: =[1]Folha4!A75 -> 0
P83: =[1]SecundariaMinutaCpfl!A82 -> 2 CAA 1/0 AWG Vão 120m | Q83: =[1]PrimariaMinutaCpfl!A82 -> 2 CAA 4/0 AWG Vão 120m | R83: =[1]NeutroMinutaCpfl!A82 -> 0 | U83: 45 | AK83: =[1]Folha4!A76 -> 0
P84: =[1]SecundariaMinutaCpfl!A83 -> 2 CAA 2/0 AWG Vão 120m | Q84: =[1]PrimariaMinutaCpfl!A83 -> 2 CAA 336,4 MCM Vão 120m | R84: =[1]NeutroMinutaCpfl!A83 -> 0 | U84: 46 | AK84: =[1]Folha4!A77 -> 0
P85: =[1]SecundariaMinutaCpfl!A84 -> 2 CAA 4/0 AWG Vão 120m | Q85: =[1]PrimariaMinutaCpfl!A84 ->  | R85: =[1]NeutroMinutaCpfl!A84 -> 0 | U85: 47 | AK85: =[1]Folha4!A78 -> 0
P86: =[1]SecundariaMinutaCpfl!A85 -> 2 CAA 336,4 MCM Vão 120m | Q86: =[1]PrimariaMinutaCpfl!A85 -> 2 CU 06 AWG Vão 35m | R86: =[1]NeutroMinutaCpfl!A85 -> 0 | U86: 48 | AK86: =[1]Folha4!A79 -> 0
P87: =[1]SecundariaMinutaCpfl!A86 ->  | Q87: =[1]PrimariaMinutaCpfl!A86 -> 2 CU 02 AWG Vão 35m | R87: =[1]NeutroMinutaCpfl!A86 -> 0 | U87: 49 | AK87: =[1]Folha4!A80 -> 0
P88: =[1]SecundariaMinutaCpfl!A87 -> 2 CU 06 AWG Vão 35m | Q88: =[1]PrimariaMinutaCpfl!A87 -> 2 CU 1/0 AWG Vão 35m | R88: =[1]NeutroMinutaCpfl!A87 -> 0 | U88: 50 | AK88: =[1]Folha4!A81 -> 0
P89: =[1]SecundariaMinutaCpfl!A88 -> 2 CU 02 AWG Vão 35m | Q89: =[1]PrimariaMinutaCpfl!A88 -> 2 CU 2/0 AWG Vão 35m | R89: =[1]NeutroMinutaCpfl!A88 -> 0 | U89: 51 | AK89: =[1]Folha4!A82 -> 0
P90: =[1]SecundariaMinutaCpfl!A89 -> 2 CU 1/0 AWG Vão 35m | Q90: =[1]PrimariaMinutaCpfl!A89 -> 2 CU 4/0 AWG Vão 35m | R90: =[1]NeutroMinutaCpfl!A89 -> 0 | U90: 52 | AK90: =[1]Folha4!A83 -> 0
P91: =[1]SecundariaMinutaCpfl!A90 -> 2 CU 2/0 AWG Vão 35m | Q91: =[1]PrimariaMinutaCpfl!A90 ->  | R91: =[1]NeutroMinutaCpfl!A90 -> 0 | U91: 53 | AK91: =[1]Folha4!A84 -> 0
P92: =[1]SecundariaMinutaCpfl!A91 -> 2 CU 4/0 AWG Vão 35m | Q92: =[1]PrimariaMinutaCpfl!A91 -> 1 CA 02 AWG Vão 35m | R92: =[1]NeutroMinutaCpfl!A91 -> 0 | U92: 54 | AK92: =[1]Folha4!A85 -> 0
P93: =[1]SecundariaMinutaCpfl!A92 ->  | Q93: =[1]PrimariaMinutaCpfl!A92 -> 1 CA 1/0 AWG Vão 35m | R93: =[1]NeutroMinutaCpfl!A92 -> 0 | U93: 55 | AK93: =[1]Folha4!A86 -> 0
P94: =[1]SecundariaMinutaCpfl!A93 -> 1 CA 02 AWG Vão 35m | Q94: =[1]PrimariaMinutaCpfl!A93 -> 1 CA 2/0 AWG Vão 35m | R94: =[1]NeutroMinutaCpfl!A93 -> 0 | U94: 56 | AK94: =[1]Folha4!A87 -> 0
P95: =[1]SecundariaMinutaCpfl!A94 -> 1 CA 1/0 AWG Vão 35m | Q95: =[1]PrimariaMinutaCpfl!A94 -> 1 CA 4/0 AWG Vão 35m | R95: =[1]NeutroMinutaCpfl!A94 -> 0 | U95: 57 | AK95: =[1]Folha4!A88 -> 0
P96: =[1]SecundariaMinutaCpfl!A95 -> 1 CA 2/0 AWG Vão 35m | Q96: =[1]PrimariaMinutaCpfl!A95 -> 1 CA 336,4 MCM Vão 35m | R96: =[1]NeutroMinutaCpfl!A95 -> 0 | U96: 58 | AK96: =[1]Folha4!A89 -> 0
P97: =[1]SecundariaMinutaCpfl!A96 -> 1 CA 4/0 AWG Vão 35m | Q97: =[1]PrimariaMinutaCpfl!A96 -> 1 CA 477 MCM Vão 35m | R97: =[1]NeutroMinutaCpfl!A96 -> 0 | U97: 59 | AK97: =[1]Folha4!A90 -> 0
P98: =[1]SecundariaMinutaCpfl!A97 -> 1 CA 336,4 MCM Vão 35m | Q98: =[1]PrimariaMinutaCpfl!A97 ->  | R98: =[1]NeutroMinutaCpfl!A97 -> 0 | U98: 60 | AK98: =[1]Folha4!A91 -> 0
P99: =[1]SecundariaMinutaCpfl!A98 -> 1 CA 477 MCM Vão 35m | Q99: =[1]PrimariaMinutaCpfl!A98 -> 1 CA 02 AWG Vão 80m | R99: =[1]NeutroMinutaCpfl!A98 -> 0 | U99: 61 | AK99: =[1]Folha4!A92 -> 0
P100: =[1]SecundariaMinutaCpfl!A99 ->  | Q100: =[1]PrimariaMinutaCpfl!A99 -> 1 CA 1/0 AWG Vão 80m | R100: =[1]NeutroMinutaCpfl!A99 -> 0 | U100: 62 | AK100: =[1]Folha4!A93 -> 0
P101: =[1]SecundariaMinutaCpfl!A100 -> 1 CA 02 AWG Vão 80m | Q101: =[1]PrimariaMinutaCpfl!A100 -> 1 CA 2/0 AWG Vão 80m | R101: =[1]NeutroMinutaCpfl!A100 -> 0 | U101: 63 | AK101: =[1]Folha4!A94 -> 0
P102: =[1]SecundariaMinutaCpfl!A101 -> 1 CA 1/0 AWG Vão 80m | Q102: =[1]PrimariaMinutaCpfl!A101 -> 1 CA 4/0 AWG Vão 80m | R102: =[1]NeutroMinutaCpfl!A101 -> 0 | U102: 64 | AK102: =[1]Folha4!A95 -> 0
P103: =[1]SecundariaMinutaCpfl!A102 -> 1 CA 2/0 AWG Vão 80m | Q103: =[1]PrimariaMinutaCpfl!A102 -> 1 CA 336,4 MCM Vão 80m | R103: =[1]NeutroMinutaCpfl!A102 -> 0 | U103: 65 | AK103: =[1]Folha4!A96 -> 0
P104: =[1]SecundariaMinutaCpfl!A103 -> 1 CA 4/0 AWG Vão 80m | Q104: =[1]PrimariaMinutaCpfl!A103 -> 1 CA 477 MCM Vão 80m | R104: =[1]NeutroMinutaCpfl!A103 -> 0 | U104: 66 | AK104: =[1]Folha4!A97 -> 0
P105: =[1]SecundariaMinutaCpfl!A104 -> 1 CA 336,4 MCM Vão 80m | Q105: =[1]PrimariaMinutaCpfl!A104 ->  | R105: =[1]NeutroMinutaCpfl!A104 -> 0 | U105: 67 | AK105: =[1]Folha4!A98 -> 0
P106: =[1]SecundariaMinutaCpfl!A105 -> 1 CA 477 MCM Vão 80m | Q106: =[1]PrimariaMinutaCpfl!A105 -> 1 CAA 04 AWG Vão 40m | R106: =[1]NeutroMinutaCpfl!A105 -> 0 | U106: 68 | AK106: =[1]Folha4!A99 -> 0
P107: =[1]SecundariaMinutaCpfl!A106 ->  | Q107: =[1]PrimariaMinutaCpfl!A106 -> 1 CAA 02 AWG Vão 40m | R107: =[1]NeutroMinutaCpfl!A106 -> 0 | U107: 69 | AK107: =[1]Folha4!A100 -> 0
P108: =[1]SecundariaMinutaCpfl!A107 -> 1 CAA 04 AWG Vão 40m | Q108: =[1]PrimariaMinutaCpfl!A107 -> 1 CAA 1/0 AWG Vão 40m | R108: =[1]NeutroMinutaCpfl!A107 -> 0 | U108: 70 | AK108: =[1]Folha4!A101 -> 0
P109: =[1]SecundariaMinutaCpfl!A108 -> 1 CAA 02 AWG Vão 40m | Q109: =[1]PrimariaMinutaCpfl!A108 -> 1 CAA 2/0 AWG Vão 40m | R109: =[1]NeutroMinutaCpfl!A108 -> 0 | U109: 71 | AK109: =[1]Folha4!A102 -> 0
P110: =[1]SecundariaMinutaCpfl!A109 -> 1 CAA 1/0 AWG Vão 40m | Q110: =[1]PrimariaMinutaCpfl!A109 -> 1 CAA 4/0 AWG Vão 40m | R110: =[1]NeutroMinutaCpfl!A109 -> 0 | U110: 72 | AK110: =[1]Folha4!A103 -> 0
P111: =[1]SecundariaMinutaCpfl!A110 -> 1 CAA 2/0 AWG Vão 40m | Q111: =[1]PrimariaMinutaCpfl!A110 ->  | R111: =[1]NeutroMinutaCpfl!A110 -> 0 | U111: 73 | AK111: =[1]Folha4!A104 -> 0
P112: =[1]SecundariaMinutaCpfl!A111 -> 1 CAA 4/0 AWG Vão 40m | Q112: =[1]PrimariaMinutaCpfl!A111 -> 1 CAA 04 AWG Vão 80m | R112: =[1]NeutroMinutaCpfl!A111 -> 0 | U112: 74 | AK112: =[1]Folha4!A105 -> 0
P113: =[1]SecundariaMinutaCpfl!A112 ->  | Q113: =[1]PrimariaMinutaCpfl!A112 -> 1 CAA 02 AWG Vão 80m | R113: =[1]NeutroMinutaCpfl!A112 -> 0 | U113: 75 | AK113: =[1]Folha4!A106 -> 0
P114: =[1]SecundariaMinutaCpfl!A113 -> 1 CAA 04 AWG Vão 80m | Q114: =[1]PrimariaMinutaCpfl!A113 -> 1 CAA 1/0 AWG Vão 80m | R114: =[1]NeutroMinutaCpfl!A113 -> 0 | U114: 76 | AK114: =[1]Folha4!A107 -> 0
P115: =[1]SecundariaMinutaCpfl!A114 -> 1 CAA 02 AWG Vão 80m | Q115: =[1]PrimariaMinutaCpfl!A114 -> 1 CAA 2/0 AWG Vão 80m | R115: =[1]NeutroMinutaCpfl!A114 -> 0 | U115: 77 | AK115: =[1]Folha4!A108 -> 0
P116: =[1]SecundariaMinutaCpfl!A115 -> 1 CAA 1/0 AWG Vão 80m | Q116: =[1]PrimariaMinutaCpfl!A115 -> 1 CAA 4/0 AWG Vão 80m | R116: =[1]NeutroMinutaCpfl!A115 -> 0 | U116: 78 | AK116: =[1]Folha4!A109 -> 0
P117: =[1]SecundariaMinutaCpfl!A116 -> 1 CAA 2/0 AWG Vão 80m | Q117: =[1]PrimariaMinutaCpfl!A116 -> 1 CAA 336,4 MCM Vão 80m | R117: =[1]NeutroMinutaCpfl!A116 -> 0 | U117: 79 | AK117: =[1]Folha4!A110 -> 0
P118: =[1]SecundariaMinutaCpfl!A117 -> 1 CAA 4/0 AWG Vão 80m | Q118: =[1]PrimariaMinutaCpfl!A117 ->  | R118: =[1]NeutroMinutaCpfl!A117 -> 0 | U118: 80 | AK118: =[1]Folha4!A111 -> 0
P119: =[1]SecundariaMinutaCpfl!A118 -> 1 CAA 336,4 MCM Vão 80m | Q119: =[1]PrimariaMinutaCpfl!A118 -> 1 CAA 04 AWG Vão 120m | R119: =[1]NeutroMinutaCpfl!A118 -> 0 | U119: 81 | AK119: =[1]Folha4!A112 -> 0
P120: =[1]SecundariaMinutaCpfl!A119 ->  | Q120: =[1]PrimariaMinutaCpfl!A119 -> 1 CAA 02 AWG Vão 120m | R120: =[1]NeutroMinutaCpfl!A119 -> 0 | U120: 82 | AK120: =[1]Folha4!A113 -> 0
P121: =[1]SecundariaMinutaCpfl!A120 -> 1 CAA 04 AWG Vão 120m | Q121: =[1]PrimariaMinutaCpfl!A120 -> 1 CAA 1/0 AWG Vão 120m | R121: =[1]NeutroMinutaCpfl!A120 -> 0 | U121: 83 | AK121: =[1]Folha4!A114 -> 0
P122: =[1]SecundariaMinutaCpfl!A121 -> 1 CAA 02 AWG Vão 120m | Q122: =[1]PrimariaMinutaCpfl!A121 -> 1 CAA 2/0 AWG Vão 120m | R122: =[1]NeutroMinutaCpfl!A121 -> 0 | U122: 84 | AK122: =[1]Folha4!A115 -> 0
P123: =[1]SecundariaMinutaCpfl!A122 -> 1 CAA 1/0 AWG Vão 120m | Q123: =[1]PrimariaMinutaCpfl!A122 -> 1 CAA 4/0 AWG Vão 120m | R123: =[1]NeutroMinutaCpfl!A122 -> 0 | U123: 85 | AK123: =[1]Folha4!A116 -> 0
P124: =[1]SecundariaMinutaCpfl!A123 -> 1 CAA 2/0 AWG Vão 120m | Q124: =[1]PrimariaMinutaCpfl!A123 -> 1 CAA 336,4 MCM Vão 120m | R124: =[1]NeutroMinutaCpfl!A123 -> 0 | U124: 86 | AK124: =[1]Folha4!A117 -> 0
P125: =[1]SecundariaMinutaCpfl!A124 -> 1 CAA 4/0 AWG Vão 120m | Q125: =[1]PrimariaMinutaCpfl!A124 ->  | R125: =[1]NeutroMinutaCpfl!A124 -> 0 | U125: 87 | AK125: =[1]Folha4!A118 -> 0
P126: =[1]SecundariaMinutaCpfl!A125 -> 1 CAA 336,4 MCM Vão 120m | Q126: =[1]PrimariaMinutaCpfl!A125 -> 1 CU 06 AWG Vão 35m | R126: =[1]NeutroMinutaCpfl!A125 -> 0 | U126: 88 | AK126: =[1]Folha4!A119 -> 0
P127: =[1]SecundariaMinutaCpfl!A126 ->  | Q127: =[1]PrimariaMinutaCpfl!A126 -> 1 CU 02 AWG Vão 35m | R127: =[1]NeutroMinutaCpfl!A126 -> 0 | U127: 89 | AK127: =[1]Folha4!A120 -> 0
P128: =[1]SecundariaMinutaCpfl!A127 -> 1 CU 06 AWG Vão 35m | Q128: =[1]PrimariaMinutaCpfl!A127 -> 1 CU 1/0 AWG Vão 35m | R128: =[1]NeutroMinutaCpfl!A127 -> 0 | U128: 90 | AK128: =[1]Folha4!A121 -> 0
P129: =[1]SecundariaMinutaCpfl!A128 -> 1 CU 02 AWG Vão 35m | Q129: =[1]PrimariaMinutaCpfl!A128 -> 1 CU 2/0 AWG Vão 35m | R129: =[1]NeutroMinutaCpfl!A128 -> 0 | U129: 91 | AK129: =[1]Folha4!A122 -> 0
P130: =[1]SecundariaMinutaCpfl!A129 -> 1 CU 1/0 AWG Vão 35m | Q130: =[1]PrimariaMinutaCpfl!A129 -> 1 CU 4/0 AWG Vão 35m | R130: =[1]NeutroMinutaCpfl!A129 -> 0 | U130: 92 | AK130: =[1]Folha4!A123 -> 0
P131: =[1]SecundariaMinutaCpfl!A130 -> 1 CU 2/0 AWG Vão 35m | Q131: =[1]PrimariaMinutaCpfl!A130 -> 0 | R131: =[1]NeutroMinutaCpfl!A130 -> 0 | U131: 93 | AK131: =[1]Folha4!A124 -> 0
P132: =[1]SecundariaMinutaCpfl!A131 -> 1 CU 4/0 AWG Vão 35m | Q132: =[1]PrimariaMinutaCpfl!A131 -> 0 | R132: =[1]NeutroMinutaCpfl!A131 -> 0 | U132: 94 | AK132: =[1]Folha4!A125 -> 0
P133: =[1]SecundariaMinutaCpfl!A132 -> 0 | Q133: =[1]PrimariaMinutaCpfl!A132 -> 0 | R133: =[1]NeutroMinutaCpfl!A132 -> 0 | U133: 95 | AK133: =[1]Folha4!A126 -> 0
P134: =[1]SecundariaMinutaCpfl!A133 -> 0 | Q134: =[1]PrimariaMinutaCpfl!A133 -> 0 | R134: =[1]NeutroMinutaCpfl!A133 -> 0 | U134: 96 | AK134: =[1]Folha4!A127 -> 0
P135: =[1]SecundariaMinutaCpfl!A134 -> 0 | Q135: =[1]PrimariaMinutaCpfl!A134 -> 0 | R135: =[1]NeutroMinutaCpfl!A134 -> 0 | U135: 97 | AK135: =[1]Folha4!A128 -> 0
P136: =[1]SecundariaMinutaCpfl!A135 -> 0 | Q136: =[1]PrimariaMinutaCpfl!A135 -> 0 | R136: =[1]NeutroMinutaCpfl!A135 -> 0 | U136: 98 | AK136: =[1]Folha4!A129 -> 0
P137: =[1]SecundariaMinutaCpfl!A136 -> 0 | Q137: =[1]PrimariaMinutaCpfl!A136 -> 0 | R137: =[1]NeutroMinutaCpfl!A136 -> 0 | U137: 99 | AK137: =[1]Folha4!A130 -> 0
P138: =[1]SecundariaMinutaCpfl!A137 -> 0 | Q138: =[1]PrimariaMinutaCpfl!A137 -> 0 | R138: =[1]NeutroMinutaCpfl!A137 -> 0 | U138: 100 | AK138: =[1]Folha4!A131 -> 0
P139: =[1]SecundariaMinutaCpfl!A138 -> 0 | Q139: =[1]PrimariaMinutaCpfl!A138 -> 0 | R139: =[1]NeutroMinutaCpfl!A138 -> 0 | U139: 101 | AK139: =[1]Folha4!A132 -> 0
P140: =[1]SecundariaMinutaCpfl!A139 -> 0 | Q140: =[1]PrimariaMinutaCpfl!A139 -> 0 | R140: =[1]NeutroMinutaCpfl!A139 -> 0 | U140: 102 | AK140: =[1]Folha4!A133 -> 0
P141: =[1]SecundariaMinutaCpfl!A140 -> 0 | Q141: =[1]PrimariaMinutaCpfl!A140 -> 0 | R141: =[1]NeutroMinutaCpfl!A140 -> 0 | U141: 103 | AK141: =[1]Folha4!A134 -> 0
P142: =[1]SecundariaMinutaCpfl!A141 -> 0 | Q142: =[1]PrimariaMinutaCpfl!A141 -> 0 | R142: =[1]NeutroMinutaCpfl!A141 -> 0 | U142: 104 | AK142: =[1]Folha4!A135 -> 0
P143: =[1]SecundariaMinutaCpfl!A142 -> 0 | Q143: =[1]PrimariaMinutaCpfl!A142 -> 0 | R143: =[1]NeutroMinutaCpfl!A142 -> 0 | U143: 105 | AK143: =[1]Folha4!A136 -> 0
P144: =[1]SecundariaMinutaCpfl!A143 -> 0 | Q144: =[1]PrimariaMinutaCpfl!A143 -> 0 | R144: =[1]NeutroMinutaCpfl!A143 -> 0 | U144: 106 | AK144: =[1]Folha4!A137 -> 0
P145: =[1]SecundariaMinutaCpfl!A144 -> 0 | Q145: =[1]PrimariaMinutaCpfl!A144 -> 0 | R145: =[1]NeutroMinutaCpfl!A144 -> 0 | U145: 107 | AK145: =[1]Folha4!A138 -> 0
P146: =[1]SecundariaMinutaCpfl!A145 -> 0 | Q146: =[1]PrimariaMinutaCpfl!A145 -> 0 | R146: =[1]NeutroMinutaCpfl!A145 -> 0 | U146: 108 | AK146: =[1]Folha4!A139 -> 0
P147: =[1]SecundariaMinutaCpfl!A146 -> 0 | Q147: =[1]PrimariaMinutaCpfl!A146 -> 0 | R147: =[1]NeutroMinutaCpfl!A146 -> 0 | U147: 109 | AK147: =[1]Folha4!A140 -> 0
P148: =[1]SecundariaMinutaCpfl!A147 -> 0 | Q148: =[1]PrimariaMinutaCpfl!A147 -> 0 | R148: =[1]NeutroMinutaCpfl!A147 -> 0 | U148: 110 | AK148: =[1]Folha4!A141 -> 0
P149: =[1]SecundariaMinutaCpfl!A148 -> 0 | Q149: =[1]PrimariaMinutaCpfl!A148 -> 0 | R149: =[1]NeutroMinutaCpfl!A148 -> 0 | U149: 111 | AK149: =[1]Folha4!A142 -> 0
P150: =[1]SecundariaMinutaCpfl!A149 -> 0 | Q150: =[1]PrimariaMinutaCpfl!A149 -> 0 | R150: =[1]NeutroMinutaCpfl!A149 -> 0 | U150: 112 | AK150: =[1]Folha4!A143 -> 0
P151: =[1]SecundariaMinutaCpfl!A150 -> 0 | Q151: =[1]PrimariaMinutaCpfl!A150 -> 0 | R151: =[1]NeutroMinutaCpfl!A150 -> 0 | U151: 113 | AK151: =[1]Folha4!A144 -> 0
P152: =[1]SecundariaMinutaCpfl!A151 -> 0 | Q152: =[1]PrimariaMinutaCpfl!A151 -> 0 | R152: =[1]NeutroMinutaCpfl!A151 -> 0 | U152: 114 | AK152: =[1]Folha4!A145 -> 0
P153: =[1]SecundariaMinutaCpfl!A152 -> 0 | Q153: =[1]PrimariaMinutaCpfl!A152 -> 0 | R153: =[1]NeutroMinutaCpfl!A152 -> 0 | U153: 115 | AK153: =[1]Folha4!A146 -> 0
P154: =[1]SecundariaMinutaCpfl!A153 -> 0 | Q154: =[1]PrimariaMinutaCpfl!A153 -> 0 | R154: =[1]NeutroMinutaCpfl!A153 -> 0 | U154: 116 | AK154: =[1]Folha4!A147 -> 0
P155: =[1]SecundariaMinutaCpfl!A154 -> 0 | Q155: =[1]PrimariaMinutaCpfl!A154 -> 0 | R155: =[1]NeutroMinutaCpfl!A154 -> 0 | U155: 117 | AK155: =[1]Folha4!A148 -> 0
P156: =[1]SecundariaMinutaCpfl!A155 -> 0 | Q156: =[1]PrimariaMinutaCpfl!A155 -> 0 | R156: =[1]NeutroMinutaCpfl!A155 -> 0 | U156: 118 | AK156: =[1]Folha4!A149 -> 0
P157: =[1]SecundariaMinutaCpfl!A156 -> 0 | Q157: =[1]PrimariaMinutaCpfl!A156 -> 0 | R157: =[1]NeutroMinutaCpfl!A156 -> 0 | U157: 119 | AK157: =[1]Folha4!A150 -> 0
P158: =[1]SecundariaMinutaCpfl!A157 -> 0 | Q158: =[1]PrimariaMinutaCpfl!A157 -> 0 | R158: =[1]NeutroMinutaCpfl!A157 -> 0 | U158: 120 | AK158: =[1]Folha4!A151 -> 0
P159: =[1]SecundariaMinutaCpfl!A158 -> 0 | Q159: =[1]PrimariaMinutaCpfl!A158 -> 0 | R159: =[1]NeutroMinutaCpfl!A158 -> 0 | U159: 121 | AK159: =[1]Folha4!A152 -> 0
P160: =[1]SecundariaMinutaCpfl!A159 -> 0 | Q160: =[1]PrimariaMinutaCpfl!A159 -> 0 | R160: =[1]NeutroMinutaCpfl!A159 -> 0 | U160: 122 | AK160: =[1]Folha4!A153 -> 0
P161: =[1]SecundariaMinutaCpfl!A160 -> 0 | Q161: =[1]PrimariaMinutaCpfl!A160 -> 0 | R161: =[1]NeutroMinutaCpfl!A160 -> 0 | U161: 123 | AK161: =[1]Folha4!A154 -> 0
P162: =[1]SecundariaMinutaCpfl!A161 -> 0 | Q162: =[1]PrimariaMinutaCpfl!A161 -> 0 | R162: =[1]NeutroMinutaCpfl!A161 -> 0 | U162: 124 | AK162: =[1]Folha4!A155 -> 0
P163: =[1]SecundariaMinutaCpfl!A162 -> 0 | Q163: =[1]PrimariaMinutaCpfl!A162 -> 0 | R163: =[1]NeutroMinutaCpfl!A162 -> 0 | U163: 125 | AK163: =[1]Folha4!A156 -> 0
P164: =[1]SecundariaMinutaCpfl!A163 -> 0 | Q164: =[1]PrimariaMinutaCpfl!A163 -> 0 | R164: =[1]NeutroMinutaCpfl!A163 -> 0 | U164: 126 | AK164: =[1]Folha4!A157 -> 0
P165: =[1]SecundariaMinutaCpfl!A164 -> 0 | Q165: =[1]PrimariaMinutaCpfl!A164 -> 0 | R165: =[1]NeutroMinutaCpfl!A164 -> 0 | U165: 127 | AK165: =[1]Folha4!A158 -> 0
P166: =[1]SecundariaMinutaCpfl!A165 -> 0 | Q166: =[1]PrimariaMinutaCpfl!A165 -> 0 | R166: =[1]NeutroMinutaCpfl!A165 -> 0 | U166: 128 | AK166: =[1]Folha4!A159 -> 0
P167: =[1]SecundariaMinutaCpfl!A166 -> 0 | Q167: =[1]PrimariaMinutaCpfl!A166 -> 0 | R167: =[1]NeutroMinutaCpfl!A166 -> 0 | U167: 129 | AK167: =[1]Folha4!A160 -> 0
P168: =[1]SecundariaMinutaCpfl!A167 -> 0 | Q168: =[1]PrimariaMinutaCpfl!A167 -> 0 | R168: =[1]NeutroMinutaCpfl!A167 -> 0 | U168: 130 | AK168: =[1]Folha4!A161 -> 0
P169: =[1]SecundariaMinutaCpfl!A168 -> 0 | Q169: =[1]PrimariaMinutaCpfl!A168 -> 0 | R169: =[1]NeutroMinutaCpfl!A168 -> 0 | U169: 131 | AK169: =[1]Folha4!A162 -> 0
P170: =[1]SecundariaMinutaCpfl!A169 -> 0 | Q170: =[1]PrimariaMinutaCpfl!A169 -> 0 | R170: =[1]NeutroMinutaCpfl!A169 -> 0 | U170: 132 | AK170: =[1]Folha4!A163 -> 0
P171: =[1]SecundariaMinutaCpfl!A170 -> 0 | Q171: =[1]PrimariaMinutaCpfl!A170 -> 0 | R171: =[1]NeutroMinutaCpfl!A170 -> 0 | U171: 133 | AK171: =[1]Folha4!A164 -> 0
P172: =[1]SecundariaMinutaCpfl!A171 -> 0 | Q172: =[1]PrimariaMinutaCpfl!A171 -> 0 | R172: =[1]NeutroMinutaCpfl!A171 -> 0 | U172: 134 | AK172: =[1]Folha4!A165 -> 0
P173: =[1]SecundariaMinutaCpfl!A172 -> 0 | Q173: =[1]PrimariaMinutaCpfl!A172 -> 0 | R173: =[1]NeutroMinutaCpfl!A172 -> 0 | U173: 135 | AK173: =[1]Folha4!A166 -> 0
P174: =[1]SecundariaMinutaCpfl!A173 -> 0 | Q174: =[1]PrimariaMinutaCpfl!A173 -> 0 | R174: =[1]NeutroMinutaCpfl!A173 -> 0 | U174: 136 | AK174: =[1]Folha4!A167 -> 0
P175: =[1]SecundariaMinutaCpfl!A174 -> 0 | Q175: =[1]PrimariaMinutaCpfl!A174 -> 0 | R175: =[1]NeutroMinutaCpfl!A174 -> 0 | U175: 137 | AK175: =[1]Folha4!A168 -> 0
P176: =[1]SecundariaMinutaCpfl!A175 -> 0 | Q176: =[1]PrimariaMinutaCpfl!A175 -> 0 | R176: =[1]NeutroMinutaCpfl!A175 -> 0 | U176: 138 | AK176: =[1]Folha4!A169 -> 0
P177: =[1]SecundariaMinutaCpfl!A176 -> 0 | Q177: =[1]PrimariaMinutaCpfl!A176 -> 0 | R177: =[1]NeutroMinutaCpfl!A176 -> 0 | U177: 139 | AK177: =[1]Folha4!A170 -> 0
P178: =[1]SecundariaMinutaCpfl!A177 -> 0 | Q178: =[1]PrimariaMinutaCpfl!A177 -> 0 | R178: =[1]NeutroMinutaCpfl!A177 -> 0 | U178: 140 | AK178: =[1]Folha4!A171 -> 0
P179: =[1]SecundariaMinutaCpfl!A178 -> 0 | Q179: =[1]PrimariaMinutaCpfl!A178 -> 0 | R179: =[1]NeutroMinutaCpfl!A178 -> 0 | U179: 141 | AK179: =[1]Folha4!A172 -> 0
P180: =[1]SecundariaMinutaCpfl!A179 -> 0 | Q180: =[1]PrimariaMinutaCpfl!A179 -> 0 | R180: =[1]NeutroMinutaCpfl!A179 -> 0 | U180: 142 | AK180: =[1]Folha4!A173 -> 0
P181: =[1]SecundariaMinutaCpfl!A180 -> 0 | Q181: =[1]PrimariaMinutaCpfl!A180 -> 0 | R181: =[1]NeutroMinutaCpfl!A180 -> 0 | U181: 143 | AK181: =[1]Folha4!A174 -> 0
P182: =[1]SecundariaMinutaCpfl!A181 -> 0 | Q182: =[1]PrimariaMinutaCpfl!A181 -> 0 | R182: =[1]NeutroMinutaCpfl!A181 -> 0 | U182: 144 | AK182: =[1]Folha4!A175 -> 0
P183: =[1]SecundariaMinutaCpfl!A182 -> 0 | Q183: =[1]PrimariaMinutaCpfl!A182 -> 0 | R183: =[1]NeutroMinutaCpfl!A182 -> 0 | U183: 145 | AK183: =[1]Folha4!A176 -> 0
P184: =[1]SecundariaMinutaCpfl!A183 -> 0 | Q184: =[1]PrimariaMinutaCpfl!A183 -> 0 | R184: =[1]NeutroMinutaCpfl!A183 -> 0 | U184: 146 | AK184: =[1]Folha4!A177 -> 0
P185: =[1]SecundariaMinutaCpfl!A184 -> 0 | Q185: =[1]PrimariaMinutaCpfl!A184 -> 0 | R185: =[1]NeutroMinutaCpfl!A184 -> 0 | U185: 147 | AK185: =[1]Folha4!A178 -> 0
P186: =[1]SecundariaMinutaCpfl!A185 -> 0 | Q186: =[1]PrimariaMinutaCpfl!A185 -> 0 | R186: =[1]NeutroMinutaCpfl!A185 -> 0 | U186: 148 | AK186: =[1]Folha4!A179 -> 0
P187: =[1]SecundariaMinutaCpfl!A186 -> 0 | Q187: =[1]PrimariaMinutaCpfl!A186 -> 0 | R187: =[1]NeutroMinutaCpfl!A186 -> 0 | U187: 149 | AK187: =[1]Folha4!A180 -> 0
P188: =[1]SecundariaMinutaCpfl!A187 -> 0 | Q188: =[1]PrimariaMinutaCpfl!A187 -> 0 | R188: =[1]NeutroMinutaCpfl!A187 -> 0 | U188: 150 | AK188: =[1]Folha4!A181 -> 0
P189: =[1]SecundariaMinutaCpfl!A188 -> 0 | Q189: =[1]PrimariaMinutaCpfl!A188 -> 0 | R189: =[1]NeutroMinutaCpfl!A188 -> 0 | U189: 151 | AK189: =[1]Folha4!A182 -> 0
P190: =[1]SecundariaMinutaCpfl!A189 -> 0 | Q190: =[1]PrimariaMinutaCpfl!A189 -> 0 | R190: =[1]NeutroMinutaCpfl!A189 -> 0 | U190: 152 | AK190: =[1]Folha4!A183 -> 0
P191: =[1]SecundariaMinutaCpfl!A190 -> 0 | Q191: =[1]PrimariaMinutaCpfl!A190 -> 0 | R191: =[1]NeutroMinutaCpfl!A190 -> 0 | U191: 153 | AK191: =[1]Folha4!A184 -> 0
P192: =[1]SecundariaMinutaCpfl!A191 -> 0 | Q192: =[1]PrimariaMinutaCpfl!A191 -> 0 | R192: =[1]NeutroMinutaCpfl!A191 -> 0 | U192: 154 | AK192: =[1]Folha4!A185 -> 0
P193: =[1]SecundariaMinutaCpfl!A192 -> 0 | Q193: =[1]PrimariaMinutaCpfl!A192 -> 0 | R193: =[1]NeutroMinutaCpfl!A192 -> 0 | U193: 155 | AK193: =[1]Folha4!A186 -> 0
P194: =[1]SecundariaMinutaCpfl!A193 -> 0 | Q194: =[1]PrimariaMinutaCpfl!A193 -> 0 | R194: =[1]NeutroMinutaCpfl!A193 -> 0 | U194: 156 | AK194: =[1]Folha4!A187 -> 0
P195: =[1]SecundariaMinutaCpfl!A194 -> 0 | Q195: =[1]PrimariaMinutaCpfl!A194 -> 0 | R195: =[1]NeutroMinutaCpfl!A194 -> 0 | U195: 157 | AK195: =[1]Folha4!A188 -> 0
P196: =[1]SecundariaMinutaCpfl!A195 -> 0 | Q196: =[1]PrimariaMinutaCpfl!A195 -> 0 | R196: =[1]NeutroMinutaCpfl!A195 -> 0 | U196: 158 | AK196: =[1]Folha4!A189 -> 0
P197: =[1]SecundariaMinutaCpfl!A196 -> 0 | Q197: =[1]PrimariaMinutaCpfl!A196 -> 0 | R197: =[1]NeutroMinutaCpfl!A196 -> 0 | U197: 159 | AK197: =[1]Folha4!A190 -> 0
P198: =[1]SecundariaMinutaCpfl!A197 -> 0 | Q198: =[1]PrimariaMinutaCpfl!A197 -> 0 | R198: =[1]NeutroMinutaCpfl!A197 -> 0 | U198: 160 | AK198: =[1]Folha4!A191 -> 0
P199: =[1]SecundariaMinutaCpfl!A198 -> 0 | Q199: =[1]PrimariaMinutaCpfl!A198 -> 0 | R199: =[1]NeutroMinutaCpfl!A198 -> 0 | U199: 161 | AK199: =[1]Folha4!A192 -> 0
P200: =[1]SecundariaMinutaCpfl!A199 -> 0 | Q200: =[1]PrimariaMinutaCpfl!A199 -> 0 | R200: =[1]NeutroMinutaCpfl!A199 -> 0 | U200: 162 | AK200: =[1]Folha4!A193 -> 0
... 198 more rows

Sheet Simplif_Esforço_CPPL_Paulista
P1: Secundária | Q1: PrimariaMinutaCpfl | R1: NeutroMinutaCpfl | T1: Altura Poste
C2: 70 | P2: =[1]SecundariaMinutaCpfl!A1 ->  | Q2: =[1]PrimariaMinutaCpfl!A1 ->  | R2: =[1]NeutroMinutaCpfl!A1 ->  | T2: 7
C3: ALTURA POSTE | D3: 11 | J3: http://www.mabjo.com.br/ | P3: =[1]SecundariaMinutaCpfl!A2 -> 3 P 16 mm² Vão 35m | Q3: =[1]PrimariaMinutaCpfl!A2 -> 3 E 70 mm² Vão 35m | R3: =[1]NeutroMinutaCpfl!A2 -> 1 CA 02 AWG Vão 35m | T3: 8 | U3: ÂNGULO
C4: ESFORÇO | D4: 1 | F4: 2 | H4: 3 | J4: 4 | L4: 5 | P4: =[1]SecundariaMinutaCpfl!A3 -> 3 P 25 mm² Vão 35m | Q4: =[1]PrimariaMinutaCpfl!A3 -> 3 E 185 mm² Vão 35m | R4: =[1]NeutroMinutaCpfl!A3 -> 1 CA 1/0 AWG Vão 35m | T4: 9
C5: 0 | E5: 90 | G5: 230 | P5: =[1]SecundariaMinutaCpfl!A4 -> 3 P 35 mm² Vão 35m | Q5: =[1]PrimariaMinutaCpfl!A4 ->  | R5: =[1]NeutroMinutaCpfl!A4 -> 1 CA 2/0 AWG Vão 35m | T5: 10
C6: ÂNGULO | D6: 0 | F6: 110 | H6: 320 | J6: 230 | L6: 190 | P6: =[1]SecundariaMinutaCpfl!A5 -> 3 P 50 mm² Vão 35m | Q6: =[1]PrimariaMinutaCpfl!A5 -> 3 E 70 mm² Vão 80m | R6: =[1]NeutroMinutaCpfl!A5 -> 1 CA 4/0 AWG Vão 35m | T6: 11 | Y6: =D6+180 -> 180 | AA6: =F6+180 -> 290 | AC6: =H6+180 -> 500 | AE6: =J6+180 -> 410 | AG6: =L6+180 -> 370 | AK6: =[1]Folha4!A2 -> A02
C7: PRIMÁRIA | D7: 3 E 70 mm² Vão 35m | H7: 3 E 185 mm² Vão 35m | P7: =[1]SecundariaMinutaCpfl!A6 -> 3 P 70 mm² Vão 35m | Q7: =[1]PrimariaMinutaCpfl!A6 -> 3 E 185 mm² Vão 80m | R7: =[1]NeutroMinutaCpfl!A6 -> 1 CA 336,4 MCM Vão 35m | T7: 12 | AK7: =[1]Folha4!A3 -> A10
C8: NEUTRO PRIM. | P8: =[1]SecundariaMinutaCpfl!A7 -> 3 P 120 mm² Vão 35m | Q8: =[1]PrimariaMinutaCpfl!A7 -> 3 CA 02 AWG Vão 35m | R8: =[1]NeutroMinutaCpfl!A7 -> 1 CA 477 MCM Vão 35m | T8: 13 | AK8: =[1]Folha4!A4 -> A20
C9: RED. TENSÃO | D9: 0 | F9: 0 | H9: 0 | J9: 0 | L9: 0 | P9: =[1]SecundariaMinutaCpfl!A8 ->  | Q9: =[1]PrimariaMinutaCpfl!A8 -> 3 CA 1/0 AWG Vão 35m | R9: =[1]NeutroMinutaCpfl!A8 ->  | T9: 14 | AK9: =[1]Folha4!A5 -> A40
C10: DISTÂNCIA PRIMÁRIA TOPO CM | D10: 0 | F10: 0 | H10: 0 | J10: 0 | L10: 0 | P10: =[1]SecundariaMinutaCpfl!A9 -> 3 CA 02 AWG Vão 35m | Q10: =[1]PrimariaMinutaCpfl!A9 -> 3 CA 2/0 AWG Vão 35m | R10: =[1]NeutroMinutaCpfl!A9 -> 1 CA 02 AWG Vão 80m | T10: 15 | AK10: =[1]Folha4!A6 -> A33
C11: SEC. FASE | D11: 3 P 50 mm² Vão 35m | F11: 3 P 70 mm² Vão 35m | L11: 3 P 50 mm² Vão 35m | P11: =[1]SecundariaMinutaCpfl!A10 -> 3 CA 1/0 AWG Vão 35m | Q11: =[1]PrimariaMinutaCpfl!A10 -> 3 CA 4/0 AWG Vão 35m | R11: =[1]NeutroMinutaCpfl!A10 -> 1 CA 1/0 AWG Vão 80m | T11: 16 | X11: =IF(X12>180,X12-180,X12+180) -> 339.5421067 | AK11: =[1]Folha4!A7 -> A47
C12: SEC. NEUTRO | D12: 1 CA 02 AWG Vão 35m | F12: 1 CA 1/0 AWG Vão 35m | L12: 1 CA 1/0 AWG Vão 35m | P12: =[1]SecundariaMinutaCpfl!A11 -> 3 CA 2/0 AWG Vão 35m | Q12: =[1]PrimariaMinutaCpfl!A11 -> 3 CA 336,4 MCM Vão 35m | R12: =[1]NeutroMinutaCpfl!A11 -> 1 CA 2/0 AWG Vão 80m | T12: 17 | X12: =IF(Simpli_PreAngulo_Paulista!A3>0,Simpli_PreAngulo_Paulista!C10,Simpli_PreAngulo_Paulista!D10) -> 159.5421067 | AK12: =[1]Folha4!A8 -> CU06
C13: RED. TENSÃO | D13: 0 | F13: 0 | H13: 0 | J13: 0 | L13: 0 | P13: =[1]SecundariaMinutaCpfl!A12 -> 3 CA 4/0 AWG Vão 35m | Q13: =[1]PrimariaMinutaCpfl!A12 -> 3 CA 477 MCM Vão 35m | R13: =[1]NeutroMinutaCpfl!A12 -> 1 CA 4/0 AWG Vão 80m | T13: 18 | AK13: =[1]Folha4!A9 -> CU02
C14: DISTÂNCIA SECUNDÁRIA SOLO CM | D14: 720 | F14: 720 | H14: 720 | J14: 720 | L14: 720 | P14: =[1]SecundariaMinutaCpfl!A13 -> 3 CA 336,4 MCM Vão 35m | Q14: =[1]PrimariaMinutaCpfl!A13 ->  | R14: =[1]NeutroMinutaCpfl!A13 -> 1 CA 336,4 MCM Vão 80m | T14: 19 | AK14: =[1]Folha4!A10 -> CU10
C15: TELEFONE | J15: 100 | P15: =[1]SecundariaMinutaCpfl!A14 -> 3 CA 477 MCM Vão 35m | Q15: =[1]PrimariaMinutaCpfl!A14 -> 3 CA 02 AWG Vão 80m | R15: =[1]NeutroMinutaCpfl!A14 -> 1 CA 477 MCM Vão 80m | T15: 20 | AK15: =[1]Folha4!A11 -> CU20
C16: TV CABO | P16: =[1]SecundariaMinutaCpfl!A15 ->  | Q16: =[1]PrimariaMinutaCpfl!A15 -> 3 CA 1/0 AWG Vão 80m | R16: =[1]NeutroMinutaCpfl!A15 ->  | AK16: =[1]Folha4!A12 -> CU40
C17: DISTÂNCIA TELEFONE/CABO SOLO CM | D17: 550 | F17: 550 | H17: 550 | J17: 550 | L17: 550 | P17: =[1]SecundariaMinutaCpfl!A16 -> 3 CA 02 AWG Vão 80m | Q17: =[1]PrimariaMinutaCpfl!A16 -> 3 CA 2/0 AWG Vão 80m | R17: =[1]NeutroMinutaCpfl!A16 -> 1 CAA 04 AWG Vão 40m | AK17: =[1]Folha4!A13 -> S04
C18: SUB TOTAL | D18: =IF(L31=1,Simpli_Pre_Pta_Pir_Sta_Jag!W22,"Atualize: http;//www.mabjo.com.br") -> 540.2258065 | F18: =IF(L31=1,Simpli_Pre_Pta_Pir_Sta_Jag!W23,"Atualize: http;//www.mabjo.com.br") -> 241.5483871 | H18: =IF(L31=1,Simpli_Pre_Pta_Pir_Sta_Jag!W24,"Atualize: http;//www.mabjo.com.br") -> 648 | J18: =IF(L31=1,Simpli_Pre_Pta_Pir_Sta_Jag!W25,"Atualize: http;//www.mabjo.com.br") -> 60.43956044 | L18: =IF(L31=1,Simpli_Pre_Pta_Pir_Sta_Jag!W26,"Atualize: http;//www.mabjo.com.br") -> 195.0967742 | P18: =[1]SecundariaMinutaCpfl!A17 -> 3 CA 1/0 AWG Vão 80m | Q18: =[1]PrimariaMinutaCpfl!A17 -> 3 CA 4/0 AWG Vão 80m | R18: =[1]NeutroMinutaCpfl!A17 -> 1 CAA 02 AWG Vão 40m | AK18: =[1]Folha4!A14 -> S02
C19: ESFORÇO RESULTANTE | D19: =IF(L31=1,Simpli_Pre_Pta_Pir_Sta_Jag!W27,"Atualize: http;//www.mabjo.com.br") -> 771.6970453 | H19: ÂNGULO RESULTANTE | L19: =IF(D19>0.001,X11,0) -> 339.5421067 | P19: =[1]SecundariaMinutaCpfl!A18 -> 3 CA 2/0 AWG Vão 80m | Q19: =[1]PrimariaMinutaCpfl!A18 -> 3 CA 336,4 MCM Vão 80m | R19: =[1]NeutroMinutaCpfl!A18 -> 1 CAA 1/0 AWG Vão 40m | AK19: =[1]Folha4!A15 -> S10
P20: =[1]SecundariaMinutaCpfl!A19 -> 3 CA 4/0 AWG Vão 80m | Q20: =[1]PrimariaMinutaCpfl!A19 -> 3 CA 477 MCM Vão 80m | R20: =[1]NeutroMinutaCpfl!A19 -> 1 CAA 2/0 AWG Vão 40m | AK20: =[1]Folha4!A16 -> S40
C21: On Line http://www.mabjo.com.br/ | L21: =NOW() -> 2022-07-21T04:50:22.360 | O21: http://www.mabjo.com.br | P21: =[1]SecundariaMinutaCpfl!A20 -> 3 CA 336,4 MCM Vão 80m | Q21: =[1]PrimariaMinutaCpfl!A20 ->  | R21: =[1]NeutroMinutaCpfl!A20 -> 1 CAA 4/0 AWG Vão 40m | AK21: =[1]Folha4!A17 -> S33
H22: contato@mabjo.com.br | N22: Download Cálculo Mecânico Esforço Poste Atualizado | O22: http://www.mabjo.com.br/ | P22: =[1]SecundariaMinutaCpfl!A21 -> 3 CA 477 MCM Vão 80m | Q22: =[1]PrimariaMinutaCpfl!A21 -> 3 CAA 04 AWG Vão 40m | R22: =[1]NeutroMinutaCpfl!A21 ->  | AK22: =[1]Folha4!A18 -> S47
C23: =CONCATENATE("Cálculo Esforço Poste : Plt, Pira, SC e Jg - Versão") -> Cálculo Esforço Poste : Plt, Pira, SC e Jg - Versão | N23: =O28 -> 2016-11-30 | P23: =[1]SecundariaMinutaCpfl!A22 ->  | Q23: =[1]PrimariaMinutaCpfl!A22 -> 3 CAA 02 AWG Vão 40m | R23: =[1]NeutroMinutaCpfl!A22 -> 1 CAA 04 AWG Vão 80m | AK23: =[1]Folha4!A19 -> E70
C24: =N30 ->  | F24: =O30 -> 2018-06-05 | H24: Cálculo customizado para fibra óptica e telefonia | P24: =[1]SecundariaMinutaCpfl!A23 -> 3 CAA 04 AWG Vão 40m | Q24: =[1]PrimariaMinutaCpfl!A23 -> 3 CAA 1/0 AWG Vão 40m | R24: =[1]NeutroMinutaCpfl!A23 -> 1 CAA 02 AWG Vão 80m
C25: Visite http://www.mabjo.com.br/ | P25: =[1]SecundariaMinutaCpfl!A24 -> 3 CAA 02 AWG Vão 40m | Q25: =[1]PrimariaMinutaCpfl!A24 -> 3 CAA 2/0 AWG Vão 40m | R25: =[1]NeutroMinutaCpfl!A24 -> 1 CAA 1/0 AWG Vão 80m
C26: Calculo Queda Tensão Loteamento aéreo e subt. | P26: =[1]SecundariaMinutaCpfl!A25 -> 3 CAA 1/0 AWG Vão 40m | Q26: =[1]PrimariaMinutaCpfl!A25 -> 3 CAA 4/0 AWG Vão 40m | R26: =[1]NeutroMinutaCpfl!A25 -> 1 CAA 2/0 AWG Vão 80m
C27: =X12 -> 159.5421067 | P27: =[1]SecundariaMinutaCpfl!A26 -> 3 CAA 2/0 AWG Vão 40m | Q27: =[1]PrimariaMinutaCpfl!A26 ->  | R27: =[1]NeutroMinutaCpfl!A26 -> 1 CAA 4/0 AWG Vão 80m | AK27: =[1]Folha4!A20 -> E185
C28: MEDIDA 1 | D28: 11 | H28: =Simpli_PreAngulo_Paulista!C10 -> 159.5421067 | N28: Esta Versão | O28: =Completo_Esforço_CPFL_Paulista!O28 -> 42704 | P28: =[1]SecundariaMinutaCpfl!A27 -> 3 CAA 4/0 AWG Vão 40m | Q28: =[1]PrimariaMinutaCpfl!A27 -> 3 CAA 04 AWG Vão 80m | R28: =[1]NeutroMinutaCpfl!A27 -> 1 CAA 336,4 MCM Vão 80m | AK28: =[1]Folha4!A21 -> 0
C29: MEDIDA 2 | D29: 11 | H29: =Simpli_PreAngulo_Paulista!D10 -> 200.4578933 | J29: Dias Versão | L29: =O30-O28 -> 552 | P29: =[1]SecundariaMinutaCpfl!A28 ->  | Q29: =[1]PrimariaMinutaCpfl!A28 -> 3 CAA 02 AWG Vão 80m | R29: =[1]NeutroMinutaCpfl!A28 ->  | AK29: =[1]Folha4!A22 -> 0
C30: MEDIDA 3 | D30: 5 | J30: PreDiasAtualização | L30: =L21-O30 -> 1507.201648 | N30: =IF([1]Mensagem!B3 <> "",[1]Mensagem!B3,"") ->  | O30: =IF([1]Mensagem!C3 <> "",[1]Mensagem!C3,"") -> 43256 | P30: =[1]SecundariaMinutaCpfl!A29 -> 3 CAA 04 AWG Vão 80m | Q30: =[1]PrimariaMinutaCpfl!A29 -> 3 CAA 1/0 AWG Vão 80m | R30: =[1]NeutroMinutaCpfl!A29 -> 1 CAA 04 AWG Vão 120m | AK30: =[1]Folha4!A23 -> 0
C31: ÂNGULO | D31: =IF(D30>0,Plan3!C10,"") -> 41.64967227 | J31: Dias Atualização | L31: =Completo_Esforço_CPFL_Paulista!L31 -> 1 | N31: =IF([1]Mensagem!B4 <> "",[1]Mensagem!B4,"") ->  | O31: =IF([1]Mensagem!C4 <> "",[1]Mensagem!C4,"") -> 43256 | P31: =[1]SecundariaMinutaCpfl!A30 -> 3 CAA 02 AWG Vão 80m | Q31: =[1]PrimariaMinutaCpfl!A30 -> 3 CAA 2/0 AWG Vão 80m | R31: =[1]NeutroMinutaCpfl!A30 -> 1 CAA 02 AWG Vão 120m | AK31: =[1]Folha4!A24 -> 0
N32: =IF([1]Mensagem!B5 <> "",[1]Mensagem!B5,"") ->  | O32: =IF([1]Mensagem!C5 <> "",[1]Mensagem!C5,"") ->  | P32: =[1]SecundariaMinutaCpfl!A31 -> 3 CAA 1/0 AWG Vão 80m | Q32: =[1]PrimariaMinutaCpfl!A31 -> 3 CAA 4/0 AWG Vão 80m | R32: =[1]NeutroMinutaCpfl!A31 -> 1 CAA 1/0 AWG Vão 120m | AK32: =[1]Folha4!A25 -> 0
N33: =IF([1]Mensagem!B6 <> "",[1]Mensagem!B6,"") ->  | O33: =IF([1]Mensagem!C6 <> "",[1]Mensagem!C6,"") ->  | P33: =[1]SecundariaMinutaCpfl!A32 -> 3 CAA 2/0 AWG Vão 80m | Q33: =[1]PrimariaMinutaCpfl!A32 -> 3 CAA 336,4 MCM Vão 80m | R33: =[1]NeutroMinutaCpfl!A32 -> 1 CAA 2/0 AWG Vão 120m | U33: 0 | AK33: =[1]Folha4!A26 -> 0
C34: Coordenada X | D34: Coordenada Y | N34: =IF([1]Mensagem!B7 <> "",[1]Mensagem!B7,"") ->  | O34: =IF([1]Mensagem!C7 <> "",[1]Mensagem!C7,"") ->  | P34: =[1]SecundariaMinutaCpfl!A33 -> 3 CAA 4/0 AWG Vão 80m | Q34: =[1]PrimariaMinutaCpfl!A33 ->  | R34: =[1]NeutroMinutaCpfl!A33 -> 1 CAA 4/0 AWG Vão 120m | U34: 1 | AK34: =[1]Folha4!A27 -> 0
C35: 29829000 | D35: 745407001 | J35: Poste 1 | N35: =IF([1]Mensagem!B8 <> "",[1]Mensagem!B8,"") ->  | O35: =IF([1]Mensagem!C8 <> "",[1]Mensagem!C8,"") ->  | P35: =[1]SecundariaMinutaCpfl!A34 -> 3 CAA 336,4 MCM Vão 80m | Q35: =[1]PrimariaMinutaCpfl!A34 -> 3 CAA 04 AWG Vão 120m | R35: =[1]NeutroMinutaCpfl!A34 -> 1 CAA 336,4 MCM Vão 120m | U35: 2 | AK35: =[1]Folha4!A28 -> 0
C36: 29229000 | D36: 745406001 | J36: Poste Meio | N36: =IF([1]Mensagem!B9 <> "",[1]Mensagem!B9,"") ->  | O36: =IF([1]Mensagem!C9 <> "",[1]Mensagem!C9,"") ->  | P36: =[1]SecundariaMinutaCpfl!A35 ->  | Q36: =[1]PrimariaMinutaCpfl!A35 -> 3 CAA 02 AWG Vão 120m | R36: =[1]NeutroMinutaCpfl!A35 ->  | U36: 3 | AK36: =[1]Folha4!A29 -> 0
C37: Distância Metros | D37: =Plan3!E26/100 -> 6000.008333 | N37: =IF([1]Mensagem!B10 <> "",[1]Mensagem!B10,"") ->  | O37: =IF([1]Mensagem!C10 <> "",[1]Mensagem!C10,"") ->  | P37: =[1]SecundariaMinutaCpfl!A36 -> 3 CAA 04 AWG Vão 120m | Q37: =[1]PrimariaMinutaCpfl!A36 -> 3 CAA 1/0 AWG Vão 120m | R37: =[1]NeutroMinutaCpfl!A36 -> 1 CU 06 AWG Vão 35m | U37: 4 | AK37: =[1]Folha4!A30 -> 0
C38: Ângulo | D38: =Plan3!E29 -> 89.90450712 | N38: =IF([1]Mensagem!B11 <> "",[1]Mensagem!B11,"") ->  | O38: =IF([1]Mensagem!C11 <> "",[1]Mensagem!C11,"") ->  | P38: =[1]SecundariaMinutaCpfl!A37 -> 3 CAA 02 AWG Vão 120m | Q38: =[1]PrimariaMinutaCpfl!A37 -> 3 CAA 2/0 AWG Vão 120m | R38: =[1]NeutroMinutaCpfl!A37 -> 1 CU 02 AWG Vão 35m | U38: 5 | AK38: =[1]Folha4!A31 -> 0
N39: =IF([1]Mensagem!B12 <> "",[1]Mensagem!B12,"") ->  | O39: =IF([1]Mensagem!C12 <> "",[1]Mensagem!C12,"") ->  | P39: =[1]SecundariaMinutaCpfl!A38 -> 3 CAA 1/0 AWG Vão 120m | Q39: =[1]PrimariaMinutaCpfl!A38 -> 3 CAA 4/0 AWG Vão 120m | R39: =[1]NeutroMinutaCpfl!A38 -> 1 CU 1/0 AWG Vão 35m | U39: 6 | AK39: =[1]Folha4!A32 -> 0
N40: =IF([1]Mensagem!B13 <> "",[1]Mensagem!B13,"") ->  | O40: =IF([1]Mensagem!C13 <> "",[1]Mensagem!C13,"") ->  | P40: =[1]SecundariaMinutaCpfl!A39 -> 3 CAA 2/0 AWG Vão 120m | Q40: =[1]PrimariaMinutaCpfl!A39 -> 3 CAA 336,4 MCM Vão 120m | R40: =[1]NeutroMinutaCpfl!A39 -> 1 CU 2/0 AWG Vão 35m | U40: 7 | AK40: =[1]Folha4!A33 -> 0
C41: Coordenada X | D41: Coordenada Y | N41: =IF([1]Mensagem!B14 <> "",[1]Mensagem!B14,"") ->  | O41: =IF([1]Mensagem!C14 <> "",[1]Mensagem!C14,"") -> Cálculo Esforço | P41: =[1]SecundariaMinutaCpfl!A40 -> 3 CAA 4/0 AWG Vão 120m | Q41: =[1]PrimariaMinutaCpfl!A40 ->  | R41: =[1]NeutroMinutaCpfl!A40 -> 1 CU 4/0 AWG Vão 35m | U41: 8 | AK41: =[1]Folha4!A34 -> 0
C42: =C36 -> 29229000 | D42: =D36 -> 745406001 | J42: Poste Meio | N42: =IF([1]Mensagem!B15 <> "",[1]Mensagem!B15,"") ->  | O42: =IF([1]Mensagem!C15 <> "",[1]Mensagem!C15,"") -> Customizado | P42: =[1]SecundariaMinutaCpfl!A41 -> 3 CAA 336,4 MCM Vão 120m | Q42: =[1]PrimariaMinutaCpfl!A41 -> 3 15kv 240 mm² Vão 35m | R42: =[1]NeutroMinutaCpfl!A41 -> 0 | U42: 9 | AK42: =[1]Folha4!A35 -> 0
C43: 29279000 | D43: 748406001 | J43: Poste 3 | N43: =IF([1]Mensagem!B16 <> "",[1]Mensagem!B16,"") ->  | O43: =IF([1]Mensagem!C16 <> "",[1]Mensagem!C16,"") -> para cabos de | P43: =[1]SecundariaMinutaCpfl!A42 ->  | Q43: =[1]PrimariaMinutaCpfl!A42 -> 3 25kv 240 mm² Vão 35m | R43: =[1]NeutroMinutaCpfl!A42 -> 0 | U43: 10 | AK43: =[1]Folha4!A36 -> 0
C44: Distância Metros | D44: =Plan3!E41/100 -> 30004.16638 | N44: =IF([1]Mensagem!B17 <> "",[1]Mensagem!B17,"") ->  | O44: =IF([1]Mensagem!C17 <> "",[1]Mensagem!C17,"") -> Telefonia e | P44: =[1]SecundariaMinutaCpfl!A43 -> 3 15kv 240 mm² Vão 35m | Q44: =[1]PrimariaMinutaCpfl!A43 -> 3 35kv 240 mm² Vão 35m | R44: =[1]NeutroMinutaCpfl!A43 -> 0 | U44: 11 | AK44: =[1]Folha4!A37 -> 0
C45: Ângulo | D45: =Plan3!E44 -> 0.9548412539 | N45: =IF([1]Mensagem!B18 <> "",[1]Mensagem!B18,"") ->  | O45: =IF([1]Mensagem!C18 <> "",[1]Mensagem!C18,"") -> Comunicação | P45: =[1]SecundariaMinutaCpfl!A44 -> 3 25kv 240 mm² Vão 35m | Q45: =[1]PrimariaMinutaCpfl!A44 ->  | R45: =[1]NeutroMinutaCpfl!A44 -> 0 | U45: 12 | AK45: =[1]Folha4!A38 -> 0
N46: =IF([1]Mensagem!B19 <> "",[1]Mensagem!B19,"") ->  | O46: =IF([1]Mensagem!C19 <> "",[1]Mensagem!C19,"") -> http://www.mabjo.com.br/Default.aspx | P46: =[1]SecundariaMinutaCpfl!A45 -> 3 35kv 240 mm² Vão 35m | Q46: =[1]PrimariaMinutaCpfl!A45 -> 3 CU 06 AWG Vão 35m | R46: =[1]NeutroMinutaCpfl!A45 -> 0 | U46: 13 | AK46: =[1]Folha4!A39 -> 0
C47: Ângulo Resultante | D47: =D45-D38 -> -88.94966587 | N47: =IF([1]Mensagem!B20 <> "",[1]Mensagem!B20,"") ->  | O47: =IF([1]Mensagem!C20 <> "",[1]Mensagem!C20,"") ->  | P47: =[1]SecundariaMinutaCpfl!A46 ->  | Q47: =[1]PrimariaMinutaCpfl!A46 -> 3 CU 02 AWG Vão 35m | R47: =[1]NeutroMinutaCpfl!A46 -> 0 | U47: 14 | AK47: =[1]Folha4!A40 -> 0
P48: =[1]SecundariaMinutaCpfl!A47 -> 3 CU 06 AWG Vão 35m | Q48: =[1]PrimariaMinutaCpfl!A47 -> 3 CU 1/0 AWG Vão 35m | R48: =[1]NeutroMinutaCpfl!A47 -> 0 | U48: 15 | AK48: =[1]Folha4!A41 -> 0
P49: =[1]SecundariaMinutaCpfl!A48 -> 3 CU 02 AWG Vão 35m | Q49: =[1]PrimariaMinutaCpfl!A48 -> 3 CU 2/0 AWG Vão 35m | R49: =[1]NeutroMinutaCpfl!A48 -> 0 | U49: 16 | AK49: =[1]Folha4!A42 -> 0
C50: Cálculo Flecha | D50: Primário por Fase | P50: =[1]SecundariaMinutaCpfl!A49 -> 3 CU 1/0 AWG Vão 35m | Q50: =[1]PrimariaMinutaCpfl!A49 -> 3 CU 4/0 AWG Vão 35m | R50: =[1]NeutroMinutaCpfl!A49 -> 0 | U50: 17 | AK50: =[1]Folha4!A43 -> 0
C51: Cabo | D51: A02 | P51: =[1]SecundariaMinutaCpfl!A50 -> 3 CU 2/0 AWG Vão 35m | Q51: =[1]PrimariaMinutaCpfl!A50 ->  | R51: =[1]NeutroMinutaCpfl!A50 -> 0 | U51: 18 | AK51: =[1]Folha4!A44 -> 0
C52: Distância | D52: 100 | P52: =[1]SecundariaMinutaCpfl!A51 -> 3 CU 4/0 AWG Vão 35m | Q52: =[1]PrimariaMinutaCpfl!A51 -> 2 CA 02 AWG Vão 35m | R52: =[1]NeutroMinutaCpfl!A51 -> 0 | U52: 18 | AK52: =[1]Folha4!A45 -> 0
C53: Redução Tensão % | D53: 20 | P53: =[1]SecundariaMinutaCpfl!A52 ->  | Q53: =[1]PrimariaMinutaCpfl!A52 -> 2 CA 1/0 AWG Vão 35m | R53: =[1]NeutroMinutaCpfl!A52 -> 0 | AK53: =[1]Folha4!A46 -> 0
C54: Amperes | D54: =VLOOKUP(D51,[1]Folha4!A2:G27,7,0) -> 138 | J54: Esforço Trifásico | P54: =[1]SecundariaMinutaCpfl!A53 -> 2 CA 02 AWG Vão 35m | Q54: =[1]PrimariaMinutaCpfl!A53 -> 2 CA 2/0 AWG Vão 35m | R54: =[1]NeutroMinutaCpfl!A53 -> 0 | AK54: =[1]Folha4!A47 -> 0
C55: Esforço Urbano | D55: =N55-N57 -> 76 | J55: =D55*3 -> 228 | N55: =VLOOKUP(D51,[1]Folha4!A2:E27,2,0) -> 95 | P55: =[1]SecundariaMinutaCpfl!A54 -> 2 CA 1/0 AWG Vão 35m | Q55: =[1]PrimariaMinutaCpfl!A54 -> 2 CA 4/0 AWG Vão 35m | R55: =[1]NeutroMinutaCpfl!A54 -> 0 | AK55: =[1]Folha4!A48 -> 0
C56: Esforço Rural | D56: =N56-N58 -> 163.2 | J56: =D56*3 -> 489.6 | N56: =VLOOKUP(D51,[1]Folha4!A2:E27,3,0) -> 204 | P56: =[1]SecundariaMinutaCpfl!A55 -> 2 CA 2/0 AWG Vão 35m | Q56: =[1]PrimariaMinutaCpfl!A55 -> 2 CA 336,4 MCM Vão 35m | R56: =[1]NeutroMinutaCpfl!A55 -> 0 | AK56: =[1]Folha4!A49 -> 0
C57: Kg/m | D57: =VLOOKUP(D51,[1]Folha4!A1:F27,6,0) -> 0.092 | N57: =D53*N55/100 -> 19 | P57: =[1]SecundariaMinutaCpfl!A56 -> 2 CA 4/0 AWG Vão 35m | Q57: =[1]PrimariaMinutaCpfl!A56 -> 2 CA 477 MCM Vão 35m | R57: =[1]NeutroMinutaCpfl!A56 -> 0 | AK57: =[1]Folha4!A50 -> 0
C58: Flecha Ubano | D58: =IF(D55>0,(D57*(D52*D52))/(8*D55),"") -> 1.513157895 | N58: =D53*N56/100 -> 40.8 | P58: =[1]SecundariaMinutaCpfl!A57 -> 2 CA 336,4 MCM Vão 35m | Q58: =[1]PrimariaMinutaCpfl!A57 ->  | R58: =[1]NeutroMinutaCpfl!A57 -> 0 | U58: 18 | AK58: =[1]Folha4!A51 -> 0
C59: Flecha Rural | D59: =IF(D56>0,(D57*(D52*D52))/(8*D56),"") -> 0.7046568627 | P59: =[1]SecundariaMinutaCpfl!A58 -> 2 CA 477 MCM Vão 35m | Q59: =[1]PrimariaMinutaCpfl!A58 -> 2 CA 02 AWG Vão 80m | R59: =[1]NeutroMinutaCpfl!A58 -> 0 | U59: 18 | AK59: =[1]Folha4!A52 -> 0
P60: =[1]SecundariaMinutaCpfl!A59 ->  | Q60: =[1]PrimariaMinutaCpfl!A59 -> 2 CA 1/0 AWG Vão 80m | R60: =[1]NeutroMinutaCpfl!A59 -> 0 | U60: 18 | AK60: =[1]Folha4!A53 -> 0
P61: =[1]SecundariaMinutaCpfl!A60 -> 2 CA 02 AWG Vão 80m | Q61: =[1]PrimariaMinutaCpfl!A60 -> 2 CA 2/0 AWG Vão 80m | R61: =[1]NeutroMinutaCpfl!A60 -> 0 | U61: 18 | AK61: =[1]Folha4!A54 -> 0
C62: =VLOOKUP(D51,[1]Folha4!A2:E27,2,0) -> 95 | P62: =[1]SecundariaMinutaCpfl!A61 -> 2 CA 1/0 AWG Vão 80m | Q62: =[1]PrimariaMinutaCpfl!A61 -> 2 CA 4/0 AWG Vão 80m | R62: =[1]NeutroMinutaCpfl!A61 -> 0 | U62: 18 | AK62: =[1]Folha4!A55 -> 0
P63: =[1]SecundariaMinutaCpfl!A62 -> 2 CA 2/0 AWG Vão 80m | Q63: =[1]PrimariaMinutaCpfl!A62 -> 2 CA 336,4 MCM Vão 80m | R63: =[1]NeutroMinutaCpfl!A62 -> 0 | U63: 18 | AK63: =[1]Folha4!A56 -> 0
P64: =[1]SecundariaMinutaCpfl!A63 -> 2 CA 4/0 AWG Vão 80m | Q64: =[1]PrimariaMinutaCpfl!A63 -> 2 CA 477 MCM Vão 80m | R64: =[1]NeutroMinutaCpfl!A63 -> 0 | U64: 18 | AK64: =[1]Folha4!A57 -> 0
P65: =[1]SecundariaMinutaCpfl!A64 -> 2 CA 336,4 MCM Vão 80m | Q65: =[1]PrimariaMinutaCpfl!A64 ->  | R65: =[1]NeutroMinutaCpfl!A64 -> 0 | U65: 18 | AK65: =[1]Folha4!A58 -> 0
P66: =[1]SecundariaMinutaCpfl!A65 -> 2 CA 477 MCM Vão 80m | Q66: =[1]PrimariaMinutaCpfl!A65 -> 2 CA 04 AWG Vão 40m | R66: =[1]NeutroMinutaCpfl!A65 -> 0 | U66: 18 | AK66: =[1]Folha4!A59 -> 0
P67: =[1]SecundariaMinutaCpfl!A66 ->  | Q67: =[1]PrimariaMinutaCpfl!A66 -> 2 CA 02 AWG Vão 40m | R67: =[1]NeutroMinutaCpfl!A66 -> 0 | U67: 18 | AK67: =[1]Folha4!A60 -> 0
P68: =[1]SecundariaMinutaCpfl!A67 -> 2 CA 04 AWG Vão 40m | Q68: =[1]PrimariaMinutaCpfl!A67 -> 2 CA 1/0 AWG Vão 40m | R68: =[1]NeutroMinutaCpfl!A67 -> 0 | U68: 18 | AK68: =[1]Folha4!A61 -> 0
P69: =[1]SecundariaMinutaCpfl!A68 -> 2 CA 02 AWG Vão 40m | Q69: =[1]PrimariaMinutaCpfl!A68 -> 2 CA 2/0 AWG Vão 40m | R69: =[1]NeutroMinutaCpfl!A68 -> 0 | U69: 18 | AK69: =[1]Folha4!A62 -> 0
P70: =[1]SecundariaMinutaCpfl!A69 -> 2 CA 1/0 AWG Vão 40m | Q70: =[1]PrimariaMinutaCpfl!A69 -> 2 CA 4/0 AWG Vão 40m | R70: =[1]NeutroMinutaCpfl!A69 -> 0 | U70: 18 | AK70: =[1]Folha4!A63 -> 0
P71: =[1]SecundariaMinutaCpfl!A70 -> 2 CA 2/0 AWG Vão 40m | Q71: =[1]PrimariaMinutaCpfl!A70 ->  | R71: =[1]NeutroMinutaCpfl!A70 -> 0 | U71: 18 | AK71: =[1]Folha4!A64 -> 0
P72: =[1]SecundariaMinutaCpfl!A71 -> 2 CA 4/0 AWG Vão 40m | Q72: =[1]PrimariaMinutaCpfl!A71 -> 2 CAA 04 AWG Vão 80m | R72: =[1]NeutroMinutaCpfl!A71 -> 0 | U72: 18 | AK72: =[1]Folha4!A65 -> 0
P73: =[1]SecundariaMinutaCpfl!A72 ->  | Q73: =[1]PrimariaMinutaCpfl!A72 -> 2 CAA 02 AWG Vão 80m | R73: =[1]NeutroMinutaCpfl!A72 -> 0 | U73: 35 | AK73: =[1]Folha4!A66 -> 0
P74: =[1]SecundariaMinutaCpfl!A73 -> 2 CAA 04 AWG Vão 80m | Q74: =[1]PrimariaMinutaCpfl!A73 -> 2 CAA 1/0 AWG Vão 80m | R74: =[1]NeutroMinutaCpfl!A73 -> 0 | U74: 36 | AK74: =[1]Folha4!A67 -> 0
P75: =[1]SecundariaMinutaCpfl!A74 -> 2 CAA 02 AWG Vão 80m | Q75: =[1]PrimariaMinutaCpfl!A74 -> 2 CAA 2/0 AWG Vão 80m | R75: =[1]NeutroMinutaCpfl!A74 -> 0 | U75: 37 | AK75: =[1]Folha4!A68 -> 0
P76: =[1]SecundariaMinutaCpfl!A75 -> 2 CAA 1/0 AWG Vão 80m | Q76: =[1]PrimariaMinutaCpfl!A75 -> 2 CAA 4/0 AWG Vão 80m | R76: =[1]NeutroMinutaCpfl!A75 -> 0 | U76: 38 | AK76: =[1]Folha4!A69 -> 0
P77: =[1]SecundariaMinutaCpfl!A76 -> 2 CAA 2/0 AWG Vão 80m | Q77: =[1]PrimariaMinutaCpfl!A76 -> 2 CAA 336,4 MCM Vão 80m | R77: =[1]NeutroMinutaCpfl!A76 -> 0 | U77: 39 | AK77: =[1]Folha4!A70 -> 0
P78: =[1]SecundariaMinutaCpfl!A77 -> 2 CAA 4/0 AWG Vão 80m | Q78: =[1]PrimariaMinutaCpfl!A77 ->  | R78: =[1]NeutroMinutaCpfl!A77 -> 0 | U78: 40 | AK78: =[1]Folha4!A71 -> 0
P79: =[1]SecundariaMinutaCpfl!A78 -> 2 CAA 336,4 MCM Vão 80m | Q79: =[1]PrimariaMinutaCpfl!A78 -> 2 CAA 04 AWG Vão 120m | R79: =[1]NeutroMinutaCpfl!A78 -> 0 | U79: 41 | AK79: =[1]Folha4!A72 -> 0
P80: =[1]SecundariaMinutaCpfl!A79 ->  | Q80: =[1]PrimariaMinutaCpfl!A79 -> 2 CAA 02 AWG Vão 120m | R80: =[1]NeutroMinutaCpfl!A79 -> 0 | U80: 42 | AK80: =[1]Folha4!A73 -> 0
P81: =[1]SecundariaMinutaCpfl!A80 -> 2 CAA 04 AWG Vão 120m | Q81: =[1]PrimariaMinutaCpfl!A80 -> 2 CAA 1/0 AWG Vão 120m | R81: =[1]NeutroMinutaCpfl!A80 -> 0 | U81: 43 | AK81: =[1]Folha4!A74 -> 0
P82: =[1]SecundariaMinutaCpfl!A81 -> 2 CAA 02 AWG Vão 120m | Q82: =[1]PrimariaMinutaCpfl!A81 -> 2 CAA 2/0 AWG Vão 120m | R82: =[1]NeutroMinutaCpfl!A81 -> 0 | U82: 44 | AK82: =[1]Folha4!A75 -> 0
P83: =[1]SecundariaMinutaCpfl!A82 -> 2 CAA 1/0 AWG Vão 120m | Q83: =[1]PrimariaMinutaCpfl!A82 -> 2 CAA 4/0 AWG Vão 120m | R83: =[1]NeutroMinutaCpfl!A82 -> 0 | U83: 45 | AK83: =[1]Folha4!A76 -> 0
P84: =[1]SecundariaMinutaCpfl!A83 -> 2 CAA 2/0 AWG Vão 120m | Q84: =[1]PrimariaMinutaCpfl!A83 -> 2 CAA 336,4 MCM Vão 120m | R84: =[1]NeutroMinutaCpfl!A83 -> 0 | U84: 46 | AK84: =[1]Folha4!A77 -> 0
P85: =[1]SecundariaMinutaCpfl!A84 -> 2 CAA 4/0 AWG Vão 120m | Q85: =[1]PrimariaMinutaCpfl!A84 ->  | R85: =[1]NeutroMinutaCpfl!A84 -> 0 | U85: 47 | AK85: =[1]Folha4!A78 -> 0
P86: =[1]SecundariaMinutaCpfl!A85 -> 2 CAA 336,4 MCM Vão 120m | Q86: =[1]PrimariaMinutaCpfl!A85 -> 2 CU 06 AWG Vão 35m | R86: =[1]NeutroMinutaCpfl!A85 -> 0 | U86: 48 | AK86: =[1]Folha4!A79 -> 0
P87: =[1]SecundariaMinutaCpfl!A86 ->  | Q87: =[1]PrimariaMinutaCpfl!A86 -> 2 CU 02 AWG Vão 35m | R87: =[1]NeutroMinutaCpfl!A86 -> 0 | U87: 49 | AK87: =[1]Folha4!A80 -> 0
P88: =[1]SecundariaMinutaCpfl!A87 -> 2 CU 06 AWG Vão 35m | Q88: =[1]PrimariaMinutaCpfl!A87 -> 2 CU 1/0 AWG Vão 35m | R88: =[1]NeutroMinutaCpfl!A87 -> 0 | U88: 50 | AK88: =[1]Folha4!A81 -> 0
P89: =[1]SecundariaMinutaCpfl!A88 -> 2 CU 02 AWG Vão 35m | Q89: =[1]PrimariaMinutaCpfl!A88 -> 2 CU 2/0 AWG Vão 35m | R89: =[1]NeutroMinutaCpfl!A88 -> 0 | U89: 51 | AK89: =[1]Folha4!A82 -> 0
P90: =[1]SecundariaMinutaCpfl!A89 -> 2 CU 1/0 AWG Vão 35m | Q90: =[1]PrimariaMinutaCpfl!A89 -> 2 CU 4/0 AWG Vão 35m | R90: =[1]NeutroMinutaCpfl!A89 -> 0 | U90: 52 | AK90: =[1]Folha4!A83 -> 0
P91: =[1]SecundariaMinutaCpfl!A90 -> 2 CU 2/0 AWG Vão 35m | Q91: =[1]PrimariaMinutaCpfl!A90 ->  | R91: =[1]NeutroMinutaCpfl!A90 -> 0 | U91: 53 | AK91: =[1]Folha4!A84 -> 0
P92: =[1]SecundariaMinutaCpfl!A91 -> 2 CU 4/0 AWG Vão 35m | Q92: =[1]PrimariaMinutaCpfl!A91 -> 1 CA 02 AWG Vão 35m | R92: =[1]NeutroMinutaCpfl!A91 -> 0 | U92: 54 | AK92: =[1]Folha4!A85 -> 0
P93: =[1]SecundariaMinutaCpfl!A92 ->  | Q93: =[1]PrimariaMinutaCpfl!A92 -> 1 CA 1/0 AWG Vão 35m | R93: =[1]NeutroMinutaCpfl!A92 -> 0 | U93: 55 | AK93: =[1]Folha4!A86 -> 0
P94: =[1]SecundariaMinutaCpfl!A93 -> 1 CA 02 AWG Vão 35m | Q94: =[1]PrimariaMinutaCpfl!A93 -> 1 CA 2/0 AWG Vão 35m | R94: =[1]NeutroMinutaCpfl!A93 -> 0 | U94: 56 | AK94: =[1]Folha4!A87 -> 0
P95: =[1]SecundariaMinutaCpfl!A94 -> 1 CA 1/0 AWG Vão 35m | Q95: =[1]PrimariaMinutaCpfl!A94 -> 1 CA 4/0 AWG Vão 35m | R95: =[1]NeutroMinutaCpfl!A94 -> 0 | U95: 57 | AK95: =[1]Folha4!A88 -> 0
P96: =[1]SecundariaMinutaCpfl!A95 -> 1 CA 2/0 AWG Vão 35m | Q96: =[1]PrimariaMinutaCpfl!A95 -> 1 CA 336,4 MCM Vão 35m | R96: =[1]NeutroMinutaCpfl!A95 -> 0 | U96: 58 | AK96: =[1]Folha4!A89 -> 0
P97: =[1]SecundariaMinutaCpfl!A96 -> 1 CA 4/0 AWG Vão 35m | Q97: =[1]PrimariaMinutaCpfl!A96 -> 1 CA 477 MCM Vão 35m | R97: =[1]NeutroMinutaCpfl!A96 -> 0 | U97: 59 | AK97: =[1]Folha4!A90 -> 0
P98: =[1]SecundariaMinutaCpfl!A97 -> 1 CA 336,4 MCM Vão 35m | Q98: =[1]PrimariaMinutaCpfl!A97 ->  | R98: =[1]NeutroMinutaCpfl!A97 -> 0 | U98: 60 | AK98: =[1]Folha4!A91 -> 0
P99: =[1]SecundariaMinutaCpfl!A98 -> 1 CA 477 MCM Vão 35m | Q99: =[1]PrimariaMinutaCpfl!A98 -> 1 CA 02 AWG Vão 80m | R99: =[1]NeutroMinutaCpfl!A98 -> 0 | U99: 61 | AK99: =[1]Folha4!A92 -> 0
P100: =[1]SecundariaMinutaCpfl!A99 ->  | Q100: =[1]PrimariaMinutaCpfl!A99 -> 1 CA 1/0 AWG Vão 80m | R100: =[1]NeutroMinutaCpfl!A99 -> 0 | U100: 62 | AK100: =[1]Folha4!A93 -> 0
P101: =[1]SecundariaMinutaCpfl!A100 -> 1 CA 02 AWG Vão 80m | Q101: =[1]PrimariaMinutaCpfl!A100 -> 1 CA 2/0 AWG Vão 80m | R101: =[1]NeutroMinutaCpfl!A100 -> 0 | U101: 63 | AK101: =[1]Folha4!A94 -> 0
P102: =[1]SecundariaMinutaCpfl!A101 -> 1 CA 1/0 AWG Vão 80m | Q102: =[1]PrimariaMinutaCpfl!A101 -> 1 CA 4/0 AWG Vão 80m | R102: =[1]NeutroMinutaCpfl!A101 -> 0 | U102: 64 | AK102: =[1]Folha4!A95 -> 0
P103: =[1]SecundariaMinutaCpfl!A102 -> 1 CA 2/0 AWG Vão 80m | Q103: =[1]PrimariaMinutaCpfl!A102 -> 1 CA 336,4 MCM Vão 80m | R103: =[1]NeutroMinutaCpfl!A102 -> 0 | U103: 65 | AK103: =[1]Folha4!A96 -> 0
P104: =[1]SecundariaMinutaCpfl!A103 -> 1 CA 4/0 AWG Vão 80m | Q104: =[1]PrimariaMinutaCpfl!A103 -> 1 CA 477 MCM Vão 80m | R104: =[1]NeutroMinutaCpfl!A103 -> 0 | U104: 66 | AK104: =[1]Folha4!A97 -> 0
P105: =[1]SecundariaMinutaCpfl!A104 -> 1 CA 336,4 MCM Vão 80m | Q105: =[1]PrimariaMinutaCpfl!A104 ->  | R105: =[1]NeutroMinutaCpfl!A104 -> 0 | U105: 67 | AK105: =[1]Folha4!A98 -> 0
P106: =[1]SecundariaMinutaCpfl!A105 -> 1 CA 477 MCM Vão 80m | Q106: =[1]PrimariaMinutaCpfl!A105 -> 1 CAA 04 AWG Vão 40m | R106: =[1]NeutroMinutaCpfl!A105 -> 0 | U106: 68 | AK106: =[1]Folha4!A99 -> 0
P107: =[1]SecundariaMinutaCpfl!A106 ->  | Q107: =[1]PrimariaMinutaCpfl!A106 -> 1 CAA 02 AWG Vão 40m | R107: =[1]NeutroMinutaCpfl!A106 -> 0 | U107: 69 | AK107: =[1]Folha4!A100 -> 0
P108: =[1]SecundariaMinutaCpfl!A107 -> 1 CAA 04 AWG Vão 40m | Q108: =[1]PrimariaMinutaCpfl!A107 -> 1 CAA 1/0 AWG Vão 40m | R108: =[1]NeutroMinutaCpfl!A107 -> 0 | U108: 70 | AK108: =[1]Folha4!A101 -> 0
P109: =[1]SecundariaMinutaCpfl!A108 -> 1 CAA 02 AWG Vão 40m | Q109: =[1]PrimariaMinutaCpfl!A108 -> 1 CAA 2/0 AWG Vão 40m | R109: =[1]NeutroMinutaCpfl!A108 -> 0 | U109: 71 | AK109: =[1]Folha4!A102 -> 0
P110: =[1]SecundariaMinutaCpfl!A109 -> 1 CAA 1/0 AWG Vão 40m | Q110: =[1]PrimariaMinutaCpfl!A109 -> 1 CAA 4/0 AWG Vão 40m | R110: =[1]NeutroMinutaCpfl!A109 -> 0 | U110: 72 | AK110: =[1]Folha4!A103 -> 0
P111: =[1]SecundariaMinutaCpfl!A110 -> 1 CAA 2/0 AWG Vão 40m | Q111: =[1]PrimariaMinutaCpfl!A110 ->  | R111: =[1]NeutroMinutaCpfl!A110 -> 0 | U111: 73 | AK111: =[1]Folha4!A104 -> 0
P112: =[1]SecundariaMinutaCpfl!A111 -> 1 CAA 4/0 AWG Vão 40m | Q112: =[1]PrimariaMinutaCpfl!A111 -> 1 CAA 04 AWG Vão 80m | R112: =[1]NeutroMinutaCpfl!A111 -> 0 | U112: 74 | AK112: =[1]Folha4!A105 -> 0
P113: =[1]SecundariaMinutaCpfl!A112 ->  | Q113: =[1]PrimariaMinutaCpfl!A112 -> 1 CAA 02 AWG Vão 80m | R113: =[1]NeutroMinutaCpfl!A112 -> 0 | U113: 75 | AK113: =[1]Folha4!A106 -> 0
P114: =[1]SecundariaMinutaCpfl!A113 -> 1 CAA 04 AWG Vão 80m | Q114: =[1]PrimariaMinutaCpfl!A113 -> 1 CAA 1/0 AWG Vão 80m | R114: =[1]NeutroMinutaCpfl!A113 -> 0 | U114: 76 | AK114: =[1]Folha4!A107 -> 0
P115: =[1]SecundariaMinutaCpfl!A114 -> 1 CAA 02 AWG Vão 80m | Q115: =[1]PrimariaMinutaCpfl!A114 -> 1 CAA 2/0 AWG Vão 80m | R115: =[1]NeutroMinutaCpfl!A114 -> 0 | U115: 77 | AK115: =[1]Folha4!A108 -> 0
P116: =[1]SecundariaMinutaCpfl!A115 -> 1 CAA 1/0 AWG Vão 80m | Q116: =[1]PrimariaMinutaCpfl!A115 -> 1 CAA 4/0 AWG Vão 80m | R116: =[1]NeutroMinutaCpfl!A115 -> 0 | U116: 78 | AK116: =[1]Folha4!A109 -> 0
P117: =[1]SecundariaMinutaCpfl!A116 -> 1 CAA 2/0 AWG Vão 80m | Q117: =[1]PrimariaMinutaCpfl!A116 -> 1 CAA 336,4 MCM Vão 80m | R117: =[1]NeutroMinutaCpfl!A116 -> 0 | U117: 79 | AK117: =[1]Folha4!A110 -> 0
P118: =[1]SecundariaMinutaCpfl!A117 -> 1 CAA 4/0 AWG Vão 80m | Q118: =[1]PrimariaMinutaCpfl!A117 ->  | R118: =[1]NeutroMinutaCpfl!A117 -> 0 | U118: 80 | AK118: =[1]Folha4!A111 -> 0
P119: =[1]SecundariaMinutaCpfl!A118 -> 1 CAA 336,4 MCM Vão 80m | Q119: =[1]PrimariaMinutaCpfl!A118 -> 1 CAA 04 AWG Vão 120m | R119: =[1]NeutroMinutaCpfl!A118 -> 0 | U119: 81 | AK119: =[1]Folha4!A112 -> 0
P120: =[1]SecundariaMinutaCpfl!A119 ->  | Q120: =[1]PrimariaMinutaCpfl!A119 -> 1 CAA 02 AWG Vão 120m | R120: =[1]NeutroMinutaCpfl!A119 -> 0 | U120: 82 | AK120: =[1]Folha4!A113 -> 0
P121: =[1]SecundariaMinutaCpfl!A120 -> 1 CAA 04 AWG Vão 120m | Q121: =[1]PrimariaMinutaCpfl!A120 -> 1 CAA 1/0 AWG Vão 120m | R121: =[1]NeutroMinutaCpfl!A120 -> 0 | U121: 83 | AK121: =[1]Folha4!A114 -> 0
P122: =[1]SecundariaMinutaCpfl!A121 -> 1 CAA 02 AWG Vão 120m | Q122: =[1]PrimariaMinutaCpfl!A121 -> 1 CAA 2/0 AWG Vão 120m | R122: =[1]NeutroMinutaCpfl!A121 -> 0 | U122: 84 | AK122: =[1]Folha4!A115 -> 0
P123: =[1]SecundariaMinutaCpfl!A122 -> 1 CAA 1/0 AWG Vão 120m | Q123: =[1]PrimariaMinutaCpfl!A122 -> 1 CAA 4/0 AWG Vão 120m | R123: =[1]NeutroMinutaCpfl!A122 -> 0 | U123: 85 | AK123: =[1]Folha4!A116 -> 0
P124: =[1]SecundariaMinutaCpfl!A123 -> 1 CAA 2/0 AWG Vão 120m | Q124: =[1]PrimariaMinutaCpfl!A123 -> 1 CAA 336,4 MCM Vão 120m | R124: =[1]NeutroMinutaCpfl!A123 -> 0 | U124: 86 | AK124: =[1]Folha4!A117 -> 0
P125: =[1]SecundariaMinutaCpfl!A124 -> 1 CAA 4/0 AWG Vão 120m | Q125: =[1]PrimariaMinutaCpfl!A124 ->  | R125: =[1]NeutroMinutaCpfl!A124 -> 0 | U125: 87 | AK125: =[1]Folha4!A118 -> 0
P126: =[1]SecundariaMinutaCpfl!A125 -> 1 CAA 336,4 MCM Vão 120m | Q126: =[1]PrimariaMinutaCpfl!A125 -> 1 CU 06 AWG Vão 35m | R126: =[1]NeutroMinutaCpfl!A125 -> 0 | U126: 88 | AK126: =[1]Folha4!A119 -> 0
P127: =[1]SecundariaMinutaCpfl!A126 ->  | Q127: =[1]PrimariaMinutaCpfl!A126 -> 1 CU 02 AWG Vão 35m | R127: =[1]NeutroMinutaCpfl!A126 -> 0 | U127: 89 | AK127: =[1]Folha4!A120 -> 0
P128: =[1]SecundariaMinutaCpfl!A127 -> 1 CU 06 AWG Vão 35m | Q128: =[1]PrimariaMinutaCpfl!A127 -> 1 CU 1/0 AWG Vão 35m | R128: =[1]NeutroMinutaCpfl!A127 -> 0 | U128: 90 | AK128: =[1]Folha4!A121 -> 0
P129: =[1]SecundariaMinutaCpfl!A128 -> 1 CU 02 AWG Vão 35m | Q129: =[1]PrimariaMinutaCpfl!A128 -> 1 CU 2/0 AWG Vão 35m | R129: =[1]NeutroMinutaCpfl!A128 -> 0 | U129: 91 | AK129: =[1]Folha4!A122 -> 0
P130: =[1]SecundariaMinutaCpfl!A129 -> 1 CU 1/0 AWG Vão 35m | Q130: =[1]PrimariaMinutaCpfl!A129 -> 1 CU 4/0 AWG Vão 35m | R130: =[1]NeutroMinutaCpfl!A129 -> 0 | U130: 92 | AK130: =[1]Folha4!A123 -> 0
P131: =[1]SecundariaMinutaCpfl!A130 -> 1 CU 2/0 AWG Vão 35m | Q131: =[1]PrimariaMinutaCpfl!A130 -> 0 | R131: =[1]NeutroMinutaCpfl!A130 -> 0 | U131: 93 | AK131: =[1]Folha4!A124 -> 0
P132: =[1]SecundariaMinutaCpfl!A131 -> 1 CU 4/0 AWG Vão 35m | Q132: =[1]PrimariaMinutaCpfl!A131 -> 0 | R132: =[1]NeutroMinutaCpfl!A131 -> 0 | U132: 94 | AK132: =[1]Folha4!A125 -> 0
P133: =[1]SecundariaMinutaCpfl!A132 -> 0 | Q133: =[1]PrimariaMinutaCpfl!A132 -> 0 | R133: =[1]NeutroMinutaCpfl!A132 -> 0 | U133: 95 | AK133: =[1]Folha4!A126 -> 0
P134: =[1]SecundariaMinutaCpfl!A133 -> 0 | Q134: =[1]PrimariaMinutaCpfl!A133 -> 0 | R134: =[1]NeutroMinutaCpfl!A133 -> 0 | U134: 96 | AK134: =[1]Folha4!A127 -> 0
P135: =[1]SecundariaMinutaCpfl!A134 -> 0 | Q135: =[1]PrimariaMinutaCpfl!A134 -> 0 | R135: =[1]NeutroMinutaCpfl!A134 -> 0 | U135: 97 | AK135: =[1]Folha4!A128 -> 0
P136: =[1]SecundariaMinutaCpfl!A135 -> 0 | Q136: =[1]PrimariaMinutaCpfl!A135 -> 0 | R136: =[1]NeutroMinutaCpfl!A135 -> 0 | U136: 98 | AK136: =[1]Folha4!A129 -> 0
P137: =[1]SecundariaMinutaCpfl!A136 -> 0 | Q137: =[1]PrimariaMinutaCpfl!A136 -> 0 | R137: =[1]NeutroMinutaCpfl!A136 -> 0 | U137: 99 | AK137: =[1]Folha4!A130 -> 0
P138: =[1]SecundariaMinutaCpfl!A137 -> 0 | Q138: =[1]PrimariaMinutaCpfl!A137 -> 0 | R138: =[1]NeutroMinutaCpfl!A137 -> 0 | U138: 100 | AK138: =[1]Folha4!A131 -> 0
P139: =[1]SecundariaMinutaCpfl!A138 -> 0 | Q139: =[1]PrimariaMinutaCpfl!A138 -> 0 | R139: =[1]NeutroMinutaCpfl!A138 -> 0 | U139: 101 | AK139: =[1]Folha4!A132 -> 0
P140: =[1]SecundariaMinutaCpfl!A139 -> 0 | Q140: =[1]PrimariaMinutaCpfl!A139 -> 0 | R140: =[1]NeutroMinutaCpfl!A139 -> 0 | U140: 102 | AK140: =[1]Folha4!A133 -> 0
P141: =[1]SecundariaMinutaCpfl!A140 -> 0 | Q141: =[1]PrimariaMinutaCpfl!A140 -> 0 | R141: =[1]NeutroMinutaCpfl!A140 -> 0 | U141: 103 | AK141: =[1]Folha4!A134 -> 0
P142: =[1]SecundariaMinutaCpfl!A141 -> 0 | Q142: =[1]PrimariaMinutaCpfl!A141 -> 0 | R142: =[1]NeutroMinutaCpfl!A141 -> 0 | U142: 104 | AK142: =[1]Folha4!A135 -> 0
P143: =[1]SecundariaMinutaCpfl!A142 -> 0 | Q143: =[1]PrimariaMinutaCpfl!A142 -> 0 | R143: =[1]NeutroMinutaCpfl!A142 -> 0 | U143: 105 | AK143: =[1]Folha4!A136 -> 0
P144: =[1]SecundariaMinutaCpfl!A143 -> 0 | Q144: =[1]PrimariaMinutaCpfl!A143 -> 0 | R144: =[1]NeutroMinutaCpfl!A143 -> 0 | U144: 106 | AK144: =[1]Folha4!A137 -> 0
P145: =[1]SecundariaMinutaCpfl!A144 -> 0 | Q145: =[1]PrimariaMinutaCpfl!A144 -> 0 | R145: =[1]NeutroMinutaCpfl!A144 -> 0 | U145: 107 | AK145: =[1]Folha4!A138 -> 0
P146: =[1]SecundariaMinutaCpfl!A145 -> 0 | Q146: =[1]PrimariaMinutaCpfl!A145 -> 0 | R146: =[1]NeutroMinutaCpfl!A145 -> 0 | U146: 108 | AK146: =[1]Folha4!A139 -> 0
P147: =[1]SecundariaMinutaCpfl!A146 -> 0 | Q147: =[1]PrimariaMinutaCpfl!A146 -> 0 | R147: =[1]NeutroMinutaCpfl!A146 -> 0 | U147: 109 | AK147: =[1]Folha4!A140 -> 0
P148: =[1]SecundariaMinutaCpfl!A147 -> 0 | Q148: =[1]PrimariaMinutaCpfl!A147 -> 0 | R148: =[1]NeutroMinutaCpfl!A147 -> 0 | U148: 110 | AK148: =[1]Folha4!A141 -> 0
P149: =[1]SecundariaMinutaCpfl!A148 -> 0 | Q149: =[1]PrimariaMinutaCpfl!A148 -> 0 | R149: =[1]NeutroMinutaCpfl!A148 -> 0 | U149: 111 | AK149: =[1]Folha4!A142 -> 0
P150: =[1]SecundariaMinutaCpfl!A149 -> 0 | Q150: =[1]PrimariaMinutaCpfl!A149 -> 0 | R150: =[1]NeutroMinutaCpfl!A149 -> 0 | U150: 112 | AK150: =[1]Folha4!A143 -> 0
P151: =[1]SecundariaMinutaCpfl!A150 -> 0 | Q151: =[1]PrimariaMinutaCpfl!A150 -> 0 | R151: =[1]NeutroMinutaCpfl!A150 -> 0 | U151: 113 | AK151: =[1]Folha4!A144 -> 0
P152: =[1]SecundariaMinutaCpfl!A151 -> 0 | Q152: =[1]PrimariaMinutaCpfl!A151 -> 0 | R152: =[1]NeutroMinutaCpfl!A151 -> 0 | U152: 114 | AK152: =[1]Folha4!A145 -> 0
P153: =[1]SecundariaMinutaCpfl!A152 -> 0 | Q153: =[1]PrimariaMinutaCpfl!A152 -> 0 | R153: =[1]NeutroMinutaCpfl!A152 -> 0 | U153: 115 | AK153: =[1]Folha4!A146 -> 0
P154: =[1]SecundariaMinutaCpfl!A153 -> 0 | Q154: =[1]PrimariaMinutaCpfl!A153 -> 0 | R154: =[1]NeutroMinutaCpfl!A153 -> 0 | U154: 116 | AK154: =[1]Folha4!A147 -> 0
P155: =[1]SecundariaMinutaCpfl!A154 -> 0 | Q155: =[1]PrimariaMinutaCpfl!A154 -> 0 | R155: =[1]NeutroMinutaCpfl!A154 -> 0 | U155: 117 | AK155: =[1]Folha4!A148 -> 0
P156: =[1]SecundariaMinutaCpfl!A155 -> 0 | Q156: =[1]PrimariaMinutaCpfl!A155 -> 0 | R156: =[1]NeutroMinutaCpfl!A155 -> 0 | U156: 118 | AK156: =[1]Folha4!A149 -> 0
P157: =[1]SecundariaMinutaCpfl!A156 -> 0 | Q157: =[1]PrimariaMinutaCpfl!A156 -> 0 | R157: =[1]NeutroMinutaCpfl!A156 -> 0 | U157: 119 | AK157: =[1]Folha4!A150 -> 0
P158: =[1]SecundariaMinutaCpfl!A157 -> 0 | Q158: =[1]PrimariaMinutaCpfl!A157 -> 0 | R158: =[1]NeutroMinutaCpfl!A157 -> 0 | U158: 120 | AK158: =[1]Folha4!A151 -> 0
P159: =[1]SecundariaMinutaCpfl!A158 -> 0 | Q159: =[1]PrimariaMinutaCpfl!A158 -> 0 | R159: =[1]NeutroMinutaCpfl!A158 -> 0 | U159: 121 | AK159: =[1]Folha4!A152 -> 0
P160: =[1]SecundariaMinutaCpfl!A159 -> 0 | Q160: =[1]PrimariaMinutaCpfl!A159 -> 0 | R160: =[1]NeutroMinutaCpfl!A159 -> 0 | U160: 122 | AK160: =[1]Folha4!A153 -> 0
P161: =[1]SecundariaMinutaCpfl!A160 -> 0 | Q161: =[1]PrimariaMinutaCpfl!A160 -> 0 | R161: =[1]NeutroMinutaCpfl!A160 -> 0 | U161: 123 | AK161: =[1]Folha4!A154 -> 0
P162: =[1]SecundariaMinutaCpfl!A161 -> 0 | Q162: =[1]PrimariaMinutaCpfl!A161 -> 0 | R162: =[1]NeutroMinutaCpfl!A161 -> 0 | U162: 124 | AK162: =[1]Folha4!A155 -> 0
P163: =[1]SecundariaMinutaCpfl!A162 -> 0 | Q163: =[1]PrimariaMinutaCpfl!A162 -> 0 | R163: =[1]NeutroMinutaCpfl!A162 -> 0 | U163: 125 | AK163: =[1]Folha4!A156 -> 0
P164: =[1]SecundariaMinutaCpfl!A163 -> 0 | Q164: =[1]PrimariaMinutaCpfl!A163 -> 0 | R164: =[1]NeutroMinutaCpfl!A163 -> 0 | U164: 126 | AK164: =[1]Folha4!A157 -> 0
P165: =[1]SecundariaMinutaCpfl!A164 -> 0 | Q165: =[1]PrimariaMinutaCpfl!A164 -> 0 | R165: =[1]NeutroMinutaCpfl!A164 -> 0 | U165: 127 | AK165: =[1]Folha4!A158 -> 0
P166: =[1]SecundariaMinutaCpfl!A165 -> 0 | Q166: =[1]PrimariaMinutaCpfl!A165 -> 0 | R166: =[1]NeutroMinutaCpfl!A165 -> 0 | U166: 128 | AK166: =[1]Folha4!A159 -> 0
P167: =[1]SecundariaMinutaCpfl!A166 -> 0 | Q167: =[1]PrimariaMinutaCpfl!A166 -> 0 | R167: =[1]NeutroMinutaCpfl!A166 -> 0 | U167: 129 | AK167: =[1]Folha4!A160 -> 0
P168: =[1]SecundariaMinutaCpfl!A167 -> 0 | Q168: =[1]PrimariaMinutaCpfl!A167 -> 0 | R168: =[1]NeutroMinutaCpfl!A167 -> 0 | U168: 130 | AK168: =[1]Folha4!A161 -> 0
P169: =[1]SecundariaMinutaCpfl!A168 -> 0 | Q169: =[1]PrimariaMinutaCpfl!A168 -> 0 | R169: =[1]NeutroMinutaCpfl!A168 -> 0 | U169: 131 | AK169: =[1]Folha4!A162 -> 0
P170: =[1]SecundariaMinutaCpfl!A169 -> 0 | Q170: =[1]PrimariaMinutaCpfl!A169 -> 0 | R170: =[1]NeutroMinutaCpfl!A169 -> 0 | U170: 132 | AK170: =[1]Folha4!A163 -> 0
P171: =[1]SecundariaMinutaCpfl!A170 -> 0 | Q171: =[1]PrimariaMinutaCpfl!A170 -> 0 | R171: =[1]NeutroMinutaCpfl!A170 -> 0 | U171: 133 | AK171: =[1]Folha4!A164 -> 0
P172: =[1]SecundariaMinutaCpfl!A171 -> 0 | Q172: =[1]PrimariaMinutaCpfl!A171 -> 0 | R172: =[1]NeutroMinutaCpfl!A171 -> 0 | U172: 134 | AK172: =[1]Folha4!A165 -> 0
P173: =[1]SecundariaMinutaCpfl!A172 -> 0 | Q173: =[1]PrimariaMinutaCpfl!A172 -> 0 | R173: =[1]NeutroMinutaCpfl!A172 -> 0 | U173: 135 | AK173: =[1]Folha4!A166 -> 0
P174: =[1]SecundariaMinutaCpfl!A173 -> 0 | Q174: =[1]PrimariaMinutaCpfl!A173 -> 0 | R174: =[1]NeutroMinutaCpfl!A173 -> 0 | U174: 136 | AK174: =[1]Folha4!A167 -> 0
P175: =[1]SecundariaMinutaCpfl!A174 -> 0 | Q175: =[1]PrimariaMinutaCpfl!A174 -> 0 | R175: =[1]NeutroMinutaCpfl!A174 -> 0 | U175: 137 | AK175: =[1]Folha4!A168 -> 0
P176: =[1]SecundariaMinutaCpfl!A175 -> 0 | Q176: =[1]PrimariaMinutaCpfl!A175 -> 0 | R176: =[1]NeutroMinutaCpfl!A175 -> 0 | U176: 138 | AK176: =[1]Folha4!A169 -> 0
P177: =[1]SecundariaMinutaCpfl!A176 -> 0 | Q177: =[1]PrimariaMinutaCpfl!A176 -> 0 | R177: =[1]NeutroMinutaCpfl!A176 -> 0 | U177: 139 | AK177: =[1]Folha4!A170 -> 0
P178: =[1]SecundariaMinutaCpfl!A177 -> 0 | Q178: =[1]PrimariaMinutaCpfl!A177 -> 0 | R178: =[1]NeutroMinutaCpfl!A177 -> 0 | U178: 140 | AK178: =[1]Folha4!A171 -> 0
P179: =[1]SecundariaMinutaCpfl!A178 -> 0 | Q179: =[1]PrimariaMinutaCpfl!A178 -> 0 | R179: =[1]NeutroMinutaCpfl!A178 -> 0 | U179: 141 | AK179: =[1]Folha4!A172 -> 0
P180: =[1]SecundariaMinutaCpfl!A179 -> 0 | Q180: =[1]PrimariaMinutaCpfl!A179 -> 0 | R180: =[1]NeutroMinutaCpfl!A179 -> 0 | U180: 142 | AK180: =[1]Folha4!A173 -> 0
P181: =[1]SecundariaMinutaCpfl!A180 -> 0 | Q181: =[1]PrimariaMinutaCpfl!A180 -> 0 | R181: =[1]NeutroMinutaCpfl!A180 -> 0 | U181: 143 | AK181: =[1]Folha4!A174 -> 0
P182: =[1]SecundariaMinutaCpfl!A181 -> 0 | Q182: =[1]PrimariaMinutaCpfl!A181 -> 0 | R182: =[1]NeutroMinutaCpfl!A181 -> 0 | U182: 144 | AK182: =[1]Folha4!A175 -> 0
P183: =[1]SecundariaMinutaCpfl!A182 -> 0 | Q183: =[1]PrimariaMinutaCpfl!A182 -> 0 | R183: =[1]NeutroMinutaCpfl!A182 -> 0 | U183: 145 | AK183: =[1]Folha4!A176 -> 0
P184: =[1]SecundariaMinutaCpfl!A183 -> 0 | Q184: =[1]PrimariaMinutaCpfl!A183 -> 0 | R184: =[1]NeutroMinutaCpfl!A183 -> 0 | U184: 146 | AK184: =[1]Folha4!A177 -> 0
P185: =[1]SecundariaMinutaCpfl!A184 -> 0 | Q185: =[1]PrimariaMinutaCpfl!A184 -> 0 | R185: =[1]NeutroMinutaCpfl!A184 -> 0 | U185: 147 | AK185: =[1]Folha4!A178 -> 0
P186: =[1]SecundariaMinutaCpfl!A185 -> 0 | Q186: =[1]PrimariaMinutaCpfl!A185 -> 0 | R186: =[1]NeutroMinutaCpfl!A185 -> 0 | U186: 148 | AK186: =[1]Folha4!A179 -> 0
P187: =[1]SecundariaMinutaCpfl!A186 -> 0 | Q187: =[1]PrimariaMinutaCpfl!A186 -> 0 | R187: =[1]NeutroMinutaCpfl!A186 -> 0 | U187: 149 | AK187: =[1]Folha4!A180 -> 0
P188: =[1]SecundariaMinutaCpfl!A187 -> 0 | Q188: =[1]PrimariaMinutaCpfl!A187 -> 0 | R188: =[1]NeutroMinutaCpfl!A187 -> 0 | U188: 150 | AK188: =[1]Folha4!A181 -> 0
P189: =[1]SecundariaMinutaCpfl!A188 -> 0 | Q189: =[1]PrimariaMinutaCpfl!A188 -> 0 | R189: =[1]NeutroMinutaCpfl!A188 -> 0 | U189: 151 | AK189: =[1]Folha4!A182 -> 0
P190: =[1]SecundariaMinutaCpfl!A189 -> 0 | Q190: =[1]PrimariaMinutaCpfl!A189 -> 0 | R190: =[1]NeutroMinutaCpfl!A189 -> 0 | U190: 152 | AK190: =[1]Folha4!A183 -> 0
P191: =[1]SecundariaMinutaCpfl!A190 -> 0 | Q191: =[1]PrimariaMinutaCpfl!A190 -> 0 | R191: =[1]NeutroMinutaCpfl!A190 -> 0 | U191: 153 | AK191: =[1]Folha4!A184 -> 0
P192: =[1]SecundariaMinutaCpfl!A191 -> 0 | Q192: =[1]PrimariaMinutaCpfl!A191 -> 0 | R192: =[1]NeutroMinutaCpfl!A191 -> 0 | U192: 154 | AK192: =[1]Folha4!A185 -> 0
P193: =[1]SecundariaMinutaCpfl!A192 -> 0 | Q193: =[1]PrimariaMinutaCpfl!A192 -> 0 | R193: =[1]NeutroMinutaCpfl!A192 -> 0 | U193: 155 | AK193: =[1]Folha4!A186 -> 0
P194: =[1]SecundariaMinutaCpfl!A193 -> 0 | Q194: =[1]PrimariaMinutaCpfl!A193 -> 0 | R194: =[1]NeutroMinutaCpfl!A193 -> 0 | U194: 156 | AK194: =[1]Folha4!A187 -> 0
P195: =[1]SecundariaMinutaCpfl!A194 -> 0 | Q195: =[1]PrimariaMinutaCpfl!A194 -> 0 | R195: =[1]NeutroMinutaCpfl!A194 -> 0 | U195: 157 | AK195: =[1]Folha4!A188 -> 0
P196: =[1]SecundariaMinutaCpfl!A195 -> 0 | Q196: =[1]PrimariaMinutaCpfl!A195 -> 0 | R196: =[1]NeutroMinutaCpfl!A195 -> 0 | U196: 158 | AK196: =[1]Folha4!A189 -> 0
P197: =[1]SecundariaMinutaCpfl!A196 -> 0 | Q197: =[1]PrimariaMinutaCpfl!A196 -> 0 | R197: =[1]NeutroMinutaCpfl!A196 -> 0 | U197: 159 | AK197: =[1]Folha4!A190 -> 0
P198: =[1]SecundariaMinutaCpfl!A197 -> 0 | Q198: =[1]PrimariaMinutaCpfl!A197 -> 0 | R198: =[1]NeutroMinutaCpfl!A197 -> 0 | U198: 160 | AK198: =[1]Folha4!A191 -> 0
P199: =[1]SecundariaMinutaCpfl!A198 -> 0 | Q199: =[1]PrimariaMinutaCpfl!A198 -> 0 | R199: =[1]NeutroMinutaCpfl!A198 -> 0 | U199: 161 | AK199: =[1]Folha4!A192 -> 0
P200: =[1]SecundariaMinutaCpfl!A199 -> 0 | Q200: =[1]PrimariaMinutaCpfl!A199 -> 0 | R200: =[1]NeutroMinutaCpfl!A199 -> 0 | U200: 162 | AK200: =[1]Folha4!A193 -> 0
... 198 more rows

Sheet Completo_Esforço_CPFL_Rge
P1: Secundária | Q1: PrimariaMinutaRge | R1: NeutroMinutaRge | T1: Altura Poste
C2: 11 | P2: =[1]SecundariaMinutaRge!A1 ->  | Q2: =[1]PrimariaMinutaRge!A1 -> 0 | R2: =[1]NeutroMinutaRge!A1 -> 0 | T2: 7
C3: ALTURA POSTE | D3: 11 | J3: http://www.mabjo.com.br/ | P3: =[1]SecundariaMinutaRge!A2 -> 3 P 16 mm² Vão 35m RGE | Q3: =[1]PrimariaMinutaRge!A2 -> 3 E 70 mm² Vão 35m RGE | R3: =[1]NeutroMinutaRge!A2 -> 1 CA 02 AWG Vão 35m RGE | T3: 8 | U3: ÂNGULO
C4: ESFORÇO | D4: 1 | F4: 2 | H4: 3 | J4: 4 | L4: 5 | P4: =[1]SecundariaMinutaRge!A3 -> 3 P 25 mm² Vão 35m RGE | Q4: =[1]PrimariaMinutaRge!A3 -> 3 E 185 mm² Vão 35m RGE | R4: =[1]NeutroMinutaRge!A3 -> 1 CA 1/0 AWG Vão 35m RGE | T4: 9
C5: 0 | E5: 90 | G5: 230 | P5: =[1]SecundariaMinutaRge!A4 -> 3 P 35 mm² Vão 35m RGE | Q5: =[1]PrimariaMinutaRge!A4 -> 0 | R5: =[1]NeutroMinutaRge!A4 -> 1 CA 2/0 AWG Vão 35m RGE | T5: 10
C6: ÂNGULO | D6: 0 | F6: 110 | H6: 320 | J6: 230 | L6: 190 | P6: =[1]SecundariaMinutaRge!A5 -> 3 P 50 mm² Vão 35m RGE | Q6: =[1]PrimariaMinutaRge!A5 -> 3 E 70 mm² Vão 80m RGE | R6: =[1]NeutroMinutaRge!A5 -> 1 CA 4/0 AWG Vão 35m RGE | T6: 11 | Y6: =D6+180 -> 180 | AA6: =F6+180 -> 290 | AC6: =H6+180 -> 500 | AE6: =J6+180 -> 410 | AG6: =L6+180 -> 370 | AK6: =[1]Folha4!A2 -> A02
C7: PRIMÁRIA | D7: 3 E 70 mm² Vão 35m RGE | H7: 3 E 185 mm² Vão 35m RGE | P7: =[1]SecundariaMinutaRge!A6 -> 3 P 70 mm² Vão 35m RGE | Q7: =[1]PrimariaMinutaRge!A6 -> 3 E 185 mm² Vão 80m RGE | R7: =[1]NeutroMinutaRge!A6 -> 1 CA 336,4 MCM Vão 35m RGE | T7: 12 | AK7: =[1]Folha4!A3 -> A10
C8: NEUTRO PRIM. | P8: =[1]SecundariaMinutaRge!A7 -> 3 P 120 mm² Vão 35m RGE | Q8: =[1]PrimariaMinutaRge!A7 -> 0 | R8: =[1]NeutroMinutaRge!A7 -> 1 CA 477 MCM Vão 35m RGE | T8: 13 | AK8: =[1]Folha4!A4 -> A20
C9: RED. TENSÃO | D9: 0 | F9: 0 | H9: 0 | J9: 0 | L9: 0 | P9: =[1]SecundariaMinutaRge!A8 -> 0 | Q9: =[1]PrimariaMinutaRge!A8 -> 3 CA 02 AWG Vão 35m RGE | R9: =[1]NeutroMinutaRge!A8 -> 0 | T9: 14 | AK9: =[1]Folha4!A5 -> A40
C10: DISTÂNCIA PRIMÁRIA TOPO CM | D10: 0 | F10: 0 | H10: 0 | J10: 0 | L10: 0 | P10: =[1]SecundariaMinutaRge!A9 -> 3 CA 02 AWG Vão 35m RGE | Q10: =[1]PrimariaMinutaRge!A9 -> 3 CA 1/0 AWG Vão 35m RGE | R10: =[1]NeutroMinutaRge!A9 -> 1 CA 02 AWG Vão 80m RGE | T10: 15 | AK10: =[1]Folha4!A6 -> A33
C11: SEC. FASE | D11: 3 P 50 mm² Vão 35m RGE | F11: 3 P 70 mm² Vão 35m RGE | L11: 3 P 50 mm² Vão 35m RGE | P11: =[1]SecundariaMinutaRge!A10 -> 3 CA 1/0 AWG Vão 35m RGE | Q11: =[1]PrimariaMinutaRge!A10 -> 3 CA 2/0 AWG Vão 35m RGE | R11: =[1]NeutroMinutaRge!A10 -> 1 CA 1/0 AWG Vão 80m RGE | T11: 16 | X11: =IF(X12>180,X12-180,X12+180) -> 341.0282772 | AK11: =[1]Folha4!A7 -> A47
C12: SEC. NEUTRO | D12: 1 CA 02 AWG Vão 35m RGE | F12: 1 CA 1/0 AWG Vão 35m RGE | L12: 1 CA 1/0 AWG Vão 35m RGE | P12: =[1]SecundariaMinutaRge!A11 -> 3 CA 2/0 AWG Vão 35m RGE | Q12: =[1]PrimariaMinutaRge!A11 -> 3 CA 4/0 AWG Vão 35m RGE | R12: =[1]NeutroMinutaRge!A11 -> 1 CA 2/0 AWG Vão 80m RGE | T12: 17 | X12: =IF(PreAngulo_Rge!A3>0,PreAngulo_Rge!C10,PreAngulo_Rge!D10) -> 161.0282772 | AK12: =[1]Folha4!A8 -> CU06
C13: RED. TENSÃO | D13: 0 | F13: 0 | H13: 0 | J13: 0 | L13: 0 | P13: =[1]SecundariaMinutaRge!A12 -> 3 CA 4/0 AWG Vão 35m RGE | Q13: =[1]PrimariaMinutaRge!A12 -> 3 CA 336,4 MCM Vão 35m RGE | R13: =[1]NeutroMinutaRge!A12 -> 1 CA 4/0 AWG Vão 80m RGE | T13: 18 | AK13: =[1]Folha4!A9 -> CU02
C14: DISTÂNCIA SECUNDÁRIA SOLO CM | D14: 720 | F14: 720 | H14: 720 | J14: 720 | L14: 720 | P14: =[1]SecundariaMinutaRge!A13 -> 3 CA 336,4 MCM Vão 35m RGE | Q14: =[1]PrimariaMinutaRge!A13 -> 3 CA 477 MCM Vão 35m RGE | R14: =[1]NeutroMinutaRge!A13 -> 1 CA 336,4 MCM Vão 80m RGE | T14: 19 | AK14: =[1]Folha4!A10 -> CU10
C15: TELEFONE | J15: 100 | P15: =[1]SecundariaMinutaRge!A14 -> 3 CA 477 MCM Vão 35m RGE | Q15: =[1]PrimariaMinutaRge!A14 -> 0 | R15: =[1]NeutroMinutaRge!A14 -> 1 CA 477 MCM Vão 80m RGE | T15: 20 | AK15: =[1]Folha4!A11 -> CU20
C16: TV CABO | P16: =[1]SecundariaMinutaRge!A15 -> 0 | Q16: =[1]PrimariaMinutaRge!A15 -> 3 CA 02 AWG Vão 80m RGE | R16: =[1]NeutroMinutaRge!A15 -> 0 | AK16: =[1]Folha4!A12 -> CU40
C17: DISTÂNCIA TELEFONE/CABO SOLO CM | D17: 550 | F17: 550 | H17: 550 | J17: 550 | L17: 550 | P17: =[1]SecundariaMinutaRge!A16 -> 3 CA 02 AWG Vão 80m RGE | Q17: =[1]PrimariaMinutaRge!A16 -> 3 CA 1/0 AWG Vão 80m RGE | R17: =[1]NeutroMinutaRge!A16 -> 1 CAA 04 AWG Vão 40m RGE | AK17: =[1]Folha4!A13 -> S04
C18: SUB TOTAL | D18: =IF(L31=1,Pre_Rge!W22,"Atualize: http;//www.mabjo.com.br") -> 556.483871 | F18: =IF(L31=1,Pre_Rge!W23,"Atualize: http;//www.mabjo.com.br") -> 267.0967742 | H18: =IF(L31=1,Pre_Rge!W24,"Atualize: http;//www.mabjo.com.br") -> 632 | J18: =IF(L31=1,Pre_Rge!W25,"Atualize: http;//www.mabjo.com.br") -> 60.43956044 | L18: =IF(L31=1,Pre_Rge!W26,"Atualize: http;//www.mabjo.com.br") -> 217.5483871 | P18: =[1]SecundariaMinutaRge!A17 -> 3 CA 1/0 AWG Vão 80m RGE | Q18: =[1]PrimariaMinutaRge!A17 -> 3 CA 2/0 AWG Vão 80m RGE | R18: =[1]NeutroMinutaRge!A17 -> 1 CAA 02 AWG Vão 40m RGE | AK18: =[1]Folha4!A14 -> S02
C19: ESFORÇO RESULTANTE | D19: =IF(L31=1,Pre_Rge!W27,"Atualize: http;//www.mabjo.com.br") -> 736.1676019 | H19: ÂNGULO RESULTANTE | L19: =IF(D19>0.001,X11,0) -> 341.0282772 | P19: =[1]SecundariaMinutaRge!A18 -> 3 CA 2/0 AWG Vão 80m RGE | Q19: =[1]PrimariaMinutaRge!A18 -> 3 CA 4/0 AWG Vão 80m RGE | R19: =[1]NeutroMinutaRge!A18 -> 1 CAA 1/0 AWG Vão 40m RGE | AK19: =[1]Folha4!A15 -> S10
P20: =[1]SecundariaMinutaRge!A19 -> 3 CA 4/0 AWG Vão 80m RGE | Q20: =[1]PrimariaMinutaRge!A19 -> 3 CA 336,4 MCM Vão 80m RGE | R20: =[1]NeutroMinutaRge!A19 -> 1 CAA 2/0 AWG Vão 40m RGE | AK20: =[1]Folha4!A16 -> S40
C21: On Line http://www.mabjo.com.br/ | L21: =NOW() -> 2022-07-21T04:50:22.360 | O21: http://www.mabjo.com.br | P21: =[1]SecundariaMinutaRge!A20 -> 3 CA 336,4 MCM Vão 80m RGE | Q21: =[1]PrimariaMinutaRge!A20 -> 3 CA 477 MCM Vão 80m RGE | R21: =[1]NeutroMinutaRge!A20 -> 1 CAA 4/0 AWG Vão 40m RGE | AK21: =[1]Folha4!A17 -> S33
H22: contato@mabjo.com.br | N22: Download Cálculo Mecânico Esforço Poste Atualizado | O22: http://www.mabjo.com.br/ | P22: =[1]SecundariaMinutaRge!A21 -> 3 CA 477 MCM Vão 80m RGE | Q22: =[1]PrimariaMinutaRge!A21 -> 0 | R22: =[1]NeutroMinutaRge!A21 -> 0 | AK22: =[1]Folha4!A18 -> S47
C23: =CONCATENATE("Cálculo Esforço Poste : Plt, Pira, SC e Jg - Versão") -> Cálculo Esforço Poste : Plt, Pira, SC e Jg - Versão | P23: =[1]SecundariaMinutaRge!A22 -> 0 | Q23: =[1]PrimariaMinutaRge!A22 -> 3 CAA 04 AWG Vão 40m RGE | R23: =[1]NeutroMinutaRge!A22 -> 1 CAA 04 AWG Vão 80m RGE | AK23: =[1]Folha4!A19 -> E70
C24: =N30 ->  | F24: =O30 -> 2018-06-05 | H24: Cálculo customizado para fibra óptica e telefonia | P24: =[1]SecundariaMinutaCpfl!A23 -> 3 CAA 04 AWG Vão 40m | Q24: =[1]PrimariaMinutaCpfl!A23 -> 3 CAA 1/0 AWG Vão 40m | R24: =[1]NeutroMinutaCpfl!A23 -> 1 CAA 02 AWG Vão 80m
C25: Visite http://www.mabjo.com.br/ | P25: =[1]SecundariaMinutaCpfl!A24 -> 3 CAA 02 AWG Vão 40m | Q25: =[1]PrimariaMinutaCpfl!A24 -> 3 CAA 2/0 AWG Vão 40m | R25: =[1]NeutroMinutaCpfl!A24 -> 1 CAA 1/0 AWG Vão 80m
C26: Calculo Queda Tensão Loteamento aéreo e subt. | P26: =[1]SecundariaMinutaCpfl!A25 -> 3 CAA 1/0 AWG Vão 40m | Q26: =[1]PrimariaMinutaCpfl!A25 -> 3 CAA 4/0 AWG Vão 40m | R26: =[1]NeutroMinutaCpfl!A25 -> 1 CAA 2/0 AWG Vão 80m
C27: =X12 -> 161.0282772 | P27: =[1]SecundariaMinutaCpfl!A26 -> 3 CAA 2/0 AWG Vão 40m | Q27: =[1]PrimariaMinutaCpfl!A26 ->  | R27: =[1]NeutroMinutaCpfl!A26 -> 1 CAA 4/0 AWG Vão 80m | AK27: =[1]Folha4!A20 -> E185
C28: MEDIDA 1 | D28: 10 | H28: =PreAngulo_Paulista!C10 -> 159.5421067 | N28: Esta Versão | O28: =Completo_Esforço_CPFL_Paulista!O28 -> 42704 | P28: =[1]SecundariaMinutaCpfl!A27 -> 3 CAA 4/0 AWG Vão 40m | Q28: =[1]PrimariaMinutaCpfl!A27 -> 3 CAA 04 AWG Vão 80m | R28: =[1]NeutroMinutaCpfl!A27 -> 1 CAA 336,4 MCM Vão 80m | AK28: =[1]Folha4!A21 -> 0
C29: MEDIDA 2 | D29: 10 | H29: =PreAngulo_Paulista!D10 -> 200.4578933 | J29: Dias Versão | L29: =O30-O28 -> 552 | P29: =[1]SecundariaMinutaCpfl!A28 ->  | Q29: =[1]PrimariaMinutaCpfl!A28 -> 3 CAA 02 AWG Vão 80m | R29: =[1]NeutroMinutaCpfl!A28 ->  | AK29: =[1]Folha4!A22 -> 0
C30: MEDIDA 3 | D30: 1 | J30: PreDiasAtualização | L30: =L21-O30 -> 1507.201648 | N30: =IF([1]Mensagem!B3 <> "",[1]Mensagem!B3,"") ->  | O30: =IF([1]Mensagem!C3 <> "",[1]Mensagem!C3,"") -> 2018-06-05 | P30: =[1]SecundariaMinutaCpfl!A29 -> 3 CAA 04 AWG Vão 80m | Q30: =[1]PrimariaMinutaCpfl!A29 -> 3 CAA 1/0 AWG Vão 80m | R30: =[1]NeutroMinutaCpfl!A29 -> 1 CAA 04 AWG Vão 120m | AK30: =[1]Folha4!A23 -> 0
C31: ÂNGULO | D31: =IF(D30>0,Plan3!C10,"") -> 41.64967227 | J31: Dias Atualização | L31: =Completo_Esforço_CPFL_Paulista!L31 -> 1 | N31: =IF([1]Mensagem!B4 <> "",[1]Mensagem!B4,"") ->  | O31: =IF([1]Mensagem!C4 <> "",[1]Mensagem!C4,"") -> 2018-06-05 | P31: =[1]SecundariaMinutaCpfl!A30 -> 3 CAA 02 AWG Vão 80m | Q31: =[1]PrimariaMinutaCpfl!A30 -> 3 CAA 2/0 AWG Vão 80m | R31: =[1]NeutroMinutaCpfl!A30 -> 1 CAA 02 AWG Vão 120m | AK31: =[1]Folha4!A24 -> 0
N32: =IF([1]Mensagem!B5 <> "",[1]Mensagem!B5,"") ->  | O32: =IF([1]Mensagem!C5 <> "",[1]Mensagem!C5,"") ->  | P32: =[1]SecundariaMinutaCpfl!A31 -> 3 CAA 1/0 AWG Vão 80m | Q32: =[1]PrimariaMinutaCpfl!A31 -> 3 CAA 4/0 AWG Vão 80m | R32: =[1]NeutroMinutaCpfl!A31 -> 1 CAA 1/0 AWG Vão 120m | AK32: =[1]Folha4!A25 -> 0
N33: =IF([1]Mensagem!B6 <> "",[1]Mensagem!B6,"") ->  | O33: =IF([1]Mensagem!C6 <> "",[1]Mensagem!C6,"") ->  | P33: =[1]SecundariaMinutaCpfl!A32 -> 3 CAA 2/0 AWG Vão 80m | Q33: =[1]PrimariaMinutaCpfl!A32 -> 3 CAA 336,4 MCM Vão 80m | R33: =[1]NeutroMinutaCpfl!A32 -> 1 CAA 2/0 AWG Vão 120m | U33: 0 | AK33: =[1]Folha4!A26 -> 0
C34: Coordenada X | D34: Coordenada Y | N34: =IF([1]Mensagem!B7 <> "",[1]Mensagem!B7,"") ->  | O34: =IF([1]Mensagem!C7 <> "",[1]Mensagem!C7,"") ->  | P34: =[1]SecundariaMinutaCpfl!A33 -> 3 CAA 4/0 AWG Vão 80m | Q34: =[1]PrimariaMinutaCpfl!A33 ->  | R34: =[1]NeutroMinutaCpfl!A33 -> 1 CAA 4/0 AWG Vão 120m | U34: 1 | AK34: =[1]Folha4!A27 -> 0
C35: 29829000 | D35: 745407001 | J35: Poste 1 | N35: =IF([1]Mensagem!B8 <> "",[1]Mensagem!B8,"") ->  | O35: =IF([1]Mensagem!C8 <> "",[1]Mensagem!C8,"") ->  | P35: =[1]SecundariaMinutaCpfl!A34 -> 3 CAA 336,4 MCM Vão 80m | Q35: =[1]PrimariaMinutaCpfl!A34 -> 3 CAA 04 AWG Vão 120m | R35: =[1]NeutroMinutaCpfl!A34 -> 1 CAA 336,4 MCM Vão 120m | U35: 2 | AK35: =[1]Folha4!A28 -> 0
C36: 29229000 | D36: 745406001 | J36: Poste Meio | N36: =IF([1]Mensagem!B9 <> "",[1]Mensagem!B9,"") ->  | O36: =IF([1]Mensagem!C9 <> "",[1]Mensagem!C9,"") ->  | P36: =[1]SecundariaMinutaCpfl!A35 ->  | Q36: =[1]PrimariaMinutaCpfl!A35 -> 3 CAA 02 AWG Vão 120m | R36: =[1]NeutroMinutaCpfl!A35 ->  | U36: 3 | AK36: =[1]Folha4!A29 -> 0
C37: Distância Metros | D37: =Plan3!E26/100 -> 6000.008333 | N37: =IF([1]Mensagem!B10 <> "",[1]Mensagem!B10,"") ->  | O37: =IF([1]Mensagem!C10 <> "",[1]Mensagem!C10,"") ->  | P37: =[1]SecundariaMinutaCpfl!A36 -> 3 CAA 04 AWG Vão 120m | Q37: =[1]PrimariaMinutaCpfl!A36 -> 3 CAA 1/0 AWG Vão 120m | R37: =[1]NeutroMinutaCpfl!A36 -> 1 CU 06 AWG Vão 35m | U37: 4 | AK37: =[1]Folha4!A30 -> 0
C38: Ângulo | D38: =Plan3!E29 -> 89.90450712 | N38: =IF([1]Mensagem!B11 <> "",[1]Mensagem!B11,"") ->  | O38: =IF([1]Mensagem!C11 <> "",[1]Mensagem!C11,"") ->  | P38: =[1]SecundariaMinutaCpfl!A37 -> 3 CAA 02 AWG Vão 120m | Q38: =[1]PrimariaMinutaCpfl!A37 -> 3 CAA 2/0 AWG Vão 120m | R38: =[1]NeutroMinutaCpfl!A37 -> 1 CU 02 AWG Vão 35m | U38: 5 | AK38: =[1]Folha4!A31 -> 0
N39: =IF([1]Mensagem!B12 <> "",[1]Mensagem!B12,"") ->  | O39: =IF([1]Mensagem!C12 <> "",[1]Mensagem!C12,"") ->  | P39: =[1]SecundariaMinutaCpfl!A38 -> 3 CAA 1/0 AWG Vão 120m | Q39: =[1]PrimariaMinutaCpfl!A38 -> 3 CAA 4/0 AWG Vão 120m | R39: =[1]NeutroMinutaCpfl!A38 -> 1 CU 1/0 AWG Vão 35m | U39: 6 | AK39: =[1]Folha4!A32 -> 0
N40: =IF([1]Mensagem!B13 <> "",[1]Mensagem!B13,"") ->  | O40: =IF([1]Mensagem!C13 <> "",[1]Mensagem!C13,"") ->  | P40: =[1]SecundariaMinutaCpfl!A39 -> 3 CAA 2/0 AWG Vão 120m | Q40: =[1]PrimariaMinutaCpfl!A39 -> 3 CAA 336,4 MCM Vão 120m | R40: =[1]NeutroMinutaCpfl!A39 -> 1 CU 2/0 AWG Vão 35m | U40: 7 | AK40: =[1]Folha4!A33 -> 0
C41: Coordenada X | D41: Coordenada Y | N41: =IF([1]Mensagem!B14 <> "",[1]Mensagem!B14,"") ->  | O41: =IF([1]Mensagem!C14 <> "",[1]Mensagem!C14,"") -> Cálculo Esforço | P41: =[1]SecundariaMinutaCpfl!A40 -> 3 CAA 4/0 AWG Vão 120m | Q41: =[1]PrimariaMinutaCpfl!A40 ->  | R41: =[1]NeutroMinutaCpfl!A40 -> 1 CU 4/0 AWG Vão 35m | U41: 8 | AK41: =[1]Folha4!A34 -> 0
C42: =C36 -> 29229000 | D42: =D36 -> 745406001 | J42: Poste Meio | N42: =IF([1]Mensagem!B15 <> "",[1]Mensagem!B15,"") ->  | O42: =IF([1]Mensagem!C15 <> "",[1]Mensagem!C15,"") -> Customizado | P42: =[1]SecundariaMinutaCpfl!A41 -> 3 CAA 336,4 MCM Vão 120m | Q42: =[1]PrimariaMinutaCpfl!A41 -> 3 15kv 240 mm² Vão 35m | R42: =[1]NeutroMinutaCpfl!A41 -> 0 | U42: 9 | AK42: =[1]Folha4!A35 -> 0
C43: 29279000 | D43: 748406001 | J43: Poste 3 | N43: =IF([1]Mensagem!B16 <> "",[1]Mensagem!B16,"") ->  | O43: =IF([1]Mensagem!C16 <> "",[1]Mensagem!C16,"") -> para cabos de | P43: =[1]SecundariaMinutaCpfl!A42 ->  | Q43: =[1]PrimariaMinutaCpfl!A42 -> 3 25kv 240 mm² Vão 35m | R43: =[1]NeutroMinutaCpfl!A42 -> 0 | U43: 10 | AK43: =[1]Folha4!A36 -> 0
C44: Distância Metros | D44: =Plan3!E41/100 -> 30004.16638 | N44: =IF([1]Mensagem!B17 <> "",[1]Mensagem!B17,"") ->  | O44: =IF([1]Mensagem!C17 <> "",[1]Mensagem!C17,"") -> Telefonia e | P44: =[1]SecundariaMinutaCpfl!A43 -> 3 15kv 240 mm² Vão 35m | Q44: =[1]PrimariaMinutaCpfl!A43 -> 3 35kv 240 mm² Vão 35m | R44: =[1]NeutroMinutaCpfl!A43 -> 0 | U44: 11 | AK44: =[1]Folha4!A37 -> 0
C45: Ângulo | D45: =Plan3!E44 -> 0.9548412539 | N45: =IF([1]Mensagem!B18 <> "",[1]Mensagem!B18,"") ->  | O45: =IF([1]Mensagem!C18 <> "",[1]Mensagem!C18,"") -> Comunicação | P45: =[1]SecundariaMinutaCpfl!A44 -> 3 25kv 240 mm² Vão 35m | Q45: =[1]PrimariaMinutaCpfl!A44 ->  | R45: =[1]NeutroMinutaCpfl!A44 -> 0 | U45: 12 | AK45: =[1]Folha4!A38 -> 0
N46: =IF([1]Mensagem!B19 <> "",[1]Mensagem!B19,"") ->  | O46: =IF([1]Mensagem!C19 <> "",[1]Mensagem!C19,"") -> http://www.mabjo.com.br/Default.aspx | P46: =[1]SecundariaMinutaCpfl!A45 -> 3 35kv 240 mm² Vão 35m | Q46: =[1]PrimariaMinutaCpfl!A45 -> 3 CU 06 AWG Vão 35m | R46: =[1]NeutroMinutaCpfl!A45 -> 0 | U46: 13 | AK46: =[1]Folha4!A39 -> 0
C47: Ângulo Resultante | D47: =D45-D38 -> -88.94966587 | N47: =IF([1]Mensagem!B20 <> "",[1]Mensagem!B20,"") ->  | O47: =IF([1]Mensagem!C20 <> "",[1]Mensagem!C20,"") ->  | P47: =[1]SecundariaMinutaCpfl!A46 ->  | Q47: =[1]PrimariaMinutaCpfl!A46 -> 3 CU 02 AWG Vão 35m | R47: =[1]NeutroMinutaCpfl!A46 -> 0 | U47: 14 | AK47: =[1]Folha4!A40 -> 0
P48: =[1]SecundariaMinutaRge!A47 -> 3 CU 06 AWG Vão 35m RGE | Q48: =[1]PrimariaMinutaRge!A47 -> 3 CU 02 AWG Vão 35m RGE | R48: =[1]NeutroMinutaRge!A47 -> 0 | U48: 15 | AK48: =[1]Folha4!A41 -> 0
P49: =[1]SecundariaMinutaRge!A48 -> 3 CU 02 AWG Vão 35m RGE | Q49: =[1]PrimariaMinutaRge!A48 -> 3 CU 1/0 AWG Vão 35m RGE | R49: =[1]NeutroMinutaRge!A48 -> 0 | U49: 16 | AK49: =[1]Folha4!A42 -> 0
C50: Cálculo Flecha | D50: Primário por Fase | P50: =[1]SecundariaMinutaRge!A49 -> 3 CU 1/0 AWG Vão 35m RGE | Q50: =[1]PrimariaMinutaRge!A49 -> 3 CU 2/0 AWG Vão 35m RGE | R50: =[1]NeutroMinutaRge!A49 -> 0 | U50: 17 | AK50: =[1]Folha4!A43 -> 0
C51: Cabo | D51: A02 | P51: =[1]SecundariaMinutaRge!A50 -> 3 CU 2/0 AWG Vão 35m RGE | Q51: =[1]PrimariaMinutaRge!A50 -> 3 CU 4/0 AWG Vão 35m RGE | R51: =[1]NeutroMinutaRge!A50 -> 0 | U51: 18 | AK51: =[1]Folha4!A44 -> 0
C52: Distância | D52: 100 | P52: =[1]SecundariaMinutaRge!A51 -> 3 CU 4/0 AWG Vão 35m RGE | Q52: =[1]PrimariaMinutaRge!A51 -> 0 | R52: =[1]NeutroMinutaRge!A51 -> 0 | U52: 18 | AK52: =[1]Folha4!A45 -> 0
C53: Redução Tensão % | D53: 20 | P53: =[1]SecundariaMinutaRge!A52 -> 0 | Q53: =[1]PrimariaMinutaRge!A52 -> 2 CA 02 AWG Vão 35m RGE | R53: =[1]NeutroMinutaRge!A52 -> 0 | AK53: =[1]Folha4!A46 -> 0
C54: Amperes | D54: =VLOOKUP(D51,[1]Folha4!A2:G27,7,0) -> 138 | J54: Esforço Trifásico | P54: =[1]SecundariaMinutaRge!A53 -> 2 CA 02 AWG Vão 35m RGE | Q54: =[1]PrimariaMinutaRge!A53 -> 2 CA 1/0 AWG Vão 35m RGE | R54: =[1]NeutroMinutaRge!A53 -> 0 | AK54: =[1]Folha4!A47 -> 0
C55: Esforço Urbano | D55: =N55-N57 -> 76 | J55: =D55*3 -> 228 | N55: =VLOOKUP(D51,[1]Folha4!A2:E27,2,0) -> 95 | P55: =[1]SecundariaMinutaRge!A54 -> 2 CA 1/0 AWG Vão 35m RGE | Q55: =[1]PrimariaMinutaRge!A54 -> 2 CA 2/0 AWG Vão 35m RGE | R55: =[1]NeutroMinutaRge!A54 -> 0 | AK55: =[1]Folha4!A48 -> 0
C56: Esforço Rural | D56: =N56-N58 -> 163.2 | J56: =D56*3 -> 489.6 | N56: =VLOOKUP(D51,[1]Folha4!A2:E27,3,0) -> 204 | P56: =[1]SecundariaMinutaRge!A55 -> 2 CA 2/0 AWG Vão 35m RGE | Q56: =[1]PrimariaMinutaRge!A55 -> 2 CA 4/0 AWG Vão 35m RGE | R56: =[1]NeutroMinutaRge!A55 -> 0 | AK56: =[1]Folha4!A49 -> 0
C57: Kg/m | D57: =VLOOKUP(D51,[1]Folha4!A1:F27,6,0) -> 0.092 | N57: =D53*N55/100 -> 19 | P57: =[1]SecundariaMinutaRge!A56 -> 2 CA 4/0 AWG Vão 35m RGE | Q57: =[1]PrimariaMinutaRge!A56 -> 2 CA 336,4 MCM Vão 35m RGE | R57: =[1]NeutroMinutaRge!A56 -> 0 | AK57: =[1]Folha4!A50 -> 0
C58: Flecha Ubano | D58: =IF(D55>0,(D57*(D52*D52))/(8*D55),"") -> 1.513157895 | N58: =D53*N56/100 -> 40.8 | P58: =[1]SecundariaMinutaRge!A57 -> 2 CA 336,4 MCM Vão 35m RGE | Q58: =[1]PrimariaMinutaRge!A57 -> 2 CA 477 MCM Vão 35m RGE | R58: =[1]NeutroMinutaRge!A57 -> 0 | U58: 18 | AK58: =[1]Folha4!A51 -> 0
C59: Flecha Rural | D59: =IF(D56>0,(D57*(D52*D52))/(8*D56),"") -> 0.7046568627 | P59: =[1]SecundariaMinutaRge!A58 -> 2 CA 477 MCM Vão 35m RGE | Q59: =[1]PrimariaMinutaRge!A58 -> 0 | R59: =[1]NeutroMinutaRge!A58 -> 0 | U59: 18 | AK59: =[1]Folha4!A52 -> 0
P60: =[1]SecundariaMinutaRge!A59 -> 0 | Q60: =[1]PrimariaMinutaRge!A59 -> 2 CA 02 AWG Vão 80m RGE | R60: =[1]NeutroMinutaRge!A59 -> 0 | U60: 18 | AK60: =[1]Folha4!A53 -> 0
P61: =[1]SecundariaMinutaRge!A60 -> 2 CA 02 AWG Vão 80m RGE | Q61: =[1]PrimariaMinutaRge!A60 -> 2 CA 1/0 AWG Vão 80m RGE | R61: =[1]NeutroMinutaRge!A60 -> 0 | U61: 18 | AK61: =[1]Folha4!A54 -> 0
C62: =VLOOKUP(D51,[1]Folha4!A2:E27,2,0) -> 95 | P62: =[1]SecundariaMinutaRge!A61 -> 2 CA 1/0 AWG Vão 80m RGE | Q62: =[1]PrimariaMinutaRge!A61 -> 2 CA 2/0 AWG Vão 80m RGE | R62: =[1]NeutroMinutaRge!A61 -> 0 | U62: 18 | AK62: =[1]Folha4!A55 -> 0
P63: =[1]SecundariaMinutaRge!A62 -> 2 CA 2/0 AWG Vão 80m RGE | Q63: =[1]PrimariaMinutaRge!A62 -> 2 CA 4/0 AWG Vão 80m RGE | R63: =[1]NeutroMinutaRge!A62 -> 0 | U63: 18 | AK63: =[1]Folha4!A56 -> 0
P64: =[1]SecundariaMinutaRge!A63 -> 2 CA 4/0 AWG Vão 80m RGE | Q64: =[1]PrimariaMinutaRge!A63 -> 2 CA 336,4 MCM Vão 80m RGE | R64: =[1]NeutroMinutaRge!A63 -> 0 | U64: 18 | AK64: =[1]Folha4!A57 -> 0
P65: =[1]SecundariaMinutaRge!A64 -> 2 CA 336,4 MCM Vão 80m RGE | Q65: =[1]PrimariaMinutaRge!A64 -> 2 CA 477 MCM Vão 80m RGE | R65: =[1]NeutroMinutaRge!A64 -> 0 | U65: 18 | AK65: =[1]Folha4!A58 -> 0
P66: =[1]SecundariaMinutaRge!A65 -> 2 CA 477 MCM Vão 80m RGE | Q66: =[1]PrimariaMinutaRge!A65 -> 0 | R66: =[1]NeutroMinutaRge!A65 -> 0 | U66: 18 | AK66: =[1]Folha4!A59 -> 0
P67: =[1]SecundariaMinutaRge!A66 -> 0 | Q67: =[1]PrimariaMinutaRge!A66 -> 2 CAA 04 AWG Vão 40m RGE | R67: =[1]NeutroMinutaRge!A66 -> 0 | U67: 18 | AK67: =[1]Folha4!A60 -> 0
P68: =[1]SecundariaMinutaRge!A67 -> 2 CAA 04 AWG Vão 40m RGE | Q68: =[1]PrimariaMinutaRge!A67 -> 2 CAA 02 AWG Vão 40m RGE | R68: =[1]NeutroMinutaRge!A67 -> 0 | U68: 18 | AK68: =[1]Folha4!A61 -> 0
P69: =[1]SecundariaMinutaRge!A68 -> 2 CAA 02 AWG Vão 40m RGE | Q69: =[1]PrimariaMinutaRge!A68 -> 2 CAA 1/0 AWG Vão 40m RGE | R69: =[1]NeutroMinutaRge!A68 -> 0 | U69: 18 | AK69: =[1]Folha4!A62 -> 0
P70: =[1]SecundariaMinutaRge!A69 -> 2 CAA 1/0 AWG Vão 40m RGE | Q70: =[1]PrimariaMinutaRge!A69 -> 2 CAA 2/0 AWG Vão 40m RGE | R70: =[1]NeutroMinutaRge!A69 -> 0 | U70: 18 | AK70: =[1]Folha4!A63 -> 0
P71: =[1]SecundariaMinutaRge!A70 -> 2 CAA 2/0 AWG Vão 40m RGE | Q71: =[1]PrimariaMinutaRge!A70 -> 2 CAA 4/0 AWG Vão 40m RGE | R71: =[1]NeutroMinutaRge!A70 -> 0 | U71: 18 | AK71: =[1]Folha4!A64 -> 0
P72: =[1]SecundariaMinutaRge!A71 -> 2 CAA 4/0 AWG Vão 40m RGE | Q72: =[1]PrimariaMinutaRge!A71 -> 0 | R72: =[1]NeutroMinutaRge!A71 -> 0 | U72: 18 | AK72: =[1]Folha4!A65 -> 0
P73: =[1]SecundariaMinutaRge!A72 -> 0 | Q73: =[1]PrimariaMinutaRge!A72 -> 2 CAA 04 AWG Vão 80m RGE | R73: =[1]NeutroMinutaRge!A72 -> 0 | U73: 35 | AK73: =[1]Folha4!A66 -> 0
P74: =[1]SecundariaMinutaRge!A73 -> 2 CAA 04 AWG Vão 80m RGE | Q74: =[1]PrimariaMinutaRge!A73 -> 2 CAA 02 AWG Vão 80m RGE | R74: =[1]NeutroMinutaRge!A73 -> 0 | U74: 36 | AK74: =[1]Folha4!A67 -> 0
P75: =[1]SecundariaMinutaRge!A74 -> 2 CAA 02 AWG Vão 80m RGE | Q75: =[1]PrimariaMinutaRge!A74 -> 2 CAA 1/0 AWG Vão 80m RGE | R75: =[1]NeutroMinutaRge!A74 -> 0 | U75: 37 | AK75: =[1]Folha4!A68 -> 0
P76: =[1]SecundariaMinutaRge!A75 -> 2 CAA 1/0 AWG Vão 80m RGE | Q76: =[1]PrimariaMinutaRge!A75 -> 2 CAA 2/0 AWG Vão 80m RGE | R76: =[1]NeutroMinutaRge!A75 -> 0 | U76: 38 | AK76: =[1]Folha4!A69 -> 0
P77: =[1]SecundariaMinutaRge!A76 -> 2 CAA 2/0 AWG Vão 80m RGE | Q77: =[1]PrimariaMinutaRge!A76 -> 2 CAA 4/0 AWG Vão 80m RGE | R77: =[1]NeutroMinutaRge!A76 -> 0 | U77: 39 | AK77: =[1]Folha4!A70 -> 0
P78: =[1]SecundariaMinutaRge!A77 -> 2 CAA 4/0 AWG Vão 80m RGE | Q78: =[1]PrimariaMinutaRge!A77 -> 2 CAA 336,4 MCM Vão 80m RGE | R78: =[1]NeutroMinutaRge!A77 -> 0 | U78: 40 | AK78: =[1]Folha4!A71 -> 0
P79: =[1]SecundariaMinutaRge!A78 -> 2 CAA 336,4 MCM Vão 80m RGE | Q79: =[1]PrimariaMinutaRge!A78 -> 0 | R79: =[1]NeutroMinutaRge!A78 -> 0 | U79: 41 | AK79: =[1]Folha4!A72 -> 0
P80: =[1]SecundariaMinutaRge!A79 -> 0 | Q80: =[1]PrimariaMinutaRge!A79 -> 2 CAA 04 AWG Vão 120m RGE | R80: =[1]NeutroMinutaRge!A79 -> 0 | U80: 42 | AK80: =[1]Folha4!A73 -> 0
P81: =[1]SecundariaMinutaRge!A80 -> 2 CAA 04 AWG Vão 120m RGE | Q81: =[1]PrimariaMinutaRge!A80 -> 2 CAA 02 AWG Vão 120m RGE | R81: =[1]NeutroMinutaRge!A80 -> 0 | U81: 43 | AK81: =[1]Folha4!A74 -> 0
P82: =[1]SecundariaMinutaRge!A81 -> 2 CAA 02 AWG Vão 120m RGE | Q82: =[1]PrimariaMinutaRge!A81 -> 2 CAA 1/0 AWG Vão 120m RGE | R82: =[1]NeutroMinutaRge!A81 -> 0 | U82: 44 | AK82: =[1]Folha4!A75 -> 0
P83: =[1]SecundariaMinutaRge!A82 -> 2 CAA 1/0 AWG Vão 120m RGE | Q83: =[1]PrimariaMinutaRge!A82 -> 2 CAA 2/0 AWG Vão 120m RGE | R83: =[1]NeutroMinutaRge!A82 -> 0 | U83: 45 | AK83: =[1]Folha4!A76 -> 0
P84: =[1]SecundariaMinutaRge!A83 -> 2 CAA 2/0 AWG Vão 120m RGE | Q84: =[1]PrimariaMinutaRge!A83 -> 2 CAA 4/0 AWG Vão 120m RGE | R84: =[1]NeutroMinutaRge!A83 -> 0 | U84: 46 | AK84: =[1]Folha4!A77 -> 0
P85: =[1]SecundariaMinutaRge!A84 -> 2 CAA 4/0 AWG Vão 120m RGE | Q85: =[1]PrimariaMinutaRge!A84 -> 2 CAA 336,4 MCM Vão 120m RGE | R85: =[1]NeutroMinutaRge!A84 -> 0 | U85: 47 | AK85: =[1]Folha4!A78 -> 0
P86: =[1]SecundariaMinutaRge!A85 -> 2 CAA 336,4 MCM Vão 120m RGE | Q86: =[1]PrimariaMinutaRge!A85 ->  | R86: =[1]NeutroMinutaRge!A85 -> 0 | U86: 48 | AK86: =[1]Folha4!A79 -> 0
P87: =[1]SecundariaMinutaRge!A86 ->  | Q87: =[1]PrimariaMinutaRge!A86 -> 1 CU 06 AWG Vão 35m RGE | R87: =[1]NeutroMinutaRge!A86 -> 0 | U87: 49 | AK87: =[1]Folha4!A80 -> 0
P88: =[1]SecundariaMinutaRge!A87 -> 1 CU 06 AWG Vão 35m RGE | Q88: =[1]PrimariaMinutaRge!A87 -> 1 CU 02 AWG Vão 35m RGE | R88: =[1]NeutroMinutaRge!A87 -> 0 | U88: 50 | AK88: =[1]Folha4!A81 -> 0
P89: =[1]SecundariaMinutaRge!A88 -> 1 CU 02 AWG Vão 35m RGE | Q89: =[1]PrimariaMinutaRge!A88 -> 1 CU 1/0 AWG Vão 35m RGE | R89: =[1]NeutroMinutaRge!A88 -> 0 | U89: 51 | AK89: =[1]Folha4!A82 -> 0
P90: =[1]SecundariaMinutaRge!A89 -> 1 CU 1/0 AWG Vão 35m RGE | Q90: =[1]PrimariaMinutaRge!A89 -> 1 CU 2/0 AWG Vão 35m RGE | R90: =[1]NeutroMinutaRge!A89 -> 0 | U90: 52 | AK90: =[1]Folha4!A83 -> 0
P91: =[1]SecundariaMinutaRge!A90 -> 1 CU 2/0 AWG Vão 35m RGE | Q91: =[1]PrimariaMinutaRge!A90 -> 1 CU 4/0 AWG Vão 35m RGE | R91: =[1]NeutroMinutaRge!A90 -> 0 | U91: 53 | AK91: =[1]Folha4!A84 -> 0
P92: =[1]SecundariaMinutaRge!A91 -> 1 CU 4/0 AWG Vão 35m RGE | Q92: =[1]PrimariaMinutaRge!A91 -> 0 | R92: =[1]NeutroMinutaRge!A91 -> 0 | U92: 54 | AK92: =[1]Folha4!A85 -> 0
P93: =[1]SecundariaMinutaRge!A92 -> 0 | Q93: =[1]PrimariaMinutaRge!A92 -> 1 CA 02 AWG Vão 35m RGE | R93: =[1]NeutroMinutaRge!A92 -> 0 | U93: 55 | AK93: =[1]Folha4!A86 -> 0
P94: =[1]SecundariaMinutaRge!A93 -> 1 CA 02 AWG Vão 35m RGE | Q94: =[1]PrimariaMinutaRge!A93 -> 1 CA 1/0 AWG Vão 35m RGE | R94: =[1]NeutroMinutaRge!A93 -> 0 | U94: 56 | AK94: =[1]Folha4!A87 -> 0
P95: =[1]SecundariaMinutaRge!A94 -> 1 CA 1/0 AWG Vão 35m RGE | Q95: =[1]PrimariaMinutaRge!A94 -> 1 CA 2/0 AWG Vão 35m RGE | R95: =[1]NeutroMinutaRge!A94 -> 0 | U95: 57 | AK95: =[1]Folha4!A88 -> 0
P96: =[1]SecundariaMinutaRge!A95 -> 1 CA 2/0 AWG Vão 35m RGE | Q96: =[1]PrimariaMinutaRge!A95 -> 1 CA 4/0 AWG Vão 35m RGE | R96: =[1]NeutroMinutaRge!A95 -> 0 | U96: 58 | AK96: =[1]Folha4!A89 -> 0
P97: =[1]SecundariaMinutaRge!A96 -> 1 CA 4/0 AWG Vão 35m RGE | Q97: =[1]PrimariaMinutaRge!A96 -> 1 CA 336,4 MCM Vão 35m RGE | R97: =[1]NeutroMinutaRge!A96 -> 0 | U97: 59 | AK97: =[1]Folha4!A90 -> 0
P98: =[1]SecundariaMinutaRge!A97 -> 1 CA 336,4 MCM Vão 35m RGE | Q98: =[1]PrimariaMinutaRge!A97 -> 1 CA 477 MCM Vão 35m RGE | R98: =[1]NeutroMinutaRge!A97 -> 0 | U98: 60 | AK98: =[1]Folha4!A91 -> 0
P99: =[1]SecundariaMinutaRge!A98 -> 1 CA 477 MCM Vão 35m RGE | Q99: =[1]PrimariaMinutaRge!A98 -> 0 | R99: =[1]NeutroMinutaRge!A98 -> 0 | U99: 61 | AK99: =[1]Folha4!A92 -> 0
P100: =[1]SecundariaMinutaRge!A99 -> 0 | Q100: =[1]PrimariaMinutaRge!A99 -> 1 CA 02 AWG Vão 80m RGE | R100: =[1]NeutroMinutaRge!A99 -> 0 | U100: 62 | AK100: =[1]Folha4!A93 -> 0
P101: =[1]SecundariaMinutaRge!A100 -> 1 CA 02 AWG Vão 80m RGE | Q101: =[1]PrimariaMinutaRge!A100 -> 1 CA 1/0 AWG Vão 80m RGE | R101: =[1]NeutroMinutaRge!A100 -> 0 | U101: 63 | AK101: =[1]Folha4!A94 -> 0
P102: =[1]SecundariaMinutaRge!A101 -> 1 CA 1/0 AWG Vão 80m RGE | Q102: =[1]PrimariaMinutaRge!A101 -> 1 CA 2/0 AWG Vão 80m RGE | R102: =[1]NeutroMinutaRge!A101 -> 0 | U102: 64 | AK102: =[1]Folha4!A95 -> 0
P103: =[1]SecundariaMinutaRge!A102 -> 1 CA 2/0 AWG Vão 80m RGE | Q103: =[1]PrimariaMinutaRge!A102 -> 1 CA 4/0 AWG Vão 80m RGE | R103: =[1]NeutroMinutaRge!A102 -> 0 | U103: 65 | AK103: =[1]Folha4!A96 -> 0
P104: =[1]SecundariaMinutaRge!A103 -> 1 CA 4/0 AWG Vão 80m RGE | Q104: =[1]PrimariaMinutaRge!A103 -> 1 CA 336,4 MCM Vão 80m RGE | R104: =[1]NeutroMinutaRge!A103 -> 0 | U104: 66 | AK104: =[1]Folha4!A97 -> 0
P105: =[1]SecundariaMinutaRge!A104 -> 1 CA 336,4 MCM Vão 80m RGE | Q105: =[1]PrimariaMinutaRge!A104 -> 1 CA 477 MCM Vão 80m RGE | R105: =[1]NeutroMinutaRge!A104 -> 0 | U105: 67 | AK105: =[1]Folha4!A98 -> 0
P106: =[1]SecundariaMinutaRge!A105 -> 1 CA 477 MCM Vão 80m RGE | Q106: =[1]PrimariaMinutaRge!A105 -> 0 | R106: =[1]NeutroMinutaRge!A105 -> 0 | U106: 68 | AK106: =[1]Folha4!A99 -> 0
P107: =[1]SecundariaMinutaRge!A106 -> 0 | Q107: =[1]PrimariaMinutaRge!A106 -> 1 CAA 04 AWG Vão 40m RGE | R107: =[1]NeutroMinutaRge!A106 -> 0 | U107: 69 | AK107: =[1]Folha4!A100 -> 0
P108: =[1]SecundariaMinutaRge!A107 -> 1 CAA 04 AWG Vão 40m RGE | Q108: =[1]PrimariaMinutaRge!A107 -> 1 CAA 02 AWG Vão 40m RGE | R108: =[1]NeutroMinutaRge!A107 -> 0 | U108: 70 | AK108: =[1]Folha4!A101 -> 0
P109: =[1]SecundariaMinutaRge!A108 -> 1 CAA 02 AWG Vão 40m RGE | Q109: =[1]PrimariaMinutaRge!A108 -> 1 CAA 1/0 AWG Vão 40m RGE | R109: =[1]NeutroMinutaRge!A108 -> 0 | U109: 71 | AK109: =[1]Folha4!A102 -> 0
P110: =[1]SecundariaMinutaRge!A109 -> 1 CAA 1/0 AWG Vão 40m RGE | Q110: =[1]PrimariaMinutaRge!A109 -> 1 CAA 2/0 AWG Vão 40m RGE | R110: =[1]NeutroMinutaRge!A109 -> 0 | U110: 72 | AK110: =[1]Folha4!A103 -> 0
P111: =[1]SecundariaMinutaRge!A110 -> 1 CAA 2/0 AWG Vão 40m RGE | Q111: =[1]PrimariaMinutaRge!A110 -> 1 CAA 4/0 AWG Vão 40m RGE | R111: =[1]NeutroMinutaRge!A110 -> 0 | U111: 73 | AK111: =[1]Folha4!A104 -> 0
P112: =[1]SecundariaMinutaRge!A111 -> 1 CAA 4/0 AWG Vão 40m RGE | Q112: =[1]PrimariaMinutaRge!A111 -> 0 | R112: =[1]NeutroMinutaRge!A111 -> 0 | U112: 74 | AK112: =[1]Folha4!A105 -> 0
P113: =[1]SecundariaMinutaRge!A112 -> 0 | Q113: =[1]PrimariaMinutaRge!A112 -> 1 CAA 04 AWG Vão 80m RGE | R113: =[1]NeutroMinutaRge!A112 -> 0 | U113: 75 | AK113: =[1]Folha4!A106 -> 0
P114: =[1]SecundariaMinutaRge!A113 -> 1 CAA 04 AWG Vão 80m RGE | Q114: =[1]PrimariaMinutaRge!A113 -> 1 CAA 02 AWG Vão 80m RGE | R114: =[1]NeutroMinutaRge!A113 -> 0 | U114: 76 | AK114: =[1]Folha4!A107 -> 0
P115: =[1]SecundariaMinutaRge!A114 -> 1 CAA 02 AWG Vão 80m RGE | Q115: =[1]PrimariaMinutaRge!A114 -> 1 CAA 1/0 AWG Vão 80m RGE | R115: =[1]NeutroMinutaRge!A114 -> 0 | U115: 77 | AK115: =[1]Folha4!A108 -> 0
P116: =[1]SecundariaMinutaRge!A115 -> 1 CAA 1/0 AWG Vão 80m RGE | Q116: =[1]PrimariaMinutaRge!A115 -> 1 CAA 2/0 AWG Vão 80m RGE | R116: =[1]NeutroMinutaRge!A115 -> 0 | U116: 78 | AK116: =[1]Folha4!A109 -> 0
P117: =[1]SecundariaMinutaRge!A116 -> 1 CAA 2/0 AWG Vão 80m RGE | Q117: =[1]PrimariaMinutaRge!A116 -> 1 CAA 4/0 AWG Vão 80m RGE | R117: =[1]NeutroMinutaRge!A116 -> 0 | U117: 79 | AK117: =[1]Folha4!A110 -> 0
P118: =[1]SecundariaMinutaRge!A117 -> 1 CAA 4/0 AWG Vão 80m RGE | Q118: =[1]PrimariaMinutaRge!A117 -> 1 CAA 336,4 MCM Vão 80m RGE | R118: =[1]NeutroMinutaRge!A117 -> 0 | U118: 80 | AK118: =[1]Folha4!A111 -> 0
